Workbook

Sheet Démarrage

Sheet Introduction (hidden)
A9: Calc&Go - PME
A10: Quels sont vos objectifs financiers ?
A13: Cet outil poursuit un objectif principal : améliorer la gestion de votre entreprise !
A15: Comment ?
A17: 1) En identifiant ce que vous devez facturer à vos clients.
A18: 2) En assurant un suivi vous permettant de procéder à des ajustements en temps voulu.
A21: Cet outil livre des réponses aux questions suivantes :
A23: 1) Que coûte une heure de travail et combien la facturez-vous ?
A24: 2) Quelle marge dois-je prendre sur mes matériaux, mes sous-traitants et mon matériel ?
A25: 3) Quels mes coûts indirects et comment puis-je les répartir ?
A26: 4) Comment améliorer ma structure financière ?
A28: Pour info : Une des principales faiblesses réside dans la différence entre les heures payées par les clients (= les heures facturées) et les heures prestées par les intervenants, …

Sheet Structure des coûts (hidden)
B1: Que pouvez-vous faire sur cette page ? --> Chargez l’exemple en cliquant sur le bouton orange puis cliquez sur le bouton « Afficher les explications supplémentaires ».
B2: Définir les coûts directs de l’entreprise de construction
B4: Étape 1 - Que coûte une heure de travail au sein de mon entreprise ?
B5: Créé par Mike Bogaerts | E5: Numéro de poste comptable
B6: Salaires bruts ouvriers | C6: 180000
B7: Charges patronales employeur (ONSS + FSE) | C7: 120000 | D7: =IFERROR(C7/$C$6,"") -> 0.6666666667
B8: Timbres intempéries et fidélité | D8: =IFERROR(C8/$C$6,"") -> 0
B9: Vêtements de travail et de protection + entretien (0,5 euro) | D9: 0
B10: Assurance accidents du travail | D10: 0
B11: Assurance RC | D11: 0
B12: Service médical | D12: 0
B13: Assurance revenu garanti | D13: 0
B14: Coûts de formation | D14: 0
B15: Écochèques et chèques-repas (y compris les frais d’expédition et de gestion) | D15: 0
B16: Frais de cantine, fête du personnel et team buildings | D16: 0 | I16: ,
B17: Indemnité de déplacement | D17: 0
B18: Mobilité | D18: 0
B19: Frais de gestion du Secrétariat social | D19: 0
B20: Autres frais de personnel | D20: 0
B21: Réduction des cotisations sociales & récupération des frais de personnel (par ex. SP) | D21: 0
B22: Champ libre 1 | D22: 0
B23: Champ libre 2 | D23: 0
B24: Champ libre 3 | D24: 0
B25: Total charges sociales | C25: =SUM(C7:C24) -> 120000
B26: Pourcentage de charges sociales - total | C26: =IFERROR(C25/C6,0) -> 0.6666666667
B28: Total des frais de personnel des ouvriers | C28: =C6+C25 -> 300000
B29: Nombre d’heures prestées des ouvriers (heurs supplémentaire inclus) | C29: 10125
B30: Coût horaire des ouvriers uniquement | C30: =IFERROR(C28/C29,0) -> 29.62962963 | E30: Numéro de poste comptable
B31: Coût salarial intérimaires | C31: 45000
B32: Nombre d’heures prestées par les intérimaires | C32: 1000
B33: Coût horaire des intérimaires uniquement | C33: =IFERROR(C31/C32,0) -> 45 | E33: Numéro de poste comptable
B34: Coût salarial stagiaires (main-d'œuvre)
B35: Nombre d’heures stagiaires prestées (main-d'œuvre)
B36: Coût salarial des stagiaires uniquement (main-d'œuvre) | C36: =IFERROR(C34/C35,0) -> 0 | E36: Numéro de compte comptabilité
B37: Coût salarial total ouvriers + intérimaires + stagiaires | C37: =C25+C6+C31+C34 -> 345000
B38: Nombre d’heures prestées ouvriers + intérimaires + stagiaires | C38: =C29+C32+C35 -> 11125
B40: Coût horaire moyen ouvriers + intérimaires + stagiaires | C40: =IFERROR(C37/C38,0) -> 31.01123596
B43: Étape 2 - Quel est l'impact du gérant / associé / sous-traitant travaillant directement sur le chantier sur la base horaire calculé à l'étape 1 ?
C45: Gérant | E45: Numéro de poste comptable
B46: Coûts salariaux gérant (salaire net + ONSS + SP) | C46: 45000
B47: % sur chantier | C47: 0.5
B48: Plan d’épargne-pension (PLCI, PCLIS, EIP)
B49: Assurance-vie
B50: Assurance hospitalisation et assurance revenu garanti
B51: Champ libre 1
B52: Champ libre 2
B53: Coût total gérant | C53: =SUM(C48:C52)+C46 -> 45000
B54: Part du chantier | C54: =C47*C53 -> 22500
B55: Part de coûts indirects | C55: =C53-C54 -> 22500
B56: Nombre d'heures prestées par le gérant (chantier + bureau) | C56: 2750
B57: Nombre d'heures prestées par le gérant sur le chantier | C57: =C56*C47 -> 1375
B58: Coût horaire du gérant uniquement | C58: =IFERROR(C54/C57,0) -> 16.36363636
B60: Coût horaire moyen (ouvriers, intérimaires, stagiaires ET gérant) | C60: =IFERROR((C37+C54)/(C38+C57),0) -> 29.4
C61: Coût total | D61: Coût horaire | E61: # heures | F61: Numéro de poste comptable
B62: coût salarial associé/sous-traitant sur base horaire 1 | C62: 54896 | D62: 35 | E62: =IFERROR(C62/D62,"-") -> 1568.457143
B63: coût salarial associé/sous-traitant sur base horaire 2 | C63: 45789 | D63: 30 | E63: =IFERROR(C63/D63,"-") -> 1526.3
B64: coût salarial associé/sous-traitant sur base horaire 3 | C64: 37841 | D64: 36 | E64: 1051.138889
B65: coût salarial associé/sous-traitant sur base horaire 4 | E65: -
B66: coût salarial associé/sous-traitant sur base horaire 5 | E66: -
B67: coût salarial associé/sous-traitant sur base horaire 6 | E67: -
B68: coût salarial associé/sous-traitant sur base horaire 7 | E68: -
B69: coût salarial associé/sous-traitant sur base horaire 8 | E69: -
B70: coût salarial associé/sous-traitant sur base horaire 9 | E70: -
B71: coût salarial associé/sous-traitant sur base horaire 10 | E71: -
B72: Coût total des associés/sous-traitants sur une base horaire | C72: =SUM(C62:C71) -> 138526
B73: Nombre d'heures prestées associés/sous-traitants sur une base horaire | C73: =SUM(E62:E71) -> 4145.896032
B74: Coût horaire moyen associés/sous-traitants sur une base horaire | C74: =IFERROR(C72/C73,0) -> 33.41280122
B76: Coût horaire moyen (ouvriers, intérimaires, stagiaires, gérant ET associés et sous-traitants sur une base horaire) | C76: =IFERROR((C37+C54+C72)/(C38+C57+C73),0) -> 30.39944495
B81: Aperçu des coûts salariaux directs
B83: Coût salarial total (ouvriers, intérimaires, syagiaires, gérant, associés et sous-traitants sur base horaire) | C83: =C37+C54+C72 -> 506026
B84: Nombre total d'heures prestées (ouvriers, intérimaires, stagiaires, gérant, associés et sous-traitants sur base horaire) | C84: =C38+C57+C73 -> 16645.89603
B85: Coût horaire moyen (ouvriers, intérimaires, stagiaires, gérant, associés et sous-traitants sur base horaire) | C85: =IFERROR(C83/C84,0) -> 30.39944495
B86: pourcentage de non-productivité
B87: Nombre total d'heures non productives | C87: =C86*C84 -> 0
B88: Nombre total d'heures productives/facturées | C88: =C84-C87 -> 16645.89603
B89: Coût horaire moyen COMPRENANT la non-productivité | C89: =IFERROR(C83/(C84-C84*C86),0) -> 30.39944495
B90: Perte de marge nette (bénéfice) sur base annuelle pour cause de non-productivité | C90: =C87*C289 -> 0
B91: Nombre d'heures non productives par jour (sur la base de 200 jours ouvrables par an) | C91: =C87/200 -> 0
B92: Perte de marge nette (bénéfice) par jour | C92: =C91*C289 -> 0
B95: Étape 3 - À combien s’élèvent tous les autres coûts directs ?
B97: Coûts salariaux (CD) : | C97: =C37+C54+C72 -> 506026 | D97: =IFERROR(C97/$C$113,0) -> 0.4746844824 | E97: Numéro de poste comptable
B98: Coût des matériaux (achats de matériaux) : | C98: 450000 | D98: 0.422128541
B99: Coûts de sous-traitance (pas sur base horaire) : | C99: 110000 | D99: 0.1031869767
B100: Coûts de matériel : | D100: 0
B101: Frais de conteneurs : | D101: 0
B102: Location de matériel : | D102: 0
B103: Champ supplémentaire 1 : | D103: 0
B104: Champ supplémentaire 2 : | D104: 0
B105: Champ supplémentaire 3 : | D105: 0
B106: Champ supplémentaire 4 : | D106: 0
B107: Champ supplémentaire 5 : | D107: 0
B108: Champ supplémentaire 6 : | D108: 0
B109: Champ supplémentaire 7 : | D109: 0
B110: Champ supplémentaire 8 : | D110: 0
B111: Champ supplémentaire 9 : | D111: 0
B112: Diminution des coûts directs sur la base des corrections ci-après : | C112: =-SUM(C117:C122) -> 0 | D112: 0
B113: Total général : | C113: =SUM(C97:C112) -> 1066026
B115: Éventuelles modifications des coûts de matériaux, de matériel et autres coûts directs
B117: Montant des coûts de matériaux non facturés : | D117: =IFERROR("Soit : "&TEXT(C117/C98,"0,00 %"),0%) -> Soit : 0,00 % | E117: du coût de matériaux total
B118: Montant des coûts de matériel non facturés : | D118: =IFERROR("Soit : "&TEXT(C118/C100,"0,00 %"),0%) -> 0 | E118: du coût de matériels total
B119: Montant des autres coûts directs non facturés : | D119: =IFERROR("Soit : "&TEXT(C119/SUM(C101:C111),"0,00 %"),0) -> 0 | E119: des autres coûts directs totaux
B120: Champ supplémentaire 1 :
B121: Champ supplémentaire 2 :
B122: Champ supplémentaire 3 :
B125: Détermination des coûts indirects de l’entreprise de construction
B127: Étape 4 - Quels sont vos coûts indirects ?
B129: Total général : | C129: =SUM(C130:C144) -> 322500
B130: Coûts de non-productivité, à compléter uniquement s’ils ne sont pas comptabilisés dans les coûts directs de main-d'œuvre | D130: =IFERROR(C130/$C$129,0) -> 0 | E130: Numéro de poste comptable
B131: Total des comptes 61 pertinents | C131: 300000 | D131: 0.9302325581
B132: Part du patron | C132: =C55 -> 22500 | D132: 0.06976744186
B133: comptes 61 : gérant(s) | D133: 0
B134: comptes 62 : employés | D134: 0
B135: comptes 63 : amortissements | D135: 0
B136: comptes 64 : autres charges d’exploitation | D136: 0
B137: comptes 65 - comptes 75 : résultat financier | D137: 0
B138: comptes 66 - comptes 76 : résultat exceptionnel | D138: 0
B139: Traitement de certains comptes 74 | D139: 0
B140: Champ supplémentaire 1 : | D140: 0
B141: Champ supplémentaire 2 : | D141: 0
B142: Champ supplémentaire 3 : | D142: 0
B143: Champ supplémentaire 4 : | D143: 0
B144: Augmentation des coûts indirects sur la base des corrections susmentionnées : | C144: =SUM(C117:C122) -> 0 | D144: 0
B148: Étape 5 - À combien s’élève votre couverture des coûts ?
B150: Total des coûts directs : | C150: =C113 -> 1066026
B151: Total des coûts indirects : | C151: =C129 -> 322500
B153: % de majoration sur tous vos coûts directs : | C153: =IFERROR(C151/C113,0) -> 0.3025254544 | D153: <-- COUVERTURE DES COÛTS INDIRECTS
B156: Étape 6 - Comment allez-vous récupérer vos coûts indirects et quels doivent être les pourcentages d’augmentation nécessaires ?
B158: Option 1 : Appliquer un coefficient un majoration unique (théorique) à tous vos coûts directs (voir l’étape 5)
C159: Coefficients de majoration théorique | D159: CI récupérés | E159: Proportion en %
B160: ="Sur "&B97 -> Sur Coûts salariaux (CD) : | C160: =$C$153 -> 0.3025254544 | D160: =C160*C97 -> 153085.7456 | E160: =IFERROR(IF(D160/$D$175=0,"-",D160/$D$175),0) -> 0.4746844824
B161: ="Sur "&B98 -> Sur Coût des matériaux (achats de matériaux) : | C161: =$C$153 -> 0.3025254544 | D161: 136136.4545 | E161: 0.422128541
B162: Sur Coûts de sous-traitance (pas sur base horaire) : | C162: =$C$153 -> 0.3025254544 | D162: 33277.79998 | E162: 0.1031869767
B163: Sur Coûts de matériel : | C163: =$C$153 -> 0.3025254544 | D163: 0 | E163: -
B164: Sur Frais de conteneurs : | C164: =$C$153 -> 0.3025254544 | D164: 0 | E164: -
B165: Sur Location de matériel : | C165: 0.3025254544 | D165: 0 | E165: -
B166: Sur Champ supplémentaire 1 : | C166: 0.3025254544 | D166: 0 | E166: -
B167: Sur Champ supplémentaire 2 : | C167: 0.3025254544 | D167: 0 | E167: -
B168: Sur Champ supplémentaire 3 : | C168: 0.3025254544 | D168: 0 | E168: -
B169: Sur Champ supplémentaire 4 : | C169: 0.3025254544 | D169: 0 | E169: -
B170: Sur Champ supplémentaire 5 : | C170: 0.3025254544 | D170: 0 | E170: -
B171: Sur Champ supplémentaire 6 : | C171: 0.3025254544 | D171: 0 | E171: -
B172: Sur Champ supplémentaire 7 : | C172: 0.3025254544 | D172: 0 | E172: -
B173: Sur Champ supplémentaire 8 : | C173: 0.3025254544 | D173: 0 | E173: -
B174: Sur Champ supplémentaire 9 : | C174: 0.3025254544 | D174: 0 | E174: -
C175: Total : | D175: =SUM(D160:D174) -> 322500 | E175: =SUM(E160:E174) -> 1
B177: Option 2 : Choisissez vos coefficients de majoration personnalisés
C178: Coefficients de majoration personnalisés | D178: CI récupérés | E178: Proportion en % | F178: Supplément/heure
B179: =B160 -> Sur Coûts salariaux (CD) : | C179: =IFERROR(ROUND(D179/C97,4),0) -> 0.4421 | D179: =C151-SUM(D180:D193) -> 223700 | E179: =IFERROR(IF(D179/$C$151=0,"-",D179/$C$151),0) -> 0.6936434109 | F179: =C179*C89 -> 13.43959461
B180: Sur Coût des matériaux (achats de matériaux) : | C180: 0.2 | D180: =C180*C98 -> 90000 | E180: 0.2790697674
B181: Sur Coûts de sous-traitance (pas sur base horaire) : | C181: 0.08 | D181: 8800 | E181: 0.02728682171
B182: Sur Coûts de matériel : | D182: 0 | E182: -
B183: Sur Frais de conteneurs : | D183: 0 | E183: -
B184: Sur Location de matériel : | D184: 0 | E184: -
B185: Sur Champ supplémentaire 1 : | D185: 0 | E185: -
B186: Sur Champ supplémentaire 2 : | D186: 0 | E186: -
B187: Sur Champ supplémentaire 3 : | D187: 0 | E187: -
B188: Sur Champ supplémentaire 4 : | D188: 0 | E188: -
B189: =B170 -> Sur Champ supplémentaire 5 : | D189: 0 | E189: -
B190: Sur Champ supplémentaire 6 : | D190: 0 | E190: -
B191: Sur Champ supplémentaire 7 : | D191: 0 | E191: -
B192: Sur Champ supplémentaire 8 : | D192: 0 | E192: -
B193: Sur Champ supplémentaire 9 : | D193: 0 | E193: -
C194: Total : | D194: =SUM(D179:D193) -> 322500 | E194: =SUM(E179:E193) -> 1
B197: Étape 7 - À combien s’élève votre tarif horaire moyen (prix de revient ) ?
C199: tarif horaire théorique | D199: tarif horaire personnalisé
B200: Tarif horaire moyen (CD + CI) : | C200: =IFERROR(C89+$C$153*C89,0) -> 39.59605084 | D200: =IFERROR(C89+C89*$C$179,0) -> 43.83903956
B203: Étape 8 - Quel est le bénéfice avant impôt/la marge bénéficiaire que vous souhaitez atteindre ?
B205: Bénéfice sur base annuelle (avant impôts) : | C205: 90000
B206: Marge bénéficiaire générale sur les coûts directs (M) : | C206: =IFERROR(C205/C113,0) -> 0.08442570819
B208: Remarque : Tous les chiffres que vous voyez dans cet outil sont calculés avant impôts.
B211: Étape 9 - Comment allez-vous sécuriser votre objectif de bénéfice et quel doit être le pourcentage de majoration ?
B213: Option 1 : Appliquer un pourcentage de marge bénéficiaire unique (théorique)
C215: coefficient de majoration marge bénéficiaire théorique | D215: bénéfice récupéré | E215: Proportion en %
B216: =B160 -> Sur Coûts salariaux (CD) : | C216: =$C$206 -> 0.08442570819 | D216: =C216*C97 -> 42721.60341 | E216: =IFERROR(IF(D216/$D$231=0,"-",D216/$D$231),0) -> 0.4746844824
B217: Sur Coût des matériaux (achats de matériaux) : | C217: =$C$206 -> 0.08442570819 | D217: 37991.56869 | E217: 0.422128541
B218: Sur Coûts de sous-traitance (pas sur base horaire) : | C218: 0.08442570819 | D218: 9286.827901 | E218: 0.1031869767
B219: Sur Coûts de matériel : | C219: 0.08442570819 | D219: 0 | E219: -
B220: Sur Frais de conteneurs : | C220: 0.08442570819 | D220: 0 | E220: -
B221: Sur Location de matériel : | C221: 0.08442570819 | D221: 0 | E221: -
B222: Sur Champ supplémentaire 1 : | C222: 0.08442570819 | D222: 0 | E222: -
B223: Sur Champ supplémentaire 2 : | C223: 0.08442570819 | D223: 0 | E223: -
B224: Sur Champ supplémentaire 3 : | C224: 0.08442570819 | D224: 0 | E224: -
B225: Sur Champ supplémentaire 4 : | C225: 0.08442570819 | D225: 0 | E225: -
B226: Sur Champ supplémentaire 5 : | C226: 0.08442570819 | D226: 0 | E226: -
B227: Sur Champ supplémentaire 6 : | C227: 0.08442570819 | D227: 0 | E227: -
B228: Sur Champ supplémentaire 7 : | C228: 0.08442570819 | D228: 0 | E228: -
B229: Sur Champ supplémentaire 8 : | C229: 0.08442570819 | D229: 0 | E229: -
B230: Sur Champ supplémentaire 9 : | C230: 0.08442570819 | D230: 0 | E230: -
C231: Total : | D231: =SUM(D216:D230) -> 90000 | E231: =SUM(E216:E230) -> 1
B233: Option 2 : Choisissez le % personnalisé de votre marge bénéficiaire
C235: Coefficients de majoration marge bénéficiaire personnalisés | D235: bénéfice récupéré | E235: Proportion en % | F235: Supplément/heure
B236: =B216 -> Sur Coûts salariaux (CD) : | C236: =IFERROR(D236/C97,0) -> 0.1290447526 | D236: =C205-SUM(D237:D250) -> 65300 | E236: =IFERROR(IF(D236/$C$205=0,"-",D236/$C$205),0) -> 0.7255555556 | F236: =IFERROR(C236*C89,0) -> 3.922888854
B237: Sur Coût des matériaux (achats de matériaux) : | C237: 0.05 | D237: =C237*C98 -> 22500 | E237: 0.25
B238: Sur Coûts de sous-traitance (pas sur base horaire) : | C238: 0.02 | D238: 2200 | E238: 0.02444444444
B239: Sur Coûts de matériel : | D239: 0 | E239: -
B240: Sur Frais de conteneurs : | D240: 0 | E240: -
B241: Sur Location de matériel : | D241: 0 | E241: -
B242: Sur Champ supplémentaire 1 : | D242: 0 | E242: -
B243: Sur Champ supplémentaire 2 : | D243: 0 | E243: -
B244: Sur Champ supplémentaire 3 : | D244: 0 | E244: -
... 34 more rows

Sheet Tableaux de suivi !!! (hidden)
B1: Que pouvez-vous faire sur cette page ?
B7: Résumé des tableaux de suivi | H7: Résumé du portefeuille de commandes
B8: =IF(E39>0,TEXT('Dashbord calculatie'!B102,"#.###") &" heures facturées en plus de l'objectif établi précédemment",TEXT(-'Dashbord calculatie'!B102,"#.###") &" heures facturées en moins par rapport à l'objectif établi précédemment") ->  | I8: Montants des projets signés : | J8: ='Suivi des heures facturées'!I3 -> 635000 | L8: Heures estimées sur les projets : | M8: ='Suivi des heures facturées'!M3 -> 5696
B9: =IF(H39-D39<0,TEXT('Dashbord calculatie'!B120,"#.###") &" heures non facturées / facturables",TEXT(-'Dashbord calculatie'!B120,"#.###") &" heures non facturées / facturables") ->  | I9: Déjà facturé : | J9: ='Suivi des heures facturées'!I4 -> 275000 | L9: Heures déjà facturées : | M9: ='Suivi des heures facturées'!M4 -> 2450.8
B10: =IF(E57>0,TEXT(E57,"€ #.###") &" de coûts salariaux directs en plus par rapport à l'objectif",TEXT(-E57,"€ #.###") &" de coûts salariaux directs en moins par rapport à l'objectif") -> € 4.662 de coûts salariaux directs en plus par rapport à l'objectif | I10: Reste à facturer : | J10: ='Suivi des heures facturées'!I5 -> 360000 | L10: Heures restant à facturer : | M10: ='Suivi des heures facturées'!M5 -> 3245.2
B11: =IF(J57>0,TEXT(J57,"€ #.###") &" d'achats de matériaux en plus par rapport à l'objectif",TEXT(-J57,"€ #.###") &" d'achats de matériaux en moins par rapport à l'objectif") -> € 5.000 d'achats de matériaux en plus par rapport à l'objectif
B12: =IF(E75>0,TEXT(E75,"€ #.###") &" de coûts de sous-traitanvce en plus par rapport à l'objectif",TEXT(-E75,"€ #.###") &" de coûts de sous-traitanvce en moins par rapport à l'objectif") -> € 1.667 de coûts de sous-traitanvce en plus par rapport à l'objectif
B13: =IF(J75>0,TEXT(J75,"€ #.###") &" de coûts de matériel en plus par rapport à l'objectif",TEXT(-J75,"€ #.###") &" de coûts de matériel en moins par rapport à l'objectif") -> € de coûts de matériel en moins par rapport à l'objectif
B14: =IF(E93>0,TEXT(E93,"€ #.###") &" de coûts directs 'autres coûts' en plus par rapport à l'objectif",TEXT(-E93,"€ #.###") &" de coûts directs 'autres coûts' en moins par rapport à l'objectif") -> € de coûts directs 'autres coûts' en moins par rapport à l'objectif
B15: =IF(E112<0,TEXT(-E112,"€ #.###") &" de coûts indirects en plus par rapport aux estimations",TEXT(E112,"€ #.###") &" de coûts indirects en moins par rapport aux estimations") -> € 1.284 de coûts indirects en moins par rapport aux estimations
B16: =IF(E131>0,TEXT(E131,"€ #.###") &" de chiffre d'affaires en plus par rapport aux estimations",TEXT(-E131,"€ #.###") &" de chiffre d'affaires en moins par rapport aux estimations") -> € 3.579 de chiffre d'affaires en plus par rapport aux estimations
B17: =IF(J131>0,TEXT(J131,"€ #.###") &" de marge bénéficiaire en plus par rapport aux objectifs",TEXT(-J131,"€ #.###") &" de marge bénéficiaire en moins par rapport aux objectifs") -> € 6.466 de marge bénéficiaire en moins par rapport aux objectifs
B18: =IF(E149>0,TEXT(E149,"€ #.###") &" de marge brute en plus par rapport aux objectifs (CI + M)",TEXT(-E149,"€ #.###") &" de marge brute en moins par rapport aux objectifs (CI + M)") -> € 7.750 de marge brute en moins par rapport aux objectifs (CI + M)
B19: =IF(E167>0,TEXT('Dashbord calculatie'!B240,"€ #.###") &" de ' "&B152&" ' en plus par rapport aux estimations",TEXT(-'Dashbord calculatie'!B240,"€ #.###") &" de ' "&B152&" ' en moins par rapport aux estimations") -> € de ' Champ supplémentaire disponible ' en moins par rapport aux estimations
B22: Année comptable : | D22: 2022 | E22: Premier mois de votre année comptable : | H22: janvier
B23: Suivi des coûts directs
B24: Suivi des heures facturées | H24: Suivi des heures prestées | K24: TOUTES LES HEURES CI-DESSOUS FONT PARTIE DES HEURES DIRECTEMENT PRESTÉES DE VOTRE ENTREPRISE
B25: Sur base annuelle : | D25: ='Structure des coûts'!C88 -> 16645.89603 | H25: Total des heures payées | K25: Heures payées aux ouvriers | M25: Heures payées aux intérimaires | O25: Heures prestées par le gérant | Q25: Heures payées aux sous-traitants | S25: Heures payées aux employés
B26: =G44 -> 2022 | C26: Objectif par mois | D26: Réalité | E26: OK/PAS OK
B27: janvier | C27: =$D$25/12 -> 1387.158003 | D27: ='Suivi des heures facturées'!K7 ->  | E27: =IF($D27>=$C27,"OK","PAS OK") ->  | H27: =K27+M27+O27+Q27+S27 -> 1252 | I27: ="en "&B27 -> en janvier | K27: ='Suivi des heures prestées'!$C6 -> 680 | M27: ='Suivi des heures prestées'!$J6 -> 76 | O27: ='Suivi des heures prestées'!$Q6 -> 98 | Q27: ='Suivi des heures prestées'!$X6 -> 398 | S27: ='Suivi des heures prestées'!$AE6 -> 0
C28: 1387.158003 | D28: ='Suivi des heures facturées'!L7 ->  | E28: =IF($D28>=$C28,"OK","PAS OK") ->  | H28: =K28+M28+O28+Q28+S28 -> 1330 | I28: ="en "&B28 ->  | K28: ='Suivi des heures prestées'!$C17 -> 710 | M28: ='Suivi des heures prestées'!$J17 -> 80 | O28: ='Suivi des heures prestées'!$Q17 -> 122 | Q28: ='Suivi des heures prestées'!$X17 -> 418 | S28: ='Suivi des heures prestées'!$AE17 -> 0
C29: 1387.158003 | D29: ='Suivi des heures facturées'!M7 ->  | H29: 0 | K29: ='Suivi des heures prestées'!$C28 -> 0 | M29: ='Suivi des heures prestées'!$J28 -> 0 | O29: ='Suivi des heures prestées'!$Q28 -> 0 | Q29: ='Suivi des heures prestées'!$X28 -> 0 | S29: ='Suivi des heures prestées'!$AE28 -> 0
C30: 1387.158003 | D30: ='Suivi des heures facturées'!N7 ->  | H30: 0 | K30: ='Suivi des heures prestées'!$C39 -> 0 | M30: ='Suivi des heures prestées'!$J39 -> 0 | O30: ='Suivi des heures prestées'!$Q39 -> 0 | Q30: ='Suivi des heures prestées'!$X39 -> 0 | S30: ='Suivi des heures prestées'!$AE39 -> 0
C31: 1387.158003 | D31: ='Suivi des heures facturées'!O7 ->  | H31: 0 | K31: ='Suivi des heures prestées'!$C50 -> 0 | M31: ='Suivi des heures prestées'!$J50 -> 0 | O31: ='Suivi des heures prestées'!$Q50 -> 0 | Q31: ='Suivi des heures prestées'!$X50 -> 0 | S31: ='Suivi des heures prestées'!$AE50 -> 0
C32: 1387.158003 | D32: ='Suivi des heures facturées'!P7 ->  | H32: 0 | K32: ='Suivi des heures prestées'!$C61 -> 0 | M32: ='Suivi des heures prestées'!$J61 -> 0 | O32: ='Suivi des heures prestées'!$Q61 -> 0 | Q32: ='Suivi des heures prestées'!$X61 -> 0 | S32: ='Suivi des heures prestées'!$AE61 -> 0
C33: 1387.158003 | D33: ='Suivi des heures facturées'!Q7 ->  | H33: 0 | K33: ='Suivi des heures prestées'!$C72 -> 0 | M33: ='Suivi des heures prestées'!$J72 -> 0 | O33: ='Suivi des heures prestées'!$Q72 -> 0 | Q33: ='Suivi des heures prestées'!$X72 -> 0 | S33: ='Suivi des heures prestées'!$AE72 -> 0
C34: 1387.158003 | D34: ='Suivi des heures facturées'!R7 ->  | H34: 0 | K34: ='Suivi des heures prestées'!$C83 -> 0 | M34: ='Suivi des heures prestées'!$J83 -> 0 | O34: ='Suivi des heures prestées'!$Q83 -> 0 | Q34: ='Suivi des heures prestées'!$X83 -> 0 | S34: ='Suivi des heures prestées'!$AE83 -> 0
C35: 1387.158003 | D35: ='Suivi des heures facturées'!S7 ->  | H35: 0 | K35: ='Suivi des heures prestées'!$C94 -> 0 | M35: ='Suivi des heures prestées'!$J94 -> 0 | O35: ='Suivi des heures prestées'!$Q94 -> 0 | Q35: ='Suivi des heures prestées'!$X94 -> 0 | S35: ='Suivi des heures prestées'!$AE94 -> 0
C36: 1387.158003 | D36: ='Suivi des heures facturées'!T7 ->  | H36: 0 | K36: ='Suivi des heures prestées'!$C105 -> 0 | M36: ='Suivi des heures prestées'!$J105 -> 0 | O36: ='Suivi des heures prestées'!$Q105 -> 0 | Q36: ='Suivi des heures prestées'!$X105 -> 0 | S36: ='Suivi des heures prestées'!$AE105 -> 0
C37: 1387.158003 | D37: ='Suivi des heures facturées'!U7 ->  | H37: 0 | K37: ='Suivi des heures prestées'!$C116 -> 0 | M37: ='Suivi des heures prestées'!$J116 -> 0 | O37: ='Suivi des heures prestées'!$Q116 -> 0 | Q37: ='Suivi des heures prestées'!$X116 -> 0 | S37: ='Suivi des heures prestées'!$AE116 -> 0
C38: 1387.158003 | D38: ='Suivi des heures facturées'!V7 ->  | H38: 0 | K38: ='Suivi des heures prestées'!$C127 -> 0 | M38: ='Suivi des heures prestées'!$J127 -> 0 | O38: ='Suivi des heures prestées'!$Q127 -> 0 | Q38: ='Suivi des heures prestées'!$X127 -> 0 | S38: ='Suivi des heures prestées'!$AE127 -> 0
B39: TOTAL : | C39: =SUMIF(D27:D38,"<>0",C27:C38) -> 16645.89603 | D39: =SUM(D27:D38) ->  | E39: =D39-C39 ->  | H39: =SUM(H27:H38) -> 2582 | I39: =D39-H39 ->  | K39: =SUM(K27:K38) -> 1390 | M39: =SUM(M27:M38) -> 156 | O39: =SUM(O27:O38) -> 220 | Q39: =SUM(Q27:Q38) -> 816 | S39: =SUM(S27:S38) -> 0
E40: =IF(E39>0,"en avance sur prévisions", "en retard sur prévisions") ->  | I40: =IF(I39>0,"en avance sur prévisions", "en retard sur prévisions") -> 
B42: Coûts salariaux (CD) | G42: Suivi des achats de matériaux (CD)
B43: Sur base annuelle : | D43: ='Structure des coûts'!C97 -> 506026 | G43: Sur base annuelle : | I43: ='Structure des coûts'!C98 -> 450000
B44: =B62 -> 2022 | C44: Objectif par mois | D44: Réalité | E44: OK/PAS OK | G44: =D22 -> 2022 | H44: Objectif par mois | I44: Réalité | J44: OK/PAS OK
B45: =B119 -> janvier | C45: =$D$43/12 -> 42168.83333 | D45: 38000 | E45: =IF($D45>=$C45,"OK","PAS OK") -> PAS OK | G45: =H22 -> janvier | H45: =$I$43/12 -> 37500 | I45: 45000 | J45: =IF($D45>=$C45,"OK","PAS OK") -> PAS OK
C46: =$D$43/12 -> 42168.83333 | D46: 51000 | E46: =IF($D46>=$C46,"OK","PAS OK") -> OK | G46: =TEXT(DATE(2000,MONTH(DATEVALUE($G45&" 1"))+1,1),"mmmm") ->  | H46: 37500 | I46: 35000 | J46: =IF($D46>=$C46,"OK","PAS OK") -> OK
C47: 42168.83333 | E47: PAS OK | H47: 37500 | J47: PAS OK
C48: 42168.83333 | E48: PAS OK | H48: 37500 | J48: PAS OK
C49: 42168.83333 | E49: PAS OK | H49: 37500 | J49: PAS OK
C50: 42168.83333 | E50: PAS OK | H50: 37500 | J50: PAS OK
C51: 42168.83333 | E51: PAS OK | H51: 37500 | J51: PAS OK
C52: 42168.83333 | E52: PAS OK | H52: 37500 | J52: PAS OK
C53: 42168.83333 | E53: PAS OK | H53: 37500 | J53: PAS OK
C54: 42168.83333 | E54: PAS OK | H54: 37500 | J54: PAS OK
C55: 42168.83333 | E55: PAS OK | H55: 37500 | J55: PAS OK
C56: 42168.83333 | E56: PAS OK | H56: 37500 | J56: PAS OK
B57: TOTAL : | C57: =SUMIF(D45:D56,"<>",C45:C56) -> 84337.66667 | D57: =SUM(D45:D56) -> 89000 | E57: =D57-C57 -> 4662.333333 | G57: TOTAL : | H57: =SUMIF(I45:I56,"<>",H45:H56) -> 75000 | I57: =SUM(I45:I56) -> 80000 | J57: =I57-H57 -> 5000
E58: =IF(E57>0,"en avance sur prévisions", "en retard sur prévisions") -> en avance sur prévisions | J58: =IF(J57>0,"en avance sur prévisions", "en retard sur prévisions") -> en avance sur prévisions
B60: Suivi des coûts de sous-traitants (CD) | G60: Suivi des coûts de matériels (CD)
B61: Sur base annuelle : | D61: ='Structure des coûts'!C99 -> 110000 | G61: Sur base annuelle : | I61: ='Structure des coûts'!C100 -> 0
B62: =B118 -> 2022 | C62: Objectif par mois | D62: Réalité | E62: OK/PAS OK | G62: =B99 -> 2022 | H62: Objectif par mois | I62: Réalité | J62: OK/PAS OK
B63: =G45 -> janvier | C63: =$D$61/12 -> 9166.666667 | D63: 7500 | E63: =IF($D63>=$C63,"OK","PAS OK") -> PAS OK | G63: =G45 -> janvier | H63: =$I$61/12 -> 0 | J63: =IF($D63>=$C63,"OK","PAS OK") -> PAS OK
C64: 9166.666667 | D64: 12500 | E64: =IF($D64>=$C64,"OK","PAS OK") -> OK | H64: 0 | J64: =IF($D64>=$C64,"OK","PAS OK") -> OK
C65: 9166.666667 | E65: PAS OK | H65: 0 | J65: PAS OK
C66: 9166.666667 | E66: PAS OK | H66: 0 | J66: PAS OK
C67: 9166.666667 | E67: PAS OK | H67: 0 | J67: PAS OK
C68: 9166.666667 | E68: PAS OK | H68: 0 | J68: PAS OK
C69: 9166.666667 | E69: PAS OK | H69: 0 | J69: PAS OK
C70: 9166.666667 | E70: PAS OK | H70: 0 | J70: PAS OK
C71: 9166.666667 | E71: PAS OK | H71: 0 | J71: PAS OK
C72: 9166.666667 | E72: PAS OK | H72: 0 | J72: PAS OK
C73: 9166.666667 | E73: PAS OK | H73: 0 | J73: PAS OK
C74: 9166.666667 | E74: PAS OK | H74: 0 | J74: PAS OK
B75: TOTAL : | C75: =SUMIF(D63:D74,"<>",C63:C74) -> 18333.33333 | D75: =SUM(D63:D74) -> 20000 | E75: =D75-C75 -> 1666.666667 | G75: TOTAL : | H75: =SUMIF(I63:I74,"<>",H63:H74) -> 0 | I75: =SUM(I63:I74) -> 0 | J75: =I75-H75 -> 0
E76: =IF(E75>0,"en avance sur prévisions", "en retard sur prévisions") -> en avance sur prévisions | J76: =IF(J75>0,"en avance sur prévisions", "en retard sur prévisions") -> en retard sur prévisions
B78: Suivi des autres coûts directs (CD)
B79: Sur base annuelle : | D79: =SUM('Structure des coûts'!C101:C111) -> 0
B80: =B62 -> 2022 | C80: Objectif par mois | D80: Réalité | E80: OK/PAS OK
B81: =G63 -> janvier | C81: =$D$79/12 -> 0 | E81: =IF($D81>=$C81,"OK","PAS OK") -> OK
C82: =$D$79/12 -> 0 | E82: =IF($D82>=$C82,"OK","PAS OK") -> OK
C83: 0 | E83: OK
C84: 0 | E84: OK
C85: 0 | E85: OK
C86: 0 | E86: OK
C87: 0 | E87: OK
C88: 0 | E88: OK
C89: 0 | E89: OK
C90: 0 | E90: OK
C91: 0 | E91: OK
C92: 0 | E92: OK
B93: TOTAL : | C93: =SUMIF(D81:D92,"<>",C81:C92) -> 0 | D93: =SUM(D81:D92) -> 0 | E93: =D93-C93 -> 0
E94: =IF(E93>0,"en avance sur prévisions", "en retard sur prévisions") -> en retard sur prévisions
B96: Suivi des coûts indirects
B97: Suivi des coûts indirects (CI)
B98: Sur base annuelle : | D98: ='Structure des coûts'!C129 -> 322500 | F98: ="CDC MAX = "&TEXT('Structure des coûts'!C153,"0,00%") -> CDC MAX = 30,25%
B99: =G44 -> 2022 | C99: Objectif par mois | D99: Réalité | E99: OK/PAS OK
B100: janvier | C100: =$D$98/12 -> 26875 | D100: 25879 | E100: =IF($D100>=$C100,"OK","PAS OK") -> PAS OK | F100: =IFERROR(D100/(D45+I45+D63+I63+D81),0) -> 0.2859558011
C101: 26875 | D101: 26587 | E101: PAS OK | F101: 0.2699187817
C102: 26875 | E102: PAS OK | F102: 0
C103: 26875 | E103: PAS OK | F103: 0
C104: 26875 | E104: PAS OK | F104: 0
C105: 26875 | E105: PAS OK | F105: 0
C106: 26875 | E106: PAS OK | F106: 0
C107: 26875 | E107: PAS OK | F107: 0
C108: 26875 | E108: PAS OK | F108: 0
C109: 26875 | E109: PAS OK | F109: 0
C110: 26875 | E110: PAS OK | F110: 0
C111: 26875 | E111: PAS OK | F111: 0
B112: TOTAL : | C112: =SUMIF(D100:D111,"<>",C100:C111) -> 53750 | D112: =SUM(D100:D111) -> 52466 | E112: =C112-D112 -> 1284 | F112: =IFERROR(D112/(D57+I57+D75+I75+D93+D167),0) -> 0.2775978836
E113: =IF(E112>0,"moins de coûts indirects", "plus de coûts indirects") -> moins de coûts indirects | F113: Moyenne
B115: Suivi du chiffre d’affaires, de la marge bénéficiaire (M) et de la marge brute (CI + M)
B116: Suivi du chiffre d’affaires | G116: Marge bénéficiaire (si tous les coûts sont saisis)
B117: Sur base annuelle : | D117: ='Structure des coûts'!C269 -> 1478526 | G117: Sur base annuelle : | I117: ='Structure des coûts'!C205 -> 90000 | K117: ="% par raport aux coûts directs OBJECTIF = "&TEXT('Structure des coûts'!C206,"0,00%") -> % par raport aux coûts directs OBJECTIF = 8,44% | L117: ="% par raport au chiffre d'affaire OBJECTIF = "&TEXT('Structure des coûts'!C205/'Structure des coûts'!C269,"0,00%") -> % par raport au chiffre d'affaire OBJECTIF = 6,09%
B118: =G44 -> 2022 | C118: Objectif par mois | D118: Réalité | E118: OK/PAS OK | G118: =B44 -> 2022 | H118: Objectif par mois | I118: Réalité | J118: OK/PAS OK
B119: janvier | C119: =$D$117/12 -> 123210.5 | D119: 110000 | E119: =IF($D119>=$C119,"OK","PAS OK") -> PAS OK | G119: =B63 -> janvier | H119: =$I$117/12 -> 7500 | I119: =D119-I45-D100-D63-I63-D45 -> -6379 | J119: =IF($D119>=$C119,"OK","PAS OK") -> PAS OK | K119: =IFERROR(I119/(D45+I45+D63+I63+D81),0) -> -0.07048618785 | L119: =IFERROR(I119/(D119),0) -> -0.05799090909
C120: 123210.5 | D120: 140000 | E120: OK | H120: 7500 | I120: 14913 | J120: OK | K120: 0.1514010152 | L120: =IFERROR(I120/(D120),0) -> 0.1065214286
C121: 123210.5 | E121: PAS OK | H121: 7500 | I121: 0 | J121: PAS OK | K121: 0 | L121: 0
C122: 123210.5 | E122: PAS OK | H122: 7500 | I122: 0 | J122: PAS OK | K122: 0 | L122: 0
C123: 123210.5 | E123: PAS OK | H123: 7500 | I123: 0 | J123: PAS OK | K123: 0 | L123: 0
C124: 123210.5 | E124: PAS OK | H124: 7500 | I124: 0 | J124: PAS OK | K124: 0 | L124: 0
C125: 123210.5 | E125: PAS OK | H125: 7500 | I125: 0 | J125: PAS OK | K125: 0 | L125: 0
C126: 123210.5 | E126: PAS OK | H126: 7500 | I126: 0 | J126: PAS OK | K126: 0 | L126: 0
C127: 123210.5 | E127: PAS OK | H127: 7500 | I127: 0 | J127: PAS OK | K127: 0 | L127: 0
C128: 123210.5 | E128: PAS OK | H128: 7500 | I128: 0 | J128: PAS OK | K128: 0 | L128: 0
C129: 123210.5 | E129: PAS OK | H129: 7500 | I129: 0 | J129: PAS OK | K129: 0 | L129: 0
C130: 123210.5 | E130: PAS OK | H130: 7500 | I130: 0 | J130: PAS OK | K130: 0 | L130: 0
B131: TOTAL : | C131: =SUMIF(D119:D130,"<>",C119:C130) -> 246421 | D131: =SUM(D119:D130) -> 250000 | E131: =D131-C131 -> 3579 | G131: TOTAL : | H131: =SUMIF(I119:I130,"<>0",H119:H130) -> 15000 | I131: =SUM(I119:I130) -> 8534 | J131: =I131-H131 -> -6466 | K131: =IFERROR(I131/(D57+I57+D75+I75+D93+D167),0) -> 0.04515343915 | L131: =IFERROR(I131/D131,0) -> 0.034136
E132: =IF(E131>0,"en avance sur prévisions", "en retard sur prévisions") -> en avance sur prévisions | J132: =IF(J131>0,"en avance sur prévisions", "en retard sur prévisions") -> en retard sur prévisions | K132: Moyenne | L132: Moyenne
B134: Marge brute (si tous les coûts ont été saisis)
B135: Sur base annuelle : | D135: ='Structure des coûts'!C129+'Structure des coûts'!C205 -> 412500
B136: =G62 -> 2022 | C136: Objectif par mois | D136: Réalité | E136: OK/PAS OK
B137: =B119 -> janvier | C137: =$D$135/12 -> 34375 | D137: =D119-I45-D63-I63-D45-D81-D155 -> 19500 | E137: =IF($D137>=$C137,"OK","PAS OK") -> PAS OK
C138: 34375 | D138: =D120-I46-D64-I64-D46-D82-D156 -> 41500 | E138: OK
C139: 34375 | D139: 0 | E139: PAS OK
C140: 34375 | D140: 0 | E140: PAS OK
C141: 34375 | D141: 0 | E141: PAS OK
C142: 34375 | D142: 0 | E142: PAS OK
C143: 34375 | D143: 0 | E143: PAS OK
C144: 34375 | D144: 0 | E144: PAS OK
C145: 34375 | D145: 0 | E145: PAS OK
C146: 34375 | D146: 0 | E146: PAS OK
C147: 34375 | D147: 0 | E147: PAS OK
C148: 34375 | D148: 0 | E148: PAS OK
B149: TOTAL : | C149: =SUMIF(D137:D148,"<>0",C137:C148) -> 68750 | D149: =SUM(D137:D148) -> 61000 | E149: =D149-C149 -> -7750
E150: =IF(E149>0,"en avance sur prévisions", "en retard sur prévisions") -> en retard sur prévisions
B152: Champ supplémentaire disponible
B153: Sur base annuelle : | D153: 0
B154: =B136 -> 2022 | C154: Objectif par mois | D154: Réalité | E154: OK/PAS OK
B155: =B63 -> janvier | C155: =$D$153/12 -> 0 | E155: =IF($D155>=$C155,"OK","PAS OK") -> OK
C156: 0 | E156: OK
C157: 0 | E157: OK
C158: 0 | E158: OK
C159: 0 | E159: OK
C160: 0 | E160: OK
C161: 0 | E161: OK
C162: 0 | E162: OK
C163: 0 | E163: OK
C164: 0 | E164: OK
C165: 0 | E165: OK
C166: 0 | E166: OK
B167: TOTAL : | C167: =SUMIF(D155:D166,"<>",C155:C166) -> 0 | D167: =SUM(D155:D166) -> 0 | E167: =D167-C167 -> 0
E168: =IF(E167>0,"en avance sur prévisions", "en retard sur prévisions") -> en retard sur prévisions

Sheet Suivi du tableau de bord (hidden)
A1: situation au : | B1: =EOMONTH(TODAY(),-1) -> 2022-05-31
A29: Valeur en % | B29: ='Dashbord calculatie'!B99 -> 0 | C29: ='Dashbord calculatie'!B117 -> 0 | D29: ='Dashbord calculatie'!B201 -> 0.05528174442 | E29: ='Dashbord calculatie'!B129 -> 0.06666666667
A30: Valeur en euros | B30: =IF(B29>0,TEXT('Dashbord calculatie'!B102,"#.###") &" heures en plus par rapport aux estimations",TEXT(-'Dashbord calculatie'!B102,"#.###") &" heures en moins par rapport aux estimations") ->  | C30: =IF(C29>0,TEXT('Dashbord calculatie'!B120,"#.###") &" heures prestées en moins par rapport heures facturées",TEXT(-'Dashbord calculatie'!B120,"#.###") &" heures prestées en pluss par rapport heures facturées") ->  | D30: =IF(D29>0,TEXT('Dashbord calculatie'!B204,"#.###") &" € de coût salarial (CD) en plus par rapport aux estimations",TEXT(-'Dashbord calculatie'!B204,"#.###") &" € de coût salarial (CD) en moins par rapport aux estimations") -> 4.662 € de coût salarial (CD) en plus par rapport aux estimations | E30: =IF(E29>0,TEXT('Dashbord calculatie'!B132,"#.###") &" € d'achats de matériaux en plus par rapport aux estimations",TEXT(-'Dashbord calculatie'!B132,"#.###") &" € d'achats de matériaux en plus par rapport aux estimations") -> 5.000 € d'achats de matériaux en plus par rapport aux estimations
A31: Valeur d’échelle min. | B31: -0.2 | C31: -0.2 | D31: -0.2 | E31: -0.2
A32: zone orange limite 1 | B32: -0.05 | C32: -0.05 | D32: -0.05 | E32: -0.05
A33: zone orange limite 2 | B33: 0 | C33: 0 | D33: 0 | E33: 0
A34: Valeur d’échelle max. | B34: 0.2 | C34: 0.2 | D34: 0.2 | E34: 0.2
A62: =A29 -> Valeur en % | B62: ='Dashbord calculatie'!B141 -> 0.09090909091 | C62: ='Dashbord calculatie'!B225 -> 0 | D62: ='Dashbord calculatie'!B165 -> 0 | E62: ='Dashbord calculatie'!B153 -> -0.02388837209
A63: Valeur en euros | B63: =IF(B62>0,TEXT('Dashbord calculatie'!B144,"#.###") &" € de coûts de sous-traitance en plus par rapport aux estimations",TEXT(-'Dashbord calculatie'!B144,"#.###") &" € de coûts de sous-traitance en moins par rapport aux estimations") -> 1.667 € de coûts de sous-traitance en plus par rapport aux estimations | C63: =IF(C62>0,TEXT('Dashbord calculatie'!B228,"#.###") &" € de coûts de matériels en plus par rapport aux estimations",TEXT(-'Dashbord calculatie'!B228,"#.###") &" € de coûts de matériels en moins par rapport aux estimations") -> € de coûts de matériels en moins par rapport aux estimations | D63: =IF(D62>0,TEXT('Dashbord calculatie'!B168,"#.###") &" € de coûts directs 'autres coûts' en plus par rapport aux estimations",TEXT(-'Dashbord calculatie'!B168,"#.###") &" € de coûts directs 'autres coûts' en moins par rapport aux estimations") -> € de coûts directs 'autres coûts' en moins par rapport aux estimations | E63: =IF(E62>0,TEXT('Dashbord calculatie'!B156,"#.###") &" € de coûts indirects en plus par rapport aux estimations",TEXT(-'Dashbord calculatie'!B156,"#.###") &" € de coûts indirects en moins par rapport aux estimations") -> 1.284 € de coûts indirects en moins par rapport aux estimations
A64: Valeur d’échelle min. | B64: -0.2 | C64: -0.2 | D64: -0.2 | E64: -0.2
A65: zone orange limite 1 | B65: -0.05 | C65: -0.05 | D65: -0.05 | E65: -0.05
A66: zone orange limite 2 | B66: 0 | C66: 0 | D66: 0 | E66: 0
A67: Valeur d’échelle max. | B67: 0.2 | C67: 0.2 | D67: 0.2 | E67: 0.2
A95: =A62 -> Valeur en % | B95: ='Dashbord calculatie'!B177 -> 0.0145239245 | C95: ='Dashbord calculatie'!B213 -> -0.4310666667 | D95: ='Dashbord calculatie'!B189 -> -0.1127272727 | E95: ='Dashbord calculatie'!B237 -> 0
A96: Valeur en euros | B96: =IF(B95>0,TEXT('Dashbord calculatie'!B180,"#.###") &" € de chiffre d'affaires en plus par rapport aux estimations",TEXT(-'Dashbord calculatie'!B180,"#.###") &" € de chiffre d'affaires en moins par rapport aux estimations") -> 3.579 € de chiffre d'affaires en plus par rapport aux estimations | C96: =IF(C95>0,TEXT('Dashbord calculatie'!B216,"#.###") &" € de bénéfice (M) en plus par rapport aux estimations",TEXT(-'Dashbord calculatie'!B216,"#.###") &" € de bénéfice (M) en moins par rapport aux estimations") -> 6.466 € de bénéfice (M) en moins par rapport aux estimations | D96: =IF(D95>0,TEXT('Dashbord calculatie'!B192,"#.###") &" € de marge brute (CI + M) en plus par rapport aux estimations",TEXT(-'Dashbord calculatie'!B192,"#.###") &" € de marge brute (CI + M) en moins par rapport aux estimations") -> 7.750 € de marge brute (CI + M) en moins par rapport aux estimations | E96: =IF(E95>0,TEXT('Dashbord calculatie'!B240,"#.###") &" Euro plus de "&'Tableaux de suivi !!!'!B152&" que prévu",TEXT(-'Dashbord calculatie'!B240,"#.###") &" Euro moins de "&'Tableaux de suivi !!!'!B152&" que prévu") -> Euro moins de Champ supplémentaire disponible que prévu
A97: Valeur d’échelle min. | B97: -0.2 | C97: -0.5 | D97: -0.2 | E97: -0.2
A98: zone orange limite 1 | B98: -0.05 | C98: -0.05 | D98: -0.05 | E98: -0.05
A99: zone orange limite 2 | B99: 0 | C99: 0 | D99: 0 | E99: 0
A100: Valeur d’échelle max. | B100: 0.2 | C100: 0.2 | D100: 0.2 | E100: 0.2

Sheet Suivi des heures facturées (hidden)
B1: Que pouvez-vous faire sur cette page ?
F2: RÉSUMÉ DU PORTEFEUILLE DE COMMANDES
H3: Montants des projets signés : | I3: =SUM(F:F) -> 635000 | L3: Heures estimées sur les projets : | M3: =E9+SumIntervalRows($E$10:$E$6000,12) -> 5696
H4: Déjà facturé : | I4: =SUMPRODUCT(F9:F6000,H9:H6000) -> 275000 | L4: Heures déjà facturées : | M4: =SUMPRODUCT(E9:E6000,H9:H6000) -> 2450.8
H5: Reste à facturer : | I5: =I3-I4 -> 360000 | L5: Heures restant à facturer : | M5: =M3-M4 -> 3245.2
B7: mois de départ de l'année comptable : | E7: ='Tableaux de suivi !!!'!H22 -> janvier | F7: Année comptable : | I7: ='Tableaux de suivi !!!'!D22 -> 2022 | J7: Total --> | K7: =SUM(K11:K199928) ->  | L7: =SUM(L11:L199928) -> 
B8: Numéro projet | C8: Date de début du projet | D8: Description projets / avenants | E8: Nombre d'heures estimées | F8: Prix de vente projet (Avenants compris) HTVA | H8: ="% objectif "&$I$7 -> % objectif 2022 | I8: Heures déjà facturées | K8: ="Facturé en "&E7 -> Facturé en janvier | L8: ="Facturé en "&TEXT(DATE(2000,MONTH(DATEVALUE($E$7&" 1"))+1,1),"mmmm") ->  | M8: ="Facturé en "&TEXT(DATE(2000,MONTH(DATEVALUE($E$7&" 1"))+2,1),"mmmm") ->  | N8: ="Facturé en "&TEXT(DATE(2000,MONTH(DATEVALUE($E$7&" 1"))+3,1),"mmmm") ->  | O8: ="Facturé en "&TEXT(DATE(2000,MONTH(DATEVALUE($E$7&" 1"))+4,1),"mmmm") ->  | P8: ="Facturé en "&TEXT(DATE(2000,MONTH(DATEVALUE($E$7&" 1"))+5,1),"mmmm") ->  | Q8: ="Facturé en "&TEXT(DATE(2000,MONTH(DATEVALUE($E$7&" 1"))+6,1),"mmmm") ->  | R8: ="Facturé en "&TEXT(DATE(2000,MONTH(DATEVALUE($E$7&" 1"))+7,1),"mmmm") ->  | S8: ="Facturé en "&TEXT(DATE(2000,MONTH(DATEVALUE($E$7&" 1"))+8,1),"mmmm") ->  | T8: ="Facturé en "&TEXT(DATE(2000,MONTH(DATEVALUE($E$7&" 1"))+9,1),"mmmm") ->  | U8: ="Facturé en "&TEXT(DATE(2000,MONTH(DATEVALUE($E$7&" 1"))+10,1),"mmmm") ->  | V8: ="Facturé en "&TEXT(DATE(2000,MONTH(DATEVALUE($E$7&" 1"))+11,1),"mmmm") ->  | W8: contrôle
B9: P2021-001 | C9: 20/01/2021 | D9: Rénovation Peeters | E9: 1454 | F9: 180000 | H9: =IFERROR(SUM(E11:H20)/F9,0) -> 0.5 | I9: =SUM(I10:J20) ->  | W9: =IF(H9<>100%,"Pas ok","ok") -> Pas ok
B10: Numéro de facture | C10: Date de facturation | D10: Description de la facture | E10: Montant de la facture
B11: F2021-001 | C11: 21/01/2021 | D11: Tranche 50% | E11: 90000 | I11: =SUM(K11:V11) ->  | K11: =IF(ISBLANK(C11),"",IF(MONTH(C11)=MONTH(DATEVALUE($E$7&" 1")),E11/F9*E9,"")) ->  | L11: =IF(ISBLANK(C11),"",IF(MONTH(C11)=MONTH(DATEVALUE(TEXT(DATE(2000,MONTH(DATEVALUE($E$7&" 1"))+1,1),"mmmm")&" 1")),E11/F9*E9,"")) ->  | M11: =IF(ISBLANK(C11),"",IF(MONTH(C11)=MONTH(DATEVALUE(TEXT(DATE(2000,MONTH(DATEVALUE($E$7&" 1"))+2,1),"mmmm")&" 1")),E11/F9*E9,"")) ->  | N11: =IF(ISBLANK(C11),"",IF(MONTH(C11)=MONTH(DATEVALUE(TEXT(DATE(2000,MONTH(DATEVALUE($E$7&" 1"))+3,1),"mmmm")&" 1")),E11/F9*E9,"")) ->  | O11: =IF(ISBLANK(C11),"",IF(MONTH(C11)=MONTH(DATEVALUE(TEXT(DATE(2000,MONTH(DATEVALUE($E$7&" 1"))+4,1),"mmmm")&" 1")),E11/F9*E9,"")) ->  | P11: =IF(ISBLANK(C11),"",IF(MONTH(C11)=MONTH(DATEVALUE(TEXT(DATE(2000,MONTH(DATEVALUE($E$7&" 1"))+5,1),"mmmm")&" 1")),E11/F9*E9,"")) ->  | Q11: =IF(ISBLANK(C11),"",IF(MONTH(C11)=MONTH(DATEVALUE(TEXT(DATE(2000,MONTH(DATEVALUE($E$7&" 1"))+6,1),"mmmm")&" 1")),E11/F9*E9,"")) ->  | R11: =IF(ISBLANK(C11),"",IF(MONTH(C11)=MONTH(DATEVALUE(TEXT(DATE(2000,MONTH(DATEVALUE($E$7&" 1"))+7,1),"mmmm")&" 1")),E11/F9*E9,"")) ->  | S11: =IF(ISBLANK(C11),"",IF(MONTH(C11)=MONTH(DATEVALUE(TEXT(DATE(2000,MONTH(DATEVALUE($E$7&" 1"))+8,1),"mmmm")&" 1")),E11/F9*E9,"")) ->  | T11: =IF(ISBLANK(C11),"",IF(MONTH(C11)=MONTH(DATEVALUE(TEXT(DATE(2000,MONTH(DATEVALUE($E$7&" 1"))+9,1),"mmmm")&" 1")),E11/F9*E9,"")) ->  | U11: =IF(ISBLANK(C11),"",IF(MONTH(C11)=MONTH(DATEVALUE(TEXT(DATE(2000,MONTH(DATEVALUE($E$7&" 1"))+10,1),"mmmm")&" 1")),E11/F9*E9,"")) ->  | V11: =IF(ISBLANK(C11),"",IF(MONTH(C11)=MONTH(DATEVALUE(TEXT(DATE(2000,MONTH(DATEVALUE($E$7&" 1"))+11,1),"mmmm")&" 1")),E11/F9*E9,"")) -> 
I12: 0 | K12: =IF(ISBLANK(C12),"",IF(MONTH(C12)=MONTH(DATEVALUE($E$7&" 1")),E12/F9*E9,"")) ->  | L12: =IF(ISBLANK(C12),"",IF(MONTH(C12)=MONTH(DATEVALUE(TEXT(DATE(2000,MONTH(DATEVALUE($E$7&" 1"))+1,1),"mmmm")&" 1")),E12/F9*E9,"")) ->  | M12: =IF(ISBLANK(C12),"",IF(MONTH(C12)=MONTH(DATEVALUE(TEXT(DATE(2000,MONTH(DATEVALUE($E$7&" 1"))+2,1),"mmmm")&" 1")),E12/F9*E9,"")) ->  | N12: =IF(ISBLANK(C12),"",IF(MONTH(C12)=MONTH(DATEVALUE(TEXT(DATE(2000,MONTH(DATEVALUE($E$7&" 1"))+3,1),"mmmm")&" 1")),E12/F9*E9,"")) ->  | O12: =IF(ISBLANK(C12),"",IF(MONTH(C12)=MONTH(DATEVALUE(TEXT(DATE(2000,MONTH(DATEVALUE($E$7&" 1"))+4,1),"mmmm")&" 1")),E12/F9*E9,"")) ->  | P12: =IF(ISBLANK(C12),"",IF(MONTH(C12)=MONTH(DATEVALUE(TEXT(DATE(2000,MONTH(DATEVALUE($E$7&" 1"))+5,1),"mmmm")&" 1")),E12/F9*E9,"")) ->  | Q12: =IF(ISBLANK(C12),"",IF(MONTH(C12)=MONTH(DATEVALUE(TEXT(DATE(2000,MONTH(DATEVALUE($E$7&" 1"))+6,1),"mmmm")&" 1")),E12/F9*E9,"")) ->  | R12: =IF(ISBLANK(C12),"",IF(MONTH(C12)=MONTH(DATEVALUE(TEXT(DATE(2000,MONTH(DATEVALUE($E$7&" 1"))+7,1),"mmmm")&" 1")),E12/F9*E9,"")) ->  | S12: =IF(ISBLANK(C12),"",IF(MONTH(C12)=MONTH(DATEVALUE(TEXT(DATE(2000,MONTH(DATEVALUE($E$7&" 1"))+8,1),"mmmm")&" 1")),E12/F9*E9,"")) ->  | T12: =IF(ISBLANK(C12),"",IF(MONTH(C12)=MONTH(DATEVALUE(TEXT(DATE(2000,MONTH(DATEVALUE($E$7&" 1"))+9,1),"mmmm")&" 1")),E12/F9*E9,"")) ->  | U12: =IF(ISBLANK(C12),"",IF(MONTH(C12)=MONTH(DATEVALUE(TEXT(DATE(2000,MONTH(DATEVALUE($E$7&" 1"))+10,1),"mmmm")&" 1")),E12/F9*E9,"")) ->  | V12: =IF(ISBLANK(C12),"",IF(MONTH(C12)=MONTH(DATEVALUE(TEXT(DATE(2000,MONTH(DATEVALUE($E$7&" 1"))+11,1),"mmmm")&" 1")),E12/F9*E9,"")) -> 
I13: 0 | K13: =IF(ISBLANK(C13),"",IF(MONTH(C13)=MONTH(DATEVALUE($E$7&" 1")),E13/F9*E9,"")) ->  | L13: =IF(ISBLANK(C13),"",IF(MONTH(C13)=MONTH(DATEVALUE(TEXT(DATE(2000,MONTH(DATEVALUE($E$7&" 1"))+1,1),"mmmm")&" 1")),E13/F9*E9,"")) ->  | M13: =IF(ISBLANK(C13),"",IF(MONTH(C13)=MONTH(DATEVALUE(TEXT(DATE(2000,MONTH(DATEVALUE($E$7&" 1"))+2,1),"mmmm")&" 1")),E13/F9*E9,"")) ->  | N13: =IF(ISBLANK(C13),"",IF(MONTH(C13)=MONTH(DATEVALUE(TEXT(DATE(2000,MONTH(DATEVALUE($E$7&" 1"))+3,1),"mmmm")&" 1")),E13/F9*E9,"")) ->  | O13: =IF(ISBLANK(C13),"",IF(MONTH(C13)=MONTH(DATEVALUE(TEXT(DATE(2000,MONTH(DATEVALUE($E$7&" 1"))+4,1),"mmmm")&" 1")),E13/F9*E9,"")) ->  | P13: =IF(ISBLANK(C13),"",IF(MONTH(C13)=MONTH(DATEVALUE(TEXT(DATE(2000,MONTH(DATEVALUE($E$7&" 1"))+5,1),"mmmm")&" 1")),E13/F9*E9,"")) ->  | Q13: =IF(ISBLANK(C13),"",IF(MONTH(C13)=MONTH(DATEVALUE(TEXT(DATE(2000,MONTH(DATEVALUE($E$7&" 1"))+6,1),"mmmm")&" 1")),E13/F9*E9,"")) ->  | R13: =IF(ISBLANK(C13),"",IF(MONTH(C13)=MONTH(DATEVALUE(TEXT(DATE(2000,MONTH(DATEVALUE($E$7&" 1"))+7,1),"mmmm")&" 1")),E13/F9*E9,"")) ->  | S13: =IF(ISBLANK(C13),"",IF(MONTH(C13)=MONTH(DATEVALUE(TEXT(DATE(2000,MONTH(DATEVALUE($E$7&" 1"))+8,1),"mmmm")&" 1")),E13/F9*E9,"")) ->  | T13: =IF(ISBLANK(C13),"",IF(MONTH(C13)=MONTH(DATEVALUE(TEXT(DATE(2000,MONTH(DATEVALUE($E$7&" 1"))+9,1),"mmmm")&" 1")),E13/F9*E9,"")) ->  | U13: =IF(ISBLANK(C13),"",IF(MONTH(C13)=MONTH(DATEVALUE(TEXT(DATE(2000,MONTH(DATEVALUE($E$7&" 1"))+10,1),"mmmm")&" 1")),E13/F9*E9,"")) ->  | V13: =IF(ISBLANK(C13),"",IF(MONTH(C13)=MONTH(DATEVALUE(TEXT(DATE(2000,MONTH(DATEVALUE($E$7&" 1"))+11,1),"mmmm")&" 1")),E13/F9*E9,"")) -> 
I14: 0 | K14: =IF(ISBLANK(C14),"",IF(MONTH(C14)=MONTH(DATEVALUE($E$7&" 1")),E14/F9*E9,"")) ->  | L14: =IF(ISBLANK(C14),"",IF(MONTH(C14)=MONTH(DATEVALUE(TEXT(DATE(2000,MONTH(DATEVALUE($E$7&" 1"))+1,1),"mmmm")&" 1")),E14/F9*E9,"")) ->  | M14: =IF(ISBLANK(C14),"",IF(MONTH(C14)=MONTH(DATEVALUE(TEXT(DATE(2000,MONTH(DATEVALUE($E$7&" 1"))+2,1),"mmmm")&" 1")),E14/F9*E9,"")) ->  | N14: =IF(ISBLANK(C14),"",IF(MONTH(C14)=MONTH(DATEVALUE(TEXT(DATE(2000,MONTH(DATEVALUE($E$7&" 1"))+3,1),"mmmm")&" 1")),E14/F9*E9,"")) ->  | O14: =IF(ISBLANK(C14),"",IF(MONTH(C14)=MONTH(DATEVALUE(TEXT(DATE(2000,MONTH(DATEVALUE($E$7&" 1"))+4,1),"mmmm")&" 1")),E14/F9*E9,"")) ->  | P14: =IF(ISBLANK(C14),"",IF(MONTH(C14)=MONTH(DATEVALUE(TEXT(DATE(2000,MONTH(DATEVALUE($E$7&" 1"))+5,1),"mmmm")&" 1")),E14/F9*E9,"")) ->  | Q14: =IF(ISBLANK(C14),"",IF(MONTH(C14)=MONTH(DATEVALUE(TEXT(DATE(2000,MONTH(DATEVALUE($E$7&" 1"))+6,1),"mmmm")&" 1")),E14/F9*E9,"")) ->  | R14: =IF(ISBLANK(C14),"",IF(MONTH(C14)=MONTH(DATEVALUE(TEXT(DATE(2000,MONTH(DATEVALUE($E$7&" 1"))+7,1),"mmmm")&" 1")),E14/F9*E9,"")) ->  | S14: =IF(ISBLANK(C14),"",IF(MONTH(C14)=MONTH(DATEVALUE(TEXT(DATE(2000,MONTH(DATEVALUE($E$7&" 1"))+8,1),"mmmm")&" 1")),E14/F9*E9,"")) ->  | T14: =IF(ISBLANK(C14),"",IF(MONTH(C14)=MONTH(DATEVALUE(TEXT(DATE(2000,MONTH(DATEVALUE($E$7&" 1"))+9,1),"mmmm")&" 1")),E14/F9*E9,"")) ->  | U14: =IF(ISBLANK(C14),"",IF(MONTH(C14)=MONTH(DATEVALUE(TEXT(DATE(2000,MONTH(DATEVALUE($E$7&" 1"))+10,1),"mmmm")&" 1")),E14/F9*E9,"")) ->  | V14: =IF(ISBLANK(C14),"",IF(MONTH(C14)=MONTH(DATEVALUE(TEXT(DATE(2000,MONTH(DATEVALUE($E$7&" 1"))+11,1),"mmmm")&" 1")),E14/F9*E9,"")) -> 
I15: 0 | K15: =IF(ISBLANK(C15),"",IF(MONTH(C15)=MONTH(DATEVALUE($E$7&" 1")),E15/F9*E9,"")) ->  | L15: =IF(ISBLANK(C15),"",IF(MONTH(C15)=MONTH(DATEVALUE(TEXT(DATE(2000,MONTH(DATEVALUE($E$7&" 1"))+1,1),"mmmm")&" 1")),E15/F9*E9,"")) ->  | M15: =IF(ISBLANK(C15),"",IF(MONTH(C15)=MONTH(DATEVALUE(TEXT(DATE(2000,MONTH(DATEVALUE($E$7&" 1"))+2,1),"mmmm")&" 1")),E15/F9*E9,"")) ->  | N15: =IF(ISBLANK(C15),"",IF(MONTH(C15)=MONTH(DATEVALUE(TEXT(DATE(2000,MONTH(DATEVALUE($E$7&" 1"))+3,1),"mmmm")&" 1")),E15/F9*E9,"")) ->  | O15: =IF(ISBLANK(C15),"",IF(MONTH(C15)=MONTH(DATEVALUE(TEXT(DATE(2000,MONTH(DATEVALUE($E$7&" 1"))+4,1),"mmmm")&" 1")),E15/F9*E9,"")) ->  | P15: =IF(ISBLANK(C15),"",IF(MONTH(C15)=MONTH(DATEVALUE(TEXT(DATE(2000,MONTH(DATEVALUE($E$7&" 1"))+5,1),"mmmm")&" 1")),E15/F9*E9,"")) ->  | Q15: =IF(ISBLANK(C15),"",IF(MONTH(C15)=MONTH(DATEVALUE(TEXT(DATE(2000,MONTH(DATEVALUE($E$7&" 1"))+6,1),"mmmm")&" 1")),E15/F9*E9,"")) ->  | R15: =IF(ISBLANK(C15),"",IF(MONTH(C15)=MONTH(DATEVALUE(TEXT(DATE(2000,MONTH(DATEVALUE($E$7&" 1"))+7,1),"mmmm")&" 1")),E15/F9*E9,"")) ->  | S15: =IF(ISBLANK(C15),"",IF(MONTH(C15)=MONTH(DATEVALUE(TEXT(DATE(2000,MONTH(DATEVALUE($E$7&" 1"))+8,1),"mmmm")&" 1")),E15/F9*E9,"")) ->  | T15: =IF(ISBLANK(C15),"",IF(MONTH(C15)=MONTH(DATEVALUE(TEXT(DATE(2000,MONTH(DATEVALUE($E$7&" 1"))+9,1),"mmmm")&" 1")),E15/F9*E9,"")) ->  | U15: =IF(ISBLANK(C15),"",IF(MONTH(C15)=MONTH(DATEVALUE(TEXT(DATE(2000,MONTH(DATEVALUE($E$7&" 1"))+10,1),"mmmm")&" 1")),E15/F9*E9,"")) ->  | V15: =IF(ISBLANK(C15),"",IF(MONTH(C15)=MONTH(DATEVALUE(TEXT(DATE(2000,MONTH(DATEVALUE($E$7&" 1"))+11,1),"mmmm")&" 1")),E15/F9*E9,"")) -> 
I16: 0 | K16: =IF(ISBLANK(C16),"",IF(MONTH(C16)=MONTH(DATEVALUE($E$7&" 1")),E16/F9*E9,"")) ->  | L16: =IF(ISBLANK(C16),"",IF(MONTH(C16)=MONTH(DATEVALUE(TEXT(DATE(2000,MONTH(DATEVALUE($E$7&" 1"))+1,1),"mmmm")&" 1")),E16/F9*E9,"")) ->  | M16: =IF(ISBLANK(C16),"",IF(MONTH(C16)=MONTH(DATEVALUE(TEXT(DATE(2000,MONTH(DATEVALUE($E$7&" 1"))+2,1),"mmmm")&" 1")),E16/F9*E9,"")) ->  | N16: =IF(ISBLANK(C16),"",IF(MONTH(C16)=MONTH(DATEVALUE(TEXT(DATE(2000,MONTH(DATEVALUE($E$7&" 1"))+3,1),"mmmm")&" 1")),E16/F9*E9,"")) ->  | O16: =IF(ISBLANK(C16),"",IF(MONTH(C16)=MONTH(DATEVALUE(TEXT(DATE(2000,MONTH(DATEVALUE($E$7&" 1"))+4,1),"mmmm")&" 1")),E16/F9*E9,"")) ->  | P16: =IF(ISBLANK(C16),"",IF(MONTH(C16)=MONTH(DATEVALUE(TEXT(DATE(2000,MONTH(DATEVALUE($E$7&" 1"))+5,1),"mmmm")&" 1")),E16/F9*E9,"")) ->  | Q16: =IF(ISBLANK(C16),"",IF(MONTH(C16)=MONTH(DATEVALUE(TEXT(DATE(2000,MONTH(DATEVALUE($E$7&" 1"))+6,1),"mmmm")&" 1")),E16/F9*E9,"")) ->  | R16: =IF(ISBLANK(C16),"",IF(MONTH(C16)=MONTH(DATEVALUE(TEXT(DATE(2000,MONTH(DATEVALUE($E$7&" 1"))+7,1),"mmmm")&" 1")),E16/F9*E9,"")) ->  | S16: =IF(ISBLANK(C16),"",IF(MONTH(C16)=MONTH(DATEVALUE(TEXT(DATE(2000,MONTH(DATEVALUE($E$7&" 1"))+8,1),"mmmm")&" 1")),E16/F9*E9,"")) ->  | T16: =IF(ISBLANK(C16),"",IF(MONTH(C16)=MONTH(DATEVALUE(TEXT(DATE(2000,MONTH(DATEVALUE($E$7&" 1"))+9,1),"mmmm")&" 1")),E16/F9*E9,"")) ->  | U16: =IF(ISBLANK(C16),"",IF(MONTH(C16)=MONTH(DATEVALUE(TEXT(DATE(2000,MONTH(DATEVALUE($E$7&" 1"))+10,1),"mmmm")&" 1")),E16/F9*E9,"")) ->  | V16: =IF(ISBLANK(C16),"",IF(MONTH(C16)=MONTH(DATEVALUE(TEXT(DATE(2000,MONTH(DATEVALUE($E$7&" 1"))+11,1),"mmmm")&" 1")),E16/F9*E9,"")) -> 
I17: 0 | K17: =IF(ISBLANK(C17),"",IF(MONTH(C17)=MONTH(DATEVALUE($E$7&" 1")),E17/F9*E9,"")) ->  | L17: =IF(ISBLANK(C17),"",IF(MONTH(C17)=MONTH(DATEVALUE(TEXT(DATE(2000,MONTH(DATEVALUE($E$7&" 1"))+1,1),"mmmm")&" 1")),E17/F9*E9,"")) ->  | M17: =IF(ISBLANK(C17),"",IF(MONTH(C17)=MONTH(DATEVALUE(TEXT(DATE(2000,MONTH(DATEVALUE($E$7&" 1"))+2,1),"mmmm")&" 1")),E17/F9*E9,"")) ->  | N17: =IF(ISBLANK(C17),"",IF(MONTH(C17)=MONTH(DATEVALUE(TEXT(DATE(2000,MONTH(DATEVALUE($E$7&" 1"))+3,1),"mmmm")&" 1")),E17/F9*E9,"")) ->  | O17: =IF(ISBLANK(C17),"",IF(MONTH(C17)=MONTH(DATEVALUE(TEXT(DATE(2000,MONTH(DATEVALUE($E$7&" 1"))+4,1),"mmmm")&" 1")),E17/F9*E9,"")) ->  | P17: =IF(ISBLANK(C17),"",IF(MONTH(C17)=MONTH(DATEVALUE(TEXT(DATE(2000,MONTH(DATEVALUE($E$7&" 1"))+5,1),"mmmm")&" 1")),E17/F9*E9,"")) ->  | Q17: =IF(ISBLANK(C17),"",IF(MONTH(C17)=MONTH(DATEVALUE(TEXT(DATE(2000,MONTH(DATEVALUE($E$7&" 1"))+6,1),"mmmm")&" 1")),E17/F9*E9,"")) ->  | R17: =IF(ISBLANK(C17),"",IF(MONTH(C17)=MONTH(DATEVALUE(TEXT(DATE(2000,MONTH(DATEVALUE($E$7&" 1"))+7,1),"mmmm")&" 1")),E17/F9*E9,"")) ->  | S17: =IF(ISBLANK(C17),"",IF(MONTH(C17)=MONTH(DATEVALUE(TEXT(DATE(2000,MONTH(DATEVALUE($E$7&" 1"))+8,1),"mmmm")&" 1")),E17/F9*E9,"")) ->  | T17: =IF(ISBLANK(C17),"",IF(MONTH(C17)=MONTH(DATEVALUE(TEXT(DATE(2000,MONTH(DATEVALUE($E$7&" 1"))+9,1),"mmmm")&" 1")),E17/F9*E9,"")) ->  | U17: =IF(ISBLANK(C17),"",IF(MONTH(C17)=MONTH(DATEVALUE(TEXT(DATE(2000,MONTH(DATEVALUE($E$7&" 1"))+10,1),"mmmm")&" 1")),E17/F9*E9,"")) ->  | V17: =IF(ISBLANK(C17),"",IF(MONTH(C17)=MONTH(DATEVALUE(TEXT(DATE(2000,MONTH(DATEVALUE($E$7&" 1"))+11,1),"mmmm")&" 1")),E17/F9*E9,"")) -> 
I18: 0 | K18: =IF(ISBLANK(C18),"",IF(MONTH(C18)=MONTH(DATEVALUE($E$7&" 1")),E18/F9*E9,"")) ->  | L18: =IF(ISBLANK(C18),"",IF(MONTH(C18)=MONTH(DATEVALUE(TEXT(DATE(2000,MONTH(DATEVALUE($E$7&" 1"))+1,1),"mmmm")&" 1")),E18/F9*E9,"")) ->  | M18: =IF(ISBLANK(C18),"",IF(MONTH(C18)=MONTH(DATEVALUE(TEXT(DATE(2000,MONTH(DATEVALUE($E$7&" 1"))+2,1),"mmmm")&" 1")),E18/F9*E9,"")) ->  | N18: =IF(ISBLANK(C18),"",IF(MONTH(C18)=MONTH(DATEVALUE(TEXT(DATE(2000,MONTH(DATEVALUE($E$7&" 1"))+3,1),"mmmm")&" 1")),E18/F9*E9,"")) ->  | O18: =IF(ISBLANK(C18),"",IF(MONTH(C18)=MONTH(DATEVALUE(TEXT(DATE(2000,MONTH(DATEVALUE($E$7&" 1"))+4,1),"mmmm")&" 1")),E18/F9*E9,"")) ->  | P18: =IF(ISBLANK(C18),"",IF(MONTH(C18)=MONTH(DATEVALUE(TEXT(DATE(2000,MONTH(DATEVALUE($E$7&" 1"))+5,1),"mmmm")&" 1")),E18/F9*E9,"")) ->  | Q18: =IF(ISBLANK(C18),"",IF(MONTH(C18)=MONTH(DATEVALUE(TEXT(DATE(2000,MONTH(DATEVALUE($E$7&" 1"))+6,1),"mmmm")&" 1")),E18/F9*E9,"")) ->  | R18: =IF(ISBLANK(C18),"",IF(MONTH(C18)=MONTH(DATEVALUE(TEXT(DATE(2000,MONTH(DATEVALUE($E$7&" 1"))+7,1),"mmmm")&" 1")),E18/F9*E9,"")) ->  | S18: =IF(ISBLANK(C18),"",IF(MONTH(C18)=MONTH(DATEVALUE(TEXT(DATE(2000,MONTH(DATEVALUE($E$7&" 1"))+8,1),"mmmm")&" 1")),E18/F9*E9,"")) ->  | T18: =IF(ISBLANK(C18),"",IF(MONTH(C18)=MONTH(DATEVALUE(TEXT(DATE(2000,MONTH(DATEVALUE($E$7&" 1"))+9,1),"mmmm")&" 1")),E18/F9*E9,"")) ->  | U18: =IF(ISBLANK(C18),"",IF(MONTH(C18)=MONTH(DATEVALUE(TEXT(DATE(2000,MONTH(DATEVALUE($E$7&" 1"))+10,1),"mmmm")&" 1")),E18/F9*E9,"")) ->  | V18: =IF(ISBLANK(C18),"",IF(MONTH(C18)=MONTH(DATEVALUE(TEXT(DATE(2000,MONTH(DATEVALUE($E$7&" 1"))+11,1),"mmmm")&" 1")),E18/F9*E9,"")) -> 
I19: 0 | K19: =IF(ISBLANK(C19),"",IF(MONTH(C19)=MONTH(DATEVALUE($E$7&" 1")),E19/F9*E9,"")) ->  | L19: =IF(ISBLANK(C19),"",IF(MONTH(C19)=MONTH(DATEVALUE(TEXT(DATE(2000,MONTH(DATEVALUE($E$7&" 1"))+1,1),"mmmm")&" 1")),E19/F9*E9,"")) ->  | M19: =IF(ISBLANK(C19),"",IF(MONTH(C19)=MONTH(DATEVALUE(TEXT(DATE(2000,MONTH(DATEVALUE($E$7&" 1"))+2,1),"mmmm")&" 1")),E19/F9*E9,"")) ->  | N19: =IF(ISBLANK(C19),"",IF(MONTH(C19)=MONTH(DATEVALUE(TEXT(DATE(2000,MONTH(DATEVALUE($E$7&" 1"))+3,1),"mmmm")&" 1")),E19/F9*E9,"")) ->  | O19: =IF(ISBLANK(C19),"",IF(MONTH(C19)=MONTH(DATEVALUE(TEXT(DATE(2000,MONTH(DATEVALUE($E$7&" 1"))+4,1),"mmmm")&" 1")),E19/F9*E9,"")) ->  | P19: =IF(ISBLANK(C19),"",IF(MONTH(C19)=MONTH(DATEVALUE(TEXT(DATE(2000,MONTH(DATEVALUE($E$7&" 1"))+5,1),"mmmm")&" 1")),E19/F9*E9,"")) ->  | Q19: =IF(ISBLANK(C19),"",IF(MONTH(C19)=MONTH(DATEVALUE(TEXT(DATE(2000,MONTH(DATEVALUE($E$7&" 1"))+6,1),"mmmm")&" 1")),E19/F9*E9,"")) ->  | R19: =IF(ISBLANK(C19),"",IF(MONTH(C19)=MONTH(DATEVALUE(TEXT(DATE(2000,MONTH(DATEVALUE($E$7&" 1"))+7,1),"mmmm")&" 1")),E19/F9*E9,"")) ->  | S19: =IF(ISBLANK(C19),"",IF(MONTH(C19)=MONTH(DATEVALUE(TEXT(DATE(2000,MONTH(DATEVALUE($E$7&" 1"))+8,1),"mmmm")&" 1")),E19/F9*E9,"")) ->  | T19: =IF(ISBLANK(C19),"",IF(MONTH(C19)=MONTH(DATEVALUE(TEXT(DATE(2000,MONTH(DATEVALUE($E$7&" 1"))+9,1),"mmmm")&" 1")),E19/F9*E9,"")) ->  | U19: =IF(ISBLANK(C19),"",IF(MONTH(C19)=MONTH(DATEVALUE(TEXT(DATE(2000,MONTH(DATEVALUE($E$7&" 1"))+10,1),"mmmm")&" 1")),E19/F9*E9,"")) ->  | V19: =IF(ISBLANK(C19),"",IF(MONTH(C19)=MONTH(DATEVALUE(TEXT(DATE(2000,MONTH(DATEVALUE($E$7&" 1"))+11,1),"mmmm")&" 1")),E19/F9*E9,"")) -> 
I20: 0 | K20: =IF(ISBLANK(C20),"",IF(MONTH(C20)=MONTH(DATEVALUE($E$7&" 1")),E20/F9*E9,"")) ->  | L20: =IF(ISBLANK(C20),"",IF(MONTH(C20)=MONTH(DATEVALUE(TEXT(DATE(2000,MONTH(DATEVALUE($E$7&" 1"))+1,1),"mmmm")&" 1")),E20/F9*E9,"")) ->  | M20: =IF(ISBLANK(C20),"",IF(MONTH(C20)=MONTH(DATEVALUE(TEXT(DATE(2000,MONTH(DATEVALUE($E$7&" 1"))+2,1),"mmmm")&" 1")),E20/F9*E9,"")) ->  | N20: =IF(ISBLANK(C20),"",IF(MONTH(C20)=MONTH(DATEVALUE(TEXT(DATE(2000,MONTH(DATEVALUE($E$7&" 1"))+3,1),"mmmm")&" 1")),E20/F9*E9,"")) ->  | O20: =IF(ISBLANK(C20),"",IF(MONTH(C20)=MONTH(DATEVALUE(TEXT(DATE(2000,MONTH(DATEVALUE($E$7&" 1"))+4,1),"mmmm")&" 1")),E20/F9*E9,"")) ->  | P20: =IF(ISBLANK(C20),"",IF(MONTH(C20)=MONTH(DATEVALUE(TEXT(DATE(2000,MONTH(DATEVALUE($E$7&" 1"))+5,1),"mmmm")&" 1")),E20/F9*E9,"")) ->  | Q20: =IF(ISBLANK(C20),"",IF(MONTH(C20)=MONTH(DATEVALUE(TEXT(DATE(2000,MONTH(DATEVALUE($E$7&" 1"))+6,1),"mmmm")&" 1")),E20/F9*E9,"")) ->  | R20: =IF(ISBLANK(C20),"",IF(MONTH(C20)=MONTH(DATEVALUE(TEXT(DATE(2000,MONTH(DATEVALUE($E$7&" 1"))+7,1),"mmmm")&" 1")),E20/F9*E9,"")) ->  | S20: =IF(ISBLANK(C20),"",IF(MONTH(C20)=MONTH(DATEVALUE(TEXT(DATE(2000,MONTH(DATEVALUE($E$7&" 1"))+8,1),"mmmm")&" 1")),E20/F9*E9,"")) ->  | T20: =IF(ISBLANK(C20),"",IF(MONTH(C20)=MONTH(DATEVALUE(TEXT(DATE(2000,MONTH(DATEVALUE($E$7&" 1"))+9,1),"mmmm")&" 1")),E20/F9*E9,"")) ->  | U20: =IF(ISBLANK(C20),"",IF(MONTH(C20)=MONTH(DATEVALUE(TEXT(DATE(2000,MONTH(DATEVALUE($E$7&" 1"))+10,1),"mmmm")&" 1")),E20/F9*E9,"")) ->  | V20: =IF(ISBLANK(C20),"",IF(MONTH(C20)=MONTH(DATEVALUE(TEXT(DATE(2000,MONTH(DATEVALUE($E$7&" 1"))+11,1),"mmmm")&" 1")),E20/F9*E9,"")) -> 
B21: P2021-002 | C21: 21/01/2021 | D21: Rénovation Peeters - travail suppl. | E21: 45 | F21: 5000 | H21: =IFERROR(SUM(E23:H32)/F21,0) -> 1 | I21: =SUM(I22:J32) ->  | W21: =IF(H21<>100%,"Pas ok","ok") -> ok
B22: Numéro de facture | C22: Date de facturation | D22: Description de la facture | E22: Montant de la facture
B23: F2021-002 | C23: 25/01/2021 | E23: 5000 | I23: =SUM(K23:V23) ->  | K23: =IF(ISBLANK(C23),"",IF(MONTH(C23)=MONTH(DATEVALUE($E$7&" 1")),E23/F21*E21,"")) ->  | L23: =IF(ISBLANK(C23),"",IF(MONTH(C23)=MONTH(DATEVALUE(TEXT(DATE(2000,MONTH(DATEVALUE($E$7&" 1"))+1,1),"mmmm")&" 1")),E23/F21*E21,"")) ->  | M23: =IF(ISBLANK(C23),"",IF(MONTH(C23)=MONTH(DATEVALUE(TEXT(DATE(2000,MONTH(DATEVALUE($E$7&" 1"))+2,1),"mmmm")&" 1")),E23/F21*E21,"")) ->  | N23: =IF(ISBLANK(C23),"",IF(MONTH(C23)=MONTH(DATEVALUE(TEXT(DATE(2000,MONTH(DATEVALUE($E$7&" 1"))+3,1),"mmmm")&" 1")),E23/F21*E21,"")) ->  | O23: =IF(ISBLANK(C23),"",IF(MONTH(C23)=MONTH(DATEVALUE(TEXT(DATE(2000,MONTH(DATEVALUE($E$7&" 1"))+4,1),"mmmm")&" 1")),E23/F21*E21,"")) ->  | P23: =IF(ISBLANK(C23),"",IF(MONTH(C23)=MONTH(DATEVALUE(TEXT(DATE(2000,MONTH(DATEVALUE($E$7&" 1"))+5,1),"mmmm")&" 1")),E23/F21*E21,"")) ->  | Q23: =IF(ISBLANK(C23),"",IF(MONTH(C23)=MONTH(DATEVALUE(TEXT(DATE(2000,MONTH(DATEVALUE($E$7&" 1"))+6,1),"mmmm")&" 1")),E23/F21*E21,"")) ->  | R23: =IF(ISBLANK(C23),"",IF(MONTH(C23)=MONTH(DATEVALUE(TEXT(DATE(2000,MONTH(DATEVALUE($E$7&" 1"))+7,1),"mmmm")&" 1")),E23/F21*E21,"")) ->  | S23: =IF(ISBLANK(C23),"",IF(MONTH(C23)=MONTH(DATEVALUE(TEXT(DATE(2000,MONTH(DATEVALUE($E$7&" 1"))+8,1),"mmmm")&" 1")),E23/F21*E21,"")) ->  | T23: =IF(ISBLANK(C23),"",IF(MONTH(C23)=MONTH(DATEVALUE(TEXT(DATE(2000,MONTH(DATEVALUE($E$7&" 1"))+9,1),"mmmm")&" 1")),E23/F21*E21,"")) ->  | U23: =IF(ISBLANK(C23),"",IF(MONTH(C23)=MONTH(DATEVALUE(TEXT(DATE(2000,MONTH(DATEVALUE($E$7&" 1"))+10,1),"mmmm")&" 1")),E23/F21*E21,"")) ->  | V23: =IF(ISBLANK(C23),"",IF(MONTH(C23)=MONTH(DATEVALUE(TEXT(DATE(2000,MONTH(DATEVALUE($E$7&" 1"))+11,1),"mmmm")&" 1")),E23/F21*E21,"")) -> 
I24: 0 | K24: =IF(ISBLANK(C24),"",IF(MONTH(C24)=MONTH(DATEVALUE($E$7&" 1")),E24/F21*E21,"")) ->  | L24: =IF(ISBLANK(C24),"",IF(MONTH(C24)=MONTH(DATEVALUE(TEXT(DATE(2000,MONTH(DATEVALUE($E$7&" 1"))+1,1),"mmmm")&" 1")),E24/F21*E21,"")) ->  | M24: =IF(ISBLANK(C24),"",IF(MONTH(C24)=MONTH(DATEVALUE(TEXT(DATE(2000,MONTH(DATEVALUE($E$7&" 1"))+2,1),"mmmm")&" 1")),E24/F21*E21,"")) ->  | N24: =IF(ISBLANK(C24),"",IF(MONTH(C24)=MONTH(DATEVALUE(TEXT(DATE(2000,MONTH(DATEVALUE($E$7&" 1"))+3,1),"mmmm")&" 1")),E24/F21*E21,"")) ->  | O24: =IF(ISBLANK(C24),"",IF(MONTH(C24)=MONTH(DATEVALUE(TEXT(DATE(2000,MONTH(DATEVALUE($E$7&" 1"))+4,1),"mmmm")&" 1")),E24/F21*E21,"")) ->  | P24: =IF(ISBLANK(C24),"",IF(MONTH(C24)=MONTH(DATEVALUE(TEXT(DATE(2000,MONTH(DATEVALUE($E$7&" 1"))+5,1),"mmmm")&" 1")),E24/F21*E21,"")) ->  | Q24: =IF(ISBLANK(C24),"",IF(MONTH(C24)=MONTH(DATEVALUE(TEXT(DATE(2000,MONTH(DATEVALUE($E$7&" 1"))+6,1),"mmmm")&" 1")),E24/F21*E21,"")) ->  | R24: =IF(ISBLANK(C24),"",IF(MONTH(C24)=MONTH(DATEVALUE(TEXT(DATE(2000,MONTH(DATEVALUE($E$7&" 1"))+7,1),"mmmm")&" 1")),E24/F21*E21,"")) ->  | S24: =IF(ISBLANK(C24),"",IF(MONTH(C24)=MONTH(DATEVALUE(TEXT(DATE(2000,MONTH(DATEVALUE($E$7&" 1"))+8,1),"mmmm")&" 1")),E24/F21*E21,"")) ->  | T24: =IF(ISBLANK(C24),"",IF(MONTH(C24)=MONTH(DATEVALUE(TEXT(DATE(2000,MONTH(DATEVALUE($E$7&" 1"))+9,1),"mmmm")&" 1")),E24/F21*E21,"")) ->  | U24: =IF(ISBLANK(C24),"",IF(MONTH(C24)=MONTH(DATEVALUE(TEXT(DATE(2000,MONTH(DATEVALUE($E$7&" 1"))+10,1),"mmmm")&" 1")),E24/F21*E21,"")) ->  | V24: =IF(ISBLANK(C24),"",IF(MONTH(C24)=MONTH(DATEVALUE(TEXT(DATE(2000,MONTH(DATEVALUE($E$7&" 1"))+11,1),"mmmm")&" 1")),E24/F21*E21,"")) -> 
I25: 0 | K25: =IF(ISBLANK(C25),"",IF(MONTH(C25)=MONTH(DATEVALUE($E$7&" 1")),E25/F21*E21,"")) ->  | L25: =IF(ISBLANK(C25),"",IF(MONTH(C25)=MONTH(DATEVALUE(TEXT(DATE(2000,MONTH(DATEVALUE($E$7&" 1"))+1,1),"mmmm")&" 1")),E25/F21*E21,"")) ->  | M25: =IF(ISBLANK(C25),"",IF(MONTH(C25)=MONTH(DATEVALUE(TEXT(DATE(2000,MONTH(DATEVALUE($E$7&" 1"))+2,1),"mmmm")&" 1")),E25/F21*E21,"")) ->  | N25: =IF(ISBLANK(C25),"",IF(MONTH(C25)=MONTH(DATEVALUE(TEXT(DATE(2000,MONTH(DATEVALUE($E$7&" 1"))+3,1),"mmmm")&" 1")),E25/F21*E21,"")) ->  | O25: =IF(ISBLANK(C25),"",IF(MONTH(C25)=MONTH(DATEVALUE(TEXT(DATE(2000,MONTH(DATEVALUE($E$7&" 1"))+4,1),"mmmm")&" 1")),E25/F21*E21,"")) ->  | P25: =IF(ISBLANK(C25),"",IF(MONTH(C25)=MONTH(DATEVALUE(TEXT(DATE(2000,MONTH(DATEVALUE($E$7&" 1"))+5,1),"mmmm")&" 1")),E25/F21*E21,"")) ->  | Q25: =IF(ISBLANK(C25),"",IF(MONTH(C25)=MONTH(DATEVALUE(TEXT(DATE(2000,MONTH(DATEVALUE($E$7&" 1"))+6,1),"mmmm")&" 1")),E25/F21*E21,"")) ->  | R25: =IF(ISBLANK(C25),"",IF(MONTH(C25)=MONTH(DATEVALUE(TEXT(DATE(2000,MONTH(DATEVALUE($E$7&" 1"))+7,1),"mmmm")&" 1")),E25/F21*E21,"")) ->  | S25: =IF(ISBLANK(C25),"",IF(MONTH(C25)=MONTH(DATEVALUE(TEXT(DATE(2000,MONTH(DATEVALUE($E$7&" 1"))+8,1),"mmmm")&" 1")),E25/F21*E21,"")) ->  | T25: =IF(ISBLANK(C25),"",IF(MONTH(C25)=MONTH(DATEVALUE(TEXT(DATE(2000,MONTH(DATEVALUE($E$7&" 1"))+9,1),"mmmm")&" 1")),E25/F21*E21,"")) ->  | U25: =IF(ISBLANK(C25),"",IF(MONTH(C25)=MONTH(DATEVALUE(TEXT(DATE(2000,MONTH(DATEVALUE($E$7&" 1"))+10,1),"mmmm")&" 1")),E25/F21*E21,"")) ->  | V25: =IF(ISBLANK(C25),"",IF(MONTH(C25)=MONTH(DATEVALUE(TEXT(DATE(2000,MONTH(DATEVALUE($E$7&" 1"))+11,1),"mmmm")&" 1")),E25/F21*E21,"")) -> 
I26: 0 | K26: =IF(ISBLANK(C26),"",IF(MONTH(C26)=MONTH(DATEVALUE($E$7&" 1")),E26/F21*E21,"")) ->  | L26: =IF(ISBLANK(C26),"",IF(MONTH(C26)=MONTH(DATEVALUE(TEXT(DATE(2000,MONTH(DATEVALUE($E$7&" 1"))+1,1),"mmmm")&" 1")),E26/F21*E21,"")) ->  | M26: =IF(ISBLANK(C26),"",IF(MONTH(C26)=MONTH(DATEVALUE(TEXT(DATE(2000,MONTH(DATEVALUE($E$7&" 1"))+2,1),"mmmm")&" 1")),E26/F21*E21,"")) ->  | N26: =IF(ISBLANK(C26),"",IF(MONTH(C26)=MONTH(DATEVALUE(TEXT(DATE(2000,MONTH(DATEVALUE($E$7&" 1"))+3,1),"mmmm")&" 1")),E26/F21*E21,"")) ->  | O26: =IF(ISBLANK(C26),"",IF(MONTH(C26)=MONTH(DATEVALUE(TEXT(DATE(2000,MONTH(DATEVALUE($E$7&" 1"))+4,1),"mmmm")&" 1")),E26/F21*E21,"")) ->  | P26: =IF(ISBLANK(C26),"",IF(MONTH(C26)=MONTH(DATEVALUE(TEXT(DATE(2000,MONTH(DATEVALUE($E$7&" 1"))+5,1),"mmmm")&" 1")),E26/F21*E21,"")) ->  | Q26: =IF(ISBLANK(C26),"",IF(MONTH(C26)=MONTH(DATEVALUE(TEXT(DATE(2000,MONTH(DATEVALUE($E$7&" 1"))+6,1),"mmmm")&" 1")),E26/F21*E21,"")) ->  | R26: =IF(ISBLANK(C26),"",IF(MONTH(C26)=MONTH(DATEVALUE(TEXT(DATE(2000,MONTH(DATEVALUE($E$7&" 1"))+7,1),"mmmm")&" 1")),E26/F21*E21,"")) ->  | S26: =IF(ISBLANK(C26),"",IF(MONTH(C26)=MONTH(DATEVALUE(TEXT(DATE(2000,MONTH(DATEVALUE($E$7&" 1"))+8,1),"mmmm")&" 1")),E26/F21*E21,"")) ->  | T26: =IF(ISBLANK(C26),"",IF(MONTH(C26)=MONTH(DATEVALUE(TEXT(DATE(2000,MONTH(DATEVALUE($E$7&" 1"))+9,1),"mmmm")&" 1")),E26/F21*E21,"")) ->  | U26: =IF(ISBLANK(C26),"",IF(MONTH(C26)=MONTH(DATEVALUE(TEXT(DATE(2000,MONTH(DATEVALUE($E$7&" 1"))+10,1),"mmmm")&" 1")),E26/F21*E21,"")) ->  | V26: =IF(ISBLANK(C26),"",IF(MONTH(C26)=MONTH(DATEVALUE(TEXT(DATE(2000,MONTH(DATEVALUE($E$7&" 1"))+11,1),"mmmm")&" 1")),E26/F21*E21,"")) -> 
I27: 0 | K27: =IF(ISBLANK(C27),"",IF(MONTH(C27)=MONTH(DATEVALUE($E$7&" 1")),E27/F21*E21,"")) ->  | L27: =IF(ISBLANK(C27),"",IF(MONTH(C27)=MONTH(DATEVALUE(TEXT(DATE(2000,MONTH(DATEVALUE($E$7&" 1"))+1,1),"mmmm")&" 1")),E27/F21*E21,"")) ->  | M27: =IF(ISBLANK(C27),"",IF(MONTH(C27)=MONTH(DATEVALUE(TEXT(DATE(2000,MONTH(DATEVALUE($E$7&" 1"))+2,1),"mmmm")&" 1")),E27/F21*E21,"")) ->  | N27: =IF(ISBLANK(C27),"",IF(MONTH(C27)=MONTH(DATEVALUE(TEXT(DATE(2000,MONTH(DATEVALUE($E$7&" 1"))+3,1),"mmmm")&" 1")),E27/F21*E21,"")) ->  | O27: =IF(ISBLANK(C27),"",IF(MONTH(C27)=MONTH(DATEVALUE(TEXT(DATE(2000,MONTH(DATEVALUE($E$7&" 1"))+4,1),"mmmm")&" 1")),E27/F21*E21,"")) ->  | P27: =IF(ISBLANK(C27),"",IF(MONTH(C27)=MONTH(DATEVALUE(TEXT(DATE(2000,MONTH(DATEVALUE($E$7&" 1"))+5,1),"mmmm")&" 1")),E27/F21*E21,"")) ->  | Q27: =IF(ISBLANK(C27),"",IF(MONTH(C27)=MONTH(DATEVALUE(TEXT(DATE(2000,MONTH(DATEVALUE($E$7&" 1"))+6,1),"mmmm")&" 1")),E27/F21*E21,"")) ->  | R27: =IF(ISBLANK(C27),"",IF(MONTH(C27)=MONTH(DATEVALUE(TEXT(DATE(2000,MONTH(DATEVALUE($E$7&" 1"))+7,1),"mmmm")&" 1")),E27/F21*E21,"")) ->  | S27: =IF(ISBLANK(C27),"",IF(MONTH(C27)=MONTH(DATEVALUE(TEXT(DATE(2000,MONTH(DATEVALUE($E$7&" 1"))+8,1),"mmmm")&" 1")),E27/F21*E21,"")) ->  | T27: =IF(ISBLANK(C27),"",IF(MONTH(C27)=MONTH(DATEVALUE(TEXT(DATE(2000,MONTH(DATEVALUE($E$7&" 1"))+9,1),"mmmm")&" 1")),E27/F21*E21,"")) ->  | U27: =IF(ISBLANK(C27),"",IF(MONTH(C27)=MONTH(DATEVALUE(TEXT(DATE(2000,MONTH(DATEVALUE($E$7&" 1"))+10,1),"mmmm")&" 1")),E27/F21*E21,"")) ->  | V27: =IF(ISBLANK(C27),"",IF(MONTH(C27)=MONTH(DATEVALUE(TEXT(DATE(2000,MONTH(DATEVALUE($E$7&" 1"))+11,1),"mmmm")&" 1")),E27/F21*E21,"")) -> 
I28: 0 | K28: =IF(ISBLANK(C28),"",IF(MONTH(C28)=MONTH(DATEVALUE($E$7&" 1")),E28/F21*E21,"")) ->  | L28: =IF(ISBLANK(C28),"",IF(MONTH(C28)=MONTH(DATEVALUE(TEXT(DATE(2000,MONTH(DATEVALUE($E$7&" 1"))+1,1),"mmmm")&" 1")),E28/F21*E21,"")) ->  | M28: =IF(ISBLANK(C28),"",IF(MONTH(C28)=MONTH(DATEVALUE(TEXT(DATE(2000,MONTH(DATEVALUE($E$7&" 1"))+2,1),"mmmm")&" 1")),E28/F21*E21,"")) ->  | N28: =IF(ISBLANK(C28),"",IF(MONTH(C28)=MONTH(DATEVALUE(TEXT(DATE(2000,MONTH(DATEVALUE($E$7&" 1"))+3,1),"mmmm")&" 1")),E28/F21*E21,"")) ->  | O28: =IF(ISBLANK(C28),"",IF(MONTH(C28)=MONTH(DATEVALUE(TEXT(DATE(2000,MONTH(DATEVALUE($E$7&" 1"))+4,1),"mmmm")&" 1")),E28/F21*E21,"")) ->  | P28: =IF(ISBLANK(C28),"",IF(MONTH(C28)=MONTH(DATEVALUE(TEXT(DATE(2000,MONTH(DATEVALUE($E$7&" 1"))+5,1),"mmmm")&" 1")),E28/F21*E21,"")) ->  | Q28: =IF(ISBLANK(C28),"",IF(MONTH(C28)=MONTH(DATEVALUE(TEXT(DATE(2000,MONTH(DATEVALUE($E$7&" 1"))+6,1),"mmmm")&" 1")),E28/F21*E21,"")) ->  | R28: =IF(ISBLANK(C28),"",IF(MONTH(C28)=MONTH(DATEVALUE(TEXT(DATE(2000,MONTH(DATEVALUE($E$7&" 1"))+7,1),"mmmm")&" 1")),E28/F21*E21,"")) ->  | S28: =IF(ISBLANK(C28),"",IF(MONTH(C28)=MONTH(DATEVALUE(TEXT(DATE(2000,MONTH(DATEVALUE($E$7&" 1"))+8,1),"mmmm")&" 1")),E28/F21*E21,"")) ->  | T28: =IF(ISBLANK(C28),"",IF(MONTH(C28)=MONTH(DATEVALUE(TEXT(DATE(2000,MONTH(DATEVALUE($E$7&" 1"))+9,1),"mmmm")&" 1")),E28/F21*E21,"")) ->  | U28: =IF(ISBLANK(C28),"",IF(MONTH(C28)=MONTH(DATEVALUE(TEXT(DATE(2000,MONTH(DATEVALUE($E$7&" 1"))+10,1),"mmmm")&" 1")),E28/F21*E21,"")) ->  | V28: =IF(ISBLANK(C28),"",IF(MONTH(C28)=MONTH(DATEVALUE(TEXT(DATE(2000,MONTH(DATEVALUE($E$7&" 1"))+11,1),"mmmm")&" 1")),E28/F21*E21,"")) -> 
I29: 0 | K29: =IF(ISBLANK(C29),"",IF(MONTH(C29)=MONTH(DATEVALUE($E$7&" 1")),E29/F21*E21,"")) ->  | L29: =IF(ISBLANK(C29),"",IF(MONTH(C29)=MONTH(DATEVALUE(TEXT(DATE(2000,MONTH(DATEVALUE($E$7&" 1"))+1,1),"mmmm")&" 1")),E29/F21*E21,"")) ->  | M29: =IF(ISBLANK(C29),"",IF(MONTH(C29)=MONTH(DATEVALUE(TEXT(DATE(2000,MONTH(DATEVALUE($E$7&" 1"))+2,1),"mmmm")&" 1")),E29/F21*E21,"")) ->  | N29: =IF(ISBLANK(C29),"",IF(MONTH(C29)=MONTH(DATEVALUE(TEXT(DATE(2000,MONTH(DATEVALUE($E$7&" 1"))+3,1),"mmmm")&" 1")),E29/F21*E21,"")) ->  | O29: =IF(ISBLANK(C29),"",IF(MONTH(C29)=MONTH(DATEVALUE(TEXT(DATE(2000,MONTH(DATEVALUE($E$7&" 1"))+4,1),"mmmm")&" 1")),E29/F21*E21,"")) ->  | P29: =IF(ISBLANK(C29),"",IF(MONTH(C29)=MONTH(DATEVALUE(TEXT(DATE(2000,MONTH(DATEVALUE($E$7&" 1"))+5,1),"mmmm")&" 1")),E29/F21*E21,"")) ->  | Q29: =IF(ISBLANK(C29),"",IF(MONTH(C29)=MONTH(DATEVALUE(TEXT(DATE(2000,MONTH(DATEVALUE($E$7&" 1"))+6,1),"mmmm")&" 1")),E29/F21*E21,"")) ->  | R29: =IF(ISBLANK(C29),"",IF(MONTH(C29)=MONTH(DATEVALUE(TEXT(DATE(2000,MONTH(DATEVALUE($E$7&" 1"))+7,1),"mmmm")&" 1")),E29/F21*E21,"")) ->  | S29: =IF(ISBLANK(C29),"",IF(MONTH(C29)=MONTH(DATEVALUE(TEXT(DATE(2000,MONTH(DATEVALUE($E$7&" 1"))+8,1),"mmmm")&" 1")),E29/F21*E21,"")) ->  | T29: =IF(ISBLANK(C29),"",IF(MONTH(C29)=MONTH(DATEVALUE(TEXT(DATE(2000,MONTH(DATEVALUE($E$7&" 1"))+9,1),"mmmm")&" 1")),E29/F21*E21,"")) ->  | U29: =IF(ISBLANK(C29),"",IF(MONTH(C29)=MONTH(DATEVALUE(TEXT(DATE(2000,MONTH(DATEVALUE($E$7&" 1"))+10,1),"mmmm")&" 1")),E29/F21*E21,"")) ->  | V29: =IF(ISBLANK(C29),"",IF(MONTH(C29)=MONTH(DATEVALUE(TEXT(DATE(2000,MONTH(DATEVALUE($E$7&" 1"))+11,1),"mmmm")&" 1")),E29/F21*E21,"")) -> 
I30: 0 | K30: =IF(ISBLANK(C30),"",IF(MONTH(C30)=MONTH(DATEVALUE($E$7&" 1")),E30/F21*E21,"")) ->  | L30: =IF(ISBLANK(C30),"",IF(MONTH(C30)=MONTH(DATEVALUE(TEXT(DATE(2000,MONTH(DATEVALUE($E$7&" 1"))+1,1),"mmmm")&" 1")),E30/F21*E21,"")) ->  | M30: =IF(ISBLANK(C30),"",IF(MONTH(C30)=MONTH(DATEVALUE(TEXT(DATE(2000,MONTH(DATEVALUE($E$7&" 1"))+2,1),"mmmm")&" 1")),E30/F21*E21,"")) ->  | N30: =IF(ISBLANK(C30),"",IF(MONTH(C30)=MONTH(DATEVALUE(TEXT(DATE(2000,MONTH(DATEVALUE($E$7&" 1"))+3,1),"mmmm")&" 1")),E30/F21*E21,"")) ->  | O30: =IF(ISBLANK(C30),"",IF(MONTH(C30)=MONTH(DATEVALUE(TEXT(DATE(2000,MONTH(DATEVALUE($E$7&" 1"))+4,1),"mmmm")&" 1")),E30/F21*E21,"")) ->  | P30: =IF(ISBLANK(C30),"",IF(MONTH(C30)=MONTH(DATEVALUE(TEXT(DATE(2000,MONTH(DATEVALUE($E$7&" 1"))+5,1),"mmmm")&" 1")),E30/F21*E21,"")) ->  | Q30: =IF(ISBLANK(C30),"",IF(MONTH(C30)=MONTH(DATEVALUE(TEXT(DATE(2000,MONTH(DATEVALUE($E$7&" 1"))+6,1),"mmmm")&" 1")),E30/F21*E21,"")) ->  | R30: =IF(ISBLANK(C30),"",IF(MONTH(C30)=MONTH(DATEVALUE(TEXT(DATE(2000,MONTH(DATEVALUE($E$7&" 1"))+7,1),"mmmm")&" 1")),E30/F21*E21,"")) ->  | S30: =IF(ISBLANK(C30),"",IF(MONTH(C30)=MONTH(DATEVALUE(TEXT(DATE(2000,MONTH(DATEVALUE($E$7&" 1"))+8,1),"mmmm")&" 1")),E30/F21*E21,"")) ->  | T30: =IF(ISBLANK(C30),"",IF(MONTH(C30)=MONTH(DATEVALUE(TEXT(DATE(2000,MONTH(DATEVALUE($E$7&" 1"))+9,1),"mmmm")&" 1")),E30/F21*E21,"")) ->  | U30: =IF(ISBLANK(C30),"",IF(MONTH(C30)=MONTH(DATEVALUE(TEXT(DATE(2000,MONTH(DATEVALUE($E$7&" 1"))+10,1),"mmmm")&" 1")),E30/F21*E21,"")) ->  | V30: =IF(ISBLANK(C30),"",IF(MONTH(C30)=MONTH(DATEVALUE(TEXT(DATE(2000,MONTH(DATEVALUE($E$7&" 1"))+11,1),"mmmm")&" 1")),E30/F21*E21,"")) -> 
I31: 0 | K31: =IF(ISBLANK(C31),"",IF(MONTH(C31)=MONTH(DATEVALUE($E$7&" 1")),E31/F21*E21,"")) ->  | L31: =IF(ISBLANK(C31),"",IF(MONTH(C31)=MONTH(DATEVALUE(TEXT(DATE(2000,MONTH(DATEVALUE($E$7&" 1"))+1,1),"mmmm")&" 1")),E31/F21*E21,"")) ->  | M31: =IF(ISBLANK(C31),"",IF(MONTH(C31)=MONTH(DATEVALUE(TEXT(DATE(2000,MONTH(DATEVALUE($E$7&" 1"))+2,1),"mmmm")&" 1")),E31/F21*E21,"")) ->  | N31: =IF(ISBLANK(C31),"",IF(MONTH(C31)=MONTH(DATEVALUE(TEXT(DATE(2000,MONTH(DATEVALUE($E$7&" 1"))+3,1),"mmmm")&" 1")),E31/F21*E21,"")) ->  | O31: =IF(ISBLANK(C31),"",IF(MONTH(C31)=MONTH(DATEVALUE(TEXT(DATE(2000,MONTH(DATEVALUE($E$7&" 1"))+4,1),"mmmm")&" 1")),E31/F21*E21,"")) ->  | P31: =IF(ISBLANK(C31),"",IF(MONTH(C31)=MONTH(DATEVALUE(TEXT(DATE(2000,MONTH(DATEVALUE($E$7&" 1"))+5,1),"mmmm")&" 1")),E31/F21*E21,"")) ->  | Q31: =IF(ISBLANK(C31),"",IF(MONTH(C31)=MONTH(DATEVALUE(TEXT(DATE(2000,MONTH(DATEVALUE($E$7&" 1"))+6,1),"mmmm")&" 1")),E31/F21*E21,"")) ->  | R31: =IF(ISBLANK(C31),"",IF(MONTH(C31)=MONTH(DATEVALUE(TEXT(DATE(2000,MONTH(DATEVALUE($E$7&" 1"))+7,1),"mmmm")&" 1")),E31/F21*E21,"")) ->  | S31: =IF(ISBLANK(C31),"",IF(MONTH(C31)=MONTH(DATEVALUE(TEXT(DATE(2000,MONTH(DATEVALUE($E$7&" 1"))+8,1),"mmmm")&" 1")),E31/F21*E21,"")) ->  | T31: =IF(ISBLANK(C31),"",IF(MONTH(C31)=MONTH(DATEVALUE(TEXT(DATE(2000,MONTH(DATEVALUE($E$7&" 1"))+9,1),"mmmm")&" 1")),E31/F21*E21,"")) ->  | U31: =IF(ISBLANK(C31),"",IF(MONTH(C31)=MONTH(DATEVALUE(TEXT(DATE(2000,MONTH(DATEVALUE($E$7&" 1"))+10,1),"mmmm")&" 1")),E31/F21*E21,"")) ->  | V31: =IF(ISBLANK(C31),"",IF(MONTH(C31)=MONTH(DATEVALUE(TEXT(DATE(2000,MONTH(DATEVALUE($E$7&" 1"))+11,1),"mmmm")&" 1")),E31/F21*E21,"")) -> 
I32: 0 | K32: =IF(ISBLANK(C32),"",IF(MONTH(C32)=MONTH(DATEVALUE($E$7&" 1")),E32/F21*E21,"")) ->  | L32: =IF(ISBLANK(C32),"",IF(MONTH(C32)=MONTH(DATEVALUE(TEXT(DATE(2000,MONTH(DATEVALUE($E$7&" 1"))+1,1),"mmmm")&" 1")),E32/F21*E21,"")) ->  | M32: =IF(ISBLANK(C32),"",IF(MONTH(C32)=MONTH(DATEVALUE(TEXT(DATE(2000,MONTH(DATEVALUE($E$7&" 1"))+2,1),"mmmm")&" 1")),E32/F21*E21,"")) ->  | N32: =IF(ISBLANK(C32),"",IF(MONTH(C32)=MONTH(DATEVALUE(TEXT(DATE(2000,MONTH(DATEVALUE($E$7&" 1"))+3,1),"mmmm")&" 1")),E32/F21*E21,"")) ->  | O32: =IF(ISBLANK(C32),"",IF(MONTH(C32)=MONTH(DATEVALUE(TEXT(DATE(2000,MONTH(DATEVALUE($E$7&" 1"))+4,1),"mmmm")&" 1")),E32/F21*E21,"")) ->  | P32: =IF(ISBLANK(C32),"",IF(MONTH(C32)=MONTH(DATEVALUE(TEXT(DATE(2000,MONTH(DATEVALUE($E$7&" 1"))+5,1),"mmmm")&" 1")),E32/F21*E21,"")) ->  | Q32: =IF(ISBLANK(C32),"",IF(MONTH(C32)=MONTH(DATEVALUE(TEXT(DATE(2000,MONTH(DATEVALUE($E$7&" 1"))+6,1),"mmmm")&" 1")),E32/F21*E21,"")) ->  | R32: =IF(ISBLANK(C32),"",IF(MONTH(C32)=MONTH(DATEVALUE(TEXT(DATE(2000,MONTH(DATEVALUE($E$7&" 1"))+7,1),"mmmm")&" 1")),E32/F21*E21,"")) ->  | S32: =IF(ISBLANK(C32),"",IF(MONTH(C32)=MONTH(DATEVALUE(TEXT(DATE(2000,MONTH(DATEVALUE($E$7&" 1"))+8,1),"mmmm")&" 1")),E32/F21*E21,"")) ->  | T32: =IF(ISBLANK(C32),"",IF(MONTH(C32)=MONTH(DATEVALUE(TEXT(DATE(2000,MONTH(DATEVALUE($E$7&" 1"))+9,1),"mmmm")&" 1")),E32/F21*E21,"")) ->  | U32: =IF(ISBLANK(C32),"",IF(MONTH(C32)=MONTH(DATEVALUE(TEXT(DATE(2000,MONTH(DATEVALUE($E$7&" 1"))+10,1),"mmmm")&" 1")),E32/F21*E21,"")) ->  | V32: =IF(ISBLANK(C32),"",IF(MONTH(C32)=MONTH(DATEVALUE(TEXT(DATE(2000,MONTH(DATEVALUE($E$7&" 1"))+11,1),"mmmm")&" 1")),E32/F21*E21,"")) -> 
B33: P2021-003 | C33: 2021-01-02 | D33: Villa Janssen - Gottechain | E33: 4197 | F33: 450000 | H33: =IFERROR(SUM(E35:H44)/F33,0) -> 0.4 | I33: =SUM(I34:J44) ->  | W33: =IF(H33<>100%,"Pas ok","ok") -> Pas ok
B34: Numéro de facture | C34: Date de facturation | D34: Description de la facture | E34: Montant de la facture
B35: F2021-003 | C35: 30/01/2021 | D35: Tranche 10% | E35: 45000 | I35: =SUM(K35:V35) ->  | K35: =IF(ISBLANK(C35),"",IF(MONTH(C35)=MONTH(DATEVALUE($E$7&" 1")),E35/F33*E33,"")) ->  | L35: =IF(ISBLANK(C35),"",IF(MONTH(C35)=MONTH(DATEVALUE(TEXT(DATE(2000,MONTH(DATEVALUE($E$7&" 1"))+1,1),"mmmm")&" 1")),E35/F33*E33,"")) ->  | M35: =IF(ISBLANK(C35),"",IF(MONTH(C35)=MONTH(DATEVALUE(TEXT(DATE(2000,MONTH(DATEVALUE($E$7&" 1"))+2,1),"mmmm")&" 1")),E35/F33*E33,"")) ->  | N35: =IF(ISBLANK(C35),"",IF(MONTH(C35)=MONTH(DATEVALUE(TEXT(DATE(2000,MONTH(DATEVALUE($E$7&" 1"))+3,1),"mmmm")&" 1")),E35/F33*E33,"")) ->  | O35: =IF(ISBLANK(C35),"",IF(MONTH(C35)=MONTH(DATEVALUE(TEXT(DATE(2000,MONTH(DATEVALUE($E$7&" 1"))+4,1),"mmmm")&" 1")),E35/F33*E33,"")) ->  | P35: =IF(ISBLANK(C35),"",IF(MONTH(C35)=MONTH(DATEVALUE(TEXT(DATE(2000,MONTH(DATEVALUE($E$7&" 1"))+5,1),"mmmm")&" 1")),E35/F33*E33,"")) ->  | Q35: =IF(ISBLANK(C35),"",IF(MONTH(C35)=MONTH(DATEVALUE(TEXT(DATE(2000,MONTH(DATEVALUE($E$7&" 1"))+6,1),"mmmm")&" 1")),E35/F33*E33,"")) ->  | R35: =IF(ISBLANK(C35),"",IF(MONTH(C35)=MONTH(DATEVALUE(TEXT(DATE(2000,MONTH(DATEVALUE($E$7&" 1"))+7,1),"mmmm")&" 1")),E35/F33*E33,"")) ->  | S35: =IF(ISBLANK(C35),"",IF(MONTH(C35)=MONTH(DATEVALUE(TEXT(DATE(2000,MONTH(DATEVALUE($E$7&" 1"))+8,1),"mmmm")&" 1")),E35/F33*E33,"")) ->  | T35: =IF(ISBLANK(C35),"",IF(MONTH(C35)=MONTH(DATEVALUE(TEXT(DATE(2000,MONTH(DATEVALUE($E$7&" 1"))+9,1),"mmmm")&" 1")),E35/F33*E33,"")) ->  | U35: =IF(ISBLANK(C35),"",IF(MONTH(C35)=MONTH(DATEVALUE(TEXT(DATE(2000,MONTH(DATEVALUE($E$7&" 1"))+10,1),"mmmm")&" 1")),E35/F33*E33,"")) ->  | V35: =IF(ISBLANK(C35),"",IF(MONTH(C35)=MONTH(DATEVALUE(TEXT(DATE(2000,MONTH(DATEVALUE($E$7&" 1"))+11,1),"mmmm")&" 1")),E35/F33*E33,"")) -> 
B36: F2021-004 | C36: 28/02/2021 | D36: Tranche 30% | E36: 135000 | K36: =IF(ISBLANK(C36),"",IF(MONTH(C36)=MONTH(DATEVALUE($E$7&" 1")),E36/F33*E33,"")) ->  | L36: =IF(ISBLANK(C36),"",IF(MONTH(C36)=MONTH(DATEVALUE(TEXT(DATE(2000,MONTH(DATEVALUE($E$7&" 1"))+1,1),"mmmm")&" 1")),E36/F33*E33,"")) ->  | M36: =IF(ISBLANK(C36),"",IF(MONTH(C36)=MONTH(DATEVALUE(TEXT(DATE(2000,MONTH(DATEVALUE($E$7&" 1"))+2,1),"mmmm")&" 1")),E36/F33*E33,"")) ->  | N36: =IF(ISBLANK(C36),"",IF(MONTH(C36)=MONTH(DATEVALUE(TEXT(DATE(2000,MONTH(DATEVALUE($E$7&" 1"))+3,1),"mmmm")&" 1")),E36/F33*E33,"")) ->  | O36: =IF(ISBLANK(C36),"",IF(MONTH(C36)=MONTH(DATEVALUE(TEXT(DATE(2000,MONTH(DATEVALUE($E$7&" 1"))+4,1),"mmmm")&" 1")),E36/F33*E33,"")) ->  | P36: =IF(ISBLANK(C36),"",IF(MONTH(C36)=MONTH(DATEVALUE(TEXT(DATE(2000,MONTH(DATEVALUE($E$7&" 1"))+5,1),"mmmm")&" 1")),E36/F33*E33,"")) ->  | Q36: =IF(ISBLANK(C36),"",IF(MONTH(C36)=MONTH(DATEVALUE(TEXT(DATE(2000,MONTH(DATEVALUE($E$7&" 1"))+6,1),"mmmm")&" 1")),E36/F33*E33,"")) ->  | R36: =IF(ISBLANK(C36),"",IF(MONTH(C36)=MONTH(DATEVALUE(TEXT(DATE(2000,MONTH(DATEVALUE($E$7&" 1"))+7,1),"mmmm")&" 1")),E36/F33*E33,"")) ->  | S36: =IF(ISBLANK(C36),"",IF(MONTH(C36)=MONTH(DATEVALUE(TEXT(DATE(2000,MONTH(DATEVALUE($E$7&" 1"))+8,1),"mmmm")&" 1")),E36/F33*E33,"")) ->  | T36: =IF(ISBLANK(C36),"",IF(MONTH(C36)=MONTH(DATEVALUE(TEXT(DATE(2000,MONTH(DATEVALUE($E$7&" 1"))+9,1),"mmmm")&" 1")),E36/F33*E33,"")) ->  | U36: =IF(ISBLANK(C36),"",IF(MONTH(C36)=MONTH(DATEVALUE(TEXT(DATE(2000,MONTH(DATEVALUE($E$7&" 1"))+10,1),"mmmm")&" 1")),E36/F33*E33,"")) ->  | V36: =IF(ISBLANK(C36),"",IF(MONTH(C36)=MONTH(DATEVALUE(TEXT(DATE(2000,MONTH(DATEVALUE($E$7&" 1"))+11,1),"mmmm")&" 1")),E36/F33*E33,"")) -> 
I37: 0 | K37: =IF(ISBLANK(C37),"",IF(MONTH(C37)=MONTH(DATEVALUE($E$7&" 1")),E37/F33*E33,"")) ->  | L37: =IF(ISBLANK(C37),"",IF(MONTH(C37)=MONTH(DATEVALUE(TEXT(DATE(2000,MONTH(DATEVALUE($E$7&" 1"))+1,1),"mmmm")&" 1")),E37/F33*E33,"")) ->  | M37: =IF(ISBLANK(C37),"",IF(MONTH(C37)=MONTH(DATEVALUE(TEXT(DATE(2000,MONTH(DATEVALUE($E$7&" 1"))+2,1),"mmmm")&" 1")),E37/F33*E33,"")) ->  | N37: =IF(ISBLANK(C37),"",IF(MONTH(C37)=MONTH(DATEVALUE(TEXT(DATE(2000,MONTH(DATEVALUE($E$7&" 1"))+3,1),"mmmm")&" 1")),E37/F33*E33,"")) ->  | O37: =IF(ISBLANK(C37),"",IF(MONTH(C37)=MONTH(DATEVALUE(TEXT(DATE(2000,MONTH(DATEVALUE($E$7&" 1"))+4,1),"mmmm")&" 1")),E37/F33*E33,"")) ->  | P37: =IF(ISBLANK(C37),"",IF(MONTH(C37)=MONTH(DATEVALUE(TEXT(DATE(2000,MONTH(DATEVALUE($E$7&" 1"))+5,1),"mmmm")&" 1")),E37/F33*E33,"")) ->  | Q37: =IF(ISBLANK(C37),"",IF(MONTH(C37)=MONTH(DATEVALUE(TEXT(DATE(2000,MONTH(DATEVALUE($E$7&" 1"))+6,1),"mmmm")&" 1")),E37/F33*E33,"")) ->  | R37: =IF(ISBLANK(C37),"",IF(MONTH(C37)=MONTH(DATEVALUE(TEXT(DATE(2000,MONTH(DATEVALUE($E$7&" 1"))+7,1),"mmmm")&" 1")),E37/F33*E33,"")) ->  | S37: =IF(ISBLANK(C37),"",IF(MONTH(C37)=MONTH(DATEVALUE(TEXT(DATE(2000,MONTH(DATEVALUE($E$7&" 1"))+8,1),"mmmm")&" 1")),E37/F33*E33,"")) ->  | T37: =IF(ISBLANK(C37),"",IF(MONTH(C37)=MONTH(DATEVALUE(TEXT(DATE(2000,MONTH(DATEVALUE($E$7&" 1"))+9,1),"mmmm")&" 1")),E37/F33*E33,"")) ->  | U37: =IF(ISBLANK(C37),"",IF(MONTH(C37)=MONTH(DATEVALUE(TEXT(DATE(2000,MONTH(DATEVALUE($E$7&" 1"))+10,1),"mmmm")&" 1")),E37/F33*E33,"")) ->  | V37: =IF(ISBLANK(C37),"",IF(MONTH(C37)=MONTH(DATEVALUE(TEXT(DATE(2000,MONTH(DATEVALUE($E$7&" 1"))+11,1),"mmmm")&" 1")),E37/F33*E33,"")) -> 
I38: 0 | K38: =IF(ISBLANK(C38),"",IF(MONTH(C38)=MONTH(DATEVALUE($E$7&" 1")),E38/F33*E33,"")) ->  | L38: =IF(ISBLANK(C38),"",IF(MONTH(C38)=MONTH(DATEVALUE(TEXT(DATE(2000,MONTH(DATEVALUE($E$7&" 1"))+1,1),"mmmm")&" 1")),E38/F33*E33,"")) ->  | M38: =IF(ISBLANK(C38),"",IF(MONTH(C38)=MONTH(DATEVALUE(TEXT(DATE(2000,MONTH(DATEVALUE($E$7&" 1"))+2,1),"mmmm")&" 1")),E38/F33*E33,"")) ->  | N38: =IF(ISBLANK(C38),"",IF(MONTH(C38)=MONTH(DATEVALUE(TEXT(DATE(2000,MONTH(DATEVALUE($E$7&" 1"))+3,1),"mmmm")&" 1")),E38/F33*E33,"")) ->  | O38: =IF(ISBLANK(C38),"",IF(MONTH(C38)=MONTH(DATEVALUE(TEXT(DATE(2000,MONTH(DATEVALUE($E$7&" 1"))+4,1),"mmmm")&" 1")),E38/F33*E33,"")) ->  | P38: =IF(ISBLANK(C38),"",IF(MONTH(C38)=MONTH(DATEVALUE(TEXT(DATE(2000,MONTH(DATEVALUE($E$7&" 1"))+5,1),"mmmm")&" 1")),E38/F33*E33,"")) ->  | Q38: =IF(ISBLANK(C38),"",IF(MONTH(C38)=MONTH(DATEVALUE(TEXT(DATE(2000,MONTH(DATEVALUE($E$7&" 1"))+6,1),"mmmm")&" 1")),E38/F33*E33,"")) ->  | R38: =IF(ISBLANK(C38),"",IF(MONTH(C38)=MONTH(DATEVALUE(TEXT(DATE(2000,MONTH(DATEVALUE($E$7&" 1"))+7,1),"mmmm")&" 1")),E38/F33*E33,"")) ->  | S38: =IF(ISBLANK(C38),"",IF(MONTH(C38)=MONTH(DATEVALUE(TEXT(DATE(2000,MONTH(DATEVALUE($E$7&" 1"))+8,1),"mmmm")&" 1")),E38/F33*E33,"")) ->  | T38: =IF(ISBLANK(C38),"",IF(MONTH(C38)=MONTH(DATEVALUE(TEXT(DATE(2000,MONTH(DATEVALUE($E$7&" 1"))+9,1),"mmmm")&" 1")),E38/F33*E33,"")) ->  | U38: =IF(ISBLANK(C38),"",IF(MONTH(C38)=MONTH(DATEVALUE(TEXT(DATE(2000,MONTH(DATEVALUE($E$7&" 1"))+10,1),"mmmm")&" 1")),E38/F33*E33,"")) ->  | V38: =IF(ISBLANK(C38),"",IF(MONTH(C38)=MONTH(DATEVALUE(TEXT(DATE(2000,MONTH(DATEVALUE($E$7&" 1"))+11,1),"mmmm")&" 1")),E38/F33*E33,"")) -> 
I39: 0 | K39: =IF(ISBLANK(C39),"",IF(MONTH(C39)=MONTH(DATEVALUE($E$7&" 1")),E39/F33*E33,"")) ->  | L39: =IF(ISBLANK(C39),"",IF(MONTH(C39)=MONTH(DATEVALUE(TEXT(DATE(2000,MONTH(DATEVALUE($E$7&" 1"))+1,1),"mmmm")&" 1")),E39/F33*E33,"")) ->  | M39: =IF(ISBLANK(C39),"",IF(MONTH(C39)=MONTH(DATEVALUE(TEXT(DATE(2000,MONTH(DATEVALUE($E$7&" 1"))+2,1),"mmmm")&" 1")),E39/F33*E33,"")) ->  | N39: =IF(ISBLANK(C39),"",IF(MONTH(C39)=MONTH(DATEVALUE(TEXT(DATE(2000,MONTH(DATEVALUE($E$7&" 1"))+3,1),"mmmm")&" 1")),E39/F33*E33,"")) ->  | O39: =IF(ISBLANK(C39),"",IF(MONTH(C39)=MONTH(DATEVALUE(TEXT(DATE(2000,MONTH(DATEVALUE($E$7&" 1"))+4,1),"mmmm")&" 1")),E39/F33*E33,"")) ->  | P39: =IF(ISBLANK(C39),"",IF(MONTH(C39)=MONTH(DATEVALUE(TEXT(DATE(2000,MONTH(DATEVALUE($E$7&" 1"))+5,1),"mmmm")&" 1")),E39/F33*E33,"")) ->  | Q39: =IF(ISBLANK(C39),"",IF(MONTH(C39)=MONTH(DATEVALUE(TEXT(DATE(2000,MONTH(DATEVALUE($E$7&" 1"))+6,1),"mmmm")&" 1")),E39/F33*E33,"")) ->  | R39: =IF(ISBLANK(C39),"",IF(MONTH(C39)=MONTH(DATEVALUE(TEXT(DATE(2000,MONTH(DATEVALUE($E$7&" 1"))+7,1),"mmmm")&" 1")),E39/F33*E33,"")) ->  | S39: =IF(ISBLANK(C39),"",IF(MONTH(C39)=MONTH(DATEVALUE(TEXT(DATE(2000,MONTH(DATEVALUE($E$7&" 1"))+8,1),"mmmm")&" 1")),E39/F33*E33,"")) ->  | T39: =IF(ISBLANK(C39),"",IF(MONTH(C39)=MONTH(DATEVALUE(TEXT(DATE(2000,MONTH(DATEVALUE($E$7&" 1"))+9,1),"mmmm")&" 1")),E39/F33*E33,"")) ->  | U39: =IF(ISBLANK(C39),"",IF(MONTH(C39)=MONTH(DATEVALUE(TEXT(DATE(2000,MONTH(DATEVALUE($E$7&" 1"))+10,1),"mmmm")&" 1")),E39/F33*E33,"")) ->  | V39: =IF(ISBLANK(C39),"",IF(MONTH(C39)=MONTH(DATEVALUE(TEXT(DATE(2000,MONTH(DATEVALUE($E$7&" 1"))+11,1),"mmmm")&" 1")),E39/F33*E33,"")) -> 
I40: 0 | K40: =IF(ISBLANK(C40),"",IF(MONTH(C40)=MONTH(DATEVALUE($E$7&" 1")),E40/F33*E33,"")) ->  | L40: =IF(ISBLANK(C40),"",IF(MONTH(C40)=MONTH(DATEVALUE(TEXT(DATE(2000,MONTH(DATEVALUE($E$7&" 1"))+1,1),"mmmm")&" 1")),E40/F33*E33,"")) ->  | M40: =IF(ISBLANK(C40),"",IF(MONTH(C40)=MONTH(DATEVALUE(TEXT(DATE(2000,MONTH(DATEVALUE($E$7&" 1"))+2,1),"mmmm")&" 1")),E40/F33*E33,"")) ->  | N40: =IF(ISBLANK(C40),"",IF(MONTH(C40)=MONTH(DATEVALUE(TEXT(DATE(2000,MONTH(DATEVALUE($E$7&" 1"))+3,1),"mmmm")&" 1")),E40/F33*E33,"")) ->  | O40: =IF(ISBLANK(C40),"",IF(MONTH(C40)=MONTH(DATEVALUE(TEXT(DATE(2000,MONTH(DATEVALUE($E$7&" 1"))+4,1),"mmmm")&" 1")),E40/F33*E33,"")) ->  | P40: =IF(ISBLANK(C40),"",IF(MONTH(C40)=MONTH(DATEVALUE(TEXT(DATE(2000,MONTH(DATEVALUE($E$7&" 1"))+5,1),"mmmm")&" 1")),E40/F33*E33,"")) ->  | Q40: =IF(ISBLANK(C40),"",IF(MONTH(C40)=MONTH(DATEVALUE(TEXT(DATE(2000,MONTH(DATEVALUE($E$7&" 1"))+6,1),"mmmm")&" 1")),E40/F33*E33,"")) ->  | R40: =IF(ISBLANK(C40),"",IF(MONTH(C40)=MONTH(DATEVALUE(TEXT(DATE(2000,MONTH(DATEVALUE($E$7&" 1"))+7,1),"mmmm")&" 1")),E40/F33*E33,"")) ->  | S40: =IF(ISBLANK(C40),"",IF(MONTH(C40)=MONTH(DATEVALUE(TEXT(DATE(2000,MONTH(DATEVALUE($E$7&" 1"))+8,1),"mmmm")&" 1")),E40/F33*E33,"")) ->  | T40: =IF(ISBLANK(C40),"",IF(MONTH(C40)=MONTH(DATEVALUE(TEXT(DATE(2000,MONTH(DATEVALUE($E$7&" 1"))+9,1),"mmmm")&" 1")),E40/F33*E33,"")) ->  | U40: =IF(ISBLANK(C40),"",IF(MONTH(C40)=MONTH(DATEVALUE(TEXT(DATE(2000,MONTH(DATEVALUE($E$7&" 1"))+10,1),"mmmm")&" 1")),E40/F33*E33,"")) ->  | V40: =IF(ISBLANK(C40),"",IF(MONTH(C40)=MONTH(DATEVALUE(TEXT(DATE(2000,MONTH(DATEVALUE($E$7&" 1"))+11,1),"mmmm")&" 1")),E40/F33*E33,"")) -> 
I41: 0 | K41: =IF(ISBLANK(C41),"",IF(MONTH(C41)=MONTH(DATEVALUE($E$7&" 1")),E41/F33*E33,"")) ->  | L41: =IF(ISBLANK(C41),"",IF(MONTH(C41)=MONTH(DATEVALUE(TEXT(DATE(2000,MONTH(DATEVALUE($E$7&" 1"))+1,1),"mmmm")&" 1")),E41/F33*E33,"")) ->  | M41: =IF(ISBLANK(C41),"",IF(MONTH(C41)=MONTH(DATEVALUE(TEXT(DATE(2000,MONTH(DATEVALUE($E$7&" 1"))+2,1),"mmmm")&" 1")),E41/F33*E33,"")) ->  | N41: =IF(ISBLANK(C41),"",IF(MONTH(C41)=MONTH(DATEVALUE(TEXT(DATE(2000,MONTH(DATEVALUE($E$7&" 1"))+3,1),"mmmm")&" 1")),E41/F33*E33,"")) ->  | O41: =IF(ISBLANK(C41),"",IF(MONTH(C41)=MONTH(DATEVALUE(TEXT(DATE(2000,MONTH(DATEVALUE($E$7&" 1"))+4,1),"mmmm")&" 1")),E41/F33*E33,"")) ->  | P41: =IF(ISBLANK(C41),"",IF(MONTH(C41)=MONTH(DATEVALUE(TEXT(DATE(2000,MONTH(DATEVALUE($E$7&" 1"))+5,1),"mmmm")&" 1")),E41/F33*E33,"")) ->  | Q41: =IF(ISBLANK(C41),"",IF(MONTH(C41)=MONTH(DATEVALUE(TEXT(DATE(2000,MONTH(DATEVALUE($E$7&" 1"))+6,1),"mmmm")&" 1")),E41/F33*E33,"")) ->  | R41: =IF(ISBLANK(C41),"",IF(MONTH(C41)=MONTH(DATEVALUE(TEXT(DATE(2000,MONTH(DATEVALUE($E$7&" 1"))+7,1),"mmmm")&" 1")),E41/F33*E33,"")) ->  | S41: =IF(ISBLANK(C41),"",IF(MONTH(C41)=MONTH(DATEVALUE(TEXT(DATE(2000,MONTH(DATEVALUE($E$7&" 1"))+8,1),"mmmm")&" 1")),E41/F33*E33,"")) ->  | T41: =IF(ISBLANK(C41),"",IF(MONTH(C41)=MONTH(DATEVALUE(TEXT(DATE(2000,MONTH(DATEVALUE($E$7&" 1"))+9,1),"mmmm")&" 1")),E41/F33*E33,"")) ->  | U41: =IF(ISBLANK(C41),"",IF(MONTH(C41)=MONTH(DATEVALUE(TEXT(DATE(2000,MONTH(DATEVALUE($E$7&" 1"))+10,1),"mmmm")&" 1")),E41/F33*E33,"")) ->  | V41: =IF(ISBLANK(C41),"",IF(MONTH(C41)=MONTH(DATEVALUE(TEXT(DATE(2000,MONTH(DATEVALUE($E$7&" 1"))+11,1),"mmmm")&" 1")),E41/F33*E33,"")) -> 
I42: 0 | K42: =IF(ISBLANK(C42),"",IF(MONTH(C42)=MONTH(DATEVALUE($E$7&" 1")),E42/F33*E33,"")) ->  | L42: =IF(ISBLANK(C42),"",IF(MONTH(C42)=MONTH(DATEVALUE(TEXT(DATE(2000,MONTH(DATEVALUE($E$7&" 1"))+1,1),"mmmm")&" 1")),E42/F33*E33,"")) ->  | M42: =IF(ISBLANK(C42),"",IF(MONTH(C42)=MONTH(DATEVALUE(TEXT(DATE(2000,MONTH(DATEVALUE($E$7&" 1"))+2,1),"mmmm")&" 1")),E42/F33*E33,"")) ->  | N42: =IF(ISBLANK(C42),"",IF(MONTH(C42)=MONTH(DATEVALUE(TEXT(DATE(2000,MONTH(DATEVALUE($E$7&" 1"))+3,1),"mmmm")&" 1")),E42/F33*E33,"")) ->  | O42: =IF(ISBLANK(C42),"",IF(MONTH(C42)=MONTH(DATEVALUE(TEXT(DATE(2000,MONTH(DATEVALUE($E$7&" 1"))+4,1),"mmmm")&" 1")),E42/F33*E33,"")) ->  | P42: =IF(ISBLANK(C42),"",IF(MONTH(C42)=MONTH(DATEVALUE(TEXT(DATE(2000,MONTH(DATEVALUE($E$7&" 1"))+5,1),"mmmm")&" 1")),E42/F33*E33,"")) ->  | Q42: =IF(ISBLANK(C42),"",IF(MONTH(C42)=MONTH(DATEVALUE(TEXT(DATE(2000,MONTH(DATEVALUE($E$7&" 1"))+6,1),"mmmm")&" 1")),E42/F33*E33,"")) ->  | R42: =IF(ISBLANK(C42),"",IF(MONTH(C42)=MONTH(DATEVALUE(TEXT(DATE(2000,MONTH(DATEVALUE($E$7&" 1"))+7,1),"mmmm")&" 1")),E42/F33*E33,"")) ->  | S42: =IF(ISBLANK(C42),"",IF(MONTH(C42)=MONTH(DATEVALUE(TEXT(DATE(2000,MONTH(DATEVALUE($E$7&" 1"))+8,1),"mmmm")&" 1")),E42/F33*E33,"")) ->  | T42: =IF(ISBLANK(C42),"",IF(MONTH(C42)=MONTH(DATEVALUE(TEXT(DATE(2000,MONTH(DATEVALUE($E$7&" 1"))+9,1),"mmmm")&" 1")),E42/F33*E33,"")) ->  | U42: =IF(ISBLANK(C42),"",IF(MONTH(C42)=MONTH(DATEVALUE(TEXT(DATE(2000,MONTH(DATEVALUE($E$7&" 1"))+10,1),"mmmm")&" 1")),E42/F33*E33,"")) ->  | V42: =IF(ISBLANK(C42),"",IF(MONTH(C42)=MONTH(DATEVALUE(TEXT(DATE(2000,MONTH(DATEVALUE($E$7&" 1"))+11,1),"mmmm")&" 1")),E42/F33*E33,"")) -> 
I43: 0 | K43: =IF(ISBLANK(C43),"",IF(MONTH(C43)=MONTH(DATEVALUE($E$7&" 1")),E43/F33*E33,"")) ->  | L43: =IF(ISBLANK(C43),"",IF(MONTH(C43)=MONTH(DATEVALUE(TEXT(DATE(2000,MONTH(DATEVALUE($E$7&" 1"))+1,1),"mmmm")&" 1")),E43/F33*E33,"")) ->  | M43: =IF(ISBLANK(C43),"",IF(MONTH(C43)=MONTH(DATEVALUE(TEXT(DATE(2000,MONTH(DATEVALUE($E$7&" 1"))+2,1),"mmmm")&" 1")),E43/F33*E33,"")) ->  | N43: =IF(ISBLANK(C43),"",IF(MONTH(C43)=MONTH(DATEVALUE(TEXT(DATE(2000,MONTH(DATEVALUE($E$7&" 1"))+3,1),"mmmm")&" 1")),E43/F33*E33,"")) ->  | O43: =IF(ISBLANK(C43),"",IF(MONTH(C43)=MONTH(DATEVALUE(TEXT(DATE(2000,MONTH(DATEVALUE($E$7&" 1"))+4,1),"mmmm")&" 1")),E43/F33*E33,"")) ->  | P43: =IF(ISBLANK(C43),"",IF(MONTH(C43)=MONTH(DATEVALUE(TEXT(DATE(2000,MONTH(DATEVALUE($E$7&" 1"))+5,1),"mmmm")&" 1")),E43/F33*E33,"")) ->  | Q43: =IF(ISBLANK(C43),"",IF(MONTH(C43)=MONTH(DATEVALUE(TEXT(DATE(2000,MONTH(DATEVALUE($E$7&" 1"))+6,1),"mmmm")&" 1")),E43/F33*E33,"")) ->  | R43: =IF(ISBLANK(C43),"",IF(MONTH(C43)=MONTH(DATEVALUE(TEXT(DATE(2000,MONTH(DATEVALUE($E$7&" 1"))+7,1),"mmmm")&" 1")),E43/F33*E33,"")) ->  | S43: =IF(ISBLANK(C43),"",IF(MONTH(C43)=MONTH(DATEVALUE(TEXT(DATE(2000,MONTH(DATEVALUE($E$7&" 1"))+8,1),"mmmm")&" 1")),E43/F33*E33,"")) ->  | T43: =IF(ISBLANK(C43),"",IF(MONTH(C43)=MONTH(DATEVALUE(TEXT(DATE(2000,MONTH(DATEVALUE($E$7&" 1"))+9,1),"mmmm")&" 1")),E43/F33*E33,"")) ->  | U43: =IF(ISBLANK(C43),"",IF(MONTH(C43)=MONTH(DATEVALUE(TEXT(DATE(2000,MONTH(DATEVALUE($E$7&" 1"))+10,1),"mmmm")&" 1")),E43/F33*E33,"")) ->  | V43: =IF(ISBLANK(C43),"",IF(MONTH(C43)=MONTH(DATEVALUE(TEXT(DATE(2000,MONTH(DATEVALUE($E$7&" 1"))+11,1),"mmmm")&" 1")),E43/F33*E33,"")) -> 
I44: 0 | K44: =IF(ISBLANK(C44),"",IF(MONTH(C44)=MONTH(DATEVALUE($E$7&" 1")),E44/F33*E33,"")) ->  | L44: =IF(ISBLANK(C44),"",IF(MONTH(C44)=MONTH(DATEVALUE(TEXT(DATE(2000,MONTH(DATEVALUE($E$7&" 1"))+1,1),"mmmm")&" 1")),E44/F33*E33,"")) ->  | M44: =IF(ISBLANK(C44),"",IF(MONTH(C44)=MONTH(DATEVALUE(TEXT(DATE(2000,MONTH(DATEVALUE($E$7&" 1"))+2,1),"mmmm")&" 1")),E44/F33*E33,"")) ->  | N44: =IF(ISBLANK(C44),"",IF(MONTH(C44)=MONTH(DATEVALUE(TEXT(DATE(2000,MONTH(DATEVALUE($E$7&" 1"))+3,1),"mmmm")&" 1")),E44/F33*E33,"")) ->  | O44: =IF(ISBLANK(C44),"",IF(MONTH(C44)=MONTH(DATEVALUE(TEXT(DATE(2000,MONTH(DATEVALUE($E$7&" 1"))+4,1),"mmmm")&" 1")),E44/F33*E33,"")) ->  | P44: =IF(ISBLANK(C44),"",IF(MONTH(C44)=MONTH(DATEVALUE(TEXT(DATE(2000,MONTH(DATEVALUE($E$7&" 1"))+5,1),"mmmm")&" 1")),E44/F33*E33,"")) ->  | Q44: =IF(ISBLANK(C44),"",IF(MONTH(C44)=MONTH(DATEVALUE(TEXT(DATE(2000,MONTH(DATEVALUE($E$7&" 1"))+6,1),"mmmm")&" 1")),E44/F33*E33,"")) ->  | R44: =IF(ISBLANK(C44),"",IF(MONTH(C44)=MONTH(DATEVALUE(TEXT(DATE(2000,MONTH(DATEVALUE($E$7&" 1"))+7,1),"mmmm")&" 1")),E44/F33*E33,"")) ->  | S44: =IF(ISBLANK(C44),"",IF(MONTH(C44)=MONTH(DATEVALUE(TEXT(DATE(2000,MONTH(DATEVALUE($E$7&" 1"))+8,1),"mmmm")&" 1")),E44/F33*E33,"")) ->  | T44: =IF(ISBLANK(C44),"",IF(MONTH(C44)=MONTH(DATEVALUE(TEXT(DATE(2000,MONTH(DATEVALUE($E$7&" 1"))+9,1),"mmmm")&" 1")),E44/F33*E33,"")) ->  | U44: =IF(ISBLANK(C44),"",IF(MONTH(C44)=MONTH(DATEVALUE(TEXT(DATE(2000,MONTH(DATEVALUE($E$7&" 1"))+10,1),"mmmm")&" 1")),E44/F33*E33,"")) ->  | V44: =IF(ISBLANK(C44),"",IF(MONTH(C44)=MONTH(DATEVALUE(TEXT(DATE(2000,MONTH(DATEVALUE($E$7&" 1"))+11,1),"mmmm")&" 1")),E44/F33*E33,"")) -> 
H45: =IFERROR(SUM(E47:H56)/F45,0) -> 0 | I45: =SUM(I46:J56) -> 0 | W45: =IF(H45<>100%,"Pas ok","ok") -> Pas ok
B46: Numéro de facture | C46: Date de facturation | D46: Description de la facture | E46: Montant de la facture
I47: =SUM(K47:V47) -> 0 | K47: =IF(ISBLANK(C47),"",IF(MONTH(C47)=MONTH(DATEVALUE($E$7&" 1")),E47/F45*E45,"")) ->  | L47: =IF(ISBLANK(C47),"",IF(MONTH(C47)=MONTH(DATEVALUE(TEXT(DATE(2000,MONTH(DATEVALUE($E$7&" 1"))+1,1),"mmmm")&" 1")),E47/F45*E45,"")) ->  | M47: =IF(ISBLANK(C47),"",IF(MONTH(C47)=MONTH(DATEVALUE(TEXT(DATE(2000,MONTH(DATEVALUE($E$7&" 1"))+2,1),"mmmm")&" 1")),E47/F45*E45,"")) ->  | N47: =IF(ISBLANK(C47),"",IF(MONTH(C47)=MONTH(DATEVALUE(TEXT(DATE(2000,MONTH(DATEVALUE($E$7&" 1"))+3,1),"mmmm")&" 1")),E47/F45*E45,"")) ->  | O47: =IF(ISBLANK(C47),"",IF(MONTH(C47)=MONTH(DATEVALUE(TEXT(DATE(2000,MONTH(DATEVALUE($E$7&" 1"))+4,1),"mmmm")&" 1")),E47/F45*E45,"")) ->  | P47: =IF(ISBLANK(C47),"",IF(MONTH(C47)=MONTH(DATEVALUE(TEXT(DATE(2000,MONTH(DATEVALUE($E$7&" 1"))+5,1),"mmmm")&" 1")),E47/F45*E45,"")) ->  | Q47: =IF(ISBLANK(C47),"",IF(MONTH(C47)=MONTH(DATEVALUE(TEXT(DATE(2000,MONTH(DATEVALUE($E$7&" 1"))+6,1),"mmmm")&" 1")),E47/F45*E45,"")) ->  | R47: =IF(ISBLANK(C47),"",IF(MONTH(C47)=MONTH(DATEVALUE(TEXT(DATE(2000,MONTH(DATEVALUE($E$7&" 1"))+7,1),"mmmm")&" 1")),E47/F45*E45,"")) ->  | S47: =IF(ISBLANK(C47),"",IF(MONTH(C47)=MONTH(DATEVALUE(TEXT(DATE(2000,MONTH(DATEVALUE($E$7&" 1"))+8,1),"mmmm")&" 1")),E47/F45*E45,"")) ->  | T47: =IF(ISBLANK(C47),"",IF(MONTH(C47)=MONTH(DATEVALUE(TEXT(DATE(2000,MONTH(DATEVALUE($E$7&" 1"))+9,1),"mmmm")&" 1")),E47/F45*E45,"")) ->  | U47: =IF(ISBLANK(C47),"",IF(MONTH(C47)=MONTH(DATEVALUE(TEXT(DATE(2000,MONTH(DATEVALUE($E$7&" 1"))+10,1),"mmmm")&" 1")),E47/F45*E45,"")) ->  | V47: =IF(ISBLANK(C47),"",IF(MONTH(C47)=MONTH(DATEVALUE(TEXT(DATE(2000,MONTH(DATEVALUE($E$7&" 1"))+11,1),"mmmm")&" 1")),E47/F45*E45,"")) -> 
I48: 0 | K48: =IF(ISBLANK(C48),"",IF(MONTH(C48)=MONTH(DATEVALUE($E$7&" 1")),E48/F45*E45,"")) ->  | L48: =IF(ISBLANK(C48),"",IF(MONTH(C48)=MONTH(DATEVALUE(TEXT(DATE(2000,MONTH(DATEVALUE($E$7&" 1"))+1,1),"mmmm")&" 1")),E48/F45*E45,"")) ->  | M48: =IF(ISBLANK(C48),"",IF(MONTH(C48)=MONTH(DATEVALUE(TEXT(DATE(2000,MONTH(DATEVALUE($E$7&" 1"))+2,1),"mmmm")&" 1")),E48/F45*E45,"")) ->  | N48: =IF(ISBLANK(C48),"",IF(MONTH(C48)=MONTH(DATEVALUE(TEXT(DATE(2000,MONTH(DATEVALUE($E$7&" 1"))+3,1),"mmmm")&" 1")),E48/F45*E45,"")) ->  | O48: =IF(ISBLANK(C48),"",IF(MONTH(C48)=MONTH(DATEVALUE(TEXT(DATE(2000,MONTH(DATEVALUE($E$7&" 1"))+4,1),"mmmm")&" 1")),E48/F45*E45,"")) ->  | P48: =IF(ISBLANK(C48),"",IF(MONTH(C48)=MONTH(DATEVALUE(TEXT(DATE(2000,MONTH(DATEVALUE($E$7&" 1"))+5,1),"mmmm")&" 1")),E48/F45*E45,"")) ->  | Q48: =IF(ISBLANK(C48),"",IF(MONTH(C48)=MONTH(DATEVALUE(TEXT(DATE(2000,MONTH(DATEVALUE($E$7&" 1"))+6,1),"mmmm")&" 1")),E48/F45*E45,"")) ->  | R48: =IF(ISBLANK(C48),"",IF(MONTH(C48)=MONTH(DATEVALUE(TEXT(DATE(2000,MONTH(DATEVALUE($E$7&" 1"))+7,1),"mmmm")&" 1")),E48/F45*E45,"")) ->  | S48: =IF(ISBLANK(C48),"",IF(MONTH(C48)=MONTH(DATEVALUE(TEXT(DATE(2000,MONTH(DATEVALUE($E$7&" 1"))+8,1),"mmmm")&" 1")),E48/F45*E45,"")) ->  | T48: =IF(ISBLANK(C48),"",IF(MONTH(C48)=MONTH(DATEVALUE(TEXT(DATE(2000,MONTH(DATEVALUE($E$7&" 1"))+9,1),"mmmm")&" 1")),E48/F45*E45,"")) ->  | U48: =IF(ISBLANK(C48),"",IF(MONTH(C48)=MONTH(DATEVALUE(TEXT(DATE(2000,MONTH(DATEVALUE($E$7&" 1"))+10,1),"mmmm")&" 1")),E48/F45*E45,"")) ->  | V48: =IF(ISBLANK(C48),"",IF(MONTH(C48)=MONTH(DATEVALUE(TEXT(DATE(2000,MONTH(DATEVALUE($E$7&" 1"))+11,1),"mmmm")&" 1")),E48/F45*E45,"")) -> 
I49: 0 | K49: =IF(ISBLANK(C49),"",IF(MONTH(C49)=MONTH(DATEVALUE($E$7&" 1")),E49/F45*E45,"")) ->  | L49: =IF(ISBLANK(C49),"",IF(MONTH(C49)=MONTH(DATEVALUE(TEXT(DATE(2000,MONTH(DATEVALUE($E$7&" 1"))+1,1),"mmmm")&" 1")),E49/F45*E45,"")) ->  | M49: =IF(ISBLANK(C49),"",IF(MONTH(C49)=MONTH(DATEVALUE(TEXT(DATE(2000,MONTH(DATEVALUE($E$7&" 1"))+2,1),"mmmm")&" 1")),E49/F45*E45,"")) ->  | N49: =IF(ISBLANK(C49),"",IF(MONTH(C49)=MONTH(DATEVALUE(TEXT(DATE(2000,MONTH(DATEVALUE($E$7&" 1"))+3,1),"mmmm")&" 1")),E49/F45*E45,"")) ->  | O49: =IF(ISBLANK(C49),"",IF(MONTH(C49)=MONTH(DATEVALUE(TEXT(DATE(2000,MONTH(DATEVALUE($E$7&" 1"))+4,1),"mmmm")&" 1")),E49/F45*E45,"")) ->  | P49: =IF(ISBLANK(C49),"",IF(MONTH(C49)=MONTH(DATEVALUE(TEXT(DATE(2000,MONTH(DATEVALUE($E$7&" 1"))+5,1),"mmmm")&" 1")),E49/F45*E45,"")) ->  | Q49: =IF(ISBLANK(C49),"",IF(MONTH(C49)=MONTH(DATEVALUE(TEXT(DATE(2000,MONTH(DATEVALUE($E$7&" 1"))+6,1),"mmmm")&" 1")),E49/F45*E45,"")) ->  | R49: =IF(ISBLANK(C49),"",IF(MONTH(C49)=MONTH(DATEVALUE(TEXT(DATE(2000,MONTH(DATEVALUE($E$7&" 1"))+7,1),"mmmm")&" 1")),E49/F45*E45,"")) ->  | S49: =IF(ISBLANK(C49),"",IF(MONTH(C49)=MONTH(DATEVALUE(TEXT(DATE(2000,MONTH(DATEVALUE($E$7&" 1"))+8,1),"mmmm")&" 1")),E49/F45*E45,"")) ->  | T49: =IF(ISBLANK(C49),"",IF(MONTH(C49)=MONTH(DATEVALUE(TEXT(DATE(2000,MONTH(DATEVALUE($E$7&" 1"))+9,1),"mmmm")&" 1")),E49/F45*E45,"")) ->  | U49: =IF(ISBLANK(C49),"",IF(MONTH(C49)=MONTH(DATEVALUE(TEXT(DATE(2000,MONTH(DATEVALUE($E$7&" 1"))+10,1),"mmmm")&" 1")),E49/F45*E45,"")) ->  | V49: =IF(ISBLANK(C49),"",IF(MONTH(C49)=MONTH(DATEVALUE(TEXT(DATE(2000,MONTH(DATEVALUE($E$7&" 1"))+11,1),"mmmm")&" 1")),E49/F45*E45,"")) -> 
I50: 0 | K50: =IF(ISBLANK(C50),"",IF(MONTH(C50)=MONTH(DATEVALUE($E$7&" 1")),E50/F45*E45,"")) ->  | L50: =IF(ISBLANK(C50),"",IF(MONTH(C50)=MONTH(DATEVALUE(TEXT(DATE(2000,MONTH(DATEVALUE($E$7&" 1"))+1,1),"mmmm")&" 1")),E50/F45*E45,"")) ->  | M50: =IF(ISBLANK(C50),"",IF(MONTH(C50)=MONTH(DATEVALUE(TEXT(DATE(2000,MONTH(DATEVALUE($E$7&" 1"))+2,1),"mmmm")&" 1")),E50/F45*E45,"")) ->  | N50: =IF(ISBLANK(C50),"",IF(MONTH(C50)=MONTH(DATEVALUE(TEXT(DATE(2000,MONTH(DATEVALUE($E$7&" 1"))+3,1),"mmmm")&" 1")),E50/F45*E45,"")) ->  | O50: =IF(ISBLANK(C50),"",IF(MONTH(C50)=MONTH(DATEVALUE(TEXT(DATE(2000,MONTH(DATEVALUE($E$7&" 1"))+4,1),"mmmm")&" 1")),E50/F45*E45,"")) ->  | P50: =IF(ISBLANK(C50),"",IF(MONTH(C50)=MONTH(DATEVALUE(TEXT(DATE(2000,MONTH(DATEVALUE($E$7&" 1"))+5,1),"mmmm")&" 1")),E50/F45*E45,"")) ->  | Q50: =IF(ISBLANK(C50),"",IF(MONTH(C50)=MONTH(DATEVALUE(TEXT(DATE(2000,MONTH(DATEVALUE($E$7&" 1"))+6,1),"mmmm")&" 1")),E50/F45*E45,"")) ->  | R50: =IF(ISBLANK(C50),"",IF(MONTH(C50)=MONTH(DATEVALUE(TEXT(DATE(2000,MONTH(DATEVALUE($E$7&" 1"))+7,1),"mmmm")&" 1")),E50/F45*E45,"")) ->  | S50: =IF(ISBLANK(C50),"",IF(MONTH(C50)=MONTH(DATEVALUE(TEXT(DATE(2000,MONTH(DATEVALUE($E$7&" 1"))+8,1),"mmmm")&" 1")),E50/F45*E45,"")) ->  | T50: =IF(ISBLANK(C50),"",IF(MONTH(C50)=MONTH(DATEVALUE(TEXT(DATE(2000,MONTH(DATEVALUE($E$7&" 1"))+9,1),"mmmm")&" 1")),E50/F45*E45,"")) ->  | U50: =IF(ISBLANK(C50),"",IF(MONTH(C50)=MONTH(DATEVALUE(TEXT(DATE(2000,MONTH(DATEVALUE($E$7&" 1"))+10,1),"mmmm")&" 1")),E50/F45*E45,"")) ->  | V50: =IF(ISBLANK(C50),"",IF(MONTH(C50)=MONTH(DATEVALUE(TEXT(DATE(2000,MONTH(DATEVALUE($E$7&" 1"))+11,1),"mmmm")&" 1")),E50/F45*E45,"")) -> 
I51: 0 | K51: =IF(ISBLANK(C51),"",IF(MONTH(C51)=MONTH(DATEVALUE($E$7&" 1")),E51/F45*E45,"")) ->  | L51: =IF(ISBLANK(C51),"",IF(MONTH(C51)=MONTH(DATEVALUE(TEXT(DATE(2000,MONTH(DATEVALUE($E$7&" 1"))+1,1),"mmmm")&" 1")),E51/F45*E45,"")) ->  | M51: =IF(ISBLANK(C51),"",IF(MONTH(C51)=MONTH(DATEVALUE(TEXT(DATE(2000,MONTH(DATEVALUE($E$7&" 1"))+2,1),"mmmm")&" 1")),E51/F45*E45,"")) ->  | N51: =IF(ISBLANK(C51),"",IF(MONTH(C51)=MONTH(DATEVALUE(TEXT(DATE(2000,MONTH(DATEVALUE($E$7&" 1"))+3,1),"mmmm")&" 1")),E51/F45*E45,"")) ->  | O51: =IF(ISBLANK(C51),"",IF(MONTH(C51)=MONTH(DATEVALUE(TEXT(DATE(2000,MONTH(DATEVALUE($E$7&" 1"))+4,1),"mmmm")&" 1")),E51/F45*E45,"")) ->  | P51: =IF(ISBLANK(C51),"",IF(MONTH(C51)=MONTH(DATEVALUE(TEXT(DATE(2000,MONTH(DATEVALUE($E$7&" 1"))+5,1),"mmmm")&" 1")),E51/F45*E45,"")) ->  | Q51: =IF(ISBLANK(C51),"",IF(MONTH(C51)=MONTH(DATEVALUE(TEXT(DATE(2000,MONTH(DATEVALUE($E$7&" 1"))+6,1),"mmmm")&" 1")),E51/F45*E45,"")) ->  | R51: =IF(ISBLANK(C51),"",IF(MONTH(C51)=MONTH(DATEVALUE(TEXT(DATE(2000,MONTH(DATEVALUE($E$7&" 1"))+7,1),"mmmm")&" 1")),E51/F45*E45,"")) ->  | S51: =IF(ISBLANK(C51),"",IF(MONTH(C51)=MONTH(DATEVALUE(TEXT(DATE(2000,MONTH(DATEVALUE($E$7&" 1"))+8,1),"mmmm")&" 1")),E51/F45*E45,"")) ->  | T51: =IF(ISBLANK(C51),"",IF(MONTH(C51)=MONTH(DATEVALUE(TEXT(DATE(2000,MONTH(DATEVALUE($E$7&" 1"))+9,1),"mmmm")&" 1")),E51/F45*E45,"")) ->  | U51: =IF(ISBLANK(C51),"",IF(MONTH(C51)=MONTH(DATEVALUE(TEXT(DATE(2000,MONTH(DATEVALUE($E$7&" 1"))+10,1),"mmmm")&" 1")),E51/F45*E45,"")) ->  | V51: =IF(ISBLANK(C51),"",IF(MONTH(C51)=MONTH(DATEVALUE(TEXT(DATE(2000,MONTH(DATEVALUE($E$7&" 1"))+11,1),"mmmm")&" 1")),E51/F45*E45,"")) -> 
I52: 0 | K52: =IF(ISBLANK(C52),"",IF(MONTH(C52)=MONTH(DATEVALUE($E$7&" 1")),E52/F45*E45,"")) ->  | L52: =IF(ISBLANK(C52),"",IF(MONTH(C52)=MONTH(DATEVALUE(TEXT(DATE(2000,MONTH(DATEVALUE($E$7&" 1"))+1,1),"mmmm")&" 1")),E52/F45*E45,"")) ->  | M52: =IF(ISBLANK(C52),"",IF(MONTH(C52)=MONTH(DATEVALUE(TEXT(DATE(2000,MONTH(DATEVALUE($E$7&" 1"))+2,1),"mmmm")&" 1")),E52/F45*E45,"")) ->  | N52: =IF(ISBLANK(C52),"",IF(MONTH(C52)=MONTH(DATEVALUE(TEXT(DATE(2000,MONTH(DATEVALUE($E$7&" 1"))+3,1),"mmmm")&" 1")),E52/F45*E45,"")) ->  | O52: =IF(ISBLANK(C52),"",IF(MONTH(C52)=MONTH(DATEVALUE(TEXT(DATE(2000,MONTH(DATEVALUE($E$7&" 1"))+4,1),"mmmm")&" 1")),E52/F45*E45,"")) ->  | P52: =IF(ISBLANK(C52),"",IF(MONTH(C52)=MONTH(DATEVALUE(TEXT(DATE(2000,MONTH(DATEVALUE($E$7&" 1"))+5,1),"mmmm")&" 1")),E52/F45*E45,"")) ->  | Q52: =IF(ISBLANK(C52),"",IF(MONTH(C52)=MONTH(DATEVALUE(TEXT(DATE(2000,MONTH(DATEVALUE($E$7&" 1"))+6,1),"mmmm")&" 1")),E52/F45*E45,"")) ->  | R52: =IF(ISBLANK(C52),"",IF(MONTH(C52)=MONTH(DATEVALUE(TEXT(DATE(2000,MONTH(DATEVALUE($E$7&" 1"))+7,1),"mmmm")&" 1")),E52/F45*E45,"")) ->  | S52: =IF(ISBLANK(C52),"",IF(MONTH(C52)=MONTH(DATEVALUE(TEXT(DATE(2000,MONTH(DATEVALUE($E$7&" 1"))+8,1),"mmmm")&" 1")),E52/F45*E45,"")) ->  | T52: =IF(ISBLANK(C52),"",IF(MONTH(C52)=MONTH(DATEVALUE(TEXT(DATE(2000,MONTH(DATEVALUE($E$7&" 1"))+9,1),"mmmm")&" 1")),E52/F45*E45,"")) ->  | U52: =IF(ISBLANK(C52),"",IF(MONTH(C52)=MONTH(DATEVALUE(TEXT(DATE(2000,MONTH(DATEVALUE($E$7&" 1"))+10,1),"mmmm")&" 1")),E52/F45*E45,"")) ->  | V52: =IF(ISBLANK(C52),"",IF(MONTH(C52)=MONTH(DATEVALUE(TEXT(DATE(2000,MONTH(DATEVALUE($E$7&" 1"))+11,1),"mmmm")&" 1")),E52/F45*E45,"")) -> 
I53: 0 | K53: =IF(ISBLANK(C53),"",IF(MONTH(C53)=MONTH(DATEVALUE($E$7&" 1")),E53/F45*E45,"")) ->  | L53: =IF(ISBLANK(C53),"",IF(MONTH(C53)=MONTH(DATEVALUE(TEXT(DATE(2000,MONTH(DATEVALUE($E$7&" 1"))+1,1),"mmmm")&" 1")),E53/F45*E45,"")) ->  | M53: =IF(ISBLANK(C53),"",IF(MONTH(C53)=MONTH(DATEVALUE(TEXT(DATE(2000,MONTH(DATEVALUE($E$7&" 1"))+2,1),"mmmm")&" 1")),E53/F45*E45,"")) ->  | N53: =IF(ISBLANK(C53),"",IF(MONTH(C53)=MONTH(DATEVALUE(TEXT(DATE(2000,MONTH(DATEVALUE($E$7&" 1"))+3,1),"mmmm")&" 1")),E53/F45*E45,"")) ->  | O53: =IF(ISBLANK(C53),"",IF(MONTH(C53)=MONTH(DATEVALUE(TEXT(DATE(2000,MONTH(DATEVALUE($E$7&" 1"))+4,1),"mmmm")&" 1")),E53/F45*E45,"")) ->  | P53: =IF(ISBLANK(C53),"",IF(MONTH(C53)=MONTH(DATEVALUE(TEXT(DATE(2000,MONTH(DATEVALUE($E$7&" 1"))+5,1),"mmmm")&" 1")),E53/F45*E45,"")) ->  | Q53: =IF(ISBLANK(C53),"",IF(MONTH(C53)=MONTH(DATEVALUE(TEXT(DATE(2000,MONTH(DATEVALUE($E$7&" 1"))+6,1),"mmmm")&" 1")),E53/F45*E45,"")) ->  | R53: =IF(ISBLANK(C53),"",IF(MONTH(C53)=MONTH(DATEVALUE(TEXT(DATE(2000,MONTH(DATEVALUE($E$7&" 1"))+7,1),"mmmm")&" 1")),E53/F45*E45,"")) ->  | S53: =IF(ISBLANK(C53),"",IF(MONTH(C53)=MONTH(DATEVALUE(TEXT(DATE(2000,MONTH(DATEVALUE($E$7&" 1"))+8,1),"mmmm")&" 1")),E53/F45*E45,"")) ->  | T53: =IF(ISBLANK(C53),"",IF(MONTH(C53)=MONTH(DATEVALUE(TEXT(DATE(2000,MONTH(DATEVALUE($E$7&" 1"))+9,1),"mmmm")&" 1")),E53/F45*E45,"")) ->  | U53: =IF(ISBLANK(C53),"",IF(MONTH(C53)=MONTH(DATEVALUE(TEXT(DATE(2000,MONTH(DATEVALUE($E$7&" 1"))+10,1),"mmmm")&" 1")),E53/F45*E45,"")) ->  | V53: =IF(ISBLANK(C53),"",IF(MONTH(C53)=MONTH(DATEVALUE(TEXT(DATE(2000,MONTH(DATEVALUE($E$7&" 1"))+11,1),"mmmm")&" 1")),E53/F45*E45,"")) -> 
I54: 0 | K54: =IF(ISBLANK(C54),"",IF(MONTH(C54)=MONTH(DATEVALUE($E$7&" 1")),E54/F45*E45,"")) ->  | L54: =IF(ISBLANK(C54),"",IF(MONTH(C54)=MONTH(DATEVALUE(TEXT(DATE(2000,MONTH(DATEVALUE($E$7&" 1"))+1,1),"mmmm")&" 1")),E54/F45*E45,"")) ->  | M54: =IF(ISBLANK(C54),"",IF(MONTH(C54)=MONTH(DATEVALUE(TEXT(DATE(2000,MONTH(DATEVALUE($E$7&" 1"))+2,1),"mmmm")&" 1")),E54/F45*E45,"")) ->  | N54: =IF(ISBLANK(C54),"",IF(MONTH(C54)=MONTH(DATEVALUE(TEXT(DATE(2000,MONTH(DATEVALUE($E$7&" 1"))+3,1),"mmmm")&" 1")),E54/F45*E45,"")) ->  | O54: =IF(ISBLANK(C54),"",IF(MONTH(C54)=MONTH(DATEVALUE(TEXT(DATE(2000,MONTH(DATEVALUE($E$7&" 1"))+4,1),"mmmm")&" 1")),E54/F45*E45,"")) ->  | P54: =IF(ISBLANK(C54),"",IF(MONTH(C54)=MONTH(DATEVALUE(TEXT(DATE(2000,MONTH(DATEVALUE($E$7&" 1"))+5,1),"mmmm")&" 1")),E54/F45*E45,"")) ->  | Q54: =IF(ISBLANK(C54),"",IF(MONTH(C54)=MONTH(DATEVALUE(TEXT(DATE(2000,MONTH(DATEVALUE($E$7&" 1"))+6,1),"mmmm")&" 1")),E54/F45*E45,"")) ->  | R54: =IF(ISBLANK(C54),"",IF(MONTH(C54)=MONTH(DATEVALUE(TEXT(DATE(2000,MONTH(DATEVALUE($E$7&" 1"))+7,1),"mmmm")&" 1")),E54/F45*E45,"")) ->  | S54: =IF(ISBLANK(C54),"",IF(MONTH(C54)=MONTH(DATEVALUE(TEXT(DATE(2000,MONTH(DATEVALUE($E$7&" 1"))+8,1),"mmmm")&" 1")),E54/F45*E45,"")) ->  | T54: =IF(ISBLANK(C54),"",IF(MONTH(C54)=MONTH(DATEVALUE(TEXT(DATE(2000,MONTH(DATEVALUE($E$7&" 1"))+9,1),"mmmm")&" 1")),E54/F45*E45,"")) ->  | U54: =IF(ISBLANK(C54),"",IF(MONTH(C54)=MONTH(DATEVALUE(TEXT(DATE(2000,MONTH(DATEVALUE($E$7&" 1"))+10,1),"mmmm")&" 1")),E54/F45*E45,"")) ->  | V54: =IF(ISBLANK(C54),"",IF(MONTH(C54)=MONTH(DATEVALUE(TEXT(DATE(2000,MONTH(DATEVALUE($E$7&" 1"))+11,1),"mmmm")&" 1")),E54/F45*E45,"")) -> 
I55: 0 | K55: =IF(ISBLANK(C55),"",IF(MONTH(C55)=MONTH(DATEVALUE($E$7&" 1")),E55/F45*E45,"")) ->  | L55: =IF(ISBLANK(C55),"",IF(MONTH(C55)=MONTH(DATEVALUE(TEXT(DATE(2000,MONTH(DATEVALUE($E$7&" 1"))+1,1),"mmmm")&" 1")),E55/F45*E45,"")) ->  | M55: =IF(ISBLANK(C55),"",IF(MONTH(C55)=MONTH(DATEVALUE(TEXT(DATE(2000,MONTH(DATEVALUE($E$7&" 1"))+2,1),"mmmm")&" 1")),E55/F45*E45,"")) ->  | N55: =IF(ISBLANK(C55),"",IF(MONTH(C55)=MONTH(DATEVALUE(TEXT(DATE(2000,MONTH(DATEVALUE($E$7&" 1"))+3,1),"mmmm")&" 1")),E55/F45*E45,"")) ->  | O55: =IF(ISBLANK(C55),"",IF(MONTH(C55)=MONTH(DATEVALUE(TEXT(DATE(2000,MONTH(DATEVALUE($E$7&" 1"))+4,1),"mmmm")&" 1")),E55/F45*E45,"")) ->  | P55: =IF(ISBLANK(C55),"",IF(MONTH(C55)=MONTH(DATEVALUE(TEXT(DATE(2000,MONTH(DATEVALUE($E$7&" 1"))+5,1),"mmmm")&" 1")),E55/F45*E45,"")) ->  | Q55: =IF(ISBLANK(C55),"",IF(MONTH(C55)=MONTH(DATEVALUE(TEXT(DATE(2000,MONTH(DATEVALUE($E$7&" 1"))+6,1),"mmmm")&" 1")),E55/F45*E45,"")) ->  | R55: =IF(ISBLANK(C55),"",IF(MONTH(C55)=MONTH(DATEVALUE(TEXT(DATE(2000,MONTH(DATEVALUE($E$7&" 1"))+7,1),"mmmm")&" 1")),E55/F45*E45,"")) ->  | S55: =IF(ISBLANK(C55),"",IF(MONTH(C55)=MONTH(DATEVALUE(TEXT(DATE(2000,MONTH(DATEVALUE($E$7&" 1"))+8,1),"mmmm")&" 1")),E55/F45*E45,"")) ->  | T55: =IF(ISBLANK(C55),"",IF(MONTH(C55)=MONTH(DATEVALUE(TEXT(DATE(2000,MONTH(DATEVALUE($E$7&" 1"))+9,1),"mmmm")&" 1")),E55/F45*E45,"")) ->  | U55: =IF(ISBLANK(C55),"",IF(MONTH(C55)=MONTH(DATEVALUE(TEXT(DATE(2000,MONTH(DATEVALUE($E$7&" 1"))+10,1),"mmmm")&" 1")),E55/F45*E45,"")) ->  | V55: =IF(ISBLANK(C55),"",IF(MONTH(C55)=MONTH(DATEVALUE(TEXT(DATE(2000,MONTH(DATEVALUE($E$7&" 1"))+11,1),"mmmm")&" 1")),E55/F45*E45,"")) -> 
I56: 0 | K56: =IF(ISBLANK(C56),"",IF(MONTH(C56)=MONTH(DATEVALUE($E$7&" 1")),E56/F45*E45,"")) ->  | L56: =IF(ISBLANK(C56),"",IF(MONTH(C56)=MONTH(DATEVALUE(TEXT(DATE(2000,MONTH(DATEVALUE($E$7&" 1"))+1,1),"mmmm")&" 1")),E56/F45*E45,"")) ->  | M56: =IF(ISBLANK(C56),"",IF(MONTH(C56)=MONTH(DATEVALUE(TEXT(DATE(2000,MONTH(DATEVALUE($E$7&" 1"))+2,1),"mmmm")&" 1")),E56/F45*E45,"")) ->  | N56: =IF(ISBLANK(C56),"",IF(MONTH(C56)=MONTH(DATEVALUE(TEXT(DATE(2000,MONTH(DATEVALUE($E$7&" 1"))+3,1),"mmmm")&" 1")),E56/F45*E45,"")) ->  | O56: =IF(ISBLANK(C56),"",IF(MONTH(C56)=MONTH(DATEVALUE(TEXT(DATE(2000,MONTH(DATEVALUE($E$7&" 1"))+4,1),"mmmm")&" 1")),E56/F45*E45,"")) ->  | P56: =IF(ISBLANK(C56),"",IF(MONTH(C56)=MONTH(DATEVALUE(TEXT(DATE(2000,MONTH(DATEVALUE($E$7&" 1"))+5,1),"mmmm")&" 1")),E56/F45*E45,"")) ->  | Q56: =IF(ISBLANK(C56),"",IF(MONTH(C56)=MONTH(DATEVALUE(TEXT(DATE(2000,MONTH(DATEVALUE($E$7&" 1"))+6,1),"mmmm")&" 1")),E56/F45*E45,"")) ->  | R56: =IF(ISBLANK(C56),"",IF(MONTH(C56)=MONTH(DATEVALUE(TEXT(DATE(2000,MONTH(DATEVALUE($E$7&" 1"))+7,1),"mmmm")&" 1")),E56/F45*E45,"")) ->  | S56: =IF(ISBLANK(C56),"",IF(MONTH(C56)=MONTH(DATEVALUE(TEXT(DATE(2000,MONTH(DATEVALUE($E$7&" 1"))+8,1),"mmmm")&" 1")),E56/F45*E45,"")) ->  | T56: =IF(ISBLANK(C56),"",IF(MONTH(C56)=MONTH(DATEVALUE(TEXT(DATE(2000,MONTH(DATEVALUE($E$7&" 1"))+9,1),"mmmm")&" 1")),E56/F45*E45,"")) ->  | U56: =IF(ISBLANK(C56),"",IF(MONTH(C56)=MONTH(DATEVALUE(TEXT(DATE(2000,MONTH(DATEVALUE($E$7&" 1"))+10,1),"mmmm")&" 1")),E56/F45*E45,"")) ->  | V56: =IF(ISBLANK(C56),"",IF(MONTH(C56)=MONTH(DATEVALUE(TEXT(DATE(2000,MONTH(DATEVALUE($E$7&" 1"))+11,1),"mmmm")&" 1")),E56/F45*E45,"")) -> 
H57: =IFERROR(SUM(E59:H68)/F57,0) -> 0 | I57: =SUM(I58:J68) -> 0 | W57: =IF(H57<>100%,"Pas ok","ok") -> Pas ok
B58: Numéro de facture | C58: Date de facturation | D58: Description de la facture | E58: Montant de la facture
I59: =SUM(K59:V59) -> 0 | K59: =IF(ISBLANK(C59),"",IF(MONTH(C59)=MONTH(DATEVALUE($E$7&" 1")),E59/F57*E57,"")) ->  | L59: =IF(ISBLANK(C59),"",IF(MONTH(C59)=MONTH(DATEVALUE(TEXT(DATE(2000,MONTH(DATEVALUE($E$7&" 1"))+1,1),"mmmm")&" 1")),E59/F57*E57,"")) ->  | M59: =IF(ISBLANK(C59),"",IF(MONTH(C59)=MONTH(DATEVALUE(TEXT(DATE(2000,MONTH(DATEVALUE($E$7&" 1"))+2,1),"mmmm")&" 1")),E59/F57*E57,"")) ->  | N59: =IF(ISBLANK(C59),"",IF(MONTH(C59)=MONTH(DATEVALUE(TEXT(DATE(2000,MONTH(DATEVALUE($E$7&" 1"))+3,1),"mmmm")&" 1")),E59/F57*E57,"")) ->  | O59: =IF(ISBLANK(C59),"",IF(MONTH(C59)=MONTH(DATEVALUE(TEXT(DATE(2000,MONTH(DATEVALUE($E$7&" 1"))+4,1),"mmmm")&" 1")),E59/F57*E57,"")) ->  | P59: =IF(ISBLANK(C59),"",IF(MONTH(C59)=MONTH(DATEVALUE(TEXT(DATE(2000,MONTH(DATEVALUE($E$7&" 1"))+5,1),"mmmm")&" 1")),E59/F57*E57,"")) ->  | Q59: =IF(ISBLANK(C59),"",IF(MONTH(C59)=MONTH(DATEVALUE(TEXT(DATE(2000,MONTH(DATEVALUE($E$7&" 1"))+6,1),"mmmm")&" 1")),E59/F57*E57,"")) ->  | R59: =IF(ISBLANK(C59),"",IF(MONTH(C59)=MONTH(DATEVALUE(TEXT(DATE(2000,MONTH(DATEVALUE($E$7&" 1"))+7,1),"mmmm")&" 1")),E59/F57*E57,"")) ->  | S59: =IF(ISBLANK(C59),"",IF(MONTH(C59)=MONTH(DATEVALUE(TEXT(DATE(2000,MONTH(DATEVALUE($E$7&" 1"))+8,1),"mmmm")&" 1")),E59/F57*E57,"")) ->  | T59: =IF(ISBLANK(C59),"",IF(MONTH(C59)=MONTH(DATEVALUE(TEXT(DATE(2000,MONTH(DATEVALUE($E$7&" 1"))+9,1),"mmmm")&" 1")),E59/F57*E57,"")) ->  | U59: =IF(ISBLANK(C59),"",IF(MONTH(C59)=MONTH(DATEVALUE(TEXT(DATE(2000,MONTH(DATEVALUE($E$7&" 1"))+10,1),"mmmm")&" 1")),E59/F57*E57,"")) ->  | V59: =IF(ISBLANK(C59),"",IF(MONTH(C59)=MONTH(DATEVALUE(TEXT(DATE(2000,MONTH(DATEVALUE($E$7&" 1"))+11,1),"mmmm")&" 1")),E59/F57*E57,"")) -> 
I60: 0 | K60: =IF(ISBLANK(C60),"",IF(MONTH(C60)=MONTH(DATEVALUE($E$7&" 1")),E60/F57*E57,"")) ->  | L60: =IF(ISBLANK(C60),"",IF(MONTH(C60)=MONTH(DATEVALUE(TEXT(DATE(2000,MONTH(DATEVALUE($E$7&" 1"))+1,1),"mmmm")&" 1")),E60/F57*E57,"")) ->  | M60: =IF(ISBLANK(C60),"",IF(MONTH(C60)=MONTH(DATEVALUE(TEXT(DATE(2000,MONTH(DATEVALUE($E$7&" 1"))+2,1),"mmmm")&" 1")),E60/F57*E57,"")) ->  | N60: =IF(ISBLANK(C60),"",IF(MONTH(C60)=MONTH(DATEVALUE(TEXT(DATE(2000,MONTH(DATEVALUE($E$7&" 1"))+3,1),"mmmm")&" 1")),E60/F57*E57,"")) ->  | O60: =IF(ISBLANK(C60),"",IF(MONTH(C60)=MONTH(DATEVALUE(TEXT(DATE(2000,MONTH(DATEVALUE($E$7&" 1"))+4,1),"mmmm")&" 1")),E60/F57*E57,"")) ->  | P60: =IF(ISBLANK(C60),"",IF(MONTH(C60)=MONTH(DATEVALUE(TEXT(DATE(2000,MONTH(DATEVALUE($E$7&" 1"))+5,1),"mmmm")&" 1")),E60/F57*E57,"")) ->  | Q60: =IF(ISBLANK(C60),"",IF(MONTH(C60)=MONTH(DATEVALUE(TEXT(DATE(2000,MONTH(DATEVALUE($E$7&" 1"))+6,1),"mmmm")&" 1")),E60/F57*E57,"")) ->  | R60: =IF(ISBLANK(C60),"",IF(MONTH(C60)=MONTH(DATEVALUE(TEXT(DATE(2000,MONTH(DATEVALUE($E$7&" 1"))+7,1),"mmmm")&" 1")),E60/F57*E57,"")) ->  | S60: =IF(ISBLANK(C60),"",IF(MONTH(C60)=MONTH(DATEVALUE(TEXT(DATE(2000,MONTH(DATEVALUE($E$7&" 1"))+8,1),"mmmm")&" 1")),E60/F57*E57,"")) ->  | T60: =IF(ISBLANK(C60),"",IF(MONTH(C60)=MONTH(DATEVALUE(TEXT(DATE(2000,MONTH(DATEVALUE($E$7&" 1"))+9,1),"mmmm")&" 1")),E60/F57*E57,"")) ->  | U60: =IF(ISBLANK(C60),"",IF(MONTH(C60)=MONTH(DATEVALUE(TEXT(DATE(2000,MONTH(DATEVALUE($E$7&" 1"))+10,1),"mmmm")&" 1")),E60/F57*E57,"")) ->  | V60: =IF(ISBLANK(C60),"",IF(MONTH(C60)=MONTH(DATEVALUE(TEXT(DATE(2000,MONTH(DATEVALUE($E$7&" 1"))+11,1),"mmmm")&" 1")),E60/F57*E57,"")) -> 
I61: 0 | K61: =IF(ISBLANK(C61),"",IF(MONTH(C61)=MONTH(DATEVALUE($E$7&" 1")),E61/F57*E57,"")) ->  | L61: =IF(ISBLANK(C61),"",IF(MONTH(C61)=MONTH(DATEVALUE(TEXT(DATE(2000,MONTH(DATEVALUE($E$7&" 1"))+1,1),"mmmm")&" 1")),E61/F57*E57,"")) ->  | M61: =IF(ISBLANK(C61),"",IF(MONTH(C61)=MONTH(DATEVALUE(TEXT(DATE(2000,MONTH(DATEVALUE($E$7&" 1"))+2,1),"mmmm")&" 1")),E61/F57*E57,"")) ->  | N61: =IF(ISBLANK(C61),"",IF(MONTH(C61)=MONTH(DATEVALUE(TEXT(DATE(2000,MONTH(DATEVALUE($E$7&" 1"))+3,1),"mmmm")&" 1")),E61/F57*E57,"")) ->  | O61: =IF(ISBLANK(C61),"",IF(MONTH(C61)=MONTH(DATEVALUE(TEXT(DATE(2000,MONTH(DATEVALUE($E$7&" 1"))+4,1),"mmmm")&" 1")),E61/F57*E57,"")) ->  | P61: =IF(ISBLANK(C61),"",IF(MONTH(C61)=MONTH(DATEVALUE(TEXT(DATE(2000,MONTH(DATEVALUE($E$7&" 1"))+5,1),"mmmm")&" 1")),E61/F57*E57,"")) ->  | Q61: =IF(ISBLANK(C61),"",IF(MONTH(C61)=MONTH(DATEVALUE(TEXT(DATE(2000,MONTH(DATEVALUE($E$7&" 1"))+6,1),"mmmm")&" 1")),E61/F57*E57,"")) ->  | R61: =IF(ISBLANK(C61),"",IF(MONTH(C61)=MONTH(DATEVALUE(TEXT(DATE(2000,MONTH(DATEVALUE($E$7&" 1"))+7,1),"mmmm")&" 1")),E61/F57*E57,"")) ->  | S61: =IF(ISBLANK(C61),"",IF(MONTH(C61)=MONTH(DATEVALUE(TEXT(DATE(2000,MONTH(DATEVALUE($E$7&" 1"))+8,1),"mmmm")&" 1")),E61/F57*E57,"")) ->  | T61: =IF(ISBLANK(C61),"",IF(MONTH(C61)=MONTH(DATEVALUE(TEXT(DATE(2000,MONTH(DATEVALUE($E$7&" 1"))+9,1),"mmmm")&" 1")),E61/F57*E57,"")) ->  | U61: =IF(ISBLANK(C61),"",IF(MONTH(C61)=MONTH(DATEVALUE(TEXT(DATE(2000,MONTH(DATEVALUE($E$7&" 1"))+10,1),"mmmm")&" 1")),E61/F57*E57,"")) ->  | V61: =IF(ISBLANK(C61),"",IF(MONTH(C61)=MONTH(DATEVALUE(TEXT(DATE(2000,MONTH(DATEVALUE($E$7&" 1"))+11,1),"mmmm")&" 1")),E61/F57*E57,"")) -> 
I62: 0 | K62: =IF(ISBLANK(C62),"",IF(MONTH(C62)=MONTH(DATEVALUE($E$7&" 1")),E62/F57*E57,"")) ->  | L62: =IF(ISBLANK(C62),"",IF(MONTH(C62)=MONTH(DATEVALUE(TEXT(DATE(2000,MONTH(DATEVALUE($E$7&" 1"))+1,1),"mmmm")&" 1")),E62/F57*E57,"")) ->  | M62: =IF(ISBLANK(C62),"",IF(MONTH(C62)=MONTH(DATEVALUE(TEXT(DATE(2000,MONTH(DATEVALUE($E$7&" 1"))+2,1),"mmmm")&" 1")),E62/F57*E57,"")) ->  | N62: =IF(ISBLANK(C62),"",IF(MONTH(C62)=MONTH(DATEVALUE(TEXT(DATE(2000,MONTH(DATEVALUE($E$7&" 1"))+3,1),"mmmm")&" 1")),E62/F57*E57,"")) ->  | O62: =IF(ISBLANK(C62),"",IF(MONTH(C62)=MONTH(DATEVALUE(TEXT(DATE(2000,MONTH(DATEVALUE($E$7&" 1"))+4,1),"mmmm")&" 1")),E62/F57*E57,"")) ->  | P62: =IF(ISBLANK(C62),"",IF(MONTH(C62)=MONTH(DATEVALUE(TEXT(DATE(2000,MONTH(DATEVALUE($E$7&" 1"))+5,1),"mmmm")&" 1")),E62/F57*E57,"")) ->  | Q62: =IF(ISBLANK(C62),"",IF(MONTH(C62)=MONTH(DATEVALUE(TEXT(DATE(2000,MONTH(DATEVALUE($E$7&" 1"))+6,1),"mmmm")&" 1")),E62/F57*E57,"")) ->  | R62: =IF(ISBLANK(C62),"",IF(MONTH(C62)=MONTH(DATEVALUE(TEXT(DATE(2000,MONTH(DATEVALUE($E$7&" 1"))+7,1),"mmmm")&" 1")),E62/F57*E57,"")) ->  | S62: =IF(ISBLANK(C62),"",IF(MONTH(C62)=MONTH(DATEVALUE(TEXT(DATE(2000,MONTH(DATEVALUE($E$7&" 1"))+8,1),"mmmm")&" 1")),E62/F57*E57,"")) ->  | T62: =IF(ISBLANK(C62),"",IF(MONTH(C62)=MONTH(DATEVALUE(TEXT(DATE(2000,MONTH(DATEVALUE($E$7&" 1"))+9,1),"mmmm")&" 1")),E62/F57*E57,"")) ->  | U62: =IF(ISBLANK(C62),"",IF(MONTH(C62)=MONTH(DATEVALUE(TEXT(DATE(2000,MONTH(DATEVALUE($E$7&" 1"))+10,1),"mmmm")&" 1")),E62/F57*E57,"")) ->  | V62: =IF(ISBLANK(C62),"",IF(MONTH(C62)=MONTH(DATEVALUE(TEXT(DATE(2000,MONTH(DATEVALUE($E$7&" 1"))+11,1),"mmmm")&" 1")),E62/F57*E57,"")) -> 
I63: 0 | K63: =IF(ISBLANK(C63),"",IF(MONTH(C63)=MONTH(DATEVALUE($E$7&" 1")),E63/F57*E57,"")) ->  | L63: =IF(ISBLANK(C63),"",IF(MONTH(C63)=MONTH(DATEVALUE(TEXT(DATE(2000,MONTH(DATEVALUE($E$7&" 1"))+1,1),"mmmm")&" 1")),E63/F57*E57,"")) ->  | M63: =IF(ISBLANK(C63),"",IF(MONTH(C63)=MONTH(DATEVALUE(TEXT(DATE(2000,MONTH(DATEVALUE($E$7&" 1"))+2,1),"mmmm")&" 1")),E63/F57*E57,"")) ->  | N63: =IF(ISBLANK(C63),"",IF(MONTH(C63)=MONTH(DATEVALUE(TEXT(DATE(2000,MONTH(DATEVALUE($E$7&" 1"))+3,1),"mmmm")&" 1")),E63/F57*E57,"")) ->  | O63: =IF(ISBLANK(C63),"",IF(MONTH(C63)=MONTH(DATEVALUE(TEXT(DATE(2000,MONTH(DATEVALUE($E$7&" 1"))+4,1),"mmmm")&" 1")),E63/F57*E57,"")) ->  | P63: =IF(ISBLANK(C63),"",IF(MONTH(C63)=MONTH(DATEVALUE(TEXT(DATE(2000,MONTH(DATEVALUE($E$7&" 1"))+5,1),"mmmm")&" 1")),E63/F57*E57,"")) ->  | Q63: =IF(ISBLANK(C63),"",IF(MONTH(C63)=MONTH(DATEVALUE(TEXT(DATE(2000,MONTH(DATEVALUE($E$7&" 1"))+6,1),"mmmm")&" 1")),E63/F57*E57,"")) ->  | R63: =IF(ISBLANK(C63),"",IF(MONTH(C63)=MONTH(DATEVALUE(TEXT(DATE(2000,MONTH(DATEVALUE($E$7&" 1"))+7,1),"mmmm")&" 1")),E63/F57*E57,"")) ->  | S63: =IF(ISBLANK(C63),"",IF(MONTH(C63)=MONTH(DATEVALUE(TEXT(DATE(2000,MONTH(DATEVALUE($E$7&" 1"))+8,1),"mmmm")&" 1")),E63/F57*E57,"")) ->  | T63: =IF(ISBLANK(C63),"",IF(MONTH(C63)=MONTH(DATEVALUE(TEXT(DATE(2000,MONTH(DATEVALUE($E$7&" 1"))+9,1),"mmmm")&" 1")),E63/F57*E57,"")) ->  | U63: =IF(ISBLANK(C63),"",IF(MONTH(C63)=MONTH(DATEVALUE(TEXT(DATE(2000,MONTH(DATEVALUE($E$7&" 1"))+10,1),"mmmm")&" 1")),E63/F57*E57,"")) ->  | V63: =IF(ISBLANK(C63),"",IF(MONTH(C63)=MONTH(DATEVALUE(TEXT(DATE(2000,MONTH(DATEVALUE($E$7&" 1"))+11,1),"mmmm")&" 1")),E63/F57*E57,"")) -> 
I64: 0 | K64: =IF(ISBLANK(C64),"",IF(MONTH(C64)=MONTH(DATEVALUE($E$7&" 1")),E64/F57*E57,"")) ->  | L64: =IF(ISBLANK(C64),"",IF(MONTH(C64)=MONTH(DATEVALUE(TEXT(DATE(2000,MONTH(DATEVALUE($E$7&" 1"))+1,1),"mmmm")&" 1")),E64/F57*E57,"")) ->  | M64: =IF(ISBLANK(C64),"",IF(MONTH(C64)=MONTH(DATEVALUE(TEXT(DATE(2000,MONTH(DATEVALUE($E$7&" 1"))+2,1),"mmmm")&" 1")),E64/F57*E57,"")) ->  | N64: =IF(ISBLANK(C64),"",IF(MONTH(C64)=MONTH(DATEVALUE(TEXT(DATE(2000,MONTH(DATEVALUE($E$7&" 1"))+3,1),"mmmm")&" 1")),E64/F57*E57,"")) ->  | O64: =IF(ISBLANK(C64),"",IF(MONTH(C64)=MONTH(DATEVALUE(TEXT(DATE(2000,MONTH(DATEVALUE($E$7&" 1"))+4,1),"mmmm")&" 1")),E64/F57*E57,"")) ->  | P64: =IF(ISBLANK(C64),"",IF(MONTH(C64)=MONTH(DATEVALUE(TEXT(DATE(2000,MONTH(DATEVALUE($E$7&" 1"))+5,1),"mmmm")&" 1")),E64/F57*E57,"")) ->  | Q64: =IF(ISBLANK(C64),"",IF(MONTH(C64)=MONTH(DATEVALUE(TEXT(DATE(2000,MONTH(DATEVALUE($E$7&" 1"))+6,1),"mmmm")&" 1")),E64/F57*E57,"")) ->  | R64: =IF(ISBLANK(C64),"",IF(MONTH(C64)=MONTH(DATEVALUE(TEXT(DATE(2000,MONTH(DATEVALUE($E$7&" 1"))+7,1),"mmmm")&" 1")),E64/F57*E57,"")) ->  | S64: =IF(ISBLANK(C64),"",IF(MONTH(C64)=MONTH(DATEVALUE(TEXT(DATE(2000,MONTH(DATEVALUE($E$7&" 1"))+8,1),"mmmm")&" 1")),E64/F57*E57,"")) ->  | T64: =IF(ISBLANK(C64),"",IF(MONTH(C64)=MONTH(DATEVALUE(TEXT(DATE(2000,MONTH(DATEVALUE($E$7&" 1"))+9,1),"mmmm")&" 1")),E64/F57*E57,"")) ->  | U64: =IF(ISBLANK(C64),"",IF(MONTH(C64)=MONTH(DATEVALUE(TEXT(DATE(2000,MONTH(DATEVALUE($E$7&" 1"))+10,1),"mmmm")&" 1")),E64/F57*E57,"")) ->  | V64: =IF(ISBLANK(C64),"",IF(MONTH(C64)=MONTH(DATEVALUE(TEXT(DATE(2000,MONTH(DATEVALUE($E$7&" 1"))+11,1),"mmmm")&" 1")),E64/F57*E57,"")) -> 
I65: 0 | K65: =IF(ISBLANK(C65),"",IF(MONTH(C65)=MONTH(DATEVALUE($E$7&" 1")),E65/F57*E57,"")) ->  | L65: =IF(ISBLANK(C65),"",IF(MONTH(C65)=MONTH(DATEVALUE(TEXT(DATE(2000,MONTH(DATEVALUE($E$7&" 1"))+1,1),"mmmm")&" 1")),E65/F57*E57,"")) ->  | M65: =IF(ISBLANK(C65),"",IF(MONTH(C65)=MONTH(DATEVALUE(TEXT(DATE(2000,MONTH(DATEVALUE($E$7&" 1"))+2,1),"mmmm")&" 1")),E65/F57*E57,"")) ->  | N65: =IF(ISBLANK(C65),"",IF(MONTH(C65)=MONTH(DATEVALUE(TEXT(DATE(2000,MONTH(DATEVALUE($E$7&" 1"))+3,1),"mmmm")&" 1")),E65/F57*E57,"")) ->  | O65: =IF(ISBLANK(C65),"",IF(MONTH(C65)=MONTH(DATEVALUE(TEXT(DATE(2000,MONTH(DATEVALUE($E$7&" 1"))+4,1),"mmmm")&" 1")),E65/F57*E57,"")) ->  | P65: =IF(ISBLANK(C65),"",IF(MONTH(C65)=MONTH(DATEVALUE(TEXT(DATE(2000,MONTH(DATEVALUE($E$7&" 1"))+5,1),"mmmm")&" 1")),E65/F57*E57,"")) ->  | Q65: =IF(ISBLANK(C65),"",IF(MONTH(C65)=MONTH(DATEVALUE(TEXT(DATE(2000,MONTH(DATEVALUE($E$7&" 1"))+6,1),"mmmm")&" 1")),E65/F57*E57,"")) ->  | R65: =IF(ISBLANK(C65),"",IF(MONTH(C65)=MONTH(DATEVALUE(TEXT(DATE(2000,MONTH(DATEVALUE($E$7&" 1"))+7,1),"mmmm")&" 1")),E65/F57*E57,"")) ->  | S65: =IF(ISBLANK(C65),"",IF(MONTH(C65)=MONTH(DATEVALUE(TEXT(DATE(2000,MONTH(DATEVALUE($E$7&" 1"))+8,1),"mmmm")&" 1")),E65/F57*E57,"")) ->  | T65: =IF(ISBLANK(C65),"",IF(MONTH(C65)=MONTH(DATEVALUE(TEXT(DATE(2000,MONTH(DATEVALUE($E$7&" 1"))+9,1),"mmmm")&" 1")),E65/F57*E57,"")) ->  | U65: =IF(ISBLANK(C65),"",IF(MONTH(C65)=MONTH(DATEVALUE(TEXT(DATE(2000,MONTH(DATEVALUE($E$7&" 1"))+10,1),"mmmm")&" 1")),E65/F57*E57,"")) ->  | V65: =IF(ISBLANK(C65),"",IF(MONTH(C65)=MONTH(DATEVALUE(TEXT(DATE(2000,MONTH(DATEVALUE($E$7&" 1"))+11,1),"mmmm")&" 1")),E65/F57*E57,"")) -> 
I66: 0 | K66: =IF(ISBLANK(C66),"",IF(MONTH(C66)=MONTH(DATEVALUE($E$7&" 1")),E66/F57*E57,"")) ->  | L66: =IF(ISBLANK(C66),"",IF(MONTH(C66)=MONTH(DATEVALUE(TEXT(DATE(2000,MONTH(DATEVALUE($E$7&" 1"))+1,1),"mmmm")&" 1")),E66/F57*E57,"")) ->  | M66: =IF(ISBLANK(C66),"",IF(MONTH(C66)=MONTH(DATEVALUE(TEXT(DATE(2000,MONTH(DATEVALUE($E$7&" 1"))+2,1),"mmmm")&" 1")),E66/F57*E57,"")) ->  | N66: =IF(ISBLANK(C66),"",IF(MONTH(C66)=MONTH(DATEVALUE(TEXT(DATE(2000,MONTH(DATEVALUE($E$7&" 1"))+3,1),"mmmm")&" 1")),E66/F57*E57,"")) ->  | O66: =IF(ISBLANK(C66),"",IF(MONTH(C66)=MONTH(DATEVALUE(TEXT(DATE(2000,MONTH(DATEVALUE($E$7&" 1"))+4,1),"mmmm")&" 1")),E66/F57*E57,"")) ->  | P66: =IF(ISBLANK(C66),"",IF(MONTH(C66)=MONTH(DATEVALUE(TEXT(DATE(2000,MONTH(DATEVALUE($E$7&" 1"))+5,1),"mmmm")&" 1")),E66/F57*E57,"")) ->  | Q66: =IF(ISBLANK(C66),"",IF(MONTH(C66)=MONTH(DATEVALUE(TEXT(DATE(2000,MONTH(DATEVALUE($E$7&" 1"))+6,1),"mmmm")&" 1")),E66/F57*E57,"")) ->  | R66: =IF(ISBLANK(C66),"",IF(MONTH(C66)=MONTH(DATEVALUE(TEXT(DATE(2000,MONTH(DATEVALUE($E$7&" 1"))+7,1),"mmmm")&" 1")),E66/F57*E57,"")) ->  | S66: =IF(ISBLANK(C66),"",IF(MONTH(C66)=MONTH(DATEVALUE(TEXT(DATE(2000,MONTH(DATEVALUE($E$7&" 1"))+8,1),"mmmm")&" 1")),E66/F57*E57,"")) ->  | T66: =IF(ISBLANK(C66),"",IF(MONTH(C66)=MONTH(DATEVALUE(TEXT(DATE(2000,MONTH(DATEVALUE($E$7&" 1"))+9,1),"mmmm")&" 1")),E66/F57*E57,"")) ->  | U66: =IF(ISBLANK(C66),"",IF(MONTH(C66)=MONTH(DATEVALUE(TEXT(DATE(2000,MONTH(DATEVALUE($E$7&" 1"))+10,1),"mmmm")&" 1")),E66/F57*E57,"")) ->  | V66: =IF(ISBLANK(C66),"",IF(MONTH(C66)=MONTH(DATEVALUE(TEXT(DATE(2000,MONTH(DATEVALUE($E$7&" 1"))+11,1),"mmmm")&" 1")),E66/F57*E57,"")) -> 
I67: 0 | K67: =IF(ISBLANK(C67),"",IF(MONTH(C67)=MONTH(DATEVALUE($E$7&" 1")),E67/F57*E57,"")) ->  | L67: =IF(ISBLANK(C67),"",IF(MONTH(C67)=MONTH(DATEVALUE(TEXT(DATE(2000,MONTH(DATEVALUE($E$7&" 1"))+1,1),"mmmm")&" 1")),E67/F57*E57,"")) ->  | M67: =IF(ISBLANK(C67),"",IF(MONTH(C67)=MONTH(DATEVALUE(TEXT(DATE(2000,MONTH(DATEVALUE($E$7&" 1"))+2,1),"mmmm")&" 1")),E67/F57*E57,"")) ->  | N67: =IF(ISBLANK(C67),"",IF(MONTH(C67)=MONTH(DATEVALUE(TEXT(DATE(2000,MONTH(DATEVALUE($E$7&" 1"))+3,1),"mmmm")&" 1")),E67/F57*E57,"")) ->  | O67: =IF(ISBLANK(C67),"",IF(MONTH(C67)=MONTH(DATEVALUE(TEXT(DATE(2000,MONTH(DATEVALUE($E$7&" 1"))+4,1),"mmmm")&" 1")),E67/F57*E57,"")) ->  | P67: =IF(ISBLANK(C67),"",IF(MONTH(C67)=MONTH(DATEVALUE(TEXT(DATE(2000,MONTH(DATEVALUE($E$7&" 1"))+5,1),"mmmm")&" 1")),E67/F57*E57,"")) ->  | Q67: =IF(ISBLANK(C67),"",IF(MONTH(C67)=MONTH(DATEVALUE(TEXT(DATE(2000,MONTH(DATEVALUE($E$7&" 1"))+6,1),"mmmm")&" 1")),E67/F57*E57,"")) ->  | R67: =IF(ISBLANK(C67),"",IF(MONTH(C67)=MONTH(DATEVALUE(TEXT(DATE(2000,MONTH(DATEVALUE($E$7&" 1"))+7,1),"mmmm")&" 1")),E67/F57*E57,"")) ->  | S67: =IF(ISBLANK(C67),"",IF(MONTH(C67)=MONTH(DATEVALUE(TEXT(DATE(2000,MONTH(DATEVALUE($E$7&" 1"))+8,1),"mmmm")&" 1")),E67/F57*E57,"")) ->  | T67: =IF(ISBLANK(C67),"",IF(MONTH(C67)=MONTH(DATEVALUE(TEXT(DATE(2000,MONTH(DATEVALUE($E$7&" 1"))+9,1),"mmmm")&" 1")),E67/F57*E57,"")) ->  | U67: =IF(ISBLANK(C67),"",IF(MONTH(C67)=MONTH(DATEVALUE(TEXT(DATE(2000,MONTH(DATEVALUE($E$7&" 1"))+10,1),"mmmm")&" 1")),E67/F57*E57,"")) ->  | V67: =IF(ISBLANK(C67),"",IF(MONTH(C67)=MONTH(DATEVALUE(TEXT(DATE(2000,MONTH(DATEVALUE($E$7&" 1"))+11,1),"mmmm")&" 1")),E67/F57*E57,"")) -> 
I68: 0 | K68: =IF(ISBLANK(C68),"",IF(MONTH(C68)=MONTH(DATEVALUE($E$7&" 1")),E68/F57*E57,"")) ->  | L68: =IF(ISBLANK(C68),"",IF(MONTH(C68)=MONTH(DATEVALUE(TEXT(DATE(2000,MONTH(DATEVALUE($E$7&" 1"))+1,1),"mmmm")&" 1")),E68/F57*E57,"")) ->  | M68: =IF(ISBLANK(C68),"",IF(MONTH(C68)=MONTH(DATEVALUE(TEXT(DATE(2000,MONTH(DATEVALUE($E$7&" 1"))+2,1),"mmmm")&" 1")),E68/F57*E57,"")) ->  | N68: =IF(ISBLANK(C68),"",IF(MONTH(C68)=MONTH(DATEVALUE(TEXT(DATE(2000,MONTH(DATEVALUE($E$7&" 1"))+3,1),"mmmm")&" 1")),E68/F57*E57,"")) ->  | O68: =IF(ISBLANK(C68),"",IF(MONTH(C68)=MONTH(DATEVALUE(TEXT(DATE(2000,MONTH(DATEVALUE($E$7&" 1"))+4,1),"mmmm")&" 1")),E68/F57*E57,"")) ->  | P68: =IF(ISBLANK(C68),"",IF(MONTH(C68)=MONTH(DATEVALUE(TEXT(DATE(2000,MONTH(DATEVALUE($E$7&" 1"))+5,1),"mmmm")&" 1")),E68/F57*E57,"")) ->  | Q68: =IF(ISBLANK(C68),"",IF(MONTH(C68)=MONTH(DATEVALUE(TEXT(DATE(2000,MONTH(DATEVALUE($E$7&" 1"))+6,1),"mmmm")&" 1")),E68/F57*E57,"")) ->  | R68: =IF(ISBLANK(C68),"",IF(MONTH(C68)=MONTH(DATEVALUE(TEXT(DATE(2000,MONTH(DATEVALUE($E$7&" 1"))+7,1),"mmmm")&" 1")),E68/F57*E57,"")) ->  | S68: =IF(ISBLANK(C68),"",IF(MONTH(C68)=MONTH(DATEVALUE(TEXT(DATE(2000,MONTH(DATEVALUE($E$7&" 1"))+8,1),"mmmm")&" 1")),E68/F57*E57,"")) ->  | T68: =IF(ISBLANK(C68),"",IF(MONTH(C68)=MONTH(DATEVALUE(TEXT(DATE(2000,MONTH(DATEVALUE($E$7&" 1"))+9,1),"mmmm")&" 1")),E68/F57*E57,"")) ->  | U68: =IF(ISBLANK(C68),"",IF(MONTH(C68)=MONTH(DATEVALUE(TEXT(DATE(2000,MONTH(DATEVALUE($E$7&" 1"))+10,1),"mmmm")&" 1")),E68/F57*E57,"")) ->  | V68: =IF(ISBLANK(C68),"",IF(MONTH(C68)=MONTH(DATEVALUE(TEXT(DATE(2000,MONTH(DATEVALUE($E$7&" 1"))+11,1),"mmmm")&" 1")),E68/F57*E57,"")) -> 
H69: =IFERROR(SUM(E71:H80)/F69,0) -> 0 | I69: =SUM(I70:J80) -> 0 | W69: =IF(H69<>100%,"Pas ok","ok") -> Pas ok
B70: Numéro de facture | C70: Date de facturation | D70: Description de la facture | E70: Montant de la facture
I71: =SUM(K71:V71) -> 0 | K71: =IF(ISBLANK(C71),"",IF(MONTH(C71)=MONTH(DATEVALUE($E$7&" 1")),E71/F69*E69,"")) ->  | L71: =IF(ISBLANK(C71),"",IF(MONTH(C71)=MONTH(DATEVALUE(TEXT(DATE(2000,MONTH(DATEVALUE($E$7&" 1"))+1,1),"mmmm")&" 1")),E71/F69*E69,"")) ->  | M71: =IF(ISBLANK(C71),"",IF(MONTH(C71)=MONTH(DATEVALUE(TEXT(DATE(2000,MONTH(DATEVALUE($E$7&" 1"))+2,1),"mmmm")&" 1")),E71/F69*E69,"")) ->  | N71: =IF(ISBLANK(C71),"",IF(MONTH(C71)=MONTH(DATEVALUE(TEXT(DATE(2000,MONTH(DATEVALUE($E$7&" 1"))+3,1),"mmmm")&" 1")),E71/F69*E69,"")) ->  | O71: =IF(ISBLANK(C71),"",IF(MONTH(C71)=MONTH(DATEVALUE(TEXT(DATE(2000,MONTH(DATEVALUE($E$7&" 1"))+4,1),"mmmm")&" 1")),E71/F69*E69,"")) ->  | P71: =IF(ISBLANK(C71),"",IF(MONTH(C71)=MONTH(DATEVALUE(TEXT(DATE(2000,MONTH(DATEVALUE($E$7&" 1"))+5,1),"mmmm")&" 1")),E71/F69*E69,"")) ->  | Q71: =IF(ISBLANK(C71),"",IF(MONTH(C71)=MONTH(DATEVALUE(TEXT(DATE(2000,MONTH(DATEVALUE($E$7&" 1"))+6,1),"mmmm")&" 1")),E71/F69*E69,"")) ->  | R71: =IF(ISBLANK(C71),"",IF(MONTH(C71)=MONTH(DATEVALUE(TEXT(DATE(2000,MONTH(DATEVALUE($E$7&" 1"))+7,1),"mmmm")&" 1")),E71/F69*E69,"")) ->  | S71: =IF(ISBLANK(C71),"",IF(MONTH(C71)=MONTH(DATEVALUE(TEXT(DATE(2000,MONTH(DATEVALUE($E$7&" 1"))+8,1),"mmmm")&" 1")),E71/F69*E69,"")) ->  | T71: =IF(ISBLANK(C71),"",IF(MONTH(C71)=MONTH(DATEVALUE(TEXT(DATE(2000,MONTH(DATEVALUE($E$7&" 1"))+9,1),"mmmm")&" 1")),E71/F69*E69,"")) ->  | U71: =IF(ISBLANK(C71),"",IF(MONTH(C71)=MONTH(DATEVALUE(TEXT(DATE(2000,MONTH(DATEVALUE($E$7&" 1"))+10,1),"mmmm")&" 1")),E71/F69*E69,"")) ->  | V71: =IF(ISBLANK(C71),"",IF(MONTH(C71)=MONTH(DATEVALUE(TEXT(DATE(2000,MONTH(DATEVALUE($E$7&" 1"))+11,1),"mmmm")&" 1")),E71/F69*E69,"")) -> 
I72: 0 | K72: =IF(ISBLANK(C72),"",IF(MONTH(C72)=MONTH(DATEVALUE($E$7&" 1")),E72/F69*E69,"")) ->  | L72: =IF(ISBLANK(C72),"",IF(MONTH(C72)=MONTH(DATEVALUE(TEXT(DATE(2000,MONTH(DATEVALUE($E$7&" 1"))+1,1),"mmmm")&" 1")),E72/F69*E69,"")) ->  | M72: =IF(ISBLANK(C72),"",IF(MONTH(C72)=MONTH(DATEVALUE(TEXT(DATE(2000,MONTH(DATEVALUE($E$7&" 1"))+2,1),"mmmm")&" 1")),E72/F69*E69,"")) ->  | N72: =IF(ISBLANK(C72),"",IF(MONTH(C72)=MONTH(DATEVALUE(TEXT(DATE(2000,MONTH(DATEVALUE($E$7&" 1"))+3,1),"mmmm")&" 1")),E72/F69*E69,"")) ->  | O72: =IF(ISBLANK(C72),"",IF(MONTH(C72)=MONTH(DATEVALUE(TEXT(DATE(2000,MONTH(DATEVALUE($E$7&" 1"))+4,1),"mmmm")&" 1")),E72/F69*E69,"")) ->  | P72: =IF(ISBLANK(C72),"",IF(MONTH(C72)=MONTH(DATEVALUE(TEXT(DATE(2000,MONTH(DATEVALUE($E$7&" 1"))+5,1),"mmmm")&" 1")),E72/F69*E69,"")) ->  | Q72: =IF(ISBLANK(C72),"",IF(MONTH(C72)=MONTH(DATEVALUE(TEXT(DATE(2000,MONTH(DATEVALUE($E$7&" 1"))+6,1),"mmmm")&" 1")),E72/F69*E69,"")) ->  | R72: =IF(ISBLANK(C72),"",IF(MONTH(C72)=MONTH(DATEVALUE(TEXT(DATE(2000,MONTH(DATEVALUE($E$7&" 1"))+7,1),"mmmm")&" 1")),E72/F69*E69,"")) ->  | S72: =IF(ISBLANK(C72),"",IF(MONTH(C72)=MONTH(DATEVALUE(TEXT(DATE(2000,MONTH(DATEVALUE($E$7&" 1"))+8,1),"mmmm")&" 1")),E72/F69*E69,"")) ->  | T72: =IF(ISBLANK(C72),"",IF(MONTH(C72)=MONTH(DATEVALUE(TEXT(DATE(2000,MONTH(DATEVALUE($E$7&" 1"))+9,1),"mmmm")&" 1")),E72/F69*E69,"")) ->  | U72: =IF(ISBLANK(C72),"",IF(MONTH(C72)=MONTH(DATEVALUE(TEXT(DATE(2000,MONTH(DATEVALUE($E$7&" 1"))+10,1),"mmmm")&" 1")),E72/F69*E69,"")) ->  | V72: =IF(ISBLANK(C72),"",IF(MONTH(C72)=MONTH(DATEVALUE(TEXT(DATE(2000,MONTH(DATEVALUE($E$7&" 1"))+11,1),"mmmm")&" 1")),E72/F69*E69,"")) -> 
I73: 0 | K73: =IF(ISBLANK(C73),"",IF(MONTH(C73)=MONTH(DATEVALUE($E$7&" 1")),E73/F69*E69,"")) ->  | L73: =IF(ISBLANK(C73),"",IF(MONTH(C73)=MONTH(DATEVALUE(TEXT(DATE(2000,MONTH(DATEVALUE($E$7&" 1"))+1,1),"mmmm")&" 1")),E73/F69*E69,"")) ->  | M73: =IF(ISBLANK(C73),"",IF(MONTH(C73)=MONTH(DATEVALUE(TEXT(DATE(2000,MONTH(DATEVALUE($E$7&" 1"))+2,1),"mmmm")&" 1")),E73/F69*E69,"")) ->  | N73: =IF(ISBLANK(C73),"",IF(MONTH(C73)=MONTH(DATEVALUE(TEXT(DATE(2000,MONTH(DATEVALUE($E$7&" 1"))+3,1),"mmmm")&" 1")),E73/F69*E69,"")) ->  | O73: =IF(ISBLANK(C73),"",IF(MONTH(C73)=MONTH(DATEVALUE(TEXT(DATE(2000,MONTH(DATEVALUE($E$7&" 1"))+4,1),"mmmm")&" 1")),E73/F69*E69,"")) ->  | P73: =IF(ISBLANK(C73),"",IF(MONTH(C73)=MONTH(DATEVALUE(TEXT(DATE(2000,MONTH(DATEVALUE($E$7&" 1"))+5,1),"mmmm")&" 1")),E73/F69*E69,"")) ->  | Q73: =IF(ISBLANK(C73),"",IF(MONTH(C73)=MONTH(DATEVALUE(TEXT(DATE(2000,MONTH(DATEVALUE($E$7&" 1"))+6,1),"mmmm")&" 1")),E73/F69*E69,"")) ->  | R73: =IF(ISBLANK(C73),"",IF(MONTH(C73)=MONTH(DATEVALUE(TEXT(DATE(2000,MONTH(DATEVALUE($E$7&" 1"))+7,1),"mmmm")&" 1")),E73/F69*E69,"")) ->  | S73: =IF(ISBLANK(C73),"",IF(MONTH(C73)=MONTH(DATEVALUE(TEXT(DATE(2000,MONTH(DATEVALUE($E$7&" 1"))+8,1),"mmmm")&" 1")),E73/F69*E69,"")) ->  | T73: =IF(ISBLANK(C73),"",IF(MONTH(C73)=MONTH(DATEVALUE(TEXT(DATE(2000,MONTH(DATEVALUE($E$7&" 1"))+9,1),"mmmm")&" 1")),E73/F69*E69,"")) ->  | U73: =IF(ISBLANK(C73),"",IF(MONTH(C73)=MONTH(DATEVALUE(TEXT(DATE(2000,MONTH(DATEVALUE($E$7&" 1"))+10,1),"mmmm")&" 1")),E73/F69*E69,"")) ->  | V73: =IF(ISBLANK(C73),"",IF(MONTH(C73)=MONTH(DATEVALUE(TEXT(DATE(2000,MONTH(DATEVALUE($E$7&" 1"))+11,1),"mmmm")&" 1")),E73/F69*E69,"")) -> 
I74: 0 | K74: =IF(ISBLANK(C74),"",IF(MONTH(C74)=MONTH(DATEVALUE($E$7&" 1")),E74/F69*E69,"")) ->  | L74: =IF(ISBLANK(C74),"",IF(MONTH(C74)=MONTH(DATEVALUE(TEXT(DATE(2000,MONTH(DATEVALUE($E$7&" 1"))+1,1),"mmmm")&" 1")),E74/F69*E69,"")) ->  | M74: =IF(ISBLANK(C74),"",IF(MONTH(C74)=MONTH(DATEVALUE(TEXT(DATE(2000,MONTH(DATEVALUE($E$7&" 1"))+2,1),"mmmm")&" 1")),E74/F69*E69,"")) ->  | N74: =IF(ISBLANK(C74),"",IF(MONTH(C74)=MONTH(DATEVALUE(TEXT(DATE(2000,MONTH(DATEVALUE($E$7&" 1"))+3,1),"mmmm")&" 1")),E74/F69*E69,"")) ->  | O74: =IF(ISBLANK(C74),"",IF(MONTH(C74)=MONTH(DATEVALUE(TEXT(DATE(2000,MONTH(DATEVALUE($E$7&" 1"))+4,1),"mmmm")&" 1")),E74/F69*E69,"")) ->  | P74: =IF(ISBLANK(C74),"",IF(MONTH(C74)=MONTH(DATEVALUE(TEXT(DATE(2000,MONTH(DATEVALUE($E$7&" 1"))+5,1),"mmmm")&" 1")),E74/F69*E69,"")) ->  | Q74: =IF(ISBLANK(C74),"",IF(MONTH(C74)=MONTH(DATEVALUE(TEXT(DATE(2000,MONTH(DATEVALUE($E$7&" 1"))+6,1),"mmmm")&" 1")),E74/F69*E69,"")) ->  | R74: =IF(ISBLANK(C74),"",IF(MONTH(C74)=MONTH(DATEVALUE(TEXT(DATE(2000,MONTH(DATEVALUE($E$7&" 1"))+7,1),"mmmm")&" 1")),E74/F69*E69,"")) ->  | S74: =IF(ISBLANK(C74),"",IF(MONTH(C74)=MONTH(DATEVALUE(TEXT(DATE(2000,MONTH(DATEVALUE($E$7&" 1"))+8,1),"mmmm")&" 1")),E74/F69*E69,"")) ->  | T74: =IF(ISBLANK(C74),"",IF(MONTH(C74)=MONTH(DATEVALUE(TEXT(DATE(2000,MONTH(DATEVALUE($E$7&" 1"))+9,1),"mmmm")&" 1")),E74/F69*E69,"")) ->  | U74: =IF(ISBLANK(C74),"",IF(MONTH(C74)=MONTH(DATEVALUE(TEXT(DATE(2000,MONTH(DATEVALUE($E$7&" 1"))+10,1),"mmmm")&" 1")),E74/F69*E69,"")) ->  | V74: =IF(ISBLANK(C74),"",IF(MONTH(C74)=MONTH(DATEVALUE(TEXT(DATE(2000,MONTH(DATEVALUE($E$7&" 1"))+11,1),"mmmm")&" 1")),E74/F69*E69,"")) -> 
I75: 0 | K75: =IF(ISBLANK(C75),"",IF(MONTH(C75)=MONTH(DATEVALUE($E$7&" 1")),E75/F69*E69,"")) ->  | L75: =IF(ISBLANK(C75),"",IF(MONTH(C75)=MONTH(DATEVALUE(TEXT(DATE(2000,MONTH(DATEVALUE($E$7&" 1"))+1,1),"mmmm")&" 1")),E75/F69*E69,"")) ->  | M75: =IF(ISBLANK(C75),"",IF(MONTH(C75)=MONTH(DATEVALUE(TEXT(DATE(2000,MONTH(DATEVALUE($E$7&" 1"))+2,1),"mmmm")&" 1")),E75/F69*E69,"")) ->  | N75: =IF(ISBLANK(C75),"",IF(MONTH(C75)=MONTH(DATEVALUE(TEXT(DATE(2000,MONTH(DATEVALUE($E$7&" 1"))+3,1),"mmmm")&" 1")),E75/F69*E69,"")) ->  | O75: =IF(ISBLANK(C75),"",IF(MONTH(C75)=MONTH(DATEVALUE(TEXT(DATE(2000,MONTH(DATEVALUE($E$7&" 1"))+4,1),"mmmm")&" 1")),E75/F69*E69,"")) ->  | P75: =IF(ISBLANK(C75),"",IF(MONTH(C75)=MONTH(DATEVALUE(TEXT(DATE(2000,MONTH(DATEVALUE($E$7&" 1"))+5,1),"mmmm")&" 1")),E75/F69*E69,"")) ->  | Q75: =IF(ISBLANK(C75),"",IF(MONTH(C75)=MONTH(DATEVALUE(TEXT(DATE(2000,MONTH(DATEVALUE($E$7&" 1"))+6,1),"mmmm")&" 1")),E75/F69*E69,"")) ->  | R75: =IF(ISBLANK(C75),"",IF(MONTH(C75)=MONTH(DATEVALUE(TEXT(DATE(2000,MONTH(DATEVALUE($E$7&" 1"))+7,1),"mmmm")&" 1")),E75/F69*E69,"")) ->  | S75: =IF(ISBLANK(C75),"",IF(MONTH(C75)=MONTH(DATEVALUE(TEXT(DATE(2000,MONTH(DATEVALUE($E$7&" 1"))+8,1),"mmmm")&" 1")),E75/F69*E69,"")) ->  | T75: =IF(ISBLANK(C75),"",IF(MONTH(C75)=MONTH(DATEVALUE(TEXT(DATE(2000,MONTH(DATEVALUE($E$7&" 1"))+9,1),"mmmm")&" 1")),E75/F69*E69,"")) ->  | U75: =IF(ISBLANK(C75),"",IF(MONTH(C75)=MONTH(DATEVALUE(TEXT(DATE(2000,MONTH(DATEVALUE($E$7&" 1"))+10,1),"mmmm")&" 1")),E75/F69*E69,"")) ->  | V75: =IF(ISBLANK(C75),"",IF(MONTH(C75)=MONTH(DATEVALUE(TEXT(DATE(2000,MONTH(DATEVALUE($E$7&" 1"))+11,1),"mmmm")&" 1")),E75/F69*E69,"")) -> 
I76: 0 | K76: =IF(ISBLANK(C76),"",IF(MONTH(C76)=MONTH(DATEVALUE($E$7&" 1")),E76/F69*E69,"")) ->  | L76: =IF(ISBLANK(C76),"",IF(MONTH(C76)=MONTH(DATEVALUE(TEXT(DATE(2000,MONTH(DATEVALUE($E$7&" 1"))+1,1),"mmmm")&" 1")),E76/F69*E69,"")) ->  | M76: =IF(ISBLANK(C76),"",IF(MONTH(C76)=MONTH(DATEVALUE(TEXT(DATE(2000,MONTH(DATEVALUE($E$7&" 1"))+2,1),"mmmm")&" 1")),E76/F69*E69,"")) ->  | N76: =IF(ISBLANK(C76),"",IF(MONTH(C76)=MONTH(DATEVALUE(TEXT(DATE(2000,MONTH(DATEVALUE($E$7&" 1"))+3,1),"mmmm")&" 1")),E76/F69*E69,"")) ->  | O76: =IF(ISBLANK(C76),"",IF(MONTH(C76)=MONTH(DATEVALUE(TEXT(DATE(2000,MONTH(DATEVALUE($E$7&" 1"))+4,1),"mmmm")&" 1")),E76/F69*E69,"")) ->  | P76: =IF(ISBLANK(C76),"",IF(MONTH(C76)=MONTH(DATEVALUE(TEXT(DATE(2000,MONTH(DATEVALUE($E$7&" 1"))+5,1),"mmmm")&" 1")),E76/F69*E69,"")) ->  | Q76: =IF(ISBLANK(C76),"",IF(MONTH(C76)=MONTH(DATEVALUE(TEXT(DATE(2000,MONTH(DATEVALUE($E$7&" 1"))+6,1),"mmmm")&" 1")),E76/F69*E69,"")) ->  | R76: =IF(ISBLANK(C76),"",IF(MONTH(C76)=MONTH(DATEVALUE(TEXT(DATE(2000,MONTH(DATEVALUE($E$7&" 1"))+7,1),"mmmm")&" 1")),E76/F69*E69,"")) ->  | S76: =IF(ISBLANK(C76),"",IF(MONTH(C76)=MONTH(DATEVALUE(TEXT(DATE(2000,MONTH(DATEVALUE($E$7&" 1"))+8,1),"mmmm")&" 1")),E76/F69*E69,"")) ->  | T76: =IF(ISBLANK(C76),"",IF(MONTH(C76)=MONTH(DATEVALUE(TEXT(DATE(2000,MONTH(DATEVALUE($E$7&" 1"))+9,1),"mmmm")&" 1")),E76/F69*E69,"")) ->  | U76: =IF(ISBLANK(C76),"",IF(MONTH(C76)=MONTH(DATEVALUE(TEXT(DATE(2000,MONTH(DATEVALUE($E$7&" 1"))+10,1),"mmmm")&" 1")),E76/F69*E69,"")) ->  | V76: =IF(ISBLANK(C76),"",IF(MONTH(C76)=MONTH(DATEVALUE(TEXT(DATE(2000,MONTH(DATEVALUE($E$7&" 1"))+11,1),"mmmm")&" 1")),E76/F69*E69,"")) -> 
I77: 0 | K77: =IF(ISBLANK(C77),"",IF(MONTH(C77)=MONTH(DATEVALUE($E$7&" 1")),E77/F69*E69,"")) ->  | L77: =IF(ISBLANK(C77),"",IF(MONTH(C77)=MONTH(DATEVALUE(TEXT(DATE(2000,MONTH(DATEVALUE($E$7&" 1"))+1,1),"mmmm")&" 1")),E77/F69*E69,"")) ->  | M77: =IF(ISBLANK(C77),"",IF(MONTH(C77)=MONTH(DATEVALUE(TEXT(DATE(2000,MONTH(DATEVALUE($E$7&" 1"))+2,1),"mmmm")&" 1")),E77/F69*E69,"")) ->  | N77: =IF(ISBLANK(C77),"",IF(MONTH(C77)=MONTH(DATEVALUE(TEXT(DATE(2000,MONTH(DATEVALUE($E$7&" 1"))+3,1),"mmmm")&" 1")),E77/F69*E69,"")) ->  | O77: =IF(ISBLANK(C77),"",IF(MONTH(C77)=MONTH(DATEVALUE(TEXT(DATE(2000,MONTH(DATEVALUE($E$7&" 1"))+4,1),"mmmm")&" 1")),E77/F69*E69,"")) ->  | P77: =IF(ISBLANK(C77),"",IF(MONTH(C77)=MONTH(DATEVALUE(TEXT(DATE(2000,MONTH(DATEVALUE($E$7&" 1"))+5,1),"mmmm")&" 1")),E77/F69*E69,"")) ->  | Q77: =IF(ISBLANK(C77),"",IF(MONTH(C77)=MONTH(DATEVALUE(TEXT(DATE(2000,MONTH(DATEVALUE($E$7&" 1"))+6,1),"mmmm")&" 1")),E77/F69*E69,"")) ->  | R77: =IF(ISBLANK(C77),"",IF(MONTH(C77)=MONTH(DATEVALUE(TEXT(DATE(2000,MONTH(DATEVALUE($E$7&" 1"))+7,1),"mmmm")&" 1")),E77/F69*E69,"")) ->  | S77: =IF(ISBLANK(C77),"",IF(MONTH(C77)=MONTH(DATEVALUE(TEXT(DATE(2000,MONTH(DATEVALUE($E$7&" 1"))+8,1),"mmmm")&" 1")),E77/F69*E69,"")) ->  | T77: =IF(ISBLANK(C77),"",IF(MONTH(C77)=MONTH(DATEVALUE(TEXT(DATE(2000,MONTH(DATEVALUE($E$7&" 1"))+9,1),"mmmm")&" 1")),E77/F69*E69,"")) ->  | U77: =IF(ISBLANK(C77),"",IF(MONTH(C77)=MONTH(DATEVALUE(TEXT(DATE(2000,MONTH(DATEVALUE($E$7&" 1"))+10,1),"mmmm")&" 1")),E77/F69*E69,"")) ->  | V77: =IF(ISBLANK(C77),"",IF(MONTH(C77)=MONTH(DATEVALUE(TEXT(DATE(2000,MONTH(DATEVALUE($E$7&" 1"))+11,1),"mmmm")&" 1")),E77/F69*E69,"")) -> 
I78: 0 | K78: =IF(ISBLANK(C78),"",IF(MONTH(C78)=MONTH(DATEVALUE($E$7&" 1")),E78/F69*E69,"")) ->  | L78: =IF(ISBLANK(C78),"",IF(MONTH(C78)=MONTH(DATEVALUE(TEXT(DATE(2000,MONTH(DATEVALUE($E$7&" 1"))+1,1),"mmmm")&" 1")),E78/F69*E69,"")) ->  | M78: =IF(ISBLANK(C78),"",IF(MONTH(C78)=MONTH(DATEVALUE(TEXT(DATE(2000,MONTH(DATEVALUE($E$7&" 1"))+2,1),"mmmm")&" 1")),E78/F69*E69,"")) ->  | N78: =IF(ISBLANK(C78),"",IF(MONTH(C78)=MONTH(DATEVALUE(TEXT(DATE(2000,MONTH(DATEVALUE($E$7&" 1"))+3,1),"mmmm")&" 1")),E78/F69*E69,"")) ->  | O78: =IF(ISBLANK(C78),"",IF(MONTH(C78)=MONTH(DATEVALUE(TEXT(DATE(2000,MONTH(DATEVALUE($E$7&" 1"))+4,1),"mmmm")&" 1")),E78/F69*E69,"")) ->  | P78: =IF(ISBLANK(C78),"",IF(MONTH(C78)=MONTH(DATEVALUE(TEXT(DATE(2000,MONTH(DATEVALUE($E$7&" 1"))+5,1),"mmmm")&" 1")),E78/F69*E69,"")) ->  | Q78: =IF(ISBLANK(C78),"",IF(MONTH(C78)=MONTH(DATEVALUE(TEXT(DATE(2000,MONTH(DATEVALUE($E$7&" 1"))+6,1),"mmmm")&" 1")),E78/F69*E69,"")) ->  | R78: =IF(ISBLANK(C78),"",IF(MONTH(C78)=MONTH(DATEVALUE(TEXT(DATE(2000,MONTH(DATEVALUE($E$7&" 1"))+7,1),"mmmm")&" 1")),E78/F69*E69,"")) ->  | S78: =IF(ISBLANK(C78),"",IF(MONTH(C78)=MONTH(DATEVALUE(TEXT(DATE(2000,MONTH(DATEVALUE($E$7&" 1"))+8,1),"mmmm")&" 1")),E78/F69*E69,"")) ->  | T78: =IF(ISBLANK(C78),"",IF(MONTH(C78)=MONTH(DATEVALUE(TEXT(DATE(2000,MONTH(DATEVALUE($E$7&" 1"))+9,1),"mmmm")&" 1")),E78/F69*E69,"")) ->  | U78: =IF(ISBLANK(C78),"",IF(MONTH(C78)=MONTH(DATEVALUE(TEXT(DATE(2000,MONTH(DATEVALUE($E$7&" 1"))+10,1),"mmmm")&" 1")),E78/F69*E69,"")) ->  | V78: =IF(ISBLANK(C78),"",IF(MONTH(C78)=MONTH(DATEVALUE(TEXT(DATE(2000,MONTH(DATEVALUE($E$7&" 1"))+11,1),"mmmm")&" 1")),E78/F69*E69,"")) -> 
I79: 0 | K79: =IF(ISBLANK(C79),"",IF(MONTH(C79)=MONTH(DATEVALUE($E$7&" 1")),E79/F69*E69,"")) ->  | L79: =IF(ISBLANK(C79),"",IF(MONTH(C79)=MONTH(DATEVALUE(TEXT(DATE(2000,MONTH(DATEVALUE($E$7&" 1"))+1,1),"mmmm")&" 1")),E79/F69*E69,"")) ->  | M79: =IF(ISBLANK(C79),"",IF(MONTH(C79)=MONTH(DATEVALUE(TEXT(DATE(2000,MONTH(DATEVALUE($E$7&" 1"))+2,1),"mmmm")&" 1")),E79/F69*E69,"")) ->  | N79: =IF(ISBLANK(C79),"",IF(MONTH(C79)=MONTH(DATEVALUE(TEXT(DATE(2000,MONTH(DATEVALUE($E$7&" 1"))+3,1),"mmmm")&" 1")),E79/F69*E69,"")) ->  | O79: =IF(ISBLANK(C79),"",IF(MONTH(C79)=MONTH(DATEVALUE(TEXT(DATE(2000,MONTH(DATEVALUE($E$7&" 1"))+4,1),"mmmm")&" 1")),E79/F69*E69,"")) ->  | P79: =IF(ISBLANK(C79),"",IF(MONTH(C79)=MONTH(DATEVALUE(TEXT(DATE(2000,MONTH(DATEVALUE($E$7&" 1"))+5,1),"mmmm")&" 1")),E79/F69*E69,"")) ->  | Q79: =IF(ISBLANK(C79),"",IF(MONTH(C79)=MONTH(DATEVALUE(TEXT(DATE(2000,MONTH(DATEVALUE($E$7&" 1"))+6,1),"mmmm")&" 1")),E79/F69*E69,"")) ->  | R79: =IF(ISBLANK(C79),"",IF(MONTH(C79)=MONTH(DATEVALUE(TEXT(DATE(2000,MONTH(DATEVALUE($E$7&" 1"))+7,1),"mmmm")&" 1")),E79/F69*E69,"")) ->  | S79: =IF(ISBLANK(C79),"",IF(MONTH(C79)=MONTH(DATEVALUE(TEXT(DATE(2000,MONTH(DATEVALUE($E$7&" 1"))+8,1),"mmmm")&" 1")),E79/F69*E69,"")) ->  | T79: =IF(ISBLANK(C79),"",IF(MONTH(C79)=MONTH(DATEVALUE(TEXT(DATE(2000,MONTH(DATEVALUE($E$7&" 1"))+9,1),"mmmm")&" 1")),E79/F69*E69,"")) ->  | U79: =IF(ISBLANK(C79),"",IF(MONTH(C79)=MONTH(DATEVALUE(TEXT(DATE(2000,MONTH(DATEVALUE($E$7&" 1"))+10,1),"mmmm")&" 1")),E79/F69*E69,"")) ->  | V79: =IF(ISBLANK(C79),"",IF(MONTH(C79)=MONTH(DATEVALUE(TEXT(DATE(2000,MONTH(DATEVALUE($E$7&" 1"))+11,1),"mmmm")&" 1")),E79/F69*E69,"")) -> 
I80: 0 | K80: =IF(ISBLANK(C80),"",IF(MONTH(C80)=MONTH(DATEVALUE($E$7&" 1")),E80/F69*E69,"")) ->  | L80: =IF(ISBLANK(C80),"",IF(MONTH(C80)=MONTH(DATEVALUE(TEXT(DATE(2000,MONTH(DATEVALUE($E$7&" 1"))+1,1),"mmmm")&" 1")),E80/F69*E69,"")) ->  | M80: =IF(ISBLANK(C80),"",IF(MONTH(C80)=MONTH(DATEVALUE(TEXT(DATE(2000,MONTH(DATEVALUE($E$7&" 1"))+2,1),"mmmm")&" 1")),E80/F69*E69,"")) ->  | N80: =IF(ISBLANK(C80),"",IF(MONTH(C80)=MONTH(DATEVALUE(TEXT(DATE(2000,MONTH(DATEVALUE($E$7&" 1"))+3,1),"mmmm")&" 1")),E80/F69*E69,"")) ->  | O80: =IF(ISBLANK(C80),"",IF(MONTH(C80)=MONTH(DATEVALUE(TEXT(DATE(2000,MONTH(DATEVALUE($E$7&" 1"))+4,1),"mmmm")&" 1")),E80/F69*E69,"")) ->  | P80: =IF(ISBLANK(C80),"",IF(MONTH(C80)=MONTH(DATEVALUE(TEXT(DATE(2000,MONTH(DATEVALUE($E$7&" 1"))+5,1),"mmmm")&" 1")),E80/F69*E69,"")) ->  | Q80: =IF(ISBLANK(C80),"",IF(MONTH(C80)=MONTH(DATEVALUE(TEXT(DATE(2000,MONTH(DATEVALUE($E$7&" 1"))+6,1),"mmmm")&" 1")),E80/F69*E69,"")) ->  | R80: =IF(ISBLANK(C80),"",IF(MONTH(C80)=MONTH(DATEVALUE(TEXT(DATE(2000,MONTH(DATEVALUE($E$7&" 1"))+7,1),"mmmm")&" 1")),E80/F69*E69,"")) ->  | S80: =IF(ISBLANK(C80),"",IF(MONTH(C80)=MONTH(DATEVALUE(TEXT(DATE(2000,MONTH(DATEVALUE($E$7&" 1"))+8,1),"mmmm")&" 1")),E80/F69*E69,"")) ->  | T80: =IF(ISBLANK(C80),"",IF(MONTH(C80)=MONTH(DATEVALUE(TEXT(DATE(2000,MONTH(DATEVALUE($E$7&" 1"))+9,1),"mmmm")&" 1")),E80/F69*E69,"")) ->  | U80: =IF(ISBLANK(C80),"",IF(MONTH(C80)=MONTH(DATEVALUE(TEXT(DATE(2000,MONTH(DATEVALUE($E$7&" 1"))+10,1),"mmmm")&" 1")),E80/F69*E69,"")) ->  | V80: =IF(ISBLANK(C80),"",IF(MONTH(C80)=MONTH(DATEVALUE(TEXT(DATE(2000,MONTH(DATEVALUE($E$7&" 1"))+11,1),"mmmm")&" 1")),E80/F69*E69,"")) -> 
H81: =IFERROR(SUM(E83:H92)/F81,0) -> 0 | I81: =SUM(I82:J92) -> 0 | W81: =IF(H81<>100%,"Pas ok","ok") -> Pas ok
B82: Numéro de facture | C82: Date de facturation | D82: Description de la facture | E82: Montant de la facture
I83: =SUM(K83:V83) -> 0 | K83: =IF(ISBLANK(C83),"",IF(MONTH(C83)=MONTH(DATEVALUE($E$7&" 1")),E83/F81*E81,"")) ->  | L83: =IF(ISBLANK(C83),"",IF(MONTH(C83)=MONTH(DATEVALUE(TEXT(DATE(2000,MONTH(DATEVALUE($E$7&" 1"))+1,1),"mmmm")&" 1")),E83/F81*E81,"")) ->  | M83: =IF(ISBLANK(C83),"",IF(MONTH(C83)=MONTH(DATEVALUE(TEXT(DATE(2000,MONTH(DATEVALUE($E$7&" 1"))+2,1),"mmmm")&" 1")),E83/F81*E81,"")) ->  | N83: =IF(ISBLANK(C83),"",IF(MONTH(C83)=MONTH(DATEVALUE(TEXT(DATE(2000,MONTH(DATEVALUE($E$7&" 1"))+3,1),"mmmm")&" 1")),E83/F81*E81,"")) ->  | O83: =IF(ISBLANK(C83),"",IF(MONTH(C83)=MONTH(DATEVALUE(TEXT(DATE(2000,MONTH(DATEVALUE($E$7&" 1"))+4,1),"mmmm")&" 1")),E83/F81*E81,"")) ->  | P83: =IF(ISBLANK(C83),"",IF(MONTH(C83)=MONTH(DATEVALUE(TEXT(DATE(2000,MONTH(DATEVALUE($E$7&" 1"))+5,1),"mmmm")&" 1")),E83/F81*E81,"")) ->  | Q83: =IF(ISBLANK(C83),"",IF(MONTH(C83)=MONTH(DATEVALUE(TEXT(DATE(2000,MONTH(DATEVALUE($E$7&" 1"))+6,1),"mmmm")&" 1")),E83/F81*E81,"")) ->  | R83: =IF(ISBLANK(C83),"",IF(MONTH(C83)=MONTH(DATEVALUE(TEXT(DATE(2000,MONTH(DATEVALUE($E$7&" 1"))+7,1),"mmmm")&" 1")),E83/F81*E81,"")) ->  | S83: =IF(ISBLANK(C83),"",IF(MONTH(C83)=MONTH(DATEVALUE(TEXT(DATE(2000,MONTH(DATEVALUE($E$7&" 1"))+8,1),"mmmm")&" 1")),E83/F81*E81,"")) ->  | T83: =IF(ISBLANK(C83),"",IF(MONTH(C83)=MONTH(DATEVALUE(TEXT(DATE(2000,MONTH(DATEVALUE($E$7&" 1"))+9,1),"mmmm")&" 1")),E83/F81*E81,"")) ->  | U83: =IF(ISBLANK(C83),"",IF(MONTH(C83)=MONTH(DATEVALUE(TEXT(DATE(2000,MONTH(DATEVALUE($E$7&" 1"))+10,1),"mmmm")&" 1")),E83/F81*E81,"")) ->  | V83: =IF(ISBLANK(C83),"",IF(MONTH(C83)=MONTH(DATEVALUE(TEXT(DATE(2000,MONTH(DATEVALUE($E$7&" 1"))+11,1),"mmmm")&" 1")),E83/F81*E81,"")) -> 
I84: 0 | K84: =IF(ISBLANK(C84),"",IF(MONTH(C84)=MONTH(DATEVALUE($E$7&" 1")),E84/F81*E81,"")) ->  | L84: =IF(ISBLANK(C84),"",IF(MONTH(C84)=MONTH(DATEVALUE(TEXT(DATE(2000,MONTH(DATEVALUE($E$7&" 1"))+1,1),"mmmm")&" 1")),E84/F81*E81,"")) ->  | M84: =IF(ISBLANK(C84),"",IF(MONTH(C84)=MONTH(DATEVALUE(TEXT(DATE(2000,MONTH(DATEVALUE($E$7&" 1"))+2,1),"mmmm")&" 1")),E84/F81*E81,"")) ->  | N84: =IF(ISBLANK(C84),"",IF(MONTH(C84)=MONTH(DATEVALUE(TEXT(DATE(2000,MONTH(DATEVALUE($E$7&" 1"))+3,1),"mmmm")&" 1")),E84/F81*E81,"")) ->  | O84: =IF(ISBLANK(C84),"",IF(MONTH(C84)=MONTH(DATEVALUE(TEXT(DATE(2000,MONTH(DATEVALUE($E$7&" 1"))+4,1),"mmmm")&" 1")),E84/F81*E81,"")) ->  | P84: =IF(ISBLANK(C84),"",IF(MONTH(C84)=MONTH(DATEVALUE(TEXT(DATE(2000,MONTH(DATEVALUE($E$7&" 1"))+5,1),"mmmm")&" 1")),E84/F81*E81,"")) ->  | Q84: =IF(ISBLANK(C84),"",IF(MONTH(C84)=MONTH(DATEVALUE(TEXT(DATE(2000,MONTH(DATEVALUE($E$7&" 1"))+6,1),"mmmm")&" 1")),E84/F81*E81,"")) ->  | R84: =IF(ISBLANK(C84),"",IF(MONTH(C84)=MONTH(DATEVALUE(TEXT(DATE(2000,MONTH(DATEVALUE($E$7&" 1"))+7,1),"mmmm")&" 1")),E84/F81*E81,"")) ->  | S84: =IF(ISBLANK(C84),"",IF(MONTH(C84)=MONTH(DATEVALUE(TEXT(DATE(2000,MONTH(DATEVALUE($E$7&" 1"))+8,1),"mmmm")&" 1")),E84/F81*E81,"")) ->  | T84: =IF(ISBLANK(C84),"",IF(MONTH(C84)=MONTH(DATEVALUE(TEXT(DATE(2000,MONTH(DATEVALUE($E$7&" 1"))+9,1),"mmmm")&" 1")),E84/F81*E81,"")) ->  | U84: =IF(ISBLANK(C84),"",IF(MONTH(C84)=MONTH(DATEVALUE(TEXT(DATE(2000,MONTH(DATEVALUE($E$7&" 1"))+10,1),"mmmm")&" 1")),E84/F81*E81,"")) ->  | V84: =IF(ISBLANK(C84),"",IF(MONTH(C84)=MONTH(DATEVALUE(TEXT(DATE(2000,MONTH(DATEVALUE($E$7&" 1"))+11,1),"mmmm")&" 1")),E84/F81*E81,"")) -> 
I85: 0 | K85: =IF(ISBLANK(C85),"",IF(MONTH(C85)=MONTH(DATEVALUE($E$7&" 1")),E85/F81*E81,"")) ->  | L85: =IF(ISBLANK(C85),"",IF(MONTH(C85)=MONTH(DATEVALUE(TEXT(DATE(2000,MONTH(DATEVALUE($E$7&" 1"))+1,1),"mmmm")&" 1")),E85/F81*E81,"")) ->  | M85: =IF(ISBLANK(C85),"",IF(MONTH(C85)=MONTH(DATEVALUE(TEXT(DATE(2000,MONTH(DATEVALUE($E$7&" 1"))+2,1),"mmmm")&" 1")),E85/F81*E81,"")) ->  | N85: =IF(ISBLANK(C85),"",IF(MONTH(C85)=MONTH(DATEVALUE(TEXT(DATE(2000,MONTH(DATEVALUE($E$7&" 1"))+3,1),"mmmm")&" 1")),E85/F81*E81,"")) ->  | O85: =IF(ISBLANK(C85),"",IF(MONTH(C85)=MONTH(DATEVALUE(TEXT(DATE(2000,MONTH(DATEVALUE($E$7&" 1"))+4,1),"mmmm")&" 1")),E85/F81*E81,"")) ->  | P85: =IF(ISBLANK(C85),"",IF(MONTH(C85)=MONTH(DATEVALUE(TEXT(DATE(2000,MONTH(DATEVALUE($E$7&" 1"))+5,1),"mmmm")&" 1")),E85/F81*E81,"")) ->  | Q85: =IF(ISBLANK(C85),"",IF(MONTH(C85)=MONTH(DATEVALUE(TEXT(DATE(2000,MONTH(DATEVALUE($E$7&" 1"))+6,1),"mmmm")&" 1")),E85/F81*E81,"")) ->  | R85: =IF(ISBLANK(C85),"",IF(MONTH(C85)=MONTH(DATEVALUE(TEXT(DATE(2000,MONTH(DATEVALUE($E$7&" 1"))+7,1),"mmmm")&" 1")),E85/F81*E81,"")) ->  | S85: =IF(ISBLANK(C85),"",IF(MONTH(C85)=MONTH(DATEVALUE(TEXT(DATE(2000,MONTH(DATEVALUE($E$7&" 1"))+8,1),"mmmm")&" 1")),E85/F81*E81,"")) ->  | T85: =IF(ISBLANK(C85),"",IF(MONTH(C85)=MONTH(DATEVALUE(TEXT(DATE(2000,MONTH(DATEVALUE($E$7&" 1"))+9,1),"mmmm")&" 1")),E85/F81*E81,"")) ->  | U85: =IF(ISBLANK(C85),"",IF(MONTH(C85)=MONTH(DATEVALUE(TEXT(DATE(2000,MONTH(DATEVALUE($E$7&" 1"))+10,1),"mmmm")&" 1")),E85/F81*E81,"")) ->  | V85: =IF(ISBLANK(C85),"",IF(MONTH(C85)=MONTH(DATEVALUE(TEXT(DATE(2000,MONTH(DATEVALUE($E$7&" 1"))+11,1),"mmmm")&" 1")),E85/F81*E81,"")) -> 
I86: 0 | K86: =IF(ISBLANK(C86),"",IF(MONTH(C86)=MONTH(DATEVALUE($E$7&" 1")),E86/F81*E81,"")) ->  | L86: =IF(ISBLANK(C86),"",IF(MONTH(C86)=MONTH(DATEVALUE(TEXT(DATE(2000,MONTH(DATEVALUE($E$7&" 1"))+1,1),"mmmm")&" 1")),E86/F81*E81,"")) ->  | M86: =IF(ISBLANK(C86),"",IF(MONTH(C86)=MONTH(DATEVALUE(TEXT(DATE(2000,MONTH(DATEVALUE($E$7&" 1"))+2,1),"mmmm")&" 1")),E86/F81*E81,"")) ->  | N86: =IF(ISBLANK(C86),"",IF(MONTH(C86)=MONTH(DATEVALUE(TEXT(DATE(2000,MONTH(DATEVALUE($E$7&" 1"))+3,1),"mmmm")&" 1")),E86/F81*E81,"")) ->  | O86: =IF(ISBLANK(C86),"",IF(MONTH(C86)=MONTH(DATEVALUE(TEXT(DATE(2000,MONTH(DATEVALUE($E$7&" 1"))+4,1),"mmmm")&" 1")),E86/F81*E81,"")) ->  | P86: =IF(ISBLANK(C86),"",IF(MONTH(C86)=MONTH(DATEVALUE(TEXT(DATE(2000,MONTH(DATEVALUE($E$7&" 1"))+5,1),"mmmm")&" 1")),E86/F81*E81,"")) ->  | Q86: =IF(ISBLANK(C86),"",IF(MONTH(C86)=MONTH(DATEVALUE(TEXT(DATE(2000,MONTH(DATEVALUE($E$7&" 1"))+6,1),"mmmm")&" 1")),E86/F81*E81,"")) ->  | R86: =IF(ISBLANK(C86),"",IF(MONTH(C86)=MONTH(DATEVALUE(TEXT(DATE(2000,MONTH(DATEVALUE($E$7&" 1"))+7,1),"mmmm")&" 1")),E86/F81*E81,"")) ->  | S86: =IF(ISBLANK(C86),"",IF(MONTH(C86)=MONTH(DATEVALUE(TEXT(DATE(2000,MONTH(DATEVALUE($E$7&" 1"))+8,1),"mmmm")&" 1")),E86/F81*E81,"")) ->  | T86: =IF(ISBLANK(C86),"",IF(MONTH(C86)=MONTH(DATEVALUE(TEXT(DATE(2000,MONTH(DATEVALUE($E$7&" 1"))+9,1),"mmmm")&" 1")),E86/F81*E81,"")) ->  | U86: =IF(ISBLANK(C86),"",IF(MONTH(C86)=MONTH(DATEVALUE(TEXT(DATE(2000,MONTH(DATEVALUE($E$7&" 1"))+10,1),"mmmm")&" 1")),E86/F81*E81,"")) ->  | V86: =IF(ISBLANK(C86),"",IF(MONTH(C86)=MONTH(DATEVALUE(TEXT(DATE(2000,MONTH(DATEVALUE($E$7&" 1"))+11,1),"mmmm")&" 1")),E86/F81*E81,"")) -> 
I87: 0 | K87: =IF(ISBLANK(C87),"",IF(MONTH(C87)=MONTH(DATEVALUE($E$7&" 1")),E87/F81*E81,"")) ->  | L87: =IF(ISBLANK(C87),"",IF(MONTH(C87)=MONTH(DATEVALUE(TEXT(DATE(2000,MONTH(DATEVALUE($E$7&" 1"))+1,1),"mmmm")&" 1")),E87/F81*E81,"")) ->  | M87: =IF(ISBLANK(C87),"",IF(MONTH(C87)=MONTH(DATEVALUE(TEXT(DATE(2000,MONTH(DATEVALUE($E$7&" 1"))+2,1),"mmmm")&" 1")),E87/F81*E81,"")) ->  | N87: =IF(ISBLANK(C87),"",IF(MONTH(C87)=MONTH(DATEVALUE(TEXT(DATE(2000,MONTH(DATEVALUE($E$7&" 1"))+3,1),"mmmm")&" 1")),E87/F81*E81,"")) ->  | O87: =IF(ISBLANK(C87),"",IF(MONTH(C87)=MONTH(DATEVALUE(TEXT(DATE(2000,MONTH(DATEVALUE($E$7&" 1"))+4,1),"mmmm")&" 1")),E87/F81*E81,"")) ->  | P87: =IF(ISBLANK(C87),"",IF(MONTH(C87)=MONTH(DATEVALUE(TEXT(DATE(2000,MONTH(DATEVALUE($E$7&" 1"))+5,1),"mmmm")&" 1")),E87/F81*E81,"")) ->  | Q87: =IF(ISBLANK(C87),"",IF(MONTH(C87)=MONTH(DATEVALUE(TEXT(DATE(2000,MONTH(DATEVALUE($E$7&" 1"))+6,1),"mmmm")&" 1")),E87/F81*E81,"")) ->  | R87: =IF(ISBLANK(C87),"",IF(MONTH(C87)=MONTH(DATEVALUE(TEXT(DATE(2000,MONTH(DATEVALUE($E$7&" 1"))+7,1),"mmmm")&" 1")),E87/F81*E81,"")) ->  | S87: =IF(ISBLANK(C87),"",IF(MONTH(C87)=MONTH(DATEVALUE(TEXT(DATE(2000,MONTH(DATEVALUE($E$7&" 1"))+8,1),"mmmm")&" 1")),E87/F81*E81,"")) ->  | T87: =IF(ISBLANK(C87),"",IF(MONTH(C87)=MONTH(DATEVALUE(TEXT(DATE(2000,MONTH(DATEVALUE($E$7&" 1"))+9,1),"mmmm")&" 1")),E87/F81*E81,"")) ->  | U87: =IF(ISBLANK(C87),"",IF(MONTH(C87)=MONTH(DATEVALUE(TEXT(DATE(2000,MONTH(DATEVALUE($E$7&" 1"))+10,1),"mmmm")&" 1")),E87/F81*E81,"")) ->  | V87: =IF(ISBLANK(C87),"",IF(MONTH(C87)=MONTH(DATEVALUE(TEXT(DATE(2000,MONTH(DATEVALUE($E$7&" 1"))+11,1),"mmmm")&" 1")),E87/F81*E81,"")) -> 
I88: 0 | K88: =IF(ISBLANK(C88),"",IF(MONTH(C88)=MONTH(DATEVALUE($E$7&" 1")),E88/F81*E81,"")) ->  | L88: =IF(ISBLANK(C88),"",IF(MONTH(C88)=MONTH(DATEVALUE(TEXT(DATE(2000,MONTH(DATEVALUE($E$7&" 1"))+1,1),"mmmm")&" 1")),E88/F81*E81,"")) ->  | M88: =IF(ISBLANK(C88),"",IF(MONTH(C88)=MONTH(DATEVALUE(TEXT(DATE(2000,MONTH(DATEVALUE($E$7&" 1"))+2,1),"mmmm")&" 1")),E88/F81*E81,"")) ->  | N88: =IF(ISBLANK(C88),"",IF(MONTH(C88)=MONTH(DATEVALUE(TEXT(DATE(2000,MONTH(DATEVALUE($E$7&" 1"))+3,1),"mmmm")&" 1")),E88/F81*E81,"")) ->  | O88: =IF(ISBLANK(C88),"",IF(MONTH(C88)=MONTH(DATEVALUE(TEXT(DATE(2000,MONTH(DATEVALUE($E$7&" 1"))+4,1),"mmmm")&" 1")),E88/F81*E81,"")) ->  | P88: =IF(ISBLANK(C88),"",IF(MONTH(C88)=MONTH(DATEVALUE(TEXT(DATE(2000,MONTH(DATEVALUE($E$7&" 1"))+5,1),"mmmm")&" 1")),E88/F81*E81,"")) ->  | Q88: =IF(ISBLANK(C88),"",IF(MONTH(C88)=MONTH(DATEVALUE(TEXT(DATE(2000,MONTH(DATEVALUE($E$7&" 1"))+6,1),"mmmm")&" 1")),E88/F81*E81,"")) ->  | R88: =IF(ISBLANK(C88),"",IF(MONTH(C88)=MONTH(DATEVALUE(TEXT(DATE(2000,MONTH(DATEVALUE($E$7&" 1"))+7,1),"mmmm")&" 1")),E88/F81*E81,"")) ->  | S88: =IF(ISBLANK(C88),"",IF(MONTH(C88)=MONTH(DATEVALUE(TEXT(DATE(2000,MONTH(DATEVALUE($E$7&" 1"))+8,1),"mmmm")&" 1")),E88/F81*E81,"")) ->  | T88: =IF(ISBLANK(C88),"",IF(MONTH(C88)=MONTH(DATEVALUE(TEXT(DATE(2000,MONTH(DATEVALUE($E$7&" 1"))+9,1),"mmmm")&" 1")),E88/F81*E81,"")) ->  | U88: =IF(ISBLANK(C88),"",IF(MONTH(C88)=MONTH(DATEVALUE(TEXT(DATE(2000,MONTH(DATEVALUE($E$7&" 1"))+10,1),"mmmm")&" 1")),E88/F81*E81,"")) ->  | V88: =IF(ISBLANK(C88),"",IF(MONTH(C88)=MONTH(DATEVALUE(TEXT(DATE(2000,MONTH(DATEVALUE($E$7&" 1"))+11,1),"mmmm")&" 1")),E88/F81*E81,"")) -> 
I89: 0 | K89: =IF(ISBLANK(C89),"",IF(MONTH(C89)=MONTH(DATEVALUE($E$7&" 1")),E89/F81*E81,"")) ->  | L89: =IF(ISBLANK(C89),"",IF(MONTH(C89)=MONTH(DATEVALUE(TEXT(DATE(2000,MONTH(DATEVALUE($E$7&" 1"))+1,1),"mmmm")&" 1")),E89/F81*E81,"")) ->  | M89: =IF(ISBLANK(C89),"",IF(MONTH(C89)=MONTH(DATEVALUE(TEXT(DATE(2000,MONTH(DATEVALUE($E$7&" 1"))+2,1),"mmmm")&" 1")),E89/F81*E81,"")) ->  | N89: =IF(ISBLANK(C89),"",IF(MONTH(C89)=MONTH(DATEVALUE(TEXT(DATE(2000,MONTH(DATEVALUE($E$7&" 1"))+3,1),"mmmm")&" 1")),E89/F81*E81,"")) ->  | O89: =IF(ISBLANK(C89),"",IF(MONTH(C89)=MONTH(DATEVALUE(TEXT(DATE(2000,MONTH(DATEVALUE($E$7&" 1"))+4,1),"mmmm")&" 1")),E89/F81*E81,"")) ->  | P89: =IF(ISBLANK(C89),"",IF(MONTH(C89)=MONTH(DATEVALUE(TEXT(DATE(2000,MONTH(DATEVALUE($E$7&" 1"))+5,1),"mmmm")&" 1")),E89/F81*E81,"")) ->  | Q89: =IF(ISBLANK(C89),"",IF(MONTH(C89)=MONTH(DATEVALUE(TEXT(DATE(2000,MONTH(DATEVALUE($E$7&" 1"))+6,1),"mmmm")&" 1")),E89/F81*E81,"")) ->  | R89: =IF(ISBLANK(C89),"",IF(MONTH(C89)=MONTH(DATEVALUE(TEXT(DATE(2000,MONTH(DATEVALUE($E$7&" 1"))+7,1),"mmmm")&" 1")),E89/F81*E81,"")) ->  | S89: =IF(ISBLANK(C89),"",IF(MONTH(C89)=MONTH(DATEVALUE(TEXT(DATE(2000,MONTH(DATEVALUE($E$7&" 1"))+8,1),"mmmm")&" 1")),E89/F81*E81,"")) ->  | T89: =IF(ISBLANK(C89),"",IF(MONTH(C89)=MONTH(DATEVALUE(TEXT(DATE(2000,MONTH(DATEVALUE($E$7&" 1"))+9,1),"mmmm")&" 1")),E89/F81*E81,"")) ->  | U89: =IF(ISBLANK(C89),"",IF(MONTH(C89)=MONTH(DATEVALUE(TEXT(DATE(2000,MONTH(DATEVALUE($E$7&" 1"))+10,1),"mmmm")&" 1")),E89/F81*E81,"")) ->  | V89: =IF(ISBLANK(C89),"",IF(MONTH(C89)=MONTH(DATEVALUE(TEXT(DATE(2000,MONTH(DATEVALUE($E$7&" 1"))+11,1),"mmmm")&" 1")),E89/F81*E81,"")) -> 
I90: 0 | K90: =IF(ISBLANK(C90),"",IF(MONTH(C90)=MONTH(DATEVALUE($E$7&" 1")),E90/F81*E81,"")) ->  | L90: =IF(ISBLANK(C90),"",IF(MONTH(C90)=MONTH(DATEVALUE(TEXT(DATE(2000,MONTH(DATEVALUE($E$7&" 1"))+1,1),"mmmm")&" 1")),E90/F81*E81,"")) ->  | M90: =IF(ISBLANK(C90),"",IF(MONTH(C90)=MONTH(DATEVALUE(TEXT(DATE(2000,MONTH(DATEVALUE($E$7&" 1"))+2,1),"mmmm")&" 1")),E90/F81*E81,"")) ->  | N90: =IF(ISBLANK(C90),"",IF(MONTH(C90)=MONTH(DATEVALUE(TEXT(DATE(2000,MONTH(DATEVALUE($E$7&" 1"))+3,1),"mmmm")&" 1")),E90/F81*E81,"")) ->  | O90: =IF(ISBLANK(C90),"",IF(MONTH(C90)=MONTH(DATEVALUE(TEXT(DATE(2000,MONTH(DATEVALUE($E$7&" 1"))+4,1),"mmmm")&" 1")),E90/F81*E81,"")) ->  | P90: =IF(ISBLANK(C90),"",IF(MONTH(C90)=MONTH(DATEVALUE(TEXT(DATE(2000,MONTH(DATEVALUE($E$7&" 1"))+5,1),"mmmm")&" 1")),E90/F81*E81,"")) ->  | Q90: =IF(ISBLANK(C90),"",IF(MONTH(C90)=MONTH(DATEVALUE(TEXT(DATE(2000,MONTH(DATEVALUE($E$7&" 1"))+6,1),"mmmm")&" 1")),E90/F81*E81,"")) ->  | R90: =IF(ISBLANK(C90),"",IF(MONTH(C90)=MONTH(DATEVALUE(TEXT(DATE(2000,MONTH(DATEVALUE($E$7&" 1"))+7,1),"mmmm")&" 1")),E90/F81*E81,"")) ->  | S90: =IF(ISBLANK(C90),"",IF(MONTH(C90)=MONTH(DATEVALUE(TEXT(DATE(2000,MONTH(DATEVALUE($E$7&" 1"))+8,1),"mmmm")&" 1")),E90/F81*E81,"")) ->  | T90: =IF(ISBLANK(C90),"",IF(MONTH(C90)=MONTH(DATEVALUE(TEXT(DATE(2000,MONTH(DATEVALUE($E$7&" 1"))+9,1),"mmmm")&" 1")),E90/F81*E81,"")) ->  | U90: =IF(ISBLANK(C90),"",IF(MONTH(C90)=MONTH(DATEVALUE(TEXT(DATE(2000,MONTH(DATEVALUE($E$7&" 1"))+10,1),"mmmm")&" 1")),E90/F81*E81,"")) ->  | V90: =IF(ISBLANK(C90),"",IF(MONTH(C90)=MONTH(DATEVALUE(TEXT(DATE(2000,MONTH(DATEVALUE($E$7&" 1"))+11,1),"mmmm")&" 1")),E90/F81*E81,"")) -> 
I91: 0 | K91: =IF(ISBLANK(C91),"",IF(MONTH(C91)=MONTH(DATEVALUE($E$7&" 1")),E91/F81*E81,"")) ->  | L91: =IF(ISBLANK(C91),"",IF(MONTH(C91)=MONTH(DATEVALUE(TEXT(DATE(2000,MONTH(DATEVALUE($E$7&" 1"))+1,1),"mmmm")&" 1")),E91/F81*E81,"")) ->  | M91: =IF(ISBLANK(C91),"",IF(MONTH(C91)=MONTH(DATEVALUE(TEXT(DATE(2000,MONTH(DATEVALUE($E$7&" 1"))+2,1),"mmmm")&" 1")),E91/F81*E81,"")) ->  | N91: =IF(ISBLANK(C91),"",IF(MONTH(C91)=MONTH(DATEVALUE(TEXT(DATE(2000,MONTH(DATEVALUE($E$7&" 1"))+3,1),"mmmm")&" 1")),E91/F81*E81,"")) ->  | O91: =IF(ISBLANK(C91),"",IF(MONTH(C91)=MONTH(DATEVALUE(TEXT(DATE(2000,MONTH(DATEVALUE($E$7&" 1"))+4,1),"mmmm")&" 1")),E91/F81*E81,"")) ->  | P91: =IF(ISBLANK(C91),"",IF(MONTH(C91)=MONTH(DATEVALUE(TEXT(DATE(2000,MONTH(DATEVALUE($E$7&" 1"))+5,1),"mmmm")&" 1")),E91/F81*E81,"")) ->  | Q91: =IF(ISBLANK(C91),"",IF(MONTH(C91)=MONTH(DATEVALUE(TEXT(DATE(2000,MONTH(DATEVALUE($E$7&" 1"))+6,1),"mmmm")&" 1")),E91/F81*E81,"")) ->  | R91: =IF(ISBLANK(C91),"",IF(MONTH(C91)=MONTH(DATEVALUE(TEXT(DATE(2000,MONTH(DATEVALUE($E$7&" 1"))+7,1),"mmmm")&" 1")),E91/F81*E81,"")) ->  | S91: =IF(ISBLANK(C91),"",IF(MONTH(C91)=MONTH(DATEVALUE(TEXT(DATE(2000,MONTH(DATEVALUE($E$7&" 1"))+8,1),"mmmm")&" 1")),E91/F81*E81,"")) ->  | T91: =IF(ISBLANK(C91),"",IF(MONTH(C91)=MONTH(DATEVALUE(TEXT(DATE(2000,MONTH(DATEVALUE($E$7&" 1"))+9,1),"mmmm")&" 1")),E91/F81*E81,"")) ->  | U91: =IF(ISBLANK(C91),"",IF(MONTH(C91)=MONTH(DATEVALUE(TEXT(DATE(2000,MONTH(DATEVALUE($E$7&" 1"))+10,1),"mmmm")&" 1")),E91/F81*E81,"")) ->  | V91: =IF(ISBLANK(C91),"",IF(MONTH(C91)=MONTH(DATEVALUE(TEXT(DATE(2000,MONTH(DATEVALUE($E$7&" 1"))+11,1),"mmmm")&" 1")),E91/F81*E81,"")) -> 
I92: 0 | K92: =IF(ISBLANK(C92),"",IF(MONTH(C92)=MONTH(DATEVALUE($E$7&" 1")),E92/F81*E81,"")) ->  | L92: =IF(ISBLANK(C92),"",IF(MONTH(C92)=MONTH(DATEVALUE(TEXT(DATE(2000,MONTH(DATEVALUE($E$7&" 1"))+1,1),"mmmm")&" 1")),E92/F81*E81,"")) ->  | M92: =IF(ISBLANK(C92),"",IF(MONTH(C92)=MONTH(DATEVALUE(TEXT(DATE(2000,MONTH(DATEVALUE($E$7&" 1"))+2,1),"mmmm")&" 1")),E92/F81*E81,"")) ->  | N92: =IF(ISBLANK(C92),"",IF(MONTH(C92)=MONTH(DATEVALUE(TEXT(DATE(2000,MONTH(DATEVALUE($E$7&" 1"))+3,1),"mmmm")&" 1")),E92/F81*E81,"")) ->  | O92: =IF(ISBLANK(C92),"",IF(MONTH(C92)=MONTH(DATEVALUE(TEXT(DATE(2000,MONTH(DATEVALUE($E$7&" 1"))+4,1),"mmmm")&" 1")),E92/F81*E81,"")) ->  | P92: =IF(ISBLANK(C92),"",IF(MONTH(C92)=MONTH(DATEVALUE(TEXT(DATE(2000,MONTH(DATEVALUE($E$7&" 1"))+5,1),"mmmm")&" 1")),E92/F81*E81,"")) ->  | Q92: =IF(ISBLANK(C92),"",IF(MONTH(C92)=MONTH(DATEVALUE(TEXT(DATE(2000,MONTH(DATEVALUE($E$7&" 1"))+6,1),"mmmm")&" 1")),E92/F81*E81,"")) ->  | R92: =IF(ISBLANK(C92),"",IF(MONTH(C92)=MONTH(DATEVALUE(TEXT(DATE(2000,MONTH(DATEVALUE($E$7&" 1"))+7,1),"mmmm")&" 1")),E92/F81*E81,"")) ->  | S92: =IF(ISBLANK(C92),"",IF(MONTH(C92)=MONTH(DATEVALUE(TEXT(DATE(2000,MONTH(DATEVALUE($E$7&" 1"))+8,1),"mmmm")&" 1")),E92/F81*E81,"")) ->  | T92: =IF(ISBLANK(C92),"",IF(MONTH(C92)=MONTH(DATEVALUE(TEXT(DATE(2000,MONTH(DATEVALUE($E$7&" 1"))+9,1),"mmmm")&" 1")),E92/F81*E81,"")) ->  | U92: =IF(ISBLANK(C92),"",IF(MONTH(C92)=MONTH(DATEVALUE(TEXT(DATE(2000,MONTH(DATEVALUE($E$7&" 1"))+10,1),"mmmm")&" 1")),E92/F81*E81,"")) ->  | V92: =IF(ISBLANK(C92),"",IF(MONTH(C92)=MONTH(DATEVALUE(TEXT(DATE(2000,MONTH(DATEVALUE($E$7&" 1"))+11,1),"mmmm")&" 1")),E92/F81*E81,"")) -> 
H93: =IFERROR(SUM(E95:H104)/F93,0) -> 0 | I93: =SUM(I94:J104) -> 0 | W93: =IF(H93<>100%,"Pas ok","ok") -> Pas ok
B94: Numéro de facture | C94: Date de facturation | D94: Description de la facture | E94: Montant de la facture
I95: =SUM(K95:V95) -> 0 | K95: =IF(ISBLANK(C95),"",IF(MONTH(C95)=MONTH(DATEVALUE($E$7&" 1")),E95/F93*E93,"")) ->  | L95: =IF(ISBLANK(C95),"",IF(MONTH(C95)=MONTH(DATEVALUE(TEXT(DATE(2000,MONTH(DATEVALUE($E$7&" 1"))+1,1),"mmmm")&" 1")),E95/F93*E93,"")) ->  | M95: =IF(ISBLANK(C95),"",IF(MONTH(C95)=MONTH(DATEVALUE(TEXT(DATE(2000,MONTH(DATEVALUE($E$7&" 1"))+2,1),"mmmm")&" 1")),E95/F93*E93,"")) ->  | N95: =IF(ISBLANK(C95),"",IF(MONTH(C95)=MONTH(DATEVALUE(TEXT(DATE(2000,MONTH(DATEVALUE($E$7&" 1"))+3,1),"mmmm")&" 1")),E95/F93*E93,"")) ->  | O95: =IF(ISBLANK(C95),"",IF(MONTH(C95)=MONTH(DATEVALUE(TEXT(DATE(2000,MONTH(DATEVALUE($E$7&" 1"))+4,1),"mmmm")&" 1")),E95/F93*E93,"")) ->  | P95: =IF(ISBLANK(C95),"",IF(MONTH(C95)=MONTH(DATEVALUE(TEXT(DATE(2000,MONTH(DATEVALUE($E$7&" 1"))+5,1),"mmmm")&" 1")),E95/F93*E93,"")) ->  | Q95: =IF(ISBLANK(C95),"",IF(MONTH(C95)=MONTH(DATEVALUE(TEXT(DATE(2000,MONTH(DATEVALUE($E$7&" 1"))+6,1),"mmmm")&" 1")),E95/F93*E93,"")) ->  | R95: =IF(ISBLANK(C95),"",IF(MONTH(C95)=MONTH(DATEVALUE(TEXT(DATE(2000,MONTH(DATEVALUE($E$7&" 1"))+7,1),"mmmm")&" 1")),E95/F93*E93,"")) ->  | S95: =IF(ISBLANK(C95),"",IF(MONTH(C95)=MONTH(DATEVALUE(TEXT(DATE(2000,MONTH(DATEVALUE($E$7&" 1"))+8,1),"mmmm")&" 1")),E95/F93*E93,"")) ->  | T95: =IF(ISBLANK(C95),"",IF(MONTH(C95)=MONTH(DATEVALUE(TEXT(DATE(2000,MONTH(DATEVALUE($E$7&" 1"))+9,1),"mmmm")&" 1")),E95/F93*E93,"")) ->  | U95: =IF(ISBLANK(C95),"",IF(MONTH(C95)=MONTH(DATEVALUE(TEXT(DATE(2000,MONTH(DATEVALUE($E$7&" 1"))+10,1),"mmmm")&" 1")),E95/F93*E93,"")) ->  | V95: =IF(ISBLANK(C95),"",IF(MONTH(C95)=MONTH(DATEVALUE(TEXT(DATE(2000,MONTH(DATEVALUE($E$7&" 1"))+11,1),"mmmm")&" 1")),E95/F93*E93,"")) -> 
I96: 0 | K96: =IF(ISBLANK(C96),"",IF(MONTH(C96)=MONTH(DATEVALUE($E$7&" 1")),E96/F93*E93,"")) ->  | L96: =IF(ISBLANK(C96),"",IF(MONTH(C96)=MONTH(DATEVALUE(TEXT(DATE(2000,MONTH(DATEVALUE($E$7&" 1"))+1,1),"mmmm")&" 1")),E96/F93*E93,"")) ->  | M96: =IF(ISBLANK(C96),"",IF(MONTH(C96)=MONTH(DATEVALUE(TEXT(DATE(2000,MONTH(DATEVALUE($E$7&" 1"))+2,1),"mmmm")&" 1")),E96/F93*E93,"")) ->  | N96: =IF(ISBLANK(C96),"",IF(MONTH(C96)=MONTH(DATEVALUE(TEXT(DATE(2000,MONTH(DATEVALUE($E$7&" 1"))+3,1),"mmmm")&" 1")),E96/F93*E93,"")) ->  | O96: =IF(ISBLANK(C96),"",IF(MONTH(C96)=MONTH(DATEVALUE(TEXT(DATE(2000,MONTH(DATEVALUE($E$7&" 1"))+4,1),"mmmm")&" 1")),E96/F93*E93,"")) ->  | P96: =IF(ISBLANK(C96),"",IF(MONTH(C96)=MONTH(DATEVALUE(TEXT(DATE(2000,MONTH(DATEVALUE($E$7&" 1"))+5,1),"mmmm")&" 1")),E96/F93*E93,"")) ->  | Q96: =IF(ISBLANK(C96),"",IF(MONTH(C96)=MONTH(DATEVALUE(TEXT(DATE(2000,MONTH(DATEVALUE($E$7&" 1"))+6,1),"mmmm")&" 1")),E96/F93*E93,"")) ->  | R96: =IF(ISBLANK(C96),"",IF(MONTH(C96)=MONTH(DATEVALUE(TEXT(DATE(2000,MONTH(DATEVALUE($E$7&" 1"))+7,1),"mmmm")&" 1")),E96/F93*E93,"")) ->  | S96: =IF(ISBLANK(C96),"",IF(MONTH(C96)=MONTH(DATEVALUE(TEXT(DATE(2000,MONTH(DATEVALUE($E$7&" 1"))+8,1),"mmmm")&" 1")),E96/F93*E93,"")) ->  | T96: =IF(ISBLANK(C96),"",IF(MONTH(C96)=MONTH(DATEVALUE(TEXT(DATE(2000,MONTH(DATEVALUE($E$7&" 1"))+9,1),"mmmm")&" 1")),E96/F93*E93,"")) ->  | U96: =IF(ISBLANK(C96),"",IF(MONTH(C96)=MONTH(DATEVALUE(TEXT(DATE(2000,MONTH(DATEVALUE($E$7&" 1"))+10,1),"mmmm")&" 1")),E96/F93*E93,"")) ->  | V96: =IF(ISBLANK(C96),"",IF(MONTH(C96)=MONTH(DATEVALUE(TEXT(DATE(2000,MONTH(DATEVALUE($E$7&" 1"))+11,1),"mmmm")&" 1")),E96/F93*E93,"")) -> 
I97: 0 | K97: =IF(ISBLANK(C97),"",IF(MONTH(C97)=MONTH(DATEVALUE($E$7&" 1")),E97/F93*E93,"")) ->  | L97: =IF(ISBLANK(C97),"",IF(MONTH(C97)=MONTH(DATEVALUE(TEXT(DATE(2000,MONTH(DATEVALUE($E$7&" 1"))+1,1),"mmmm")&" 1")),E97/F93*E93,"")) ->  | M97: =IF(ISBLANK(C97),"",IF(MONTH(C97)=MONTH(DATEVALUE(TEXT(DATE(2000,MONTH(DATEVALUE($E$7&" 1"))+2,1),"mmmm")&" 1")),E97/F93*E93,"")) ->  | N97: =IF(ISBLANK(C97),"",IF(MONTH(C97)=MONTH(DATEVALUE(TEXT(DATE(2000,MONTH(DATEVALUE($E$7&" 1"))+3,1),"mmmm")&" 1")),E97/F93*E93,"")) ->  | O97: =IF(ISBLANK(C97),"",IF(MONTH(C97)=MONTH(DATEVALUE(TEXT(DATE(2000,MONTH(DATEVALUE($E$7&" 1"))+4,1),"mmmm")&" 1")),E97/F93*E93,"")) ->  | P97: =IF(ISBLANK(C97),"",IF(MONTH(C97)=MONTH(DATEVALUE(TEXT(DATE(2000,MONTH(DATEVALUE($E$7&" 1"))+5,1),"mmmm")&" 1")),E97/F93*E93,"")) ->  | Q97: =IF(ISBLANK(C97),"",IF(MONTH(C97)=MONTH(DATEVALUE(TEXT(DATE(2000,MONTH(DATEVALUE($E$7&" 1"))+6,1),"mmmm")&" 1")),E97/F93*E93,"")) ->  | R97: =IF(ISBLANK(C97),"",IF(MONTH(C97)=MONTH(DATEVALUE(TEXT(DATE(2000,MONTH(DATEVALUE($E$7&" 1"))+7,1),"mmmm")&" 1")),E97/F93*E93,"")) ->  | S97: =IF(ISBLANK(C97),"",IF(MONTH(C97)=MONTH(DATEVALUE(TEXT(DATE(2000,MONTH(DATEVALUE($E$7&" 1"))+8,1),"mmmm")&" 1")),E97/F93*E93,"")) ->  | T97: =IF(ISBLANK(C97),"",IF(MONTH(C97)=MONTH(DATEVALUE(TEXT(DATE(2000,MONTH(DATEVALUE($E$7&" 1"))+9,1),"mmmm")&" 1")),E97/F93*E93,"")) ->  | U97: =IF(ISBLANK(C97),"",IF(MONTH(C97)=MONTH(DATEVALUE(TEXT(DATE(2000,MONTH(DATEVALUE($E$7&" 1"))+10,1),"mmmm")&" 1")),E97/F93*E93,"")) ->  | V97: =IF(ISBLANK(C97),"",IF(MONTH(C97)=MONTH(DATEVALUE(TEXT(DATE(2000,MONTH(DATEVALUE($E$7&" 1"))+11,1),"mmmm")&" 1")),E97/F93*E93,"")) -> 
I98: 0 | K98: =IF(ISBLANK(C98),"",IF(MONTH(C98)=MONTH(DATEVALUE($E$7&" 1")),E98/F93*E93,"")) ->  | L98: =IF(ISBLANK(C98),"",IF(MONTH(C98)=MONTH(DATEVALUE(TEXT(DATE(2000,MONTH(DATEVALUE($E$7&" 1"))+1,1),"mmmm")&" 1")),E98/F93*E93,"")) ->  | M98: =IF(ISBLANK(C98),"",IF(MONTH(C98)=MONTH(DATEVALUE(TEXT(DATE(2000,MONTH(DATEVALUE($E$7&" 1"))+2,1),"mmmm")&" 1")),E98/F93*E93,"")) ->  | N98: =IF(ISBLANK(C98),"",IF(MONTH(C98)=MONTH(DATEVALUE(TEXT(DATE(2000,MONTH(DATEVALUE($E$7&" 1"))+3,1),"mmmm")&" 1")),E98/F93*E93,"")) ->  | O98: =IF(ISBLANK(C98),"",IF(MONTH(C98)=MONTH(DATEVALUE(TEXT(DATE(2000,MONTH(DATEVALUE($E$7&" 1"))+4,1),"mmmm")&" 1")),E98/F93*E93,"")) ->  | P98: =IF(ISBLANK(C98),"",IF(MONTH(C98)=MONTH(DATEVALUE(TEXT(DATE(2000,MONTH(DATEVALUE($E$7&" 1"))+5,1),"mmmm")&" 1")),E98/F93*E93,"")) ->  | Q98: =IF(ISBLANK(C98),"",IF(MONTH(C98)=MONTH(DATEVALUE(TEXT(DATE(2000,MONTH(DATEVALUE($E$7&" 1"))+6,1),"mmmm")&" 1")),E98/F93*E93,"")) ->  | R98: =IF(ISBLANK(C98),"",IF(MONTH(C98)=MONTH(DATEVALUE(TEXT(DATE(2000,MONTH(DATEVALUE($E$7&" 1"))+7,1),"mmmm")&" 1")),E98/F93*E93,"")) ->  | S98: =IF(ISBLANK(C98),"",IF(MONTH(C98)=MONTH(DATEVALUE(TEXT(DATE(2000,MONTH(DATEVALUE($E$7&" 1"))+8,1),"mmmm")&" 1")),E98/F93*E93,"")) ->  | T98: =IF(ISBLANK(C98),"",IF(MONTH(C98)=MONTH(DATEVALUE(TEXT(DATE(2000,MONTH(DATEVALUE($E$7&" 1"))+9,1),"mmmm")&" 1")),E98/F93*E93,"")) ->  | U98: =IF(ISBLANK(C98),"",IF(MONTH(C98)=MONTH(DATEVALUE(TEXT(DATE(2000,MONTH(DATEVALUE($E$7&" 1"))+10,1),"mmmm")&" 1")),E98/F93*E93,"")) ->  | V98: =IF(ISBLANK(C98),"",IF(MONTH(C98)=MONTH(DATEVALUE(TEXT(DATE(2000,MONTH(DATEVALUE($E$7&" 1"))+11,1),"mmmm")&" 1")),E98/F93*E93,"")) -> 
I99: 0 | K99: =IF(ISBLANK(C99),"",IF(MONTH(C99)=MONTH(DATEVALUE($E$7&" 1")),E99/F93*E93,"")) ->  | L99: =IF(ISBLANK(C99),"",IF(MONTH(C99)=MONTH(DATEVALUE(TEXT(DATE(2000,MONTH(DATEVALUE($E$7&" 1"))+1,1),"mmmm")&" 1")),E99/F93*E93,"")) ->  | M99: =IF(ISBLANK(C99),"",IF(MONTH(C99)=MONTH(DATEVALUE(TEXT(DATE(2000,MONTH(DATEVALUE($E$7&" 1"))+2,1),"mmmm")&" 1")),E99/F93*E93,"")) ->  | N99: =IF(ISBLANK(C99),"",IF(MONTH(C99)=MONTH(DATEVALUE(TEXT(DATE(2000,MONTH(DATEVALUE($E$7&" 1"))+3,1),"mmmm")&" 1")),E99/F93*E93,"")) ->  | O99: =IF(ISBLANK(C99),"",IF(MONTH(C99)=MONTH(DATEVALUE(TEXT(DATE(2000,MONTH(DATEVALUE($E$7&" 1"))+4,1),"mmmm")&" 1")),E99/F93*E93,"")) ->  | P99: =IF(ISBLANK(C99),"",IF(MONTH(C99)=MONTH(DATEVALUE(TEXT(DATE(2000,MONTH(DATEVALUE($E$7&" 1"))+5,1),"mmmm")&" 1")),E99/F93*E93,"")) ->  | Q99: =IF(ISBLANK(C99),"",IF(MONTH(C99)=MONTH(DATEVALUE(TEXT(DATE(2000,MONTH(DATEVALUE($E$7&" 1"))+6,1),"mmmm")&" 1")),E99/F93*E93,"")) ->  | R99: =IF(ISBLANK(C99),"",IF(MONTH(C99)=MONTH(DATEVALUE(TEXT(DATE(2000,MONTH(DATEVALUE($E$7&" 1"))+7,1),"mmmm")&" 1")),E99/F93*E93,"")) ->  | S99: =IF(ISBLANK(C99),"",IF(MONTH(C99)=MONTH(DATEVALUE(TEXT(DATE(2000,MONTH(DATEVALUE($E$7&" 1"))+8,1),"mmmm")&" 1")),E99/F93*E93,"")) ->  | T99: =IF(ISBLANK(C99),"",IF(MONTH(C99)=MONTH(DATEVALUE(TEXT(DATE(2000,MONTH(DATEVALUE($E$7&" 1"))+9,1),"mmmm")&" 1")),E99/F93*E93,"")) ->  | U99: =IF(ISBLANK(C99),"",IF(MONTH(C99)=MONTH(DATEVALUE(TEXT(DATE(2000,MONTH(DATEVALUE($E$7&" 1"))+10,1),"mmmm")&" 1")),E99/F93*E93,"")) ->  | V99: =IF(ISBLANK(C99),"",IF(MONTH(C99)=MONTH(DATEVALUE(TEXT(DATE(2000,MONTH(DATEVALUE($E$7&" 1"))+11,1),"mmmm")&" 1")),E99/F93*E93,"")) -> 
I100: 0 | K100: =IF(ISBLANK(C100),"",IF(MONTH(C100)=MONTH(DATEVALUE($E$7&" 1")),E100/F93*E93,"")) ->  | L100: =IF(ISBLANK(C100),"",IF(MONTH(C100)=MONTH(DATEVALUE(TEXT(DATE(2000,MONTH(DATEVALUE($E$7&" 1"))+1,1),"mmmm")&" 1")),E100/F93*E93,"")) ->  | M100: =IF(ISBLANK(C100),"",IF(MONTH(C100)=MONTH(DATEVALUE(TEXT(DATE(2000,MONTH(DATEVALUE($E$7&" 1"))+2,1),"mmmm")&" 1")),E100/F93*E93,"")) ->  | N100: =IF(ISBLANK(C100),"",IF(MONTH(C100)=MONTH(DATEVALUE(TEXT(DATE(2000,MONTH(DATEVALUE($E$7&" 1"))+3,1),"mmmm")&" 1")),E100/F93*E93,"")) ->  | O100: =IF(ISBLANK(C100),"",IF(MONTH(C100)=MONTH(DATEVALUE(TEXT(DATE(2000,MONTH(DATEVALUE($E$7&" 1"))+4,1),"mmmm")&" 1")),E100/F93*E93,"")) ->  | P100: =IF(ISBLANK(C100),"",IF(MONTH(C100)=MONTH(DATEVALUE(TEXT(DATE(2000,MONTH(DATEVALUE($E$7&" 1"))+5,1),"mmmm")&" 1")),E100/F93*E93,"")) ->  | Q100: =IF(ISBLANK(C100),"",IF(MONTH(C100)=MONTH(DATEVALUE(TEXT(DATE(2000,MONTH(DATEVALUE($E$7&" 1"))+6,1),"mmmm")&" 1")),E100/F93*E93,"")) ->  | R100: =IF(ISBLANK(C100),"",IF(MONTH(C100)=MONTH(DATEVALUE(TEXT(DATE(2000,MONTH(DATEVALUE($E$7&" 1"))+7,1),"mmmm")&" 1")),E100/F93*E93,"")) ->  | S100: =IF(ISBLANK(C100),"",IF(MONTH(C100)=MONTH(DATEVALUE(TEXT(DATE(2000,MONTH(DATEVALUE($E$7&" 1"))+8,1),"mmmm")&" 1")),E100/F93*E93,"")) ->  | T100: =IF(ISBLANK(C100),"",IF(MONTH(C100)=MONTH(DATEVALUE(TEXT(DATE(2000,MONTH(DATEVALUE($E$7&" 1"))+9,1),"mmmm")&" 1")),E100/F93*E93,"")) ->  | U100: =IF(ISBLANK(C100),"",IF(MONTH(C100)=MONTH(DATEVALUE(TEXT(DATE(2000,MONTH(DATEVALUE($E$7&" 1"))+10,1),"mmmm")&" 1")),E100/F93*E93,"")) ->  | V100: =IF(ISBLANK(C100),"",IF(MONTH(C100)=MONTH(DATEVALUE(TEXT(DATE(2000,MONTH(DATEVALUE($E$7&" 1"))+11,1),"mmmm")&" 1")),E100/F93*E93,"")) -> 
I101: 0 | K101: =IF(ISBLANK(C101),"",IF(MONTH(C101)=MONTH(DATEVALUE($E$7&" 1")),E101/F93*E93,"")) ->  | L101: =IF(ISBLANK(C101),"",IF(MONTH(C101)=MONTH(DATEVALUE(TEXT(DATE(2000,MONTH(DATEVALUE($E$7&" 1"))+1,1),"mmmm")&" 1")),E101/F93*E93,"")) ->  | M101: =IF(ISBLANK(C101),"",IF(MONTH(C101)=MONTH(DATEVALUE(TEXT(DATE(2000,MONTH(DATEVALUE($E$7&" 1"))+2,1),"mmmm")&" 1")),E101/F93*E93,"")) ->  | N101: =IF(ISBLANK(C101),"",IF(MONTH(C101)=MONTH(DATEVALUE(TEXT(DATE(2000,MONTH(DATEVALUE($E$7&" 1"))+3,1),"mmmm")&" 1")),E101/F93*E93,"")) ->  | O101: =IF(ISBLANK(C101),"",IF(MONTH(C101)=MONTH(DATEVALUE(TEXT(DATE(2000,MONTH(DATEVALUE($E$7&" 1"))+4,1),"mmmm")&" 1")),E101/F93*E93,"")) ->  | P101: =IF(ISBLANK(C101),"",IF(MONTH(C101)=MONTH(DATEVALUE(TEXT(DATE(2000,MONTH(DATEVALUE($E$7&" 1"))+5,1),"mmmm")&" 1")),E101/F93*E93,"")) ->  | Q101: =IF(ISBLANK(C101),"",IF(MONTH(C101)=MONTH(DATEVALUE(TEXT(DATE(2000,MONTH(DATEVALUE($E$7&" 1"))+6,1),"mmmm")&" 1")),E101/F93*E93,"")) ->  | R101: =IF(ISBLANK(C101),"",IF(MONTH(C101)=MONTH(DATEVALUE(TEXT(DATE(2000,MONTH(DATEVALUE($E$7&" 1"))+7,1),"mmmm")&" 1")),E101/F93*E93,"")) ->  | S101: =IF(ISBLANK(C101),"",IF(MONTH(C101)=MONTH(DATEVALUE(TEXT(DATE(2000,MONTH(DATEVALUE($E$7&" 1"))+8,1),"mmmm")&" 1")),E101/F93*E93,"")) ->  | T101: =IF(ISBLANK(C101),"",IF(MONTH(C101)=MONTH(DATEVALUE(TEXT(DATE(2000,MONTH(DATEVALUE($E$7&" 1"))+9,1),"mmmm")&" 1")),E101/F93*E93,"")) ->  | U101: =IF(ISBLANK(C101),"",IF(MONTH(C101)=MONTH(DATEVALUE(TEXT(DATE(2000,MONTH(DATEVALUE($E$7&" 1"))+10,1),"mmmm")&" 1")),E101/F93*E93,"")) ->  | V101: =IF(ISBLANK(C101),"",IF(MONTH(C101)=MONTH(DATEVALUE(TEXT(DATE(2000,MONTH(DATEVALUE($E$7&" 1"))+11,1),"mmmm")&" 1")),E101/F93*E93,"")) -> 
I102: 0 | K102: =IF(ISBLANK(C102),"",IF(MONTH(C102)=MONTH(DATEVALUE($E$7&" 1")),E102/F93*E93,"")) ->  | L102: =IF(ISBLANK(C102),"",IF(MONTH(C102)=MONTH(DATEVALUE(TEXT(DATE(2000,MONTH(DATEVALUE($E$7&" 1"))+1,1),"mmmm")&" 1")),E102/F93*E93,"")) ->  | M102: =IF(ISBLANK(C102),"",IF(MONTH(C102)=MONTH(DATEVALUE(TEXT(DATE(2000,MONTH(DATEVALUE($E$7&" 1"))+2,1),"mmmm")&" 1")),E102/F93*E93,"")) ->  | N102: =IF(ISBLANK(C102),"",IF(MONTH(C102)=MONTH(DATEVALUE(TEXT(DATE(2000,MONTH(DATEVALUE($E$7&" 1"))+3,1),"mmmm")&" 1")),E102/F93*E93,"")) ->  | O102: =IF(ISBLANK(C102),"",IF(MONTH(C102)=MONTH(DATEVALUE(TEXT(DATE(2000,MONTH(DATEVALUE($E$7&" 1"))+4,1),"mmmm")&" 1")),E102/F93*E93,"")) ->  | P102: =IF(ISBLANK(C102),"",IF(MONTH(C102)=MONTH(DATEVALUE(TEXT(DATE(2000,MONTH(DATEVALUE($E$7&" 1"))+5,1),"mmmm")&" 1")),E102/F93*E93,"")) ->  | Q102: =IF(ISBLANK(C102),"",IF(MONTH(C102)=MONTH(DATEVALUE(TEXT(DATE(2000,MONTH(DATEVALUE($E$7&" 1"))+6,1),"mmmm")&" 1")),E102/F93*E93,"")) ->  | R102: =IF(ISBLANK(C102),"",IF(MONTH(C102)=MONTH(DATEVALUE(TEXT(DATE(2000,MONTH(DATEVALUE($E$7&" 1"))+7,1),"mmmm")&" 1")),E102/F93*E93,"")) ->  | S102: =IF(ISBLANK(C102),"",IF(MONTH(C102)=MONTH(DATEVALUE(TEXT(DATE(2000,MONTH(DATEVALUE($E$7&" 1"))+8,1),"mmmm")&" 1")),E102/F93*E93,"")) ->  | T102: =IF(ISBLANK(C102),"",IF(MONTH(C102)=MONTH(DATEVALUE(TEXT(DATE(2000,MONTH(DATEVALUE($E$7&" 1"))+9,1),"mmmm")&" 1")),E102/F93*E93,"")) ->  | U102: =IF(ISBLANK(C102),"",IF(MONTH(C102)=MONTH(DATEVALUE(TEXT(DATE(2000,MONTH(DATEVALUE($E$7&" 1"))+10,1),"mmmm")&" 1")),E102/F93*E93,"")) ->  | V102: =IF(ISBLANK(C102),"",IF(MONTH(C102)=MONTH(DATEVALUE(TEXT(DATE(2000,MONTH(DATEVALUE($E$7&" 1"))+11,1),"mmmm")&" 1")),E102/F93*E93,"")) -> 
I103: 0 | K103: =IF(ISBLANK(C103),"",IF(MONTH(C103)=MONTH(DATEVALUE($E$7&" 1")),E103/F93*E93,"")) ->  | L103: =IF(ISBLANK(C103),"",IF(MONTH(C103)=MONTH(DATEVALUE(TEXT(DATE(2000,MONTH(DATEVALUE($E$7&" 1"))+1,1),"mmmm")&" 1")),E103/F93*E93,"")) ->  | M103: =IF(ISBLANK(C103),"",IF(MONTH(C103)=MONTH(DATEVALUE(TEXT(DATE(2000,MONTH(DATEVALUE($E$7&" 1"))+2,1),"mmmm")&" 1")),E103/F93*E93,"")) ->  | N103: =IF(ISBLANK(C103),"",IF(MONTH(C103)=MONTH(DATEVALUE(TEXT(DATE(2000,MONTH(DATEVALUE($E$7&" 1"))+3,1),"mmmm")&" 1")),E103/F93*E93,"")) ->  | O103: =IF(ISBLANK(C103),"",IF(MONTH(C103)=MONTH(DATEVALUE(TEXT(DATE(2000,MONTH(DATEVALUE($E$7&" 1"))+4,1),"mmmm")&" 1")),E103/F93*E93,"")) ->  | P103: =IF(ISBLANK(C103),"",IF(MONTH(C103)=MONTH(DATEVALUE(TEXT(DATE(2000,MONTH(DATEVALUE($E$7&" 1"))+5,1),"mmmm")&" 1")),E103/F93*E93,"")) ->  | Q103: =IF(ISBLANK(C103),"",IF(MONTH(C103)=MONTH(DATEVALUE(TEXT(DATE(2000,MONTH(DATEVALUE($E$7&" 1"))+6,1),"mmmm")&" 1")),E103/F93*E93,"")) ->  | R103: =IF(ISBLANK(C103),"",IF(MONTH(C103)=MONTH(DATEVALUE(TEXT(DATE(2000,MONTH(DATEVALUE($E$7&" 1"))+7,1),"mmmm")&" 1")),E103/F93*E93,"")) ->  | S103: =IF(ISBLANK(C103),"",IF(MONTH(C103)=MONTH(DATEVALUE(TEXT(DATE(2000,MONTH(DATEVALUE($E$7&" 1"))+8,1),"mmmm")&" 1")),E103/F93*E93,"")) ->  | T103: =IF(ISBLANK(C103),"",IF(MONTH(C103)=MONTH(DATEVALUE(TEXT(DATE(2000,MONTH(DATEVALUE($E$7&" 1"))+9,1),"mmmm")&" 1")),E103/F93*E93,"")) ->  | U103: =IF(ISBLANK(C103),"",IF(MONTH(C103)=MONTH(DATEVALUE(TEXT(DATE(2000,MONTH(DATEVALUE($E$7&" 1"))+10,1),"mmmm")&" 1")),E103/F93*E93,"")) ->  | V103: =IF(ISBLANK(C103),"",IF(MONTH(C103)=MONTH(DATEVALUE(TEXT(DATE(2000,MONTH(DATEVALUE($E$7&" 1"))+11,1),"mmmm")&" 1")),E103/F93*E93,"")) -> 
I104: 0 | K104: =IF(ISBLANK(C104),"",IF(MONTH(C104)=MONTH(DATEVALUE($E$7&" 1")),E104/F93*E93,"")) ->  | L104: =IF(ISBLANK(C104),"",IF(MONTH(C104)=MONTH(DATEVALUE(TEXT(DATE(2000,MONTH(DATEVALUE($E$7&" 1"))+1,1),"mmmm")&" 1")),E104/F93*E93,"")) ->  | M104: =IF(ISBLANK(C104),"",IF(MONTH(C104)=MONTH(DATEVALUE(TEXT(DATE(2000,MONTH(DATEVALUE($E$7&" 1"))+2,1),"mmmm")&" 1")),E104/F93*E93,"")) ->  | N104: =IF(ISBLANK(C104),"",IF(MONTH(C104)=MONTH(DATEVALUE(TEXT(DATE(2000,MONTH(DATEVALUE($E$7&" 1"))+3,1),"mmmm")&" 1")),E104/F93*E93,"")) ->  | O104: =IF(ISBLANK(C104),"",IF(MONTH(C104)=MONTH(DATEVALUE(TEXT(DATE(2000,MONTH(DATEVALUE($E$7&" 1"))+4,1),"mmmm")&" 1")),E104/F93*E93,"")) ->  | P104: =IF(ISBLANK(C104),"",IF(MONTH(C104)=MONTH(DATEVALUE(TEXT(DATE(2000,MONTH(DATEVALUE($E$7&" 1"))+5,1),"mmmm")&" 1")),E104/F93*E93,"")) ->  | Q104: =IF(ISBLANK(C104),"",IF(MONTH(C104)=MONTH(DATEVALUE(TEXT(DATE(2000,MONTH(DATEVALUE($E$7&" 1"))+6,1),"mmmm")&" 1")),E104/F93*E93,"")) ->  | R104: =IF(ISBLANK(C104),"",IF(MONTH(C104)=MONTH(DATEVALUE(TEXT(DATE(2000,MONTH(DATEVALUE($E$7&" 1"))+7,1),"mmmm")&" 1")),E104/F93*E93,"")) ->  | S104: =IF(ISBLANK(C104),"",IF(MONTH(C104)=MONTH(DATEVALUE(TEXT(DATE(2000,MONTH(DATEVALUE($E$7&" 1"))+8,1),"mmmm")&" 1")),E104/F93*E93,"")) ->  | T104: =IF(ISBLANK(C104),"",IF(MONTH(C104)=MONTH(DATEVALUE(TEXT(DATE(2000,MONTH(DATEVALUE($E$7&" 1"))+9,1),"mmmm")&" 1")),E104/F93*E93,"")) ->  | U104: =IF(ISBLANK(C104),"",IF(MONTH(C104)=MONTH(DATEVALUE(TEXT(DATE(2000,MONTH(DATEVALUE($E$7&" 1"))+10,1),"mmmm")&" 1")),E104/F93*E93,"")) ->  | V104: =IF(ISBLANK(C104),"",IF(MONTH(C104)=MONTH(DATEVALUE(TEXT(DATE(2000,MONTH(DATEVALUE($E$7&" 1"))+11,1),"mmmm")&" 1")),E104/F93*E93,"")) -> 
H105: =IFERROR(SUM(E107:H116)/F105,0) -> 0 | I105: =SUM(I106:J116) -> 0 | W105: =IF(H105<>100%,"Pas ok","ok") -> Pas ok
B106: Numéro de facture | C106: Date de facturation | D106: Description de la facture | E106: Montant de la facture
I107: =SUM(K107:V107) -> 0 | K107: =IF(ISBLANK(C107),"",IF(MONTH(C107)=MONTH(DATEVALUE($E$7&" 1")),E107/F105*E105,"")) ->  | L107: =IF(ISBLANK(C107),"",IF(MONTH(C107)=MONTH(DATEVALUE(TEXT(DATE(2000,MONTH(DATEVALUE($E$7&" 1"))+1,1),"mmmm")&" 1")),E107/F105*E105,"")) ->  | M107: =IF(ISBLANK(C107),"",IF(MONTH(C107)=MONTH(DATEVALUE(TEXT(DATE(2000,MONTH(DATEVALUE($E$7&" 1"))+2,1),"mmmm")&" 1")),E107/F105*E105,"")) ->  | N107: =IF(ISBLANK(C107),"",IF(MONTH(C107)=MONTH(DATEVALUE(TEXT(DATE(2000,MONTH(DATEVALUE($E$7&" 1"))+3,1),"mmmm")&" 1")),E107/F105*E105,"")) ->  | O107: =IF(ISBLANK(C107),"",IF(MONTH(C107)=MONTH(DATEVALUE(TEXT(DATE(2000,MONTH(DATEVALUE($E$7&" 1"))+4,1),"mmmm")&" 1")),E107/F105*E105,"")) ->  | P107: =IF(ISBLANK(C107),"",IF(MONTH(C107)=MONTH(DATEVALUE(TEXT(DATE(2000,MONTH(DATEVALUE($E$7&" 1"))+5,1),"mmmm")&" 1")),E107/F105*E105,"")) ->  | Q107: =IF(ISBLANK(C107),"",IF(MONTH(C107)=MONTH(DATEVALUE(TEXT(DATE(2000,MONTH(DATEVALUE($E$7&" 1"))+6,1),"mmmm")&" 1")),E107/F105*E105,"")) ->  | R107: =IF(ISBLANK(C107),"",IF(MONTH(C107)=MONTH(DATEVALUE(TEXT(DATE(2000,MONTH(DATEVALUE($E$7&" 1"))+7,1),"mmmm")&" 1")),E107/F105*E105,"")) ->  | S107: =IF(ISBLANK(C107),"",IF(MONTH(C107)=MONTH(DATEVALUE(TEXT(DATE(2000,MONTH(DATEVALUE($E$7&" 1"))+8,1),"mmmm")&" 1")),E107/F105*E105,"")) ->  | T107: =IF(ISBLANK(C107),"",IF(MONTH(C107)=MONTH(DATEVALUE(TEXT(DATE(2000,MONTH(DATEVALUE($E$7&" 1"))+9,1),"mmmm")&" 1")),E107/F105*E105,"")) ->  | U107: =IF(ISBLANK(C107),"",IF(MONTH(C107)=MONTH(DATEVALUE(TEXT(DATE(2000,MONTH(DATEVALUE($E$7&" 1"))+10,1),"mmmm")&" 1")),E107/F105*E105,"")) ->  | V107: =IF(ISBLANK(C107),"",IF(MONTH(C107)=MONTH(DATEVALUE(TEXT(DATE(2000,MONTH(DATEVALUE($E$7&" 1"))+11,1),"mmmm")&" 1")),E107/F105*E105,"")) -> 
I108: 0 | K108: =IF(ISBLANK(C108),"",IF(MONTH(C108)=MONTH(DATEVALUE($E$7&" 1")),E108/F105*E105,"")) ->  | L108: =IF(ISBLANK(C108),"",IF(MONTH(C108)=MONTH(DATEVALUE(TEXT(DATE(2000,MONTH(DATEVALUE($E$7&" 1"))+1,1),"mmmm")&" 1")),E108/F105*E105,"")) ->  | M108: =IF(ISBLANK(C108),"",IF(MONTH(C108)=MONTH(DATEVALUE(TEXT(DATE(2000,MONTH(DATEVALUE($E$7&" 1"))+2,1),"mmmm")&" 1")),E108/F105*E105,"")) ->  | N108: =IF(ISBLANK(C108),"",IF(MONTH(C108)=MONTH(DATEVALUE(TEXT(DATE(2000,MONTH(DATEVALUE($E$7&" 1"))+3,1),"mmmm")&" 1")),E108/F105*E105,"")) ->  | O108: =IF(ISBLANK(C108),"",IF(MONTH(C108)=MONTH(DATEVALUE(TEXT(DATE(2000,MONTH(DATEVALUE($E$7&" 1"))+4,1),"mmmm")&" 1")),E108/F105*E105,"")) ->  | P108: =IF(ISBLANK(C108),"",IF(MONTH(C108)=MONTH(DATEVALUE(TEXT(DATE(2000,MONTH(DATEVALUE($E$7&" 1"))+5,1),"mmmm")&" 1")),E108/F105*E105,"")) ->  | Q108: =IF(ISBLANK(C108),"",IF(MONTH(C108)=MONTH(DATEVALUE(TEXT(DATE(2000,MONTH(DATEVALUE($E$7&" 1"))+6,1),"mmmm")&" 1")),E108/F105*E105,"")) ->  | R108: =IF(ISBLANK(C108),"",IF(MONTH(C108)=MONTH(DATEVALUE(TEXT(DATE(2000,MONTH(DATEVALUE($E$7&" 1"))+7,1),"mmmm")&" 1")),E108/F105*E105,"")) ->  | S108: =IF(ISBLANK(C108),"",IF(MONTH(C108)=MONTH(DATEVALUE(TEXT(DATE(2000,MONTH(DATEVALUE($E$7&" 1"))+8,1),"mmmm")&" 1")),E108/F105*E105,"")) ->  | T108: =IF(ISBLANK(C108),"",IF(MONTH(C108)=MONTH(DATEVALUE(TEXT(DATE(2000,MONTH(DATEVALUE($E$7&" 1"))+9,1),"mmmm")&" 1")),E108/F105*E105,"")) ->  | U108: =IF(ISBLANK(C108),"",IF(MONTH(C108)=MONTH(DATEVALUE(TEXT(DATE(2000,MONTH(DATEVALUE($E$7&" 1"))+10,1),"mmmm")&" 1")),E108/F105*E105,"")) ->  | V108: =IF(ISBLANK(C108),"",IF(MONTH(C108)=MONTH(DATEVALUE(TEXT(DATE(2000,MONTH(DATEVALUE($E$7&" 1"))+11,1),"mmmm")&" 1")),E108/F105*E105,"")) -> 
I109: 0 | K109: =IF(ISBLANK(C109),"",IF(MONTH(C109)=MONTH(DATEVALUE($E$7&" 1")),E109/F105*E105,"")) ->  | L109: =IF(ISBLANK(C109),"",IF(MONTH(C109)=MONTH(DATEVALUE(TEXT(DATE(2000,MONTH(DATEVALUE($E$7&" 1"))+1,1),"mmmm")&" 1")),E109/F105*E105,"")) ->  | M109: =IF(ISBLANK(C109),"",IF(MONTH(C109)=MONTH(DATEVALUE(TEXT(DATE(2000,MONTH(DATEVALUE($E$7&" 1"))+2,1),"mmmm")&" 1")),E109/F105*E105,"")) ->  | N109: =IF(ISBLANK(C109),"",IF(MONTH(C109)=MONTH(DATEVALUE(TEXT(DATE(2000,MONTH(DATEVALUE($E$7&" 1"))+3,1),"mmmm")&" 1")),E109/F105*E105,"")) ->  | O109: =IF(ISBLANK(C109),"",IF(MONTH(C109)=MONTH(DATEVALUE(TEXT(DATE(2000,MONTH(DATEVALUE($E$7&" 1"))+4,1),"mmmm")&" 1")),E109/F105*E105,"")) ->  | P109: =IF(ISBLANK(C109),"",IF(MONTH(C109)=MONTH(DATEVALUE(TEXT(DATE(2000,MONTH(DATEVALUE($E$7&" 1"))+5,1),"mmmm")&" 1")),E109/F105*E105,"")) ->  | Q109: =IF(ISBLANK(C109),"",IF(MONTH(C109)=MONTH(DATEVALUE(TEXT(DATE(2000,MONTH(DATEVALUE($E$7&" 1"))+6,1),"mmmm")&" 1")),E109/F105*E105,"")) ->  | R109: =IF(ISBLANK(C109),"",IF(MONTH(C109)=MONTH(DATEVALUE(TEXT(DATE(2000,MONTH(DATEVALUE($E$7&" 1"))+7,1),"mmmm")&" 1")),E109/F105*E105,"")) ->  | S109: =IF(ISBLANK(C109),"",IF(MONTH(C109)=MONTH(DATEVALUE(TEXT(DATE(2000,MONTH(DATEVALUE($E$7&" 1"))+8,1),"mmmm")&" 1")),E109/F105*E105,"")) ->  | T109: =IF(ISBLANK(C109),"",IF(MONTH(C109)=MONTH(DATEVALUE(TEXT(DATE(2000,MONTH(DATEVALUE($E$7&" 1"))+9,1),"mmmm")&" 1")),E109/F105*E105,"")) ->  | U109: =IF(ISBLANK(C109),"",IF(MONTH(C109)=MONTH(DATEVALUE(TEXT(DATE(2000,MONTH(DATEVALUE($E$7&" 1"))+10,1),"mmmm")&" 1")),E109/F105*E105,"")) ->  | V109: =IF(ISBLANK(C109),"",IF(MONTH(C109)=MONTH(DATEVALUE(TEXT(DATE(2000,MONTH(DATEVALUE($E$7&" 1"))+11,1),"mmmm")&" 1")),E109/F105*E105,"")) -> 
I110: 0 | K110: =IF(ISBLANK(C110),"",IF(MONTH(C110)=MONTH(DATEVALUE($E$7&" 1")),E110/F105*E105,"")) ->  | L110: =IF(ISBLANK(C110),"",IF(MONTH(C110)=MONTH(DATEVALUE(TEXT(DATE(2000,MONTH(DATEVALUE($E$7&" 1"))+1,1),"mmmm")&" 1")),E110/F105*E105,"")) ->  | M110: =IF(ISBLANK(C110),"",IF(MONTH(C110)=MONTH(DATEVALUE(TEXT(DATE(2000,MONTH(DATEVALUE($E$7&" 1"))+2,1),"mmmm")&" 1")),E110/F105*E105,"")) ->  | N110: =IF(ISBLANK(C110),"",IF(MONTH(C110)=MONTH(DATEVALUE(TEXT(DATE(2000,MONTH(DATEVALUE($E$7&" 1"))+3,1),"mmmm")&" 1")),E110/F105*E105,"")) ->  | O110: =IF(ISBLANK(C110),"",IF(MONTH(C110)=MONTH(DATEVALUE(TEXT(DATE(2000,MONTH(DATEVALUE($E$7&" 1"))+4,1),"mmmm")&" 1")),E110/F105*E105,"")) ->  | P110: =IF(ISBLANK(C110),"",IF(MONTH(C110)=MONTH(DATEVALUE(TEXT(DATE(2000,MONTH(DATEVALUE($E$7&" 1"))+5,1),"mmmm")&" 1")),E110/F105*E105,"")) ->  | Q110: =IF(ISBLANK(C110),"",IF(MONTH(C110)=MONTH(DATEVALUE(TEXT(DATE(2000,MONTH(DATEVALUE($E$7&" 1"))+6,1),"mmmm")&" 1")),E110/F105*E105,"")) ->  | R110: =IF(ISBLANK(C110),"",IF(MONTH(C110)=MONTH(DATEVALUE(TEXT(DATE(2000,MONTH(DATEVALUE($E$7&" 1"))+7,1),"mmmm")&" 1")),E110/F105*E105,"")) ->  | S110: =IF(ISBLANK(C110),"",IF(MONTH(C110)=MONTH(DATEVALUE(TEXT(DATE(2000,MONTH(DATEVALUE($E$7&" 1"))+8,1),"mmmm")&" 1")),E110/F105*E105,"")) ->  | T110: =IF(ISBLANK(C110),"",IF(MONTH(C110)=MONTH(DATEVALUE(TEXT(DATE(2000,MONTH(DATEVALUE($E$7&" 1"))+9,1),"mmmm")&" 1")),E110/F105*E105,"")) ->  | U110: =IF(ISBLANK(C110),"",IF(MONTH(C110)=MONTH(DATEVALUE(TEXT(DATE(2000,MONTH(DATEVALUE($E$7&" 1"))+10,1),"mmmm")&" 1")),E110/F105*E105,"")) ->  | V110: =IF(ISBLANK(C110),"",IF(MONTH(C110)=MONTH(DATEVALUE(TEXT(DATE(2000,MONTH(DATEVALUE($E$7&" 1"))+11,1),"mmmm")&" 1")),E110/F105*E105,"")) -> 
I111: 0 | K111: =IF(ISBLANK(C111),"",IF(MONTH(C111)=MONTH(DATEVALUE($E$7&" 1")),E111/F105*E105,"")) ->  | L111: =IF(ISBLANK(C111),"",IF(MONTH(C111)=MONTH(DATEVALUE(TEXT(DATE(2000,MONTH(DATEVALUE($E$7&" 1"))+1,1),"mmmm")&" 1")),E111/F105*E105,"")) ->  | M111: =IF(ISBLANK(C111),"",IF(MONTH(C111)=MONTH(DATEVALUE(TEXT(DATE(2000,MONTH(DATEVALUE($E$7&" 1"))+2,1),"mmmm")&" 1")),E111/F105*E105,"")) ->  | N111: =IF(ISBLANK(C111),"",IF(MONTH(C111)=MONTH(DATEVALUE(TEXT(DATE(2000,MONTH(DATEVALUE($E$7&" 1"))+3,1),"mmmm")&" 1")),E111/F105*E105,"")) ->  | O111: =IF(ISBLANK(C111),"",IF(MONTH(C111)=MONTH(DATEVALUE(TEXT(DATE(2000,MONTH(DATEVALUE($E$7&" 1"))+4,1),"mmmm")&" 1")),E111/F105*E105,"")) ->  | P111: =IF(ISBLANK(C111),"",IF(MONTH(C111)=MONTH(DATEVALUE(TEXT(DATE(2000,MONTH(DATEVALUE($E$7&" 1"))+5,1),"mmmm")&" 1")),E111/F105*E105,"")) ->  | Q111: =IF(ISBLANK(C111),"",IF(MONTH(C111)=MONTH(DATEVALUE(TEXT(DATE(2000,MONTH(DATEVALUE($E$7&" 1"))+6,1),"mmmm")&" 1")),E111/F105*E105,"")) ->  | R111: =IF(ISBLANK(C111),"",IF(MONTH(C111)=MONTH(DATEVALUE(TEXT(DATE(2000,MONTH(DATEVALUE($E$7&" 1"))+7,1),"mmmm")&" 1")),E111/F105*E105,"")) ->  | S111: =IF(ISBLANK(C111),"",IF(MONTH(C111)=MONTH(DATEVALUE(TEXT(DATE(2000,MONTH(DATEVALUE($E$7&" 1"))+8,1),"mmmm")&" 1")),E111/F105*E105,"")) ->  | T111: =IF(ISBLANK(C111),"",IF(MONTH(C111)=MONTH(DATEVALUE(TEXT(DATE(2000,MONTH(DATEVALUE($E$7&" 1"))+9,1),"mmmm")&" 1")),E111/F105*E105,"")) ->  | U111: =IF(ISBLANK(C111),"",IF(MONTH(C111)=MONTH(DATEVALUE(TEXT(DATE(2000,MONTH(DATEVALUE($E$7&" 1"))+10,1),"mmmm")&" 1")),E111/F105*E105,"")) ->  | V111: =IF(ISBLANK(C111),"",IF(MONTH(C111)=MONTH(DATEVALUE(TEXT(DATE(2000,MONTH(DATEVALUE($E$7&" 1"))+11,1),"mmmm")&" 1")),E111/F105*E105,"")) -> 
I112: 0 | K112: =IF(ISBLANK(C112),"",IF(MONTH(C112)=MONTH(DATEVALUE($E$7&" 1")),E112/F105*E105,"")) ->  | L112: =IF(ISBLANK(C112),"",IF(MONTH(C112)=MONTH(DATEVALUE(TEXT(DATE(2000,MONTH(DATEVALUE($E$7&" 1"))+1,1),"mmmm")&" 1")),E112/F105*E105,"")) ->  | M112: =IF(ISBLANK(C112),"",IF(MONTH(C112)=MONTH(DATEVALUE(TEXT(DATE(2000,MONTH(DATEVALUE($E$7&" 1"))+2,1),"mmmm")&" 1")),E112/F105*E105,"")) ->  | N112: =IF(ISBLANK(C112),"",IF(MONTH(C112)=MONTH(DATEVALUE(TEXT(DATE(2000,MONTH(DATEVALUE($E$7&" 1"))+3,1),"mmmm")&" 1")),E112/F105*E105,"")) ->  | O112: =IF(ISBLANK(C112),"",IF(MONTH(C112)=MONTH(DATEVALUE(TEXT(DATE(2000,MONTH(DATEVALUE($E$7&" 1"))+4,1),"mmmm")&" 1")),E112/F105*E105,"")) ->  | P112: =IF(ISBLANK(C112),"",IF(MONTH(C112)=MONTH(DATEVALUE(TEXT(DATE(2000,MONTH(DATEVALUE($E$7&" 1"))+5,1),"mmmm")&" 1")),E112/F105*E105,"")) ->  | Q112: =IF(ISBLANK(C112),"",IF(MONTH(C112)=MONTH(DATEVALUE(TEXT(DATE(2000,MONTH(DATEVALUE($E$7&" 1"))+6,1),"mmmm")&" 1")),E112/F105*E105,"")) ->  | R112: =IF(ISBLANK(C112),"",IF(MONTH(C112)=MONTH(DATEVALUE(TEXT(DATE(2000,MONTH(DATEVALUE($E$7&" 1"))+7,1),"mmmm")&" 1")),E112/F105*E105,"")) ->  | S112: =IF(ISBLANK(C112),"",IF(MONTH(C112)=MONTH(DATEVALUE(TEXT(DATE(2000,MONTH(DATEVALUE($E$7&" 1"))+8,1),"mmmm")&" 1")),E112/F105*E105,"")) ->  | T112: =IF(ISBLANK(C112),"",IF(MONTH(C112)=MONTH(DATEVALUE(TEXT(DATE(2000,MONTH(DATEVALUE($E$7&" 1"))+9,1),"mmmm")&" 1")),E112/F105*E105,"")) ->  | U112: =IF(ISBLANK(C112),"",IF(MONTH(C112)=MONTH(DATEVALUE(TEXT(DATE(2000,MONTH(DATEVALUE($E$7&" 1"))+10,1),"mmmm")&" 1")),E112/F105*E105,"")) ->  | V112: =IF(ISBLANK(C112),"",IF(MONTH(C112)=MONTH(DATEVALUE(TEXT(DATE(2000,MONTH(DATEVALUE($E$7&" 1"))+11,1),"mmmm")&" 1")),E112/F105*E105,"")) -> 
I113: 0 | K113: =IF(ISBLANK(C113),"",IF(MONTH(C113)=MONTH(DATEVALUE($E$7&" 1")),E113/F105*E105,"")) ->  | L113: =IF(ISBLANK(C113),"",IF(MONTH(C113)=MONTH(DATEVALUE(TEXT(DATE(2000,MONTH(DATEVALUE($E$7&" 1"))+1,1),"mmmm")&" 1")),E113/F105*E105,"")) ->  | M113: =IF(ISBLANK(C113),"",IF(MONTH(C113)=MONTH(DATEVALUE(TEXT(DATE(2000,MONTH(DATEVALUE($E$7&" 1"))+2,1),"mmmm")&" 1")),E113/F105*E105,"")) ->  | N113: =IF(ISBLANK(C113),"",IF(MONTH(C113)=MONTH(DATEVALUE(TEXT(DATE(2000,MONTH(DATEVALUE($E$7&" 1"))+3,1),"mmmm")&" 1")),E113/F105*E105,"")) ->  | O113: =IF(ISBLANK(C113),"",IF(MONTH(C113)=MONTH(DATEVALUE(TEXT(DATE(2000,MONTH(DATEVALUE($E$7&" 1"))+4,1),"mmmm")&" 1")),E113/F105*E105,"")) ->  | P113: =IF(ISBLANK(C113),"",IF(MONTH(C113)=MONTH(DATEVALUE(TEXT(DATE(2000,MONTH(DATEVALUE($E$7&" 1"))+5,1),"mmmm")&" 1")),E113/F105*E105,"")) ->  | Q113: =IF(ISBLANK(C113),"",IF(MONTH(C113)=MONTH(DATEVALUE(TEXT(DATE(2000,MONTH(DATEVALUE($E$7&" 1"))+6,1),"mmmm")&" 1")),E113/F105*E105,"")) ->  | R113: =IF(ISBLANK(C113),"",IF(MONTH(C113)=MONTH(DATEVALUE(TEXT(DATE(2000,MONTH(DATEVALUE($E$7&" 1"))+7,1),"mmmm")&" 1")),E113/F105*E105,"")) ->  | S113: =IF(ISBLANK(C113),"",IF(MONTH(C113)=MONTH(DATEVALUE(TEXT(DATE(2000,MONTH(DATEVALUE($E$7&" 1"))+8,1),"mmmm")&" 1")),E113/F105*E105,"")) ->  | T113: =IF(ISBLANK(C113),"",IF(MONTH(C113)=MONTH(DATEVALUE(TEXT(DATE(2000,MONTH(DATEVALUE($E$7&" 1"))+9,1),"mmmm")&" 1")),E113/F105*E105,"")) ->  | U113: =IF(ISBLANK(C113),"",IF(MONTH(C113)=MONTH(DATEVALUE(TEXT(DATE(2000,MONTH(DATEVALUE($E$7&" 1"))+10,1),"mmmm")&" 1")),E113/F105*E105,"")) ->  | V113: =IF(ISBLANK(C113),"",IF(MONTH(C113)=MONTH(DATEVALUE(TEXT(DATE(2000,MONTH(DATEVALUE($E$7&" 1"))+11,1),"mmmm")&" 1")),E113/F105*E105,"")) -> 
I114: 0 | K114: =IF(ISBLANK(C114),"",IF(MONTH(C114)=MONTH(DATEVALUE($E$7&" 1")),E114/F105*E105,"")) ->  | L114: =IF(ISBLANK(C114),"",IF(MONTH(C114)=MONTH(DATEVALUE(TEXT(DATE(2000,MONTH(DATEVALUE($E$7&" 1"))+1,1),"mmmm")&" 1")),E114/F105*E105,"")) ->  | M114: =IF(ISBLANK(C114),"",IF(MONTH(C114)=MONTH(DATEVALUE(TEXT(DATE(2000,MONTH(DATEVALUE($E$7&" 1"))+2,1),"mmmm")&" 1")),E114/F105*E105,"")) ->  | N114: =IF(ISBLANK(C114),"",IF(MONTH(C114)=MONTH(DATEVALUE(TEXT(DATE(2000,MONTH(DATEVALUE($E$7&" 1"))+3,1),"mmmm")&" 1")),E114/F105*E105,"")) ->  | O114: =IF(ISBLANK(C114),"",IF(MONTH(C114)=MONTH(DATEVALUE(TEXT(DATE(2000,MONTH(DATEVALUE($E$7&" 1"))+4,1),"mmmm")&" 1")),E114/F105*E105,"")) ->  | P114: =IF(ISBLANK(C114),"",IF(MONTH(C114)=MONTH(DATEVALUE(TEXT(DATE(2000,MONTH(DATEVALUE($E$7&" 1"))+5,1),"mmmm")&" 1")),E114/F105*E105,"")) ->  | Q114: =IF(ISBLANK(C114),"",IF(MONTH(C114)=MONTH(DATEVALUE(TEXT(DATE(2000,MONTH(DATEVALUE($E$7&" 1"))+6,1),"mmmm")&" 1")),E114/F105*E105,"")) ->  | R114: =IF(ISBLANK(C114),"",IF(MONTH(C114)=MONTH(DATEVALUE(TEXT(DATE(2000,MONTH(DATEVALUE($E$7&" 1"))+7,1),"mmmm")&" 1")),E114/F105*E105,"")) ->  | S114: =IF(ISBLANK(C114),"",IF(MONTH(C114)=MONTH(DATEVALUE(TEXT(DATE(2000,MONTH(DATEVALUE($E$7&" 1"))+8,1),"mmmm")&" 1")),E114/F105*E105,"")) ->  | T114: =IF(ISBLANK(C114),"",IF(MONTH(C114)=MONTH(DATEVALUE(TEXT(DATE(2000,MONTH(DATEVALUE($E$7&" 1"))+9,1),"mmmm")&" 1")),E114/F105*E105,"")) ->  | U114: =IF(ISBLANK(C114),"",IF(MONTH(C114)=MONTH(DATEVALUE(TEXT(DATE(2000,MONTH(DATEVALUE($E$7&" 1"))+10,1),"mmmm")&" 1")),E114/F105*E105,"")) ->  | V114: =IF(ISBLANK(C114),"",IF(MONTH(C114)=MONTH(DATEVALUE(TEXT(DATE(2000,MONTH(DATEVALUE($E$7&" 1"))+11,1),"mmmm")&" 1")),E114/F105*E105,"")) -> 
I115: 0 | K115: =IF(ISBLANK(C115),"",IF(MONTH(C115)=MONTH(DATEVALUE($E$7&" 1")),E115/F105*E105,"")) ->  | L115: =IF(ISBLANK(C115),"",IF(MONTH(C115)=MONTH(DATEVALUE(TEXT(DATE(2000,MONTH(DATEVALUE($E$7&" 1"))+1,1),"mmmm")&" 1")),E115/F105*E105,"")) ->  | M115: =IF(ISBLANK(C115),"",IF(MONTH(C115)=MONTH(DATEVALUE(TEXT(DATE(2000,MONTH(DATEVALUE($E$7&" 1"))+2,1),"mmmm")&" 1")),E115/F105*E105,"")) ->  | N115: =IF(ISBLANK(C115),"",IF(MONTH(C115)=MONTH(DATEVALUE(TEXT(DATE(2000,MONTH(DATEVALUE($E$7&" 1"))+3,1),"mmmm")&" 1")),E115/F105*E105,"")) ->  | O115: =IF(ISBLANK(C115),"",IF(MONTH(C115)=MONTH(DATEVALUE(TEXT(DATE(2000,MONTH(DATEVALUE($E$7&" 1"))+4,1),"mmmm")&" 1")),E115/F105*E105,"")) ->  | P115: =IF(ISBLANK(C115),"",IF(MONTH(C115)=MONTH(DATEVALUE(TEXT(DATE(2000,MONTH(DATEVALUE($E$7&" 1"))+5,1),"mmmm")&" 1")),E115/F105*E105,"")) ->  | Q115: =IF(ISBLANK(C115),"",IF(MONTH(C115)=MONTH(DATEVALUE(TEXT(DATE(2000,MONTH(DATEVALUE($E$7&" 1"))+6,1),"mmmm")&" 1")),E115/F105*E105,"")) ->  | R115: =IF(ISBLANK(C115),"",IF(MONTH(C115)=MONTH(DATEVALUE(TEXT(DATE(2000,MONTH(DATEVALUE($E$7&" 1"))+7,1),"mmmm")&" 1")),E115/F105*E105,"")) ->  | S115: =IF(ISBLANK(C115),"",IF(MONTH(C115)=MONTH(DATEVALUE(TEXT(DATE(2000,MONTH(DATEVALUE($E$7&" 1"))+8,1),"mmmm")&" 1")),E115/F105*E105,"")) ->  | T115: =IF(ISBLANK(C115),"",IF(MONTH(C115)=MONTH(DATEVALUE(TEXT(DATE(2000,MONTH(DATEVALUE($E$7&" 1"))+9,1),"mmmm")&" 1")),E115/F105*E105,"")) ->  | U115: =IF(ISBLANK(C115),"",IF(MONTH(C115)=MONTH(DATEVALUE(TEXT(DATE(2000,MONTH(DATEVALUE($E$7&" 1"))+10,1),"mmmm")&" 1")),E115/F105*E105,"")) ->  | V115: =IF(ISBLANK(C115),"",IF(MONTH(C115)=MONTH(DATEVALUE(TEXT(DATE(2000,MONTH(DATEVALUE($E$7&" 1"))+11,1),"mmmm")&" 1")),E115/F105*E105,"")) -> 
I116: 0 | K116: =IF(ISBLANK(C116),"",IF(MONTH(C116)=MONTH(DATEVALUE($E$7&" 1")),E116/F105*E105,"")) ->  | L116: =IF(ISBLANK(C116),"",IF(MONTH(C116)=MONTH(DATEVALUE(TEXT(DATE(2000,MONTH(DATEVALUE($E$7&" 1"))+1,1),"mmmm")&" 1")),E116/F105*E105,"")) ->  | M116: =IF(ISBLANK(C116),"",IF(MONTH(C116)=MONTH(DATEVALUE(TEXT(DATE(2000,MONTH(DATEVALUE($E$7&" 1"))+2,1),"mmmm")&" 1")),E116/F105*E105,"")) ->  | N116: =IF(ISBLANK(C116),"",IF(MONTH(C116)=MONTH(DATEVALUE(TEXT(DATE(2000,MONTH(DATEVALUE($E$7&" 1"))+3,1),"mmmm")&" 1")),E116/F105*E105,"")) ->  | O116: =IF(ISBLANK(C116),"",IF(MONTH(C116)=MONTH(DATEVALUE(TEXT(DATE(2000,MONTH(DATEVALUE($E$7&" 1"))+4,1),"mmmm")&" 1")),E116/F105*E105,"")) ->  | P116: =IF(ISBLANK(C116),"",IF(MONTH(C116)=MONTH(DATEVALUE(TEXT(DATE(2000,MONTH(DATEVALUE($E$7&" 1"))+5,1),"mmmm")&" 1")),E116/F105*E105,"")) ->  | Q116: =IF(ISBLANK(C116),"",IF(MONTH(C116)=MONTH(DATEVALUE(TEXT(DATE(2000,MONTH(DATEVALUE($E$7&" 1"))+6,1),"mmmm")&" 1")),E116/F105*E105,"")) ->  | R116: =IF(ISBLANK(C116),"",IF(MONTH(C116)=MONTH(DATEVALUE(TEXT(DATE(2000,MONTH(DATEVALUE($E$7&" 1"))+7,1),"mmmm")&" 1")),E116/F105*E105,"")) ->  | S116: =IF(ISBLANK(C116),"",IF(MONTH(C116)=MONTH(DATEVALUE(TEXT(DATE(2000,MONTH(DATEVALUE($E$7&" 1"))+8,1),"mmmm")&" 1")),E116/F105*E105,"")) ->  | T116: =IF(ISBLANK(C116),"",IF(MONTH(C116)=MONTH(DATEVALUE(TEXT(DATE(2000,MONTH(DATEVALUE($E$7&" 1"))+9,1),"mmmm")&" 1")),E116/F105*E105,"")) ->  | U116: =IF(ISBLANK(C116),"",IF(MONTH(C116)=MONTH(DATEVALUE(TEXT(DATE(2000,MONTH(DATEVALUE($E$7&" 1"))+10,1),"mmmm")&" 1")),E116/F105*E105,"")) ->  | V116: =IF(ISBLANK(C116),"",IF(MONTH(C116)=MONTH(DATEVALUE(TEXT(DATE(2000,MONTH(DATEVALUE($E$7&" 1"))+11,1),"mmmm")&" 1")),E116/F105*E105,"")) -> 
H117: =IFERROR(SUM(E119:H128)/F117,0) -> 0 | I117: =SUM(I118:J128) -> 0 | W117: =IF(H117<>100%,"Pas ok","ok") -> Pas ok
B118: Numéro de facture | C118: Date de facturation | D118: Description de la facture | E118: Montant de la facture
I119: =SUM(K119:V119) -> 0 | K119: =IF(ISBLANK(C119),"",IF(MONTH(C119)=MONTH(DATEVALUE($E$7&" 1")),E119/F117*E117,"")) ->  | L119: =IF(ISBLANK(C119),"",IF(MONTH(C119)=MONTH(DATEVALUE(TEXT(DATE(2000,MONTH(DATEVALUE($E$7&" 1"))+1,1),"mmmm")&" 1")),E119/F117*E117,"")) ->  | M119: =IF(ISBLANK(C119),"",IF(MONTH(C119)=MONTH(DATEVALUE(TEXT(DATE(2000,MONTH(DATEVALUE($E$7&" 1"))+2,1),"mmmm")&" 1")),E119/F117*E117,"")) ->  | N119: =IF(ISBLANK(C119),"",IF(MONTH(C119)=MONTH(DATEVALUE(TEXT(DATE(2000,MONTH(DATEVALUE($E$7&" 1"))+3,1),"mmmm")&" 1")),E119/F117*E117,"")) ->  | O119: =IF(ISBLANK(C119),"",IF(MONTH(C119)=MONTH(DATEVALUE(TEXT(DATE(2000,MONTH(DATEVALUE($E$7&" 1"))+4,1),"mmmm")&" 1")),E119/F117*E117,"")) ->  | P119: =IF(ISBLANK(C119),"",IF(MONTH(C119)=MONTH(DATEVALUE(TEXT(DATE(2000,MONTH(DATEVALUE($E$7&" 1"))+5,1),"mmmm")&" 1")),E119/F117*E117,"")) ->  | Q119: =IF(ISBLANK(C119),"",IF(MONTH(C119)=MONTH(DATEVALUE(TEXT(DATE(2000,MONTH(DATEVALUE($E$7&" 1"))+6,1),"mmmm")&" 1")),E119/F117*E117,"")) ->  | R119: =IF(ISBLANK(C119),"",IF(MONTH(C119)=MONTH(DATEVALUE(TEXT(DATE(2000,MONTH(DATEVALUE($E$7&" 1"))+7,1),"mmmm")&" 1")),E119/F117*E117,"")) ->  | S119: =IF(ISBLANK(C119),"",IF(MONTH(C119)=MONTH(DATEVALUE(TEXT(DATE(2000,MONTH(DATEVALUE($E$7&" 1"))+8,1),"mmmm")&" 1")),E119/F117*E117,"")) ->  | T119: =IF(ISBLANK(C119),"",IF(MONTH(C119)=MONTH(DATEVALUE(TEXT(DATE(2000,MONTH(DATEVALUE($E$7&" 1"))+9,1),"mmmm")&" 1")),E119/F117*E117,"")) ->  | U119: =IF(ISBLANK(C119),"",IF(MONTH(C119)=MONTH(DATEVALUE(TEXT(DATE(2000,MONTH(DATEVALUE($E$7&" 1"))+10,1),"mmmm")&" 1")),E119/F117*E117,"")) ->  | V119: =IF(ISBLANK(C119),"",IF(MONTH(C119)=MONTH(DATEVALUE(TEXT(DATE(2000,MONTH(DATEVALUE($E$7&" 1"))+11,1),"mmmm")&" 1")),E119/F117*E117,"")) -> 
I120: 0 | K120: =IF(ISBLANK(C120),"",IF(MONTH(C120)=MONTH(DATEVALUE($E$7&" 1")),E120/F117*E117,"")) ->  | L120: =IF(ISBLANK(C120),"",IF(MONTH(C120)=MONTH(DATEVALUE(TEXT(DATE(2000,MONTH(DATEVALUE($E$7&" 1"))+1,1),"mmmm")&" 1")),E120/F117*E117,"")) ->  | M120: =IF(ISBLANK(C120),"",IF(MONTH(C120)=MONTH(DATEVALUE(TEXT(DATE(2000,MONTH(DATEVALUE($E$7&" 1"))+2,1),"mmmm")&" 1")),E120/F117*E117,"")) ->  | N120: =IF(ISBLANK(C120),"",IF(MONTH(C120)=MONTH(DATEVALUE(TEXT(DATE(2000,MONTH(DATEVALUE($E$7&" 1"))+3,1),"mmmm")&" 1")),E120/F117*E117,"")) ->  | O120: =IF(ISBLANK(C120),"",IF(MONTH(C120)=MONTH(DATEVALUE(TEXT(DATE(2000,MONTH(DATEVALUE($E$7&" 1"))+4,1),"mmmm")&" 1")),E120/F117*E117,"")) ->  | P120: =IF(ISBLANK(C120),"",IF(MONTH(C120)=MONTH(DATEVALUE(TEXT(DATE(2000,MONTH(DATEVALUE($E$7&" 1"))+5,1),"mmmm")&" 1")),E120/F117*E117,"")) ->  | Q120: =IF(ISBLANK(C120),"",IF(MONTH(C120)=MONTH(DATEVALUE(TEXT(DATE(2000,MONTH(DATEVALUE($E$7&" 1"))+6,1),"mmmm")&" 1")),E120/F117*E117,"")) ->  | R120: =IF(ISBLANK(C120),"",IF(MONTH(C120)=MONTH(DATEVALUE(TEXT(DATE(2000,MONTH(DATEVALUE($E$7&" 1"))+7,1),"mmmm")&" 1")),E120/F117*E117,"")) ->  | S120: =IF(ISBLANK(C120),"",IF(MONTH(C120)=MONTH(DATEVALUE(TEXT(DATE(2000,MONTH(DATEVALUE($E$7&" 1"))+8,1),"mmmm")&" 1")),E120/F117*E117,"")) ->  | T120: =IF(ISBLANK(C120),"",IF(MONTH(C120)=MONTH(DATEVALUE(TEXT(DATE(2000,MONTH(DATEVALUE($E$7&" 1"))+9,1),"mmmm")&" 1")),E120/F117*E117,"")) ->  | U120: =IF(ISBLANK(C120),"",IF(MONTH(C120)=MONTH(DATEVALUE(TEXT(DATE(2000,MONTH(DATEVALUE($E$7&" 1"))+10,1),"mmmm")&" 1")),E120/F117*E117,"")) ->  | V120: =IF(ISBLANK(C120),"",IF(MONTH(C120)=MONTH(DATEVALUE(TEXT(DATE(2000,MONTH(DATEVALUE($E$7&" 1"))+11,1),"mmmm")&" 1")),E120/F117*E117,"")) -> 
I121: 0 | K121: =IF(ISBLANK(C121),"",IF(MONTH(C121)=MONTH(DATEVALUE($E$7&" 1")),E121/F117*E117,"")) ->  | L121: =IF(ISBLANK(C121),"",IF(MONTH(C121)=MONTH(DATEVALUE(TEXT(DATE(2000,MONTH(DATEVALUE($E$7&" 1"))+1,1),"mmmm")&" 1")),E121/F117*E117,"")) ->  | M121: =IF(ISBLANK(C121),"",IF(MONTH(C121)=MONTH(DATEVALUE(TEXT(DATE(2000,MONTH(DATEVALUE($E$7&" 1"))+2,1),"mmmm")&" 1")),E121/F117*E117,"")) ->  | N121: =IF(ISBLANK(C121),"",IF(MONTH(C121)=MONTH(DATEVALUE(TEXT(DATE(2000,MONTH(DATEVALUE($E$7&" 1"))+3,1),"mmmm")&" 1")),E121/F117*E117,"")) ->  | O121: =IF(ISBLANK(C121),"",IF(MONTH(C121)=MONTH(DATEVALUE(TEXT(DATE(2000,MONTH(DATEVALUE($E$7&" 1"))+4,1),"mmmm")&" 1")),E121/F117*E117,"")) ->  | P121: =IF(ISBLANK(C121),"",IF(MONTH(C121)=MONTH(DATEVALUE(TEXT(DATE(2000,MONTH(DATEVALUE($E$7&" 1"))+5,1),"mmmm")&" 1")),E121/F117*E117,"")) ->  | Q121: =IF(ISBLANK(C121),"",IF(MONTH(C121)=MONTH(DATEVALUE(TEXT(DATE(2000,MONTH(DATEVALUE($E$7&" 1"))+6,1),"mmmm")&" 1")),E121/F117*E117,"")) ->  | R121: =IF(ISBLANK(C121),"",IF(MONTH(C121)=MONTH(DATEVALUE(TEXT(DATE(2000,MONTH(DATEVALUE($E$7&" 1"))+7,1),"mmmm")&" 1")),E121/F117*E117,"")) ->  | S121: =IF(ISBLANK(C121),"",IF(MONTH(C121)=MONTH(DATEVALUE(TEXT(DATE(2000,MONTH(DATEVALUE($E$7&" 1"))+8,1),"mmmm")&" 1")),E121/F117*E117,"")) ->  | T121: =IF(ISBLANK(C121),"",IF(MONTH(C121)=MONTH(DATEVALUE(TEXT(DATE(2000,MONTH(DATEVALUE($E$7&" 1"))+9,1),"mmmm")&" 1")),E121/F117*E117,"")) ->  | U121: =IF(ISBLANK(C121),"",IF(MONTH(C121)=MONTH(DATEVALUE(TEXT(DATE(2000,MONTH(DATEVALUE($E$7&" 1"))+10,1),"mmmm")&" 1")),E121/F117*E117,"")) ->  | V121: =IF(ISBLANK(C121),"",IF(MONTH(C121)=MONTH(DATEVALUE(TEXT(DATE(2000,MONTH(DATEVALUE($E$7&" 1"))+11,1),"mmmm")&" 1")),E121/F117*E117,"")) -> 
I122: 0 | K122: =IF(ISBLANK(C122),"",IF(MONTH(C122)=MONTH(DATEVALUE($E$7&" 1")),E122/F117*E117,"")) ->  | L122: =IF(ISBLANK(C122),"",IF(MONTH(C122)=MONTH(DATEVALUE(TEXT(DATE(2000,MONTH(DATEVALUE($E$7&" 1"))+1,1),"mmmm")&" 1")),E122/F117*E117,"")) ->  | M122: =IF(ISBLANK(C122),"",IF(MONTH(C122)=MONTH(DATEVALUE(TEXT(DATE(2000,MONTH(DATEVALUE($E$7&" 1"))+2,1),"mmmm")&" 1")),E122/F117*E117,"")) ->  | N122: =IF(ISBLANK(C122),"",IF(MONTH(C122)=MONTH(DATEVALUE(TEXT(DATE(2000,MONTH(DATEVALUE($E$7&" 1"))+3,1),"mmmm")&" 1")),E122/F117*E117,"")) ->  | O122: =IF(ISBLANK(C122),"",IF(MONTH(C122)=MONTH(DATEVALUE(TEXT(DATE(2000,MONTH(DATEVALUE($E$7&" 1"))+4,1),"mmmm")&" 1")),E122/F117*E117,"")) ->  | P122: =IF(ISBLANK(C122),"",IF(MONTH(C122)=MONTH(DATEVALUE(TEXT(DATE(2000,MONTH(DATEVALUE($E$7&" 1"))+5,1),"mmmm")&" 1")),E122/F117*E117,"")) ->  | Q122: =IF(ISBLANK(C122),"",IF(MONTH(C122)=MONTH(DATEVALUE(TEXT(DATE(2000,MONTH(DATEVALUE($E$7&" 1"))+6,1),"mmmm")&" 1")),E122/F117*E117,"")) ->  | R122: =IF(ISBLANK(C122),"",IF(MONTH(C122)=MONTH(DATEVALUE(TEXT(DATE(2000,MONTH(DATEVALUE($E$7&" 1"))+7,1),"mmmm")&" 1")),E122/F117*E117,"")) ->  | S122: =IF(ISBLANK(C122),"",IF(MONTH(C122)=MONTH(DATEVALUE(TEXT(DATE(2000,MONTH(DATEVALUE($E$7&" 1"))+8,1),"mmmm")&" 1")),E122/F117*E117,"")) ->  | T122: =IF(ISBLANK(C122),"",IF(MONTH(C122)=MONTH(DATEVALUE(TEXT(DATE(2000,MONTH(DATEVALUE($E$7&" 1"))+9,1),"mmmm")&" 1")),E122/F117*E117,"")) ->  | U122: =IF(ISBLANK(C122),"",IF(MONTH(C122)=MONTH(DATEVALUE(TEXT(DATE(2000,MONTH(DATEVALUE($E$7&" 1"))+10,1),"mmmm")&" 1")),E122/F117*E117,"")) ->  | V122: =IF(ISBLANK(C122),"",IF(MONTH(C122)=MONTH(DATEVALUE(TEXT(DATE(2000,MONTH(DATEVALUE($E$7&" 1"))+11,1),"mmmm")&" 1")),E122/F117*E117,"")) -> 
I123: 0 | K123: =IF(ISBLANK(C123),"",IF(MONTH(C123)=MONTH(DATEVALUE($E$7&" 1")),E123/F117*E117,"")) ->  | L123: =IF(ISBLANK(C123),"",IF(MONTH(C123)=MONTH(DATEVALUE(TEXT(DATE(2000,MONTH(DATEVALUE($E$7&" 1"))+1,1),"mmmm")&" 1")),E123/F117*E117,"")) ->  | M123: =IF(ISBLANK(C123),"",IF(MONTH(C123)=MONTH(DATEVALUE(TEXT(DATE(2000,MONTH(DATEVALUE($E$7&" 1"))+2,1),"mmmm")&" 1")),E123/F117*E117,"")) ->  | N123: =IF(ISBLANK(C123),"",IF(MONTH(C123)=MONTH(DATEVALUE(TEXT(DATE(2000,MONTH(DATEVALUE($E$7&" 1"))+3,1),"mmmm")&" 1")),E123/F117*E117,"")) ->  | O123: =IF(ISBLANK(C123),"",IF(MONTH(C123)=MONTH(DATEVALUE(TEXT(DATE(2000,MONTH(DATEVALUE($E$7&" 1"))+4,1),"mmmm")&" 1")),E123/F117*E117,"")) ->  | P123: =IF(ISBLANK(C123),"",IF(MONTH(C123)=MONTH(DATEVALUE(TEXT(DATE(2000,MONTH(DATEVALUE($E$7&" 1"))+5,1),"mmmm")&" 1")),E123/F117*E117,"")) ->  | Q123: =IF(ISBLANK(C123),"",IF(MONTH(C123)=MONTH(DATEVALUE(TEXT(DATE(2000,MONTH(DATEVALUE($E$7&" 1"))+6,1),"mmmm")&" 1")),E123/F117*E117,"")) ->  | R123: =IF(ISBLANK(C123),"",IF(MONTH(C123)=MONTH(DATEVALUE(TEXT(DATE(2000,MONTH(DATEVALUE($E$7&" 1"))+7,1),"mmmm")&" 1")),E123/F117*E117,"")) ->  | S123: =IF(ISBLANK(C123),"",IF(MONTH(C123)=MONTH(DATEVALUE(TEXT(DATE(2000,MONTH(DATEVALUE($E$7&" 1"))+8,1),"mmmm")&" 1")),E123/F117*E117,"")) ->  | T123: =IF(ISBLANK(C123),"",IF(MONTH(C123)=MONTH(DATEVALUE(TEXT(DATE(2000,MONTH(DATEVALUE($E$7&" 1"))+9,1),"mmmm")&" 1")),E123/F117*E117,"")) ->  | U123: =IF(ISBLANK(C123),"",IF(MONTH(C123)=MONTH(DATEVALUE(TEXT(DATE(2000,MONTH(DATEVALUE($E$7&" 1"))+10,1),"mmmm")&" 1")),E123/F117*E117,"")) ->  | V123: =IF(ISBLANK(C123),"",IF(MONTH(C123)=MONTH(DATEVALUE(TEXT(DATE(2000,MONTH(DATEVALUE($E$7&" 1"))+11,1),"mmmm")&" 1")),E123/F117*E117,"")) -> 
I124: 0 | K124: =IF(ISBLANK(C124),"",IF(MONTH(C124)=MONTH(DATEVALUE($E$7&" 1")),E124/F117*E117,"")) ->  | L124: =IF(ISBLANK(C124),"",IF(MONTH(C124)=MONTH(DATEVALUE(TEXT(DATE(2000,MONTH(DATEVALUE($E$7&" 1"))+1,1),"mmmm")&" 1")),E124/F117*E117,"")) ->  | M124: =IF(ISBLANK(C124),"",IF(MONTH(C124)=MONTH(DATEVALUE(TEXT(DATE(2000,MONTH(DATEVALUE($E$7&" 1"))+2,1),"mmmm")&" 1")),E124/F117*E117,"")) ->  | N124: =IF(ISBLANK(C124),"",IF(MONTH(C124)=MONTH(DATEVALUE(TEXT(DATE(2000,MONTH(DATEVALUE($E$7&" 1"))+3,1),"mmmm")&" 1")),E124/F117*E117,"")) ->  | O124: =IF(ISBLANK(C124),"",IF(MONTH(C124)=MONTH(DATEVALUE(TEXT(DATE(2000,MONTH(DATEVALUE($E$7&" 1"))+4,1),"mmmm")&" 1")),E124/F117*E117,"")) ->  | P124: =IF(ISBLANK(C124),"",IF(MONTH(C124)=MONTH(DATEVALUE(TEXT(DATE(2000,MONTH(DATEVALUE($E$7&" 1"))+5,1),"mmmm")&" 1")),E124/F117*E117,"")) ->  | Q124: =IF(ISBLANK(C124),"",IF(MONTH(C124)=MONTH(DATEVALUE(TEXT(DATE(2000,MONTH(DATEVALUE($E$7&" 1"))+6,1),"mmmm")&" 1")),E124/F117*E117,"")) ->  | R124: =IF(ISBLANK(C124),"",IF(MONTH(C124)=MONTH(DATEVALUE(TEXT(DATE(2000,MONTH(DATEVALUE($E$7&" 1"))+7,1),"mmmm")&" 1")),E124/F117*E117,"")) ->  | S124: =IF(ISBLANK(C124),"",IF(MONTH(C124)=MONTH(DATEVALUE(TEXT(DATE(2000,MONTH(DATEVALUE($E$7&" 1"))+8,1),"mmmm")&" 1")),E124/F117*E117,"")) ->  | T124: =IF(ISBLANK(C124),"",IF(MONTH(C124)=MONTH(DATEVALUE(TEXT(DATE(2000,MONTH(DATEVALUE($E$7&" 1"))+9,1),"mmmm")&" 1")),E124/F117*E117,"")) ->  | U124: =IF(ISBLANK(C124),"",IF(MONTH(C124)=MONTH(DATEVALUE(TEXT(DATE(2000,MONTH(DATEVALUE($E$7&" 1"))+10,1),"mmmm")&" 1")),E124/F117*E117,"")) ->  | V124: =IF(ISBLANK(C124),"",IF(MONTH(C124)=MONTH(DATEVALUE(TEXT(DATE(2000,MONTH(DATEVALUE($E$7&" 1"))+11,1),"mmmm")&" 1")),E124/F117*E117,"")) -> 
I125: 0 | K125: =IF(ISBLANK(C125),"",IF(MONTH(C125)=MONTH(DATEVALUE($E$7&" 1")),E125/F117*E117,"")) ->  | L125: =IF(ISBLANK(C125),"",IF(MONTH(C125)=MONTH(DATEVALUE(TEXT(DATE(2000,MONTH(DATEVALUE($E$7&" 1"))+1,1),"mmmm")&" 1")),E125/F117*E117,"")) ->  | M125: =IF(ISBLANK(C125),"",IF(MONTH(C125)=MONTH(DATEVALUE(TEXT(DATE(2000,MONTH(DATEVALUE($E$7&" 1"))+2,1),"mmmm")&" 1")),E125/F117*E117,"")) ->  | N125: =IF(ISBLANK(C125),"",IF(MONTH(C125)=MONTH(DATEVALUE(TEXT(DATE(2000,MONTH(DATEVALUE($E$7&" 1"))+3,1),"mmmm")&" 1")),E125/F117*E117,"")) ->  | O125: =IF(ISBLANK(C125),"",IF(MONTH(C125)=MONTH(DATEVALUE(TEXT(DATE(2000,MONTH(DATEVALUE($E$7&" 1"))+4,1),"mmmm")&" 1")),E125/F117*E117,"")) ->  | P125: =IF(ISBLANK(C125),"",IF(MONTH(C125)=MONTH(DATEVALUE(TEXT(DATE(2000,MONTH(DATEVALUE($E$7&" 1"))+5,1),"mmmm")&" 1")),E125/F117*E117,"")) ->  | Q125: =IF(ISBLANK(C125),"",IF(MONTH(C125)=MONTH(DATEVALUE(TEXT(DATE(2000,MONTH(DATEVALUE($E$7&" 1"))+6,1),"mmmm")&" 1")),E125/F117*E117,"")) ->  | R125: =IF(ISBLANK(C125),"",IF(MONTH(C125)=MONTH(DATEVALUE(TEXT(DATE(2000,MONTH(DATEVALUE($E$7&" 1"))+7,1),"mmmm")&" 1")),E125/F117*E117,"")) ->  | S125: =IF(ISBLANK(C125),"",IF(MONTH(C125)=MONTH(DATEVALUE(TEXT(DATE(2000,MONTH(DATEVALUE($E$7&" 1"))+8,1),"mmmm")&" 1")),E125/F117*E117,"")) ->  | T125: =IF(ISBLANK(C125),"",IF(MONTH(C125)=MONTH(DATEVALUE(TEXT(DATE(2000,MONTH(DATEVALUE($E$7&" 1"))+9,1),"mmmm")&" 1")),E125/F117*E117,"")) ->  | U125: =IF(ISBLANK(C125),"",IF(MONTH(C125)=MONTH(DATEVALUE(TEXT(DATE(2000,MONTH(DATEVALUE($E$7&" 1"))+10,1),"mmmm")&" 1")),E125/F117*E117,"")) ->  | V125: =IF(ISBLANK(C125),"",IF(MONTH(C125)=MONTH(DATEVALUE(TEXT(DATE(2000,MONTH(DATEVALUE($E$7&" 1"))+11,1),"mmmm")&" 1")),E125/F117*E117,"")) -> 
I126: 0 | K126: =IF(ISBLANK(C126),"",IF(MONTH(C126)=MONTH(DATEVALUE($E$7&" 1")),E126/F117*E117,"")) ->  | L126: =IF(ISBLANK(C126),"",IF(MONTH(C126)=MONTH(DATEVALUE(TEXT(DATE(2000,MONTH(DATEVALUE($E$7&" 1"))+1,1),"mmmm")&" 1")),E126/F117*E117,"")) ->  | M126: =IF(ISBLANK(C126),"",IF(MONTH(C126)=MONTH(DATEVALUE(TEXT(DATE(2000,MONTH(DATEVALUE($E$7&" 1"))+2,1),"mmmm")&" 1")),E126/F117*E117,"")) ->  | N126: =IF(ISBLANK(C126),"",IF(MONTH(C126)=MONTH(DATEVALUE(TEXT(DATE(2000,MONTH(DATEVALUE($E$7&" 1"))+3,1),"mmmm")&" 1")),E126/F117*E117,"")) ->  | O126: =IF(ISBLANK(C126),"",IF(MONTH(C126)=MONTH(DATEVALUE(TEXT(DATE(2000,MONTH(DATEVALUE($E$7&" 1"))+4,1),"mmmm")&" 1")),E126/F117*E117,"")) ->  | P126: =IF(ISBLANK(C126),"",IF(MONTH(C126)=MONTH(DATEVALUE(TEXT(DATE(2000,MONTH(DATEVALUE($E$7&" 1"))+5,1),"mmmm")&" 1")),E126/F117*E117,"")) ->  | Q126: =IF(ISBLANK(C126),"",IF(MONTH(C126)=MONTH(DATEVALUE(TEXT(DATE(2000,MONTH(DATEVALUE($E$7&" 1"))+6,1),"mmmm")&" 1")),E126/F117*E117,"")) ->  | R126: =IF(ISBLANK(C126),"",IF(MONTH(C126)=MONTH(DATEVALUE(TEXT(DATE(2000,MONTH(DATEVALUE($E$7&" 1"))+7,1),"mmmm")&" 1")),E126/F117*E117,"")) ->  | S126: =IF(ISBLANK(C126),"",IF(MONTH(C126)=MONTH(DATEVALUE(TEXT(DATE(2000,MONTH(DATEVALUE($E$7&" 1"))+8,1),"mmmm")&" 1")),E126/F117*E117,"")) ->  | T126: =IF(ISBLANK(C126),"",IF(MONTH(C126)=MONTH(DATEVALUE(TEXT(DATE(2000,MONTH(DATEVALUE($E$7&" 1"))+9,1),"mmmm")&" 1")),E126/F117*E117,"")) ->  | U126: =IF(ISBLANK(C126),"",IF(MONTH(C126)=MONTH(DATEVALUE(TEXT(DATE(2000,MONTH(DATEVALUE($E$7&" 1"))+10,1),"mmmm")&" 1")),E126/F117*E117,"")) ->  | V126: =IF(ISBLANK(C126),"",IF(MONTH(C126)=MONTH(DATEVALUE(TEXT(DATE(2000,MONTH(DATEVALUE($E$7&" 1"))+11,1),"mmmm")&" 1")),E126/F117*E117,"")) -> 
I127: 0 | K127: =IF(ISBLANK(C127),"",IF(MONTH(C127)=MONTH(DATEVALUE($E$7&" 1")),E127/F117*E117,"")) ->  | L127: =IF(ISBLANK(C127),"",IF(MONTH(C127)=MONTH(DATEVALUE(TEXT(DATE(2000,MONTH(DATEVALUE($E$7&" 1"))+1,1),"mmmm")&" 1")),E127/F117*E117,"")) ->  | M127: =IF(ISBLANK(C127),"",IF(MONTH(C127)=MONTH(DATEVALUE(TEXT(DATE(2000,MONTH(DATEVALUE($E$7&" 1"))+2,1),"mmmm")&" 1")),E127/F117*E117,"")) ->  | N127: =IF(ISBLANK(C127),"",IF(MONTH(C127)=MONTH(DATEVALUE(TEXT(DATE(2000,MONTH(DATEVALUE($E$7&" 1"))+3,1),"mmmm")&" 1")),E127/F117*E117,"")) ->  | O127: =IF(ISBLANK(C127),"",IF(MONTH(C127)=MONTH(DATEVALUE(TEXT(DATE(2000,MONTH(DATEVALUE($E$7&" 1"))+4,1),"mmmm")&" 1")),E127/F117*E117,"")) ->  | P127: =IF(ISBLANK(C127),"",IF(MONTH(C127)=MONTH(DATEVALUE(TEXT(DATE(2000,MONTH(DATEVALUE($E$7&" 1"))+5,1),"mmmm")&" 1")),E127/F117*E117,"")) ->  | Q127: =IF(ISBLANK(C127),"",IF(MONTH(C127)=MONTH(DATEVALUE(TEXT(DATE(2000,MONTH(DATEVALUE($E$7&" 1"))+6,1),"mmmm")&" 1")),E127/F117*E117,"")) ->  | R127: =IF(ISBLANK(C127),"",IF(MONTH(C127)=MONTH(DATEVALUE(TEXT(DATE(2000,MONTH(DATEVALUE($E$7&" 1"))+7,1),"mmmm")&" 1")),E127/F117*E117,"")) ->  | S127: =IF(ISBLANK(C127),"",IF(MONTH(C127)=MONTH(DATEVALUE(TEXT(DATE(2000,MONTH(DATEVALUE($E$7&" 1"))+8,1),"mmmm")&" 1")),E127/F117*E117,"")) ->  | T127: =IF(ISBLANK(C127),"",IF(MONTH(C127)=MONTH(DATEVALUE(TEXT(DATE(2000,MONTH(DATEVALUE($E$7&" 1"))+9,1),"mmmm")&" 1")),E127/F117*E117,"")) ->  | U127: =IF(ISBLANK(C127),"",IF(MONTH(C127)=MONTH(DATEVALUE(TEXT(DATE(2000,MONTH(DATEVALUE($E$7&" 1"))+10,1),"mmmm")&" 1")),E127/F117*E117,"")) ->  | V127: =IF(ISBLANK(C127),"",IF(MONTH(C127)=MONTH(DATEVALUE(TEXT(DATE(2000,MONTH(DATEVALUE($E$7&" 1"))+11,1),"mmmm")&" 1")),E127/F117*E117,"")) -> 
I128: 0 | K128: =IF(ISBLANK(C128),"",IF(MONTH(C128)=MONTH(DATEVALUE($E$7&" 1")),E128/F117*E117,"")) ->  | L128: =IF(ISBLANK(C128),"",IF(MONTH(C128)=MONTH(DATEVALUE(TEXT(DATE(2000,MONTH(DATEVALUE($E$7&" 1"))+1,1),"mmmm")&" 1")),E128/F117*E117,"")) ->  | M128: =IF(ISBLANK(C128),"",IF(MONTH(C128)=MONTH(DATEVALUE(TEXT(DATE(2000,MONTH(DATEVALUE($E$7&" 1"))+2,1),"mmmm")&" 1")),E128/F117*E117,"")) ->  | N128: =IF(ISBLANK(C128),"",IF(MONTH(C128)=MONTH(DATEVALUE(TEXT(DATE(2000,MONTH(DATEVALUE($E$7&" 1"))+3,1),"mmmm")&" 1")),E128/F117*E117,"")) ->  | O128: =IF(ISBLANK(C128),"",IF(MONTH(C128)=MONTH(DATEVALUE(TEXT(DATE(2000,MONTH(DATEVALUE($E$7&" 1"))+4,1),"mmmm")&" 1")),E128/F117*E117,"")) ->  | P128: =IF(ISBLANK(C128),"",IF(MONTH(C128)=MONTH(DATEVALUE(TEXT(DATE(2000,MONTH(DATEVALUE($E$7&" 1"))+5,1),"mmmm")&" 1")),E128/F117*E117,"")) ->  | Q128: =IF(ISBLANK(C128),"",IF(MONTH(C128)=MONTH(DATEVALUE(TEXT(DATE(2000,MONTH(DATEVALUE($E$7&" 1"))+6,1),"mmmm")&" 1")),E128/F117*E117,"")) ->  | R128: =IF(ISBLANK(C128),"",IF(MONTH(C128)=MONTH(DATEVALUE(TEXT(DATE(2000,MONTH(DATEVALUE($E$7&" 1"))+7,1),"mmmm")&" 1")),E128/F117*E117,"")) ->  | S128: =IF(ISBLANK(C128),"",IF(MONTH(C128)=MONTH(DATEVALUE(TEXT(DATE(2000,MONTH(DATEVALUE($E$7&" 1"))+8,1),"mmmm")&" 1")),E128/F117*E117,"")) ->  | T128: =IF(ISBLANK(C128),"",IF(MONTH(C128)=MONTH(DATEVALUE(TEXT(DATE(2000,MONTH(DATEVALUE($E$7&" 1"))+9,1),"mmmm")&" 1")),E128/F117*E117,"")) ->  | U128: =IF(ISBLANK(C128),"",IF(MONTH(C128)=MONTH(DATEVALUE(TEXT(DATE(2000,MONTH(DATEVALUE($E$7&" 1"))+10,1),"mmmm")&" 1")),E128/F117*E117,"")) ->  | V128: =IF(ISBLANK(C128),"",IF(MONTH(C128)=MONTH(DATEVALUE(TEXT(DATE(2000,MONTH(DATEVALUE($E$7&" 1"))+11,1),"mmmm")&" 1")),E128/F117*E117,"")) -> 
H129: =IFERROR(SUM(E131:H140)/F129,0) -> 0 | I129: =SUM(I130:J140) -> 0 | W129: =IF(H129<>100%,"Pas ok","ok") -> Pas ok
B130: Numéro de facture | C130: Date de facturation | D130: Description de la facture | E130: Montant de la facture
I131: =SUM(K131:V131) -> 0 | K131: =IF(ISBLANK(C131),"",IF(MONTH(C131)=MONTH(DATEVALUE($E$7&" 1")),E131/F129*E129,"")) ->  | L131: =IF(ISBLANK(C131),"",IF(MONTH(C131)=MONTH(DATEVALUE(TEXT(DATE(2000,MONTH(DATEVALUE($E$7&" 1"))+1,1),"mmmm")&" 1")),E131/F129*E129,"")) ->  | M131: =IF(ISBLANK(C131),"",IF(MONTH(C131)=MONTH(DATEVALUE(TEXT(DATE(2000,MONTH(DATEVALUE($E$7&" 1"))+2,1),"mmmm")&" 1")),E131/F129*E129,"")) ->  | N131: =IF(ISBLANK(C131),"",IF(MONTH(C131)=MONTH(DATEVALUE(TEXT(DATE(2000,MONTH(DATEVALUE($E$7&" 1"))+3,1),"mmmm")&" 1")),E131/F129*E129,"")) ->  | O131: =IF(ISBLANK(C131),"",IF(MONTH(C131)=MONTH(DATEVALUE(TEXT(DATE(2000,MONTH(DATEVALUE($E$7&" 1"))+4,1),"mmmm")&" 1")),E131/F129*E129,"")) ->  | P131: =IF(ISBLANK(C131),"",IF(MONTH(C131)=MONTH(DATEVALUE(TEXT(DATE(2000,MONTH(DATEVALUE($E$7&" 1"))+5,1),"mmmm")&" 1")),E131/F129*E129,"")) ->  | Q131: =IF(ISBLANK(C131),"",IF(MONTH(C131)=MONTH(DATEVALUE(TEXT(DATE(2000,MONTH(DATEVALUE($E$7&" 1"))+6,1),"mmmm")&" 1")),E131/F129*E129,"")) ->  | R131: =IF(ISBLANK(C131),"",IF(MONTH(C131)=MONTH(DATEVALUE(TEXT(DATE(2000,MONTH(DATEVALUE($E$7&" 1"))+7,1),"mmmm")&" 1")),E131/F129*E129,"")) ->  | S131: =IF(ISBLANK(C131),"",IF(MONTH(C131)=MONTH(DATEVALUE(TEXT(DATE(2000,MONTH(DATEVALUE($E$7&" 1"))+8,1),"mmmm")&" 1")),E131/F129*E129,"")) ->  | T131: =IF(ISBLANK(C131),"",IF(MONTH(C131)=MONTH(DATEVALUE(TEXT(DATE(2000,MONTH(DATEVALUE($E$7&" 1"))+9,1),"mmmm")&" 1")),E131/F129*E129,"")) ->  | U131: =IF(ISBLANK(C131),"",IF(MONTH(C131)=MONTH(DATEVALUE(TEXT(DATE(2000,MONTH(DATEVALUE($E$7&" 1"))+10,1),"mmmm")&" 1")),E131/F129*E129,"")) ->  | V131: =IF(ISBLANK(C131),"",IF(MONTH(C131)=MONTH(DATEVALUE(TEXT(DATE(2000,MONTH(DATEVALUE($E$7&" 1"))+11,1),"mmmm")&" 1")),E131/F129*E129,"")) -> 
I132: 0 | K132: =IF(ISBLANK(C132),"",IF(MONTH(C132)=MONTH(DATEVALUE($E$7&" 1")),E132/F129*E129,"")) ->  | L132: =IF(ISBLANK(C132),"",IF(MONTH(C132)=MONTH(DATEVALUE(TEXT(DATE(2000,MONTH(DATEVALUE($E$7&" 1"))+1,1),"mmmm")&" 1")),E132/F129*E129,"")) ->  | M132: =IF(ISBLANK(C132),"",IF(MONTH(C132)=MONTH(DATEVALUE(TEXT(DATE(2000,MONTH(DATEVALUE($E$7&" 1"))+2,1),"mmmm")&" 1")),E132/F129*E129,"")) ->  | N132: =IF(ISBLANK(C132),"",IF(MONTH(C132)=MONTH(DATEVALUE(TEXT(DATE(2000,MONTH(DATEVALUE($E$7&" 1"))+3,1),"mmmm")&" 1")),E132/F129*E129,"")) ->  | O132: =IF(ISBLANK(C132),"",IF(MONTH(C132)=MONTH(DATEVALUE(TEXT(DATE(2000,MONTH(DATEVALUE($E$7&" 1"))+4,1),"mmmm")&" 1")),E132/F129*E129,"")) ->  | P132: =IF(ISBLANK(C132),"",IF(MONTH(C132)=MONTH(DATEVALUE(TEXT(DATE(2000,MONTH(DATEVALUE($E$7&" 1"))+5,1),"mmmm")&" 1")),E132/F129*E129,"")) ->  | Q132: =IF(ISBLANK(C132),"",IF(MONTH(C132)=MONTH(DATEVALUE(TEXT(DATE(2000,MONTH(DATEVALUE($E$7&" 1"))+6,1),"mmmm")&" 1")),E132/F129*E129,"")) ->  | R132: =IF(ISBLANK(C132),"",IF(MONTH(C132)=MONTH(DATEVALUE(TEXT(DATE(2000,MONTH(DATEVALUE($E$7&" 1"))+7,1),"mmmm")&" 1")),E132/F129*E129,"")) ->  | S132: =IF(ISBLANK(C132),"",IF(MONTH(C132)=MONTH(DATEVALUE(TEXT(DATE(2000,MONTH(DATEVALUE($E$7&" 1"))+8,1),"mmmm")&" 1")),E132/F129*E129,"")) ->  | T132: =IF(ISBLANK(C132),"",IF(MONTH(C132)=MONTH(DATEVALUE(TEXT(DATE(2000,MONTH(DATEVALUE($E$7&" 1"))+9,1),"mmmm")&" 1")),E132/F129*E129,"")) ->  | U132: =IF(ISBLANK(C132),"",IF(MONTH(C132)=MONTH(DATEVALUE(TEXT(DATE(2000,MONTH(DATEVALUE($E$7&" 1"))+10,1),"mmmm")&" 1")),E132/F129*E129,"")) ->  | V132: =IF(ISBLANK(C132),"",IF(MONTH(C132)=MONTH(DATEVALUE(TEXT(DATE(2000,MONTH(DATEVALUE($E$7&" 1"))+11,1),"mmmm")&" 1")),E132/F129*E129,"")) -> 
I133: 0 | K133: =IF(ISBLANK(C133),"",IF(MONTH(C133)=MONTH(DATEVALUE($E$7&" 1")),E133/F129*E129,"")) ->  | L133: =IF(ISBLANK(C133),"",IF(MONTH(C133)=MONTH(DATEVALUE(TEXT(DATE(2000,MONTH(DATEVALUE($E$7&" 1"))+1,1),"mmmm")&" 1")),E133/F129*E129,"")) ->  | M133: =IF(ISBLANK(C133),"",IF(MONTH(C133)=MONTH(DATEVALUE(TEXT(DATE(2000,MONTH(DATEVALUE($E$7&" 1"))+2,1),"mmmm")&" 1")),E133/F129*E129,"")) ->  | N133: =IF(ISBLANK(C133),"",IF(MONTH(C133)=MONTH(DATEVALUE(TEXT(DATE(2000,MONTH(DATEVALUE($E$7&" 1"))+3,1),"mmmm")&" 1")),E133/F129*E129,"")) ->  | O133: =IF(ISBLANK(C133),"",IF(MONTH(C133)=MONTH(DATEVALUE(TEXT(DATE(2000,MONTH(DATEVALUE($E$7&" 1"))+4,1),"mmmm")&" 1")),E133/F129*E129,"")) ->  | P133: =IF(ISBLANK(C133),"",IF(MONTH(C133)=MONTH(DATEVALUE(TEXT(DATE(2000,MONTH(DATEVALUE($E$7&" 1"))+5,1),"mmmm")&" 1")),E133/F129*E129,"")) ->  | Q133: =IF(ISBLANK(C133),"",IF(MONTH(C133)=MONTH(DATEVALUE(TEXT(DATE(2000,MONTH(DATEVALUE($E$7&" 1"))+6,1),"mmmm")&" 1")),E133/F129*E129,"")) ->  | R133: =IF(ISBLANK(C133),"",IF(MONTH(C133)=MONTH(DATEVALUE(TEXT(DATE(2000,MONTH(DATEVALUE($E$7&" 1"))+7,1),"mmmm")&" 1")),E133/F129*E129,"")) ->  | S133: =IF(ISBLANK(C133),"",IF(MONTH(C133)=MONTH(DATEVALUE(TEXT(DATE(2000,MONTH(DATEVALUE($E$7&" 1"))+8,1),"mmmm")&" 1")),E133/F129*E129,"")) ->  | T133: =IF(ISBLANK(C133),"",IF(MONTH(C133)=MONTH(DATEVALUE(TEXT(DATE(2000,MONTH(DATEVALUE($E$7&" 1"))+9,1),"mmmm")&" 1")),E133/F129*E129,"")) ->  | U133: =IF(ISBLANK(C133),"",IF(MONTH(C133)=MONTH(DATEVALUE(TEXT(DATE(2000,MONTH(DATEVALUE($E$7&" 1"))+10,1),"mmmm")&" 1")),E133/F129*E129,"")) ->  | V133: =IF(ISBLANK(C133),"",IF(MONTH(C133)=MONTH(DATEVALUE(TEXT(DATE(2000,MONTH(DATEVALUE($E$7&" 1"))+11,1),"mmmm")&" 1")),E133/F129*E129,"")) -> 
I134: 0 | K134: =IF(ISBLANK(C134),"",IF(MONTH(C134)=MONTH(DATEVALUE($E$7&" 1")),E134/F129*E129,"")) ->  | L134: =IF(ISBLANK(C134),"",IF(MONTH(C134)=MONTH(DATEVALUE(TEXT(DATE(2000,MONTH(DATEVALUE($E$7&" 1"))+1,1),"mmmm")&" 1")),E134/F129*E129,"")) ->  | M134: =IF(ISBLANK(C134),"",IF(MONTH(C134)=MONTH(DATEVALUE(TEXT(DATE(2000,MONTH(DATEVALUE($E$7&" 1"))+2,1),"mmmm")&" 1")),E134/F129*E129,"")) ->  | N134: =IF(ISBLANK(C134),"",IF(MONTH(C134)=MONTH(DATEVALUE(TEXT(DATE(2000,MONTH(DATEVALUE($E$7&" 1"))+3,1),"mmmm")&" 1")),E134/F129*E129,"")) ->  | O134: =IF(ISBLANK(C134),"",IF(MONTH(C134)=MONTH(DATEVALUE(TEXT(DATE(2000,MONTH(DATEVALUE($E$7&" 1"))+4,1),"mmmm")&" 1")),E134/F129*E129,"")) ->  | P134: =IF(ISBLANK(C134),"",IF(MONTH(C134)=MONTH(DATEVALUE(TEXT(DATE(2000,MONTH(DATEVALUE($E$7&" 1"))+5,1),"mmmm")&" 1")),E134/F129*E129,"")) ->  | Q134: =IF(ISBLANK(C134),"",IF(MONTH(C134)=MONTH(DATEVALUE(TEXT(DATE(2000,MONTH(DATEVALUE($E$7&" 1"))+6,1),"mmmm")&" 1")),E134/F129*E129,"")) ->  | R134: =IF(ISBLANK(C134),"",IF(MONTH(C134)=MONTH(DATEVALUE(TEXT(DATE(2000,MONTH(DATEVALUE($E$7&" 1"))+7,1),"mmmm")&" 1")),E134/F129*E129,"")) ->  | S134: =IF(ISBLANK(C134),"",IF(MONTH(C134)=MONTH(DATEVALUE(TEXT(DATE(2000,MONTH(DATEVALUE($E$7&" 1"))+8,1),"mmmm")&" 1")),E134/F129*E129,"")) ->  | T134: =IF(ISBLANK(C134),"",IF(MONTH(C134)=MONTH(DATEVALUE(TEXT(DATE(2000,MONTH(DATEVALUE($E$7&" 1"))+9,1),"mmmm")&" 1")),E134/F129*E129,"")) ->  | U134: =IF(ISBLANK(C134),"",IF(MONTH(C134)=MONTH(DATEVALUE(TEXT(DATE(2000,MONTH(DATEVALUE($E$7&" 1"))+10,1),"mmmm")&" 1")),E134/F129*E129,"")) ->  | V134: =IF(ISBLANK(C134),"",IF(MONTH(C134)=MONTH(DATEVALUE(TEXT(DATE(2000,MONTH(DATEVALUE($E$7&" 1"))+11,1),"mmmm")&" 1")),E134/F129*E129,"")) -> 
I135: 0 | K135: =IF(ISBLANK(C135),"",IF(MONTH(C135)=MONTH(DATEVALUE($E$7&" 1")),E135/F129*E129,"")) ->  | L135: =IF(ISBLANK(C135),"",IF(MONTH(C135)=MONTH(DATEVALUE(TEXT(DATE(2000,MONTH(DATEVALUE($E$7&" 1"))+1,1),"mmmm")&" 1")),E135/F129*E129,"")) ->  | M135: =IF(ISBLANK(C135),"",IF(MONTH(C135)=MONTH(DATEVALUE(TEXT(DATE(2000,MONTH(DATEVALUE($E$7&" 1"))+2,1),"mmmm")&" 1")),E135/F129*E129,"")) ->  | N135: =IF(ISBLANK(C135),"",IF(MONTH(C135)=MONTH(DATEVALUE(TEXT(DATE(2000,MONTH(DATEVALUE($E$7&" 1"))+3,1),"mmmm")&" 1")),E135/F129*E129,"")) ->  | O135: =IF(ISBLANK(C135),"",IF(MONTH(C135)=MONTH(DATEVALUE(TEXT(DATE(2000,MONTH(DATEVALUE($E$7&" 1"))+4,1),"mmmm")&" 1")),E135/F129*E129,"")) ->  | P135: =IF(ISBLANK(C135),"",IF(MONTH(C135)=MONTH(DATEVALUE(TEXT(DATE(2000,MONTH(DATEVALUE($E$7&" 1"))+5,1),"mmmm")&" 1")),E135/F129*E129,"")) ->  | Q135: =IF(ISBLANK(C135),"",IF(MONTH(C135)=MONTH(DATEVALUE(TEXT(DATE(2000,MONTH(DATEVALUE($E$7&" 1"))+6,1),"mmmm")&" 1")),E135/F129*E129,"")) ->  | R135: =IF(ISBLANK(C135),"",IF(MONTH(C135)=MONTH(DATEVALUE(TEXT(DATE(2000,MONTH(DATEVALUE($E$7&" 1"))+7,1),"mmmm")&" 1")),E135/F129*E129,"")) ->  | S135: =IF(ISBLANK(C135),"",IF(MONTH(C135)=MONTH(DATEVALUE(TEXT(DATE(2000,MONTH(DATEVALUE($E$7&" 1"))+8,1),"mmmm")&" 1")),E135/F129*E129,"")) ->  | T135: =IF(ISBLANK(C135),"",IF(MONTH(C135)=MONTH(DATEVALUE(TEXT(DATE(2000,MONTH(DATEVALUE($E$7&" 1"))+9,1),"mmmm")&" 1")),E135/F129*E129,"")) ->  | U135: =IF(ISBLANK(C135),"",IF(MONTH(C135)=MONTH(DATEVALUE(TEXT(DATE(2000,MONTH(DATEVALUE($E$7&" 1"))+10,1),"mmmm")&" 1")),E135/F129*E129,"")) ->  | V135: =IF(ISBLANK(C135),"",IF(MONTH(C135)=MONTH(DATEVALUE(TEXT(DATE(2000,MONTH(DATEVALUE($E$7&" 1"))+11,1),"mmmm")&" 1")),E135/F129*E129,"")) -> 
I136: 0 | K136: =IF(ISBLANK(C136),"",IF(MONTH(C136)=MONTH(DATEVALUE($E$7&" 1")),E136/F129*E129,"")) ->  | L136: =IF(ISBLANK(C136),"",IF(MONTH(C136)=MONTH(DATEVALUE(TEXT(DATE(2000,MONTH(DATEVALUE($E$7&" 1"))+1,1),"mmmm")&" 1")),E136/F129*E129,"")) ->  | M136: =IF(ISBLANK(C136),"",IF(MONTH(C136)=MONTH(DATEVALUE(TEXT(DATE(2000,MONTH(DATEVALUE($E$7&" 1"))+2,1),"mmmm")&" 1")),E136/F129*E129,"")) ->  | N136: =IF(ISBLANK(C136),"",IF(MONTH(C136)=MONTH(DATEVALUE(TEXT(DATE(2000,MONTH(DATEVALUE($E$7&" 1"))+3,1),"mmmm")&" 1")),E136/F129*E129,"")) ->  | O136: =IF(ISBLANK(C136),"",IF(MONTH(C136)=MONTH(DATEVALUE(TEXT(DATE(2000,MONTH(DATEVALUE($E$7&" 1"))+4,1),"mmmm")&" 1")),E136/F129*E129,"")) ->  | P136: =IF(ISBLANK(C136),"",IF(MONTH(C136)=MONTH(DATEVALUE(TEXT(DATE(2000,MONTH(DATEVALUE($E$7&" 1"))+5,1),"mmmm")&" 1")),E136/F129*E129,"")) ->  | Q136: =IF(ISBLANK(C136),"",IF(MONTH(C136)=MONTH(DATEVALUE(TEXT(DATE(2000,MONTH(DATEVALUE($E$7&" 1"))+6,1),"mmmm")&" 1")),E136/F129*E129,"")) ->  | R136: =IF(ISBLANK(C136),"",IF(MONTH(C136)=MONTH(DATEVALUE(TEXT(DATE(2000,MONTH(DATEVALUE($E$7&" 1"))+7,1),"mmmm")&" 1")),E136/F129*E129,"")) ->  | S136: =IF(ISBLANK(C136),"",IF(MONTH(C136)=MONTH(DATEVALUE(TEXT(DATE(2000,MONTH(DATEVALUE($E$7&" 1"))+8,1),"mmmm")&" 1")),E136/F129*E129,"")) ->  | T136: =IF(ISBLANK(C136),"",IF(MONTH(C136)=MONTH(DATEVALUE(TEXT(DATE(2000,MONTH(DATEVALUE($E$7&" 1"))+9,1),"mmmm")&" 1")),E136/F129*E129,"")) ->  | U136: =IF(ISBLANK(C136),"",IF(MONTH(C136)=MONTH(DATEVALUE(TEXT(DATE(2000,MONTH(DATEVALUE($E$7&" 1"))+10,1),"mmmm")&" 1")),E136/F129*E129,"")) ->  | V136: =IF(ISBLANK(C136),"",IF(MONTH(C136)=MONTH(DATEVALUE(TEXT(DATE(2000,MONTH(DATEVALUE($E$7&" 1"))+11,1),"mmmm")&" 1")),E136/F129*E129,"")) -> 
I137: 0 | K137: =IF(ISBLANK(C137),"",IF(MONTH(C137)=MONTH(DATEVALUE($E$7&" 1")),E137/F129*E129,"")) ->  | L137: =IF(ISBLANK(C137),"",IF(MONTH(C137)=MONTH(DATEVALUE(TEXT(DATE(2000,MONTH(DATEVALUE($E$7&" 1"))+1,1),"mmmm")&" 1")),E137/F129*E129,"")) ->  | M137: =IF(ISBLANK(C137),"",IF(MONTH(C137)=MONTH(DATEVALUE(TEXT(DATE(2000,MONTH(DATEVALUE($E$7&" 1"))+2,1),"mmmm")&" 1")),E137/F129*E129,"")) ->  | N137: =IF(ISBLANK(C137),"",IF(MONTH(C137)=MONTH(DATEVALUE(TEXT(DATE(2000,MONTH(DATEVALUE($E$7&" 1"))+3,1),"mmmm")&" 1")),E137/F129*E129,"")) ->  | O137: =IF(ISBLANK(C137),"",IF(MONTH(C137)=MONTH(DATEVALUE(TEXT(DATE(2000,MONTH(DATEVALUE($E$7&" 1"))+4,1),"mmmm")&" 1")),E137/F129*E129,"")) ->  | P137: =IF(ISBLANK(C137),"",IF(MONTH(C137)=MONTH(DATEVALUE(TEXT(DATE(2000,MONTH(DATEVALUE($E$7&" 1"))+5,1),"mmmm")&" 1")),E137/F129*E129,"")) ->  | Q137: =IF(ISBLANK(C137),"",IF(MONTH(C137)=MONTH(DATEVALUE(TEXT(DATE(2000,MONTH(DATEVALUE($E$7&" 1"))+6,1),"mmmm")&" 1")),E137/F129*E129,"")) ->  | R137: =IF(ISBLANK(C137),"",IF(MONTH(C137)=MONTH(DATEVALUE(TEXT(DATE(2000,MONTH(DATEVALUE($E$7&" 1"))+7,1),"mmmm")&" 1")),E137/F129*E129,"")) ->  | S137: =IF(ISBLANK(C137),"",IF(MONTH(C137)=MONTH(DATEVALUE(TEXT(DATE(2000,MONTH(DATEVALUE($E$7&" 1"))+8,1),"mmmm")&" 1")),E137/F129*E129,"")) ->  | T137: =IF(ISBLANK(C137),"",IF(MONTH(C137)=MONTH(DATEVALUE(TEXT(DATE(2000,MONTH(DATEVALUE($E$7&" 1"))+9,1),"mmmm")&" 1")),E137/F129*E129,"")) ->  | U137: =IF(ISBLANK(C137),"",IF(MONTH(C137)=MONTH(DATEVALUE(TEXT(DATE(2000,MONTH(DATEVALUE($E$7&" 1"))+10,1),"mmmm")&" 1")),E137/F129*E129,"")) ->  | V137: =IF(ISBLANK(C137),"",IF(MONTH(C137)=MONTH(DATEVALUE(TEXT(DATE(2000,MONTH(DATEVALUE($E$7&" 1"))+11,1),"mmmm")&" 1")),E137/F129*E129,"")) -> 
I138: 0 | K138: =IF(ISBLANK(C138),"",IF(MONTH(C138)=MONTH(DATEVALUE($E$7&" 1")),E138/F129*E129,"")) ->  | L138: =IF(ISBLANK(C138),"",IF(MONTH(C138)=MONTH(DATEVALUE(TEXT(DATE(2000,MONTH(DATEVALUE($E$7&" 1"))+1,1),"mmmm")&" 1")),E138/F129*E129,"")) ->  | M138: =IF(ISBLANK(C138),"",IF(MONTH(C138)=MONTH(DATEVALUE(TEXT(DATE(2000,MONTH(DATEVALUE($E$7&" 1"))+2,1),"mmmm")&" 1")),E138/F129*E129,"")) ->  | N138: =IF(ISBLANK(C138),"",IF(MONTH(C138)=MONTH(DATEVALUE(TEXT(DATE(2000,MONTH(DATEVALUE($E$7&" 1"))+3,1),"mmmm")&" 1")),E138/F129*E129,"")) ->  | O138: =IF(ISBLANK(C138),"",IF(MONTH(C138)=MONTH(DATEVALUE(TEXT(DATE(2000,MONTH(DATEVALUE($E$7&" 1"))+4,1),"mmmm")&" 1")),E138/F129*E129,"")) ->  | P138: =IF(ISBLANK(C138),"",IF(MONTH(C138)=MONTH(DATEVALUE(TEXT(DATE(2000,MONTH(DATEVALUE($E$7&" 1"))+5,1),"mmmm")&" 1")),E138/F129*E129,"")) ->  | Q138: =IF(ISBLANK(C138),"",IF(MONTH(C138)=MONTH(DATEVALUE(TEXT(DATE(2000,MONTH(DATEVALUE($E$7&" 1"))+6,1),"mmmm")&" 1")),E138/F129*E129,"")) ->  | R138: =IF(ISBLANK(C138),"",IF(MONTH(C138)=MONTH(DATEVALUE(TEXT(DATE(2000,MONTH(DATEVALUE($E$7&" 1"))+7,1),"mmmm")&" 1")),E138/F129*E129,"")) ->  | S138: =IF(ISBLANK(C138),"",IF(MONTH(C138)=MONTH(DATEVALUE(TEXT(DATE(2000,MONTH(DATEVALUE($E$7&" 1"))+8,1),"mmmm")&" 1")),E138/F129*E129,"")) ->  | T138: =IF(ISBLANK(C138),"",IF(MONTH(C138)=MONTH(DATEVALUE(TEXT(DATE(2000,MONTH(DATEVALUE($E$7&" 1"))+9,1),"mmmm")&" 1")),E138/F129*E129,"")) ->  | U138: =IF(ISBLANK(C138),"",IF(MONTH(C138)=MONTH(DATEVALUE(TEXT(DATE(2000,MONTH(DATEVALUE($E$7&" 1"))+10,1),"mmmm")&" 1")),E138/F129*E129,"")) ->  | V138: =IF(ISBLANK(C138),"",IF(MONTH(C138)=MONTH(DATEVALUE(TEXT(DATE(2000,MONTH(DATEVALUE($E$7&" 1"))+11,1),"mmmm")&" 1")),E138/F129*E129,"")) -> 
I139: 0 | K139: =IF(ISBLANK(C139),"",IF(MONTH(C139)=MONTH(DATEVALUE($E$7&" 1")),E139/F129*E129,"")) ->  | L139: =IF(ISBLANK(C139),"",IF(MONTH(C139)=MONTH(DATEVALUE(TEXT(DATE(2000,MONTH(DATEVALUE($E$7&" 1"))+1,1),"mmmm")&" 1")),E139/F129*E129,"")) ->  | M139: =IF(ISBLANK(C139),"",IF(MONTH(C139)=MONTH(DATEVALUE(TEXT(DATE(2000,MONTH(DATEVALUE($E$7&" 1"))+2,1),"mmmm")&" 1")),E139/F129*E129,"")) ->  | N139: =IF(ISBLANK(C139),"",IF(MONTH(C139)=MONTH(DATEVALUE(TEXT(DATE(2000,MONTH(DATEVALUE($E$7&" 1"))+3,1),"mmmm")&" 1")),E139/F129*E129,"")) ->  | O139: =IF(ISBLANK(C139),"",IF(MONTH(C139)=MONTH(DATEVALUE(TEXT(DATE(2000,MONTH(DATEVALUE($E$7&" 1"))+4,1),"mmmm")&" 1")),E139/F129*E129,"")) ->  | P139: =IF(ISBLANK(C139),"",IF(MONTH(C139)=MONTH(DATEVALUE(TEXT(DATE(2000,MONTH(DATEVALUE($E$7&" 1"))+5,1),"mmmm")&" 1")),E139/F129*E129,"")) ->  | Q139: =IF(ISBLANK(C139),"",IF(MONTH(C139)=MONTH(DATEVALUE(TEXT(DATE(2000,MONTH(DATEVALUE($E$7&" 1"))+6,1),"mmmm")&" 1")),E139/F129*E129,"")) ->  | R139: =IF(ISBLANK(C139),"",IF(MONTH(C139)=MONTH(DATEVALUE(TEXT(DATE(2000,MONTH(DATEVALUE($E$7&" 1"))+7,1),"mmmm")&" 1")),E139/F129*E129,"")) ->  | S139: =IF(ISBLANK(C139),"",IF(MONTH(C139)=MONTH(DATEVALUE(TEXT(DATE(2000,MONTH(DATEVALUE($E$7&" 1"))+8,1),"mmmm")&" 1")),E139/F129*E129,"")) ->  | T139: =IF(ISBLANK(C139),"",IF(MONTH(C139)=MONTH(DATEVALUE(TEXT(DATE(2000,MONTH(DATEVALUE($E$7&" 1"))+9,1),"mmmm")&" 1")),E139/F129*E129,"")) ->  | U139: =IF(ISBLANK(C139),"",IF(MONTH(C139)=MONTH(DATEVALUE(TEXT(DATE(2000,MONTH(DATEVALUE($E$7&" 1"))+10,1),"mmmm")&" 1")),E139/F129*E129,"")) ->  | V139: =IF(ISBLANK(C139),"",IF(MONTH(C139)=MONTH(DATEVALUE(TEXT(DATE(2000,MONTH(DATEVALUE($E$7&" 1"))+11,1),"mmmm")&" 1")),E139/F129*E129,"")) -> 
I140: 0 | K140: =IF(ISBLANK(C140),"",IF(MONTH(C140)=MONTH(DATEVALUE($E$7&" 1")),E140/F129*E129,"")) ->  | L140: =IF(ISBLANK(C140),"",IF(MONTH(C140)=MONTH(DATEVALUE(TEXT(DATE(2000,MONTH(DATEVALUE($E$7&" 1"))+1,1),"mmmm")&" 1")),E140/F129*E129,"")) ->  | M140: =IF(ISBLANK(C140),"",IF(MONTH(C140)=MONTH(DATEVALUE(TEXT(DATE(2000,MONTH(DATEVALUE($E$7&" 1"))+2,1),"mmmm")&" 1")),E140/F129*E129,"")) ->  | N140: =IF(ISBLANK(C140),"",IF(MONTH(C140)=MONTH(DATEVALUE(TEXT(DATE(2000,MONTH(DATEVALUE($E$7&" 1"))+3,1),"mmmm")&" 1")),E140/F129*E129,"")) ->  | O140: =IF(ISBLANK(C140),"",IF(MONTH(C140)=MONTH(DATEVALUE(TEXT(DATE(2000,MONTH(DATEVALUE($E$7&" 1"))+4,1),"mmmm")&" 1")),E140/F129*E129,"")) ->  | P140: =IF(ISBLANK(C140),"",IF(MONTH(C140)=MONTH(DATEVALUE(TEXT(DATE(2000,MONTH(DATEVALUE($E$7&" 1"))+5,1),"mmmm")&" 1")),E140/F129*E129,"")) ->  | Q140: =IF(ISBLANK(C140),"",IF(MONTH(C140)=MONTH(DATEVALUE(TEXT(DATE(2000,MONTH(DATEVALUE($E$7&" 1"))+6,1),"mmmm")&" 1")),E140/F129*E129,"")) ->  | R140: =IF(ISBLANK(C140),"",IF(MONTH(C140)=MONTH(DATEVALUE(TEXT(DATE(2000,MONTH(DATEVALUE($E$7&" 1"))+7,1),"mmmm")&" 1")),E140/F129*E129,"")) ->  | S140: =IF(ISBLANK(C140),"",IF(MONTH(C140)=MONTH(DATEVALUE(TEXT(DATE(2000,MONTH(DATEVALUE($E$7&" 1"))+8,1),"mmmm")&" 1")),E140/F129*E129,"")) ->  | T140: =IF(ISBLANK(C140),"",IF(MONTH(C140)=MONTH(DATEVALUE(TEXT(DATE(2000,MONTH(DATEVALUE($E$7&" 1"))+9,1),"mmmm")&" 1")),E140/F129*E129,"")) ->  | U140: =IF(ISBLANK(C140),"",IF(MONTH(C140)=MONTH(DATEVALUE(TEXT(DATE(2000,MONTH(DATEVALUE($E$7&" 1"))+10,1),"mmmm")&" 1")),E140/F129*E129,"")) ->  | V140: =IF(ISBLANK(C140),"",IF(MONTH(C140)=MONTH(DATEVALUE(TEXT(DATE(2000,MONTH(DATEVALUE($E$7&" 1"))+11,1),"mmmm")&" 1")),E140/F129*E129,"")) -> 
H141: =IFERROR(SUM(E143:H152)/F141,0) -> 0 | I141: =SUM(I142:J152) -> 0 | W141: =IF(H141<>100%,"Pas ok","ok") -> Pas ok
B142: Numéro de facture | C142: Date de facturation | D142: Description de la facture | E142: Montant de la facture
I143: =SUM(K143:V143) -> 0 | K143: =IF(ISBLANK(C143),"",IF(MONTH(C143)=MONTH(DATEVALUE($E$7&" 1")),E143/F141*E141,"")) ->  | L143: =IF(ISBLANK(C143),"",IF(MONTH(C143)=MONTH(DATEVALUE(TEXT(DATE(2000,MONTH(DATEVALUE($E$7&" 1"))+1,1),"mmmm")&" 1")),E143/F141*E141,"")) ->  | M143: =IF(ISBLANK(C143),"",IF(MONTH(C143)=MONTH(DATEVALUE(TEXT(DATE(2000,MONTH(DATEVALUE($E$7&" 1"))+2,1),"mmmm")&" 1")),E143/F141*E141,"")) ->  | N143: =IF(ISBLANK(C143),"",IF(MONTH(C143)=MONTH(DATEVALUE(TEXT(DATE(2000,MONTH(DATEVALUE($E$7&" 1"))+3,1),"mmmm")&" 1")),E143/F141*E141,"")) ->  | O143: =IF(ISBLANK(C143),"",IF(MONTH(C143)=MONTH(DATEVALUE(TEXT(DATE(2000,MONTH(DATEVALUE($E$7&" 1"))+4,1),"mmmm")&" 1")),E143/F141*E141,"")) ->  | P143: =IF(ISBLANK(C143),"",IF(MONTH(C143)=MONTH(DATEVALUE(TEXT(DATE(2000,MONTH(DATEVALUE($E$7&" 1"))+5,1),"mmmm")&" 1")),E143/F141*E141,"")) ->  | Q143: =IF(ISBLANK(C143),"",IF(MONTH(C143)=MONTH(DATEVALUE(TEXT(DATE(2000,MONTH(DATEVALUE($E$7&" 1"))+6,1),"mmmm")&" 1")),E143/F141*E141,"")) ->  | R143: =IF(ISBLANK(C143),"",IF(MONTH(C143)=MONTH(DATEVALUE(TEXT(DATE(2000,MONTH(DATEVALUE($E$7&" 1"))+7,1),"mmmm")&" 1")),E143/F141*E141,"")) ->  | S143: =IF(ISBLANK(C143),"",IF(MONTH(C143)=MONTH(DATEVALUE(TEXT(DATE(2000,MONTH(DATEVALUE($E$7&" 1"))+8,1),"mmmm")&" 1")),E143/F141*E141,"")) ->  | T143: =IF(ISBLANK(C143),"",IF(MONTH(C143)=MONTH(DATEVALUE(TEXT(DATE(2000,MONTH(DATEVALUE($E$7&" 1"))+9,1),"mmmm")&" 1")),E143/F141*E141,"")) ->  | U143: =IF(ISBLANK(C143),"",IF(MONTH(C143)=MONTH(DATEVALUE(TEXT(DATE(2000,MONTH(DATEVALUE($E$7&" 1"))+10,1),"mmmm")&" 1")),E143/F141*E141,"")) ->  | V143: =IF(ISBLANK(C143),"",IF(MONTH(C143)=MONTH(DATEVALUE(TEXT(DATE(2000,MONTH(DATEVALUE($E$7&" 1"))+11,1),"mmmm")&" 1")),E143/F141*E141,"")) -> 
I144: 0 | K144: =IF(ISBLANK(C144),"",IF(MONTH(C144)=MONTH(DATEVALUE($E$7&" 1")),E144/F141*E141,"")) ->  | L144: =IF(ISBLANK(C144),"",IF(MONTH(C144)=MONTH(DATEVALUE(TEXT(DATE(2000,MONTH(DATEVALUE($E$7&" 1"))+1,1),"mmmm")&" 1")),E144/F141*E141,"")) ->  | M144: =IF(ISBLANK(C144),"",IF(MONTH(C144)=MONTH(DATEVALUE(TEXT(DATE(2000,MONTH(DATEVALUE($E$7&" 1"))+2,1),"mmmm")&" 1")),E144/F141*E141,"")) ->  | N144: =IF(ISBLANK(C144),"",IF(MONTH(C144)=MONTH(DATEVALUE(TEXT(DATE(2000,MONTH(DATEVALUE($E$7&" 1"))+3,1),"mmmm")&" 1")),E144/F141*E141,"")) ->  | O144: =IF(ISBLANK(C144),"",IF(MONTH(C144)=MONTH(DATEVALUE(TEXT(DATE(2000,MONTH(DATEVALUE($E$7&" 1"))+4,1),"mmmm")&" 1")),E144/F141*E141,"")) ->  | P144: =IF(ISBLANK(C144),"",IF(MONTH(C144)=MONTH(DATEVALUE(TEXT(DATE(2000,MONTH(DATEVALUE($E$7&" 1"))+5,1),"mmmm")&" 1")),E144/F141*E141,"")) ->  | Q144: =IF(ISBLANK(C144),"",IF(MONTH(C144)=MONTH(DATEVALUE(TEXT(DATE(2000,MONTH(DATEVALUE($E$7&" 1"))+6,1),"mmmm")&" 1")),E144/F141*E141,"")) ->  | R144: =IF(ISBLANK(C144),"",IF(MONTH(C144)=MONTH(DATEVALUE(TEXT(DATE(2000,MONTH(DATEVALUE($E$7&" 1"))+7,1),"mmmm")&" 1")),E144/F141*E141,"")) ->  | S144: =IF(ISBLANK(C144),"",IF(MONTH(C144)=MONTH(DATEVALUE(TEXT(DATE(2000,MONTH(DATEVALUE($E$7&" 1"))+8,1),"mmmm")&" 1")),E144/F141*E141,"")) ->  | T144: =IF(ISBLANK(C144),"",IF(MONTH(C144)=MONTH(DATEVALUE(TEXT(DATE(2000,MONTH(DATEVALUE($E$7&" 1"))+9,1),"mmmm")&" 1")),E144/F141*E141,"")) ->  | U144: =IF(ISBLANK(C144),"",IF(MONTH(C144)=MONTH(DATEVALUE(TEXT(DATE(2000,MONTH(DATEVALUE($E$7&" 1"))+10,1),"mmmm")&" 1")),E144/F141*E141,"")) ->  | V144: =IF(ISBLANK(C144),"",IF(MONTH(C144)=MONTH(DATEVALUE(TEXT(DATE(2000,MONTH(DATEVALUE($E$7&" 1"))+11,1),"mmmm")&" 1")),E144/F141*E141,"")) -> 
I145: 0 | K145: =IF(ISBLANK(C145),"",IF(MONTH(C145)=MONTH(DATEVALUE($E$7&" 1")),E145/F141*E141,"")) ->  | L145: =IF(ISBLANK(C145),"",IF(MONTH(C145)=MONTH(DATEVALUE(TEXT(DATE(2000,MONTH(DATEVALUE($E$7&" 1"))+1,1),"mmmm")&" 1")),E145/F141*E141,"")) ->  | M145: =IF(ISBLANK(C145),"",IF(MONTH(C145)=MONTH(DATEVALUE(TEXT(DATE(2000,MONTH(DATEVALUE($E$7&" 1"))+2,1),"mmmm")&" 1")),E145/F141*E141,"")) ->  | N145: =IF(ISBLANK(C145),"",IF(MONTH(C145)=MONTH(DATEVALUE(TEXT(DATE(2000,MONTH(DATEVALUE($E$7&" 1"))+3,1),"mmmm")&" 1")),E145/F141*E141,"")) ->  | O145: =IF(ISBLANK(C145),"",IF(MONTH(C145)=MONTH(DATEVALUE(TEXT(DATE(2000,MONTH(DATEVALUE($E$7&" 1"))+4,1),"mmmm")&" 1")),E145/F141*E141,"")) ->  | P145: =IF(ISBLANK(C145),"",IF(MONTH(C145)=MONTH(DATEVALUE(TEXT(DATE(2000,MONTH(DATEVALUE($E$7&" 1"))+5,1),"mmmm")&" 1")),E145/F141*E141,"")) ->  | Q145: =IF(ISBLANK(C145),"",IF(MONTH(C145)=MONTH(DATEVALUE(TEXT(DATE(2000,MONTH(DATEVALUE($E$7&" 1"))+6,1),"mmmm")&" 1")),E145/F141*E141,"")) ->  | R145: =IF(ISBLANK(C145),"",IF(MONTH(C145)=MONTH(DATEVALUE(TEXT(DATE(2000,MONTH(DATEVALUE($E$7&" 1"))+7,1),"mmmm")&" 1")),E145/F141*E141,"")) ->  | S145: =IF(ISBLANK(C145),"",IF(MONTH(C145)=MONTH(DATEVALUE(TEXT(DATE(2000,MONTH(DATEVALUE($E$7&" 1"))+8,1),"mmmm")&" 1")),E145/F141*E141,"")) ->  | T145: =IF(ISBLANK(C145),"",IF(MONTH(C145)=MONTH(DATEVALUE(TEXT(DATE(2000,MONTH(DATEVALUE($E$7&" 1"))+9,1),"mmmm")&" 1")),E145/F141*E141,"")) ->  | U145: =IF(ISBLANK(C145),"",IF(MONTH(C145)=MONTH(DATEVALUE(TEXT(DATE(2000,MONTH(DATEVALUE($E$7&" 1"))+10,1),"mmmm")&" 1")),E145/F141*E141,"")) ->  | V145: =IF(ISBLANK(C145),"",IF(MONTH(C145)=MONTH(DATEVALUE(TEXT(DATE(2000,MONTH(DATEVALUE($E$7&" 1"))+11,1),"mmmm")&" 1")),E145/F141*E141,"")) -> 
I146: 0 | K146: =IF(ISBLANK(C146),"",IF(MONTH(C146)=MONTH(DATEVALUE($E$7&" 1")),E146/F141*E141,"")) ->  | L146: =IF(ISBLANK(C146),"",IF(MONTH(C146)=MONTH(DATEVALUE(TEXT(DATE(2000,MONTH(DATEVALUE($E$7&" 1"))+1,1),"mmmm")&" 1")),E146/F141*E141,"")) ->  | M146: =IF(ISBLANK(C146),"",IF(MONTH(C146)=MONTH(DATEVALUE(TEXT(DATE(2000,MONTH(DATEVALUE($E$7&" 1"))+2,1),"mmmm")&" 1")),E146/F141*E141,"")) ->  | N146: =IF(ISBLANK(C146),"",IF(MONTH(C146)=MONTH(DATEVALUE(TEXT(DATE(2000,MONTH(DATEVALUE($E$7&" 1"))+3,1),"mmmm")&" 1")),E146/F141*E141,"")) ->  | O146: =IF(ISBLANK(C146),"",IF(MONTH(C146)=MONTH(DATEVALUE(TEXT(DATE(2000,MONTH(DATEVALUE($E$7&" 1"))+4,1),"mmmm")&" 1")),E146/F141*E141,"")) ->  | P146: =IF(ISBLANK(C146),"",IF(MONTH(C146)=MONTH(DATEVALUE(TEXT(DATE(2000,MONTH(DATEVALUE($E$7&" 1"))+5,1),"mmmm")&" 1")),E146/F141*E141,"")) ->  | Q146: =IF(ISBLANK(C146),"",IF(MONTH(C146)=MONTH(DATEVALUE(TEXT(DATE(2000,MONTH(DATEVALUE($E$7&" 1"))+6,1),"mmmm")&" 1")),E146/F141*E141,"")) ->  | R146: =IF(ISBLANK(C146),"",IF(MONTH(C146)=MONTH(DATEVALUE(TEXT(DATE(2000,MONTH(DATEVALUE($E$7&" 1"))+7,1),"mmmm")&" 1")),E146/F141*E141,"")) ->  | S146: =IF(ISBLANK(C146),"",IF(MONTH(C146)=MONTH(DATEVALUE(TEXT(DATE(2000,MONTH(DATEVALUE($E$7&" 1"))+8,1),"mmmm")&" 1")),E146/F141*E141,"")) ->  | T146: =IF(ISBLANK(C146),"",IF(MONTH(C146)=MONTH(DATEVALUE(TEXT(DATE(2000,MONTH(DATEVALUE($E$7&" 1"))+9,1),"mmmm")&" 1")),E146/F141*E141,"")) ->  | U146: =IF(ISBLANK(C146),"",IF(MONTH(C146)=MONTH(DATEVALUE(TEXT(DATE(2000,MONTH(DATEVALUE($E$7&" 1"))+10,1),"mmmm")&" 1")),E146/F141*E141,"")) ->  | V146: =IF(ISBLANK(C146),"",IF(MONTH(C146)=MONTH(DATEVALUE(TEXT(DATE(2000,MONTH(DATEVALUE($E$7&" 1"))+11,1),"mmmm")&" 1")),E146/F141*E141,"")) -> 
I147: 0 | K147: =IF(ISBLANK(C147),"",IF(MONTH(C147)=MONTH(DATEVALUE($E$7&" 1")),E147/F141*E141,"")) ->  | L147: =IF(ISBLANK(C147),"",IF(MONTH(C147)=MONTH(DATEVALUE(TEXT(DATE(2000,MONTH(DATEVALUE($E$7&" 1"))+1,1),"mmmm")&" 1")),E147/F141*E141,"")) ->  | M147: =IF(ISBLANK(C147),"",IF(MONTH(C147)=MONTH(DATEVALUE(TEXT(DATE(2000,MONTH(DATEVALUE($E$7&" 1"))+2,1),"mmmm")&" 1")),E147/F141*E141,"")) ->  | N147: =IF(ISBLANK(C147),"",IF(MONTH(C147)=MONTH(DATEVALUE(TEXT(DATE(2000,MONTH(DATEVALUE($E$7&" 1"))+3,1),"mmmm")&" 1")),E147/F141*E141,"")) ->  | O147: =IF(ISBLANK(C147),"",IF(MONTH(C147)=MONTH(DATEVALUE(TEXT(DATE(2000,MONTH(DATEVALUE($E$7&" 1"))+4,1),"mmmm")&" 1")),E147/F141*E141,"")) ->  | P147: =IF(ISBLANK(C147),"",IF(MONTH(C147)=MONTH(DATEVALUE(TEXT(DATE(2000,MONTH(DATEVALUE($E$7&" 1"))+5,1),"mmmm")&" 1")),E147/F141*E141,"")) ->  | Q147: =IF(ISBLANK(C147),"",IF(MONTH(C147)=MONTH(DATEVALUE(TEXT(DATE(2000,MONTH(DATEVALUE($E$7&" 1"))+6,1),"mmmm")&" 1")),E147/F141*E141,"")) ->  | R147: =IF(ISBLANK(C147),"",IF(MONTH(C147)=MONTH(DATEVALUE(TEXT(DATE(2000,MONTH(DATEVALUE($E$7&" 1"))+7,1),"mmmm")&" 1")),E147/F141*E141,"")) ->  | S147: =IF(ISBLANK(C147),"",IF(MONTH(C147)=MONTH(DATEVALUE(TEXT(DATE(2000,MONTH(DATEVALUE($E$7&" 1"))+8,1),"mmmm")&" 1")),E147/F141*E141,"")) ->  | T147: =IF(ISBLANK(C147),"",IF(MONTH(C147)=MONTH(DATEVALUE(TEXT(DATE(2000,MONTH(DATEVALUE($E$7&" 1"))+9,1),"mmmm")&" 1")),E147/F141*E141,"")) ->  | U147: =IF(ISBLANK(C147),"",IF(MONTH(C147)=MONTH(DATEVALUE(TEXT(DATE(2000,MONTH(DATEVALUE($E$7&" 1"))+10,1),"mmmm")&" 1")),E147/F141*E141,"")) ->  | V147: =IF(ISBLANK(C147),"",IF(MONTH(C147)=MONTH(DATEVALUE(TEXT(DATE(2000,MONTH(DATEVALUE($E$7&" 1"))+11,1),"mmmm")&" 1")),E147/F141*E141,"")) -> 
I148: 0 | K148: =IF(ISBLANK(C148),"",IF(MONTH(C148)=MONTH(DATEVALUE($E$7&" 1")),E148/F141*E141,"")) ->  | L148: =IF(ISBLANK(C148),"",IF(MONTH(C148)=MONTH(DATEVALUE(TEXT(DATE(2000,MONTH(DATEVALUE($E$7&" 1"))+1,1),"mmmm")&" 1")),E148/F141*E141,"")) ->  | M148: =IF(ISBLANK(C148),"",IF(MONTH(C148)=MONTH(DATEVALUE(TEXT(DATE(2000,MONTH(DATEVALUE($E$7&" 1"))+2,1),"mmmm")&" 1")),E148/F141*E141,"")) ->  | N148: =IF(ISBLANK(C148),"",IF(MONTH(C148)=MONTH(DATEVALUE(TEXT(DATE(2000,MONTH(DATEVALUE($E$7&" 1"))+3,1),"mmmm")&" 1")),E148/F141*E141,"")) ->  | O148: =IF(ISBLANK(C148),"",IF(MONTH(C148)=MONTH(DATEVALUE(TEXT(DATE(2000,MONTH(DATEVALUE($E$7&" 1"))+4,1),"mmmm")&" 1")),E148/F141*E141,"")) ->  | P148: =IF(ISBLANK(C148),"",IF(MONTH(C148)=MONTH(DATEVALUE(TEXT(DATE(2000,MONTH(DATEVALUE($E$7&" 1"))+5,1),"mmmm")&" 1")),E148/F141*E141,"")) ->  | Q148: =IF(ISBLANK(C148),"",IF(MONTH(C148)=MONTH(DATEVALUE(TEXT(DATE(2000,MONTH(DATEVALUE($E$7&" 1"))+6,1),"mmmm")&" 1")),E148/F141*E141,"")) ->  | R148: =IF(ISBLANK(C148),"",IF(MONTH(C148)=MONTH(DATEVALUE(TEXT(DATE(2000,MONTH(DATEVALUE($E$7&" 1"))+7,1),"mmmm")&" 1")),E148/F141*E141,"")) ->  | S148: =IF(ISBLANK(C148),"",IF(MONTH(C148)=MONTH(DATEVALUE(TEXT(DATE(2000,MONTH(DATEVALUE($E$7&" 1"))+8,1),"mmmm")&" 1")),E148/F141*E141,"")) ->  | T148: =IF(ISBLANK(C148),"",IF(MONTH(C148)=MONTH(DATEVALUE(TEXT(DATE(2000,MONTH(DATEVALUE($E$7&" 1"))+9,1),"mmmm")&" 1")),E148/F141*E141,"")) ->  | U148: =IF(ISBLANK(C148),"",IF(MONTH(C148)=MONTH(DATEVALUE(TEXT(DATE(2000,MONTH(DATEVALUE($E$7&" 1"))+10,1),"mmmm")&" 1")),E148/F141*E141,"")) ->  | V148: =IF(ISBLANK(C148),"",IF(MONTH(C148)=MONTH(DATEVALUE(TEXT(DATE(2000,MONTH(DATEVALUE($E$7&" 1"))+11,1),"mmmm")&" 1")),E148/F141*E141,"")) -> 
I149: 0 | K149: =IF(ISBLANK(C149),"",IF(MONTH(C149)=MONTH(DATEVALUE($E$7&" 1")),E149/F141*E141,"")) ->  | L149: =IF(ISBLANK(C149),"",IF(MONTH(C149)=MONTH(DATEVALUE(TEXT(DATE(2000,MONTH(DATEVALUE($E$7&" 1"))+1,1),"mmmm")&" 1")),E149/F141*E141,"")) ->  | M149: =IF(ISBLANK(C149),"",IF(MONTH(C149)=MONTH(DATEVALUE(TEXT(DATE(2000,MONTH(DATEVALUE($E$7&" 1"))+2,1),"mmmm")&" 1")),E149/F141*E141,"")) ->  | N149: =IF(ISBLANK(C149),"",IF(MONTH(C149)=MONTH(DATEVALUE(TEXT(DATE(2000,MONTH(DATEVALUE($E$7&" 1"))+3,1),"mmmm")&" 1")),E149/F141*E141,"")) ->  | O149: =IF(ISBLANK(C149),"",IF(MONTH(C149)=MONTH(DATEVALUE(TEXT(DATE(2000,MONTH(DATEVALUE($E$7&" 1"))+4,1),"mmmm")&" 1")),E149/F141*E141,"")) ->  | P149: =IF(ISBLANK(C149),"",IF(MONTH(C149)=MONTH(DATEVALUE(TEXT(DATE(2000,MONTH(DATEVALUE($E$7&" 1"))+5,1),"mmmm")&" 1")),E149/F141*E141,"")) ->  | Q149: =IF(ISBLANK(C149),"",IF(MONTH(C149)=MONTH(DATEVALUE(TEXT(DATE(2000,MONTH(DATEVALUE($E$7&" 1"))+6,1),"mmmm")&" 1")),E149/F141*E141,"")) ->  | R149: =IF(ISBLANK(C149),"",IF(MONTH(C149)=MONTH(DATEVALUE(TEXT(DATE(2000,MONTH(DATEVALUE($E$7&" 1"))+7,1),"mmmm")&" 1")),E149/F141*E141,"")) ->  | S149: =IF(ISBLANK(C149),"",IF(MONTH(C149)=MONTH(DATEVALUE(TEXT(DATE(2000,MONTH(DATEVALUE($E$7&" 1"))+8,1),"mmmm")&" 1")),E149/F141*E141,"")) ->  | T149: =IF(ISBLANK(C149),"",IF(MONTH(C149)=MONTH(DATEVALUE(TEXT(DATE(2000,MONTH(DATEVALUE($E$7&" 1"))+9,1),"mmmm")&" 1")),E149/F141*E141,"")) ->  | U149: =IF(ISBLANK(C149),"",IF(MONTH(C149)=MONTH(DATEVALUE(TEXT(DATE(2000,MONTH(DATEVALUE($E$7&" 1"))+10,1),"mmmm")&" 1")),E149/F141*E141,"")) ->  | V149: =IF(ISBLANK(C149),"",IF(MONTH(C149)=MONTH(DATEVALUE(TEXT(DATE(2000,MONTH(DATEVALUE($E$7&" 1"))+11,1),"mmmm")&" 1")),E149/F141*E141,"")) -> 
I150: 0 | K150: =IF(ISBLANK(C150),"",IF(MONTH(C150)=MONTH(DATEVALUE($E$7&" 1")),E150/F141*E141,"")) ->  | L150: =IF(ISBLANK(C150),"",IF(MONTH(C150)=MONTH(DATEVALUE(TEXT(DATE(2000,MONTH(DATEVALUE($E$7&" 1"))+1,1),"mmmm")&" 1")),E150/F141*E141,"")) ->  | M150: =IF(ISBLANK(C150),"",IF(MONTH(C150)=MONTH(DATEVALUE(TEXT(DATE(2000,MONTH(DATEVALUE($E$7&" 1"))+2,1),"mmmm")&" 1")),E150/F141*E141,"")) ->  | N150: =IF(ISBLANK(C150),"",IF(MONTH(C150)=MONTH(DATEVALUE(TEXT(DATE(2000,MONTH(DATEVALUE($E$7&" 1"))+3,1),"mmmm")&" 1")),E150/F141*E141,"")) ->  | O150: =IF(ISBLANK(C150),"",IF(MONTH(C150)=MONTH(DATEVALUE(TEXT(DATE(2000,MONTH(DATEVALUE($E$7&" 1"))+4,1),"mmmm")&" 1")),E150/F141*E141,"")) ->  | P150: =IF(ISBLANK(C150),"",IF(MONTH(C150)=MONTH(DATEVALUE(TEXT(DATE(2000,MONTH(DATEVALUE($E$7&" 1"))+5,1),"mmmm")&" 1")),E150/F141*E141,"")) ->  | Q150: =IF(ISBLANK(C150),"",IF(MONTH(C150)=MONTH(DATEVALUE(TEXT(DATE(2000,MONTH(DATEVALUE($E$7&" 1"))+6,1),"mmmm")&" 1")),E150/F141*E141,"")) ->  | R150: =IF(ISBLANK(C150),"",IF(MONTH(C150)=MONTH(DATEVALUE(TEXT(DATE(2000,MONTH(DATEVALUE($E$7&" 1"))+7,1),"mmmm")&" 1")),E150/F141*E141,"")) ->  | S150: =IF(ISBLANK(C150),"",IF(MONTH(C150)=MONTH(DATEVALUE(TEXT(DATE(2000,MONTH(DATEVALUE($E$7&" 1"))+8,1),"mmmm")&" 1")),E150/F141*E141,"")) ->  | T150: =IF(ISBLANK(C150),"",IF(MONTH(C150)=MONTH(DATEVALUE(TEXT(DATE(2000,MONTH(DATEVALUE($E$7&" 1"))+9,1),"mmmm")&" 1")),E150/F141*E141,"")) ->  | U150: =IF(ISBLANK(C150),"",IF(MONTH(C150)=MONTH(DATEVALUE(TEXT(DATE(2000,MONTH(DATEVALUE($E$7&" 1"))+10,1),"mmmm")&" 1")),E150/F141*E141,"")) ->  | V150: =IF(ISBLANK(C150),"",IF(MONTH(C150)=MONTH(DATEVALUE(TEXT(DATE(2000,MONTH(DATEVALUE($E$7&" 1"))+11,1),"mmmm")&" 1")),E150/F141*E141,"")) -> 
I151: 0 | K151: =IF(ISBLANK(C151),"",IF(MONTH(C151)=MONTH(DATEVALUE($E$7&" 1")),E151/F141*E141,"")) ->  | L151: =IF(ISBLANK(C151),"",IF(MONTH(C151)=MONTH(DATEVALUE(TEXT(DATE(2000,MONTH(DATEVALUE($E$7&" 1"))+1,1),"mmmm")&" 1")),E151/F141*E141,"")) ->  | M151: =IF(ISBLANK(C151),"",IF(MONTH(C151)=MONTH(DATEVALUE(TEXT(DATE(2000,MONTH(DATEVALUE($E$7&" 1"))+2,1),"mmmm")&" 1")),E151/F141*E141,"")) ->  | N151: =IF(ISBLANK(C151),"",IF(MONTH(C151)=MONTH(DATEVALUE(TEXT(DATE(2000,MONTH(DATEVALUE($E$7&" 1"))+3,1),"mmmm")&" 1")),E151/F141*E141,"")) ->  | O151: =IF(ISBLANK(C151),"",IF(MONTH(C151)=MONTH(DATEVALUE(TEXT(DATE(2000,MONTH(DATEVALUE($E$7&" 1"))+4,1),"mmmm")&" 1")),E151/F141*E141,"")) ->  | P151: =IF(ISBLANK(C151),"",IF(MONTH(C151)=MONTH(DATEVALUE(TEXT(DATE(2000,MONTH(DATEVALUE($E$7&" 1"))+5,1),"mmmm")&" 1")),E151/F141*E141,"")) ->  | Q151: =IF(ISBLANK(C151),"",IF(MONTH(C151)=MONTH(DATEVALUE(TEXT(DATE(2000,MONTH(DATEVALUE($E$7&" 1"))+6,1),"mmmm")&" 1")),E151/F141*E141,"")) ->  | R151: =IF(ISBLANK(C151),"",IF(MONTH(C151)=MONTH(DATEVALUE(TEXT(DATE(2000,MONTH(DATEVALUE($E$7&" 1"))+7,1),"mmmm")&" 1")),E151/F141*E141,"")) ->  | S151: =IF(ISBLANK(C151),"",IF(MONTH(C151)=MONTH(DATEVALUE(TEXT(DATE(2000,MONTH(DATEVALUE($E$7&" 1"))+8,1),"mmmm")&" 1")),E151/F141*E141,"")) ->  | T151: =IF(ISBLANK(C151),"",IF(MONTH(C151)=MONTH(DATEVALUE(TEXT(DATE(2000,MONTH(DATEVALUE($E$7&" 1"))+9,1),"mmmm")&" 1")),E151/F141*E141,"")) ->  | U151: =IF(ISBLANK(C151),"",IF(MONTH(C151)=MONTH(DATEVALUE(TEXT(DATE(2000,MONTH(DATEVALUE($E$7&" 1"))+10,1),"mmmm")&" 1")),E151/F141*E141,"")) ->  | V151: =IF(ISBLANK(C151),"",IF(MONTH(C151)=MONTH(DATEVALUE(TEXT(DATE(2000,MONTH(DATEVALUE($E$7&" 1"))+11,1),"mmmm")&" 1")),E151/F141*E141,"")) -> 
I152: 0 | K152: =IF(ISBLANK(C152),"",IF(MONTH(C152)=MONTH(DATEVALUE($E$7&" 1")),E152/F141*E141,"")) ->  | L152: =IF(ISBLANK(C152),"",IF(MONTH(C152)=MONTH(DATEVALUE(TEXT(DATE(2000,MONTH(DATEVALUE($E$7&" 1"))+1,1),"mmmm")&" 1")),E152/F141*E141,"")) ->  | M152: =IF(ISBLANK(C152),"",IF(MONTH(C152)=MONTH(DATEVALUE(TEXT(DATE(2000,MONTH(DATEVALUE($E$7&" 1"))+2,1),"mmmm")&" 1")),E152/F141*E141,"")) ->  | N152: =IF(ISBLANK(C152),"",IF(MONTH(C152)=MONTH(DATEVALUE(TEXT(DATE(2000,MONTH(DATEVALUE($E$7&" 1"))+3,1),"mmmm")&" 1")),E152/F141*E141,"")) ->  | O152: =IF(ISBLANK(C152),"",IF(MONTH(C152)=MONTH(DATEVALUE(TEXT(DATE(2000,MONTH(DATEVALUE($E$7&" 1"))+4,1),"mmmm")&" 1")),E152/F141*E141,"")) ->  | P152: =IF(ISBLANK(C152),"",IF(MONTH(C152)=MONTH(DATEVALUE(TEXT(DATE(2000,MONTH(DATEVALUE($E$7&" 1"))+5,1),"mmmm")&" 1")),E152/F141*E141,"")) ->  | Q152: =IF(ISBLANK(C152),"",IF(MONTH(C152)=MONTH(DATEVALUE(TEXT(DATE(2000,MONTH(DATEVALUE($E$7&" 1"))+6,1),"mmmm")&" 1")),E152/F141*E141,"")) ->  | R152: =IF(ISBLANK(C152),"",IF(MONTH(C152)=MONTH(DATEVALUE(TEXT(DATE(2000,MONTH(DATEVALUE($E$7&" 1"))+7,1),"mmmm")&" 1")),E152/F141*E141,"")) ->  | S152: =IF(ISBLANK(C152),"",IF(MONTH(C152)=MONTH(DATEVALUE(TEXT(DATE(2000,MONTH(DATEVALUE($E$7&" 1"))+8,1),"mmmm")&" 1")),E152/F141*E141,"")) ->  | T152: =IF(ISBLANK(C152),"",IF(MONTH(C152)=MONTH(DATEVALUE(TEXT(DATE(2000,MONTH(DATEVALUE($E$7&" 1"))+9,1),"mmmm")&" 1")),E152/F141*E141,"")) ->  | U152: =IF(ISBLANK(C152),"",IF(MONTH(C152)=MONTH(DATEVALUE(TEXT(DATE(2000,MONTH(DATEVALUE($E$7&" 1"))+10,1),"mmmm")&" 1")),E152/F141*E141,"")) ->  | V152: =IF(ISBLANK(C152),"",IF(MONTH(C152)=MONTH(DATEVALUE(TEXT(DATE(2000,MONTH(DATEVALUE($E$7&" 1"))+11,1),"mmmm")&" 1")),E152/F141*E141,"")) -> 
H153: =IFERROR(SUM(E155:H164)/F153,0) -> 0 | I153: =SUM(I154:J164) -> 0 | W153: =IF(H153<>100%,"Pas ok","ok") -> Pas ok
B154: Numéro de facture | C154: Date de facturation | D154: Description de la facture | E154: Montant de la facture
I155: =SUM(K155:V155) -> 0 | K155: =IF(ISBLANK(C155),"",IF(MONTH(C155)=MONTH(DATEVALUE($E$7&" 1")),E155/F153*E153,"")) ->  | L155: =IF(ISBLANK(C155),"",IF(MONTH(C155)=MONTH(DATEVALUE(TEXT(DATE(2000,MONTH(DATEVALUE($E$7&" 1"))+1,1),"mmmm")&" 1")),E155/F153*E153,"")) ->  | M155: =IF(ISBLANK(C155),"",IF(MONTH(C155)=MONTH(DATEVALUE(TEXT(DATE(2000,MONTH(DATEVALUE($E$7&" 1"))+2,1),"mmmm")&" 1")),E155/F153*E153,"")) ->  | N155: =IF(ISBLANK(C155),"",IF(MONTH(C155)=MONTH(DATEVALUE(TEXT(DATE(2000,MONTH(DATEVALUE($E$7&" 1"))+3,1),"mmmm")&" 1")),E155/F153*E153,"")) ->  | O155: =IF(ISBLANK(C155),"",IF(MONTH(C155)=MONTH(DATEVALUE(TEXT(DATE(2000,MONTH(DATEVALUE($E$7&" 1"))+4,1),"mmmm")&" 1")),E155/F153*E153,"")) ->  | P155: =IF(ISBLANK(C155),"",IF(MONTH(C155)=MONTH(DATEVALUE(TEXT(DATE(2000,MONTH(DATEVALUE($E$7&" 1"))+5,1),"mmmm")&" 1")),E155/F153*E153,"")) ->  | Q155: =IF(ISBLANK(C155),"",IF(MONTH(C155)=MONTH(DATEVALUE(TEXT(DATE(2000,MONTH(DATEVALUE($E$7&" 1"))+6,1),"mmmm")&" 1")),E155/F153*E153,"")) ->  | R155: =IF(ISBLANK(C155),"",IF(MONTH(C155)=MONTH(DATEVALUE(TEXT(DATE(2000,MONTH(DATEVALUE($E$7&" 1"))+7,1),"mmmm")&" 1")),E155/F153*E153,"")) ->  | S155: =IF(ISBLANK(C155),"",IF(MONTH(C155)=MONTH(DATEVALUE(TEXT(DATE(2000,MONTH(DATEVALUE($E$7&" 1"))+8,1),"mmmm")&" 1")),E155/F153*E153,"")) ->  | T155: =IF(ISBLANK(C155),"",IF(MONTH(C155)=MONTH(DATEVALUE(TEXT(DATE(2000,MONTH(DATEVALUE($E$7&" 1"))+9,1),"mmmm")&" 1")),E155/F153*E153,"")) ->  | U155: =IF(ISBLANK(C155),"",IF(MONTH(C155)=MONTH(DATEVALUE(TEXT(DATE(2000,MONTH(DATEVALUE($E$7&" 1"))+10,1),"mmmm")&" 1")),E155/F153*E153,"")) ->  | V155: =IF(ISBLANK(C155),"",IF(MONTH(C155)=MONTH(DATEVALUE(TEXT(DATE(2000,MONTH(DATEVALUE($E$7&" 1"))+11,1),"mmmm")&" 1")),E155/F153*E153,"")) -> 
I156: 0 | K156: =IF(ISBLANK(C156),"",IF(MONTH(C156)=MONTH(DATEVALUE($E$7&" 1")),E156/F153*E153,"")) ->  | L156: =IF(ISBLANK(C156),"",IF(MONTH(C156)=MONTH(DATEVALUE(TEXT(DATE(2000,MONTH(DATEVALUE($E$7&" 1"))+1,1),"mmmm")&" 1")),E156/F153*E153,"")) ->  | M156: =IF(ISBLANK(C156),"",IF(MONTH(C156)=MONTH(DATEVALUE(TEXT(DATE(2000,MONTH(DATEVALUE($E$7&" 1"))+2,1),"mmmm")&" 1")),E156/F153*E153,"")) ->  | N156: =IF(ISBLANK(C156),"",IF(MONTH(C156)=MONTH(DATEVALUE(TEXT(DATE(2000,MONTH(DATEVALUE($E$7&" 1"))+3,1),"mmmm")&" 1")),E156/F153*E153,"")) ->  | O156: =IF(ISBLANK(C156),"",IF(MONTH(C156)=MONTH(DATEVALUE(TEXT(DATE(2000,MONTH(DATEVALUE($E$7&" 1"))+4,1),"mmmm")&" 1")),E156/F153*E153,"")) ->  | P156: =IF(ISBLANK(C156),"",IF(MONTH(C156)=MONTH(DATEVALUE(TEXT(DATE(2000,MONTH(DATEVALUE($E$7&" 1"))+5,1),"mmmm")&" 1")),E156/F153*E153,"")) ->  | Q156: =IF(ISBLANK(C156),"",IF(MONTH(C156)=MONTH(DATEVALUE(TEXT(DATE(2000,MONTH(DATEVALUE($E$7&" 1"))+6,1),"mmmm")&" 1")),E156/F153*E153,"")) ->  | R156: =IF(ISBLANK(C156),"",IF(MONTH(C156)=MONTH(DATEVALUE(TEXT(DATE(2000,MONTH(DATEVALUE($E$7&" 1"))+7,1),"mmmm")&" 1")),E156/F153*E153,"")) ->  | S156: =IF(ISBLANK(C156),"",IF(MONTH(C156)=MONTH(DATEVALUE(TEXT(DATE(2000,MONTH(DATEVALUE($E$7&" 1"))+8,1),"mmmm")&" 1")),E156/F153*E153,"")) ->  | T156: =IF(ISBLANK(C156),"",IF(MONTH(C156)=MONTH(DATEVALUE(TEXT(DATE(2000,MONTH(DATEVALUE($E$7&" 1"))+9,1),"mmmm")&" 1")),E156/F153*E153,"")) ->  | U156: =IF(ISBLANK(C156),"",IF(MONTH(C156)=MONTH(DATEVALUE(TEXT(DATE(2000,MONTH(DATEVALUE($E$7&" 1"))+10,1),"mmmm")&" 1")),E156/F153*E153,"")) ->  | V156: =IF(ISBLANK(C156),"",IF(MONTH(C156)=MONTH(DATEVALUE(TEXT(DATE(2000,MONTH(DATEVALUE($E$7&" 1"))+11,1),"mmmm")&" 1")),E156/F153*E153,"")) -> 
I157: 0 | K157: =IF(ISBLANK(C157),"",IF(MONTH(C157)=MONTH(DATEVALUE($E$7&" 1")),E157/F153*E153,"")) ->  | L157: =IF(ISBLANK(C157),"",IF(MONTH(C157)=MONTH(DATEVALUE(TEXT(DATE(2000,MONTH(DATEVALUE($E$7&" 1"))+1,1),"mmmm")&" 1")),E157/F153*E153,"")) ->  | M157: =IF(ISBLANK(C157),"",IF(MONTH(C157)=MONTH(DATEVALUE(TEXT(DATE(2000,MONTH(DATEVALUE($E$7&" 1"))+2,1),"mmmm")&" 1")),E157/F153*E153,"")) ->  | N157: =IF(ISBLANK(C157),"",IF(MONTH(C157)=MONTH(DATEVALUE(TEXT(DATE(2000,MONTH(DATEVALUE($E$7&" 1"))+3,1),"mmmm")&" 1")),E157/F153*E153,"")) ->  | O157: =IF(ISBLANK(C157),"",IF(MONTH(C157)=MONTH(DATEVALUE(TEXT(DATE(2000,MONTH(DATEVALUE($E$7&" 1"))+4,1),"mmmm")&" 1")),E157/F153*E153,"")) ->  | P157: =IF(ISBLANK(C157),"",IF(MONTH(C157)=MONTH(DATEVALUE(TEXT(DATE(2000,MONTH(DATEVALUE($E$7&" 1"))+5,1),"mmmm")&" 1")),E157/F153*E153,"")) ->  | Q157: =IF(ISBLANK(C157),"",IF(MONTH(C157)=MONTH(DATEVALUE(TEXT(DATE(2000,MONTH(DATEVALUE($E$7&" 1"))+6,1),"mmmm")&" 1")),E157/F153*E153,"")) ->  | R157: =IF(ISBLANK(C157),"",IF(MONTH(C157)=MONTH(DATEVALUE(TEXT(DATE(2000,MONTH(DATEVALUE($E$7&" 1"))+7,1),"mmmm")&" 1")),E157/F153*E153,"")) ->  | S157: =IF(ISBLANK(C157),"",IF(MONTH(C157)=MONTH(DATEVALUE(TEXT(DATE(2000,MONTH(DATEVALUE($E$7&" 1"))+8,1),"mmmm")&" 1")),E157/F153*E153,"")) ->  | T157: =IF(ISBLANK(C157),"",IF(MONTH(C157)=MONTH(DATEVALUE(TEXT(DATE(2000,MONTH(DATEVALUE($E$7&" 1"))+9,1),"mmmm")&" 1")),E157/F153*E153,"")) ->  | U157: =IF(ISBLANK(C157),"",IF(MONTH(C157)=MONTH(DATEVALUE(TEXT(DATE(2000,MONTH(DATEVALUE($E$7&" 1"))+10,1),"mmmm")&" 1")),E157/F153*E153,"")) ->  | V157: =IF(ISBLANK(C157),"",IF(MONTH(C157)=MONTH(DATEVALUE(TEXT(DATE(2000,MONTH(DATEVALUE($E$7&" 1"))+11,1),"mmmm")&" 1")),E157/F153*E153,"")) -> 
I158: 0 | K158: =IF(ISBLANK(C158),"",IF(MONTH(C158)=MONTH(DATEVALUE($E$7&" 1")),E158/F153*E153,"")) ->  | L158: =IF(ISBLANK(C158),"",IF(MONTH(C158)=MONTH(DATEVALUE(TEXT(DATE(2000,MONTH(DATEVALUE($E$7&" 1"))+1,1),"mmmm")&" 1")),E158/F153*E153,"")) ->  | M158: =IF(ISBLANK(C158),"",IF(MONTH(C158)=MONTH(DATEVALUE(TEXT(DATE(2000,MONTH(DATEVALUE($E$7&" 1"))+2,1),"mmmm")&" 1")),E158/F153*E153,"")) ->  | N158: =IF(ISBLANK(C158),"",IF(MONTH(C158)=MONTH(DATEVALUE(TEXT(DATE(2000,MONTH(DATEVALUE($E$7&" 1"))+3,1),"mmmm")&" 1")),E158/F153*E153,"")) ->  | O158: =IF(ISBLANK(C158),"",IF(MONTH(C158)=MONTH(DATEVALUE(TEXT(DATE(2000,MONTH(DATEVALUE($E$7&" 1"))+4,1),"mmmm")&" 1")),E158/F153*E153,"")) ->  | P158: =IF(ISBLANK(C158),"",IF(MONTH(C158)=MONTH(DATEVALUE(TEXT(DATE(2000,MONTH(DATEVALUE($E$7&" 1"))+5,1),"mmmm")&" 1")),E158/F153*E153,"")) ->  | Q158: =IF(ISBLANK(C158),"",IF(MONTH(C158)=MONTH(DATEVALUE(TEXT(DATE(2000,MONTH(DATEVALUE($E$7&" 1"))+6,1),"mmmm")&" 1")),E158/F153*E153,"")) ->  | R158: =IF(ISBLANK(C158),"",IF(MONTH(C158)=MONTH(DATEVALUE(TEXT(DATE(2000,MONTH(DATEVALUE($E$7&" 1"))+7,1),"mmmm")&" 1")),E158/F153*E153,"")) ->  | S158: =IF(ISBLANK(C158),"",IF(MONTH(C158)=MONTH(DATEVALUE(TEXT(DATE(2000,MONTH(DATEVALUE($E$7&" 1"))+8,1),"mmmm")&" 1")),E158/F153*E153,"")) ->  | T158: =IF(ISBLANK(C158),"",IF(MONTH(C158)=MONTH(DATEVALUE(TEXT(DATE(2000,MONTH(DATEVALUE($E$7&" 1"))+9,1),"mmmm")&" 1")),E158/F153*E153,"")) ->  | U158: =IF(ISBLANK(C158),"",IF(MONTH(C158)=MONTH(DATEVALUE(TEXT(DATE(2000,MONTH(DATEVALUE($E$7&" 1"))+10,1),"mmmm")&" 1")),E158/F153*E153,"")) ->  | V158: =IF(ISBLANK(C158),"",IF(MONTH(C158)=MONTH(DATEVALUE(TEXT(DATE(2000,MONTH(DATEVALUE($E$7&" 1"))+11,1),"mmmm")&" 1")),E158/F153*E153,"")) -> 
I159: 0 | K159: =IF(ISBLANK(C159),"",IF(MONTH(C159)=MONTH(DATEVALUE($E$7&" 1")),E159/F153*E153,"")) ->  | L159: =IF(ISBLANK(C159),"",IF(MONTH(C159)=MONTH(DATEVALUE(TEXT(DATE(2000,MONTH(DATEVALUE($E$7&" 1"))+1,1),"mmmm")&" 1")),E159/F153*E153,"")) ->  | M159: =IF(ISBLANK(C159),"",IF(MONTH(C159)=MONTH(DATEVALUE(TEXT(DATE(2000,MONTH(DATEVALUE($E$7&" 1"))+2,1),"mmmm")&" 1")),E159/F153*E153,"")) ->  | N159: =IF(ISBLANK(C159),"",IF(MONTH(C159)=MONTH(DATEVALUE(TEXT(DATE(2000,MONTH(DATEVALUE($E$7&" 1"))+3,1),"mmmm")&" 1")),E159/F153*E153,"")) ->  | O159: =IF(ISBLANK(C159),"",IF(MONTH(C159)=MONTH(DATEVALUE(TEXT(DATE(2000,MONTH(DATEVALUE($E$7&" 1"))+4,1),"mmmm")&" 1")),E159/F153*E153,"")) ->  | P159: =IF(ISBLANK(C159),"",IF(MONTH(C159)=MONTH(DATEVALUE(TEXT(DATE(2000,MONTH(DATEVALUE($E$7&" 1"))+5,1),"mmmm")&" 1")),E159/F153*E153,"")) ->  | Q159: =IF(ISBLANK(C159),"",IF(MONTH(C159)=MONTH(DATEVALUE(TEXT(DATE(2000,MONTH(DATEVALUE($E$7&" 1"))+6,1),"mmmm")&" 1")),E159/F153*E153,"")) ->  | R159: =IF(ISBLANK(C159),"",IF(MONTH(C159)=MONTH(DATEVALUE(TEXT(DATE(2000,MONTH(DATEVALUE($E$7&" 1"))+7,1),"mmmm")&" 1")),E159/F153*E153,"")) ->  | S159: =IF(ISBLANK(C159),"",IF(MONTH(C159)=MONTH(DATEVALUE(TEXT(DATE(2000,MONTH(DATEVALUE($E$7&" 1"))+8,1),"mmmm")&" 1")),E159/F153*E153,"")) ->  | T159: =IF(ISBLANK(C159),"",IF(MONTH(C159)=MONTH(DATEVALUE(TEXT(DATE(2000,MONTH(DATEVALUE($E$7&" 1"))+9,1),"mmmm")&" 1")),E159/F153*E153,"")) ->  | U159: =IF(ISBLANK(C159),"",IF(MONTH(C159)=MONTH(DATEVALUE(TEXT(DATE(2000,MONTH(DATEVALUE($E$7&" 1"))+10,1),"mmmm")&" 1")),E159/F153*E153,"")) ->  | V159: =IF(ISBLANK(C159),"",IF(MONTH(C159)=MONTH(DATEVALUE(TEXT(DATE(2000,MONTH(DATEVALUE($E$7&" 1"))+11,1),"mmmm")&" 1")),E159/F153*E153,"")) -> 
I160: 0 | K160: =IF(ISBLANK(C160),"",IF(MONTH(C160)=MONTH(DATEVALUE($E$7&" 1")),E160/F153*E153,"")) ->  | L160: =IF(ISBLANK(C160),"",IF(MONTH(C160)=MONTH(DATEVALUE(TEXT(DATE(2000,MONTH(DATEVALUE($E$7&" 1"))+1,1),"mmmm")&" 1")),E160/F153*E153,"")) ->  | M160: =IF(ISBLANK(C160),"",IF(MONTH(C160)=MONTH(DATEVALUE(TEXT(DATE(2000,MONTH(DATEVALUE($E$7&" 1"))+2,1),"mmmm")&" 1")),E160/F153*E153,"")) ->  | N160: =IF(ISBLANK(C160),"",IF(MONTH(C160)=MONTH(DATEVALUE(TEXT(DATE(2000,MONTH(DATEVALUE($E$7&" 1"))+3,1),"mmmm")&" 1")),E160/F153*E153,"")) ->  | O160: =IF(ISBLANK(C160),"",IF(MONTH(C160)=MONTH(DATEVALUE(TEXT(DATE(2000,MONTH(DATEVALUE($E$7&" 1"))+4,1),"mmmm")&" 1")),E160/F153*E153,"")) ->  | P160: =IF(ISBLANK(C160),"",IF(MONTH(C160)=MONTH(DATEVALUE(TEXT(DATE(2000,MONTH(DATEVALUE($E$7&" 1"))+5,1),"mmmm")&" 1")),E160/F153*E153,"")) ->  | Q160: =IF(ISBLANK(C160),"",IF(MONTH(C160)=MONTH(DATEVALUE(TEXT(DATE(2000,MONTH(DATEVALUE($E$7&" 1"))+6,1),"mmmm")&" 1")),E160/F153*E153,"")) ->  | R160: =IF(ISBLANK(C160),"",IF(MONTH(C160)=MONTH(DATEVALUE(TEXT(DATE(2000,MONTH(DATEVALUE($E$7&" 1"))+7,1),"mmmm")&" 1")),E160/F153*E153,"")) ->  | S160: =IF(ISBLANK(C160),"",IF(MONTH(C160)=MONTH(DATEVALUE(TEXT(DATE(2000,MONTH(DATEVALUE($E$7&" 1"))+8,1),"mmmm")&" 1")),E160/F153*E153,"")) ->  | T160: =IF(ISBLANK(C160),"",IF(MONTH(C160)=MONTH(DATEVALUE(TEXT(DATE(2000,MONTH(DATEVALUE($E$7&" 1"))+9,1),"mmmm")&" 1")),E160/F153*E153,"")) ->  | U160: =IF(ISBLANK(C160),"",IF(MONTH(C160)=MONTH(DATEVALUE(TEXT(DATE(2000,MONTH(DATEVALUE($E$7&" 1"))+10,1),"mmmm")&" 1")),E160/F153*E153,"")) ->  | V160: =IF(ISBLANK(C160),"",IF(MONTH(C160)=MONTH(DATEVALUE(TEXT(DATE(2000,MONTH(DATEVALUE($E$7&" 1"))+11,1),"mmmm")&" 1")),E160/F153*E153,"")) -> 
I161: 0 | K161: =IF(ISBLANK(C161),"",IF(MONTH(C161)=MONTH(DATEVALUE($E$7&" 1")),E161/F153*E153,"")) ->  | L161: =IF(ISBLANK(C161),"",IF(MONTH(C161)=MONTH(DATEVALUE(TEXT(DATE(2000,MONTH(DATEVALUE($E$7&" 1"))+1,1),"mmmm")&" 1")),E161/F153*E153,"")) ->  | M161: =IF(ISBLANK(C161),"",IF(MONTH(C161)=MONTH(DATEVALUE(TEXT(DATE(2000,MONTH(DATEVALUE($E$7&" 1"))+2,1),"mmmm")&" 1")),E161/F153*E153,"")) ->  | N161: =IF(ISBLANK(C161),"",IF(MONTH(C161)=MONTH(DATEVALUE(TEXT(DATE(2000,MONTH(DATEVALUE($E$7&" 1"))+3,1),"mmmm")&" 1")),E161/F153*E153,"")) ->  | O161: =IF(ISBLANK(C161),"",IF(MONTH(C161)=MONTH(DATEVALUE(TEXT(DATE(2000,MONTH(DATEVALUE($E$7&" 1"))+4,1),"mmmm")&" 1")),E161/F153*E153,"")) ->  | P161: =IF(ISBLANK(C161),"",IF(MONTH(C161)=MONTH(DATEVALUE(TEXT(DATE(2000,MONTH(DATEVALUE($E$7&" 1"))+5,1),"mmmm")&" 1")),E161/F153*E153,"")) ->  | Q161: =IF(ISBLANK(C161),"",IF(MONTH(C161)=MONTH(DATEVALUE(TEXT(DATE(2000,MONTH(DATEVALUE($E$7&" 1"))+6,1),"mmmm")&" 1")),E161/F153*E153,"")) ->  | R161: =IF(ISBLANK(C161),"",IF(MONTH(C161)=MONTH(DATEVALUE(TEXT(DATE(2000,MONTH(DATEVALUE($E$7&" 1"))+7,1),"mmmm")&" 1")),E161/F153*E153,"")) ->  | S161: =IF(ISBLANK(C161),"",IF(MONTH(C161)=MONTH(DATEVALUE(TEXT(DATE(2000,MONTH(DATEVALUE($E$7&" 1"))+8,1),"mmmm")&" 1")),E161/F153*E153,"")) ->  | T161: =IF(ISBLANK(C161),"",IF(MONTH(C161)=MONTH(DATEVALUE(TEXT(DATE(2000,MONTH(DATEVALUE($E$7&" 1"))+9,1),"mmmm")&" 1")),E161/F153*E153,"")) ->  | U161: =IF(ISBLANK(C161),"",IF(MONTH(C161)=MONTH(DATEVALUE(TEXT(DATE(2000,MONTH(DATEVALUE($E$7&" 1"))+10,1),"mmmm")&" 1")),E161/F153*E153,"")) ->  | V161: =IF(ISBLANK(C161),"",IF(MONTH(C161)=MONTH(DATEVALUE(TEXT(DATE(2000,MONTH(DATEVALUE($E$7&" 1"))+11,1),"mmmm")&" 1")),E161/F153*E153,"")) -> 
I162: 0 | K162: =IF(ISBLANK(C162),"",IF(MONTH(C162)=MONTH(DATEVALUE($E$7&" 1")),E162/F153*E153,"")) ->  | L162: =IF(ISBLANK(C162),"",IF(MONTH(C162)=MONTH(DATEVALUE(TEXT(DATE(2000,MONTH(DATEVALUE($E$7&" 1"))+1,1),"mmmm")&" 1")),E162/F153*E153,"")) ->  | M162: =IF(ISBLANK(C162),"",IF(MONTH(C162)=MONTH(DATEVALUE(TEXT(DATE(2000,MONTH(DATEVALUE($E$7&" 1"))+2,1),"mmmm")&" 1")),E162/F153*E153,"")) ->  | N162: =IF(ISBLANK(C162),"",IF(MONTH(C162)=MONTH(DATEVALUE(TEXT(DATE(2000,MONTH(DATEVALUE($E$7&" 1"))+3,1),"mmmm")&" 1")),E162/F153*E153,"")) ->  | O162: =IF(ISBLANK(C162),"",IF(MONTH(C162)=MONTH(DATEVALUE(TEXT(DATE(2000,MONTH(DATEVALUE($E$7&" 1"))+4,1),"mmmm")&" 1")),E162/F153*E153,"")) ->  | P162: =IF(ISBLANK(C162),"",IF(MONTH(C162)=MONTH(DATEVALUE(TEXT(DATE(2000,MONTH(DATEVALUE($E$7&" 1"))+5,1),"mmmm")&" 1")),E162/F153*E153,"")) ->  | Q162: =IF(ISBLANK(C162),"",IF(MONTH(C162)=MONTH(DATEVALUE(TEXT(DATE(2000,MONTH(DATEVALUE($E$7&" 1"))+6,1),"mmmm")&" 1")),E162/F153*E153,"")) ->  | R162: =IF(ISBLANK(C162),"",IF(MONTH(C162)=MONTH(DATEVALUE(TEXT(DATE(2000,MONTH(DATEVALUE($E$7&" 1"))+7,1),"mmmm")&" 1")),E162/F153*E153,"")) ->  | S162: =IF(ISBLANK(C162),"",IF(MONTH(C162)=MONTH(DATEVALUE(TEXT(DATE(2000,MONTH(DATEVALUE($E$7&" 1"))+8,1),"mmmm")&" 1")),E162/F153*E153,"")) ->  | T162: =IF(ISBLANK(C162),"",IF(MONTH(C162)=MONTH(DATEVALUE(TEXT(DATE(2000,MONTH(DATEVALUE($E$7&" 1"))+9,1),"mmmm")&" 1")),E162/F153*E153,"")) ->  | U162: =IF(ISBLANK(C162),"",IF(MONTH(C162)=MONTH(DATEVALUE(TEXT(DATE(2000,MONTH(DATEVALUE($E$7&" 1"))+10,1),"mmmm")&" 1")),E162/F153*E153,"")) ->  | V162: =IF(ISBLANK(C162),"",IF(MONTH(C162)=MONTH(DATEVALUE(TEXT(DATE(2000,MONTH(DATEVALUE($E$7&" 1"))+11,1),"mmmm")&" 1")),E162/F153*E153,"")) -> 
I163: 0 | K163: =IF(ISBLANK(C163),"",IF(MONTH(C163)=MONTH(DATEVALUE($E$7&" 1")),E163/F153*E153,"")) ->  | L163: =IF(ISBLANK(C163),"",IF(MONTH(C163)=MONTH(DATEVALUE(TEXT(DATE(2000,MONTH(DATEVALUE($E$7&" 1"))+1,1),"mmmm")&" 1")),E163/F153*E153,"")) ->  | M163: =IF(ISBLANK(C163),"",IF(MONTH(C163)=MONTH(DATEVALUE(TEXT(DATE(2000,MONTH(DATEVALUE($E$7&" 1"))+2,1),"mmmm")&" 1")),E163/F153*E153,"")) ->  | N163: =IF(ISBLANK(C163),"",IF(MONTH(C163)=MONTH(DATEVALUE(TEXT(DATE(2000,MONTH(DATEVALUE($E$7&" 1"))+3,1),"mmmm")&" 1")),E163/F153*E153,"")) ->  | O163: =IF(ISBLANK(C163),"",IF(MONTH(C163)=MONTH(DATEVALUE(TEXT(DATE(2000,MONTH(DATEVALUE($E$7&" 1"))+4,1),"mmmm")&" 1")),E163/F153*E153,"")) ->  | P163: =IF(ISBLANK(C163),"",IF(MONTH(C163)=MONTH(DATEVALUE(TEXT(DATE(2000,MONTH(DATEVALUE($E$7&" 1"))+5,1),"mmmm")&" 1")),E163/F153*E153,"")) ->  | Q163: =IF(ISBLANK(C163),"",IF(MONTH(C163)=MONTH(DATEVALUE(TEXT(DATE(2000,MONTH(DATEVALUE($E$7&" 1"))+6,1),"mmmm")&" 1")),E163/F153*E153,"")) ->  | R163: =IF(ISBLANK(C163),"",IF(MONTH(C163)=MONTH(DATEVALUE(TEXT(DATE(2000,MONTH(DATEVALUE($E$7&" 1"))+7,1),"mmmm")&" 1")),E163/F153*E153,"")) ->  | S163: =IF(ISBLANK(C163),"",IF(MONTH(C163)=MONTH(DATEVALUE(TEXT(DATE(2000,MONTH(DATEVALUE($E$7&" 1"))+8,1),"mmmm")&" 1")),E163/F153*E153,"")) ->  | T163: =IF(ISBLANK(C163),"",IF(MONTH(C163)=MONTH(DATEVALUE(TEXT(DATE(2000,MONTH(DATEVALUE($E$7&" 1"))+9,1),"mmmm")&" 1")),E163/F153*E153,"")) ->  | U163: =IF(ISBLANK(C163),"",IF(MONTH(C163)=MONTH(DATEVALUE(TEXT(DATE(2000,MONTH(DATEVALUE($E$7&" 1"))+10,1),"mmmm")&" 1")),E163/F153*E153,"")) ->  | V163: =IF(ISBLANK(C163),"",IF(MONTH(C163)=MONTH(DATEVALUE(TEXT(DATE(2000,MONTH(DATEVALUE($E$7&" 1"))+11,1),"mmmm")&" 1")),E163/F153*E153,"")) -> 
I164: 0 | K164: =IF(ISBLANK(C164),"",IF(MONTH(C164)=MONTH(DATEVALUE($E$7&" 1")),E164/F153*E153,"")) ->  | L164: =IF(ISBLANK(C164),"",IF(MONTH(C164)=MONTH(DATEVALUE(TEXT(DATE(2000,MONTH(DATEVALUE($E$7&" 1"))+1,1),"mmmm")&" 1")),E164/F153*E153,"")) ->  | M164: =IF(ISBLANK(C164),"",IF(MONTH(C164)=MONTH(DATEVALUE(TEXT(DATE(2000,MONTH(DATEVALUE($E$7&" 1"))+2,1),"mmmm")&" 1")),E164/F153*E153,"")) ->  | N164: =IF(ISBLANK(C164),"",IF(MONTH(C164)=MONTH(DATEVALUE(TEXT(DATE(2000,MONTH(DATEVALUE($E$7&" 1"))+3,1),"mmmm")&" 1")),E164/F153*E153,"")) ->  | O164: =IF(ISBLANK(C164),"",IF(MONTH(C164)=MONTH(DATEVALUE(TEXT(DATE(2000,MONTH(DATEVALUE($E$7&" 1"))+4,1),"mmmm")&" 1")),E164/F153*E153,"")) ->  | P164: =IF(ISBLANK(C164),"",IF(MONTH(C164)=MONTH(DATEVALUE(TEXT(DATE(2000,MONTH(DATEVALUE($E$7&" 1"))+5,1),"mmmm")&" 1")),E164/F153*E153,"")) ->  | Q164: =IF(ISBLANK(C164),"",IF(MONTH(C164)=MONTH(DATEVALUE(TEXT(DATE(2000,MONTH(DATEVALUE($E$7&" 1"))+6,1),"mmmm")&" 1")),E164/F153*E153,"")) ->  | R164: =IF(ISBLANK(C164),"",IF(MONTH(C164)=MONTH(DATEVALUE(TEXT(DATE(2000,MONTH(DATEVALUE($E$7&" 1"))+7,1),"mmmm")&" 1")),E164/F153*E153,"")) ->  | S164: =IF(ISBLANK(C164),"",IF(MONTH(C164)=MONTH(DATEVALUE(TEXT(DATE(2000,MONTH(DATEVALUE($E$7&" 1"))+8,1),"mmmm")&" 1")),E164/F153*E153,"")) ->  | T164: =IF(ISBLANK(C164),"",IF(MONTH(C164)=MONTH(DATEVALUE(TEXT(DATE(2000,MONTH(DATEVALUE($E$7&" 1"))+9,1),"mmmm")&" 1")),E164/F153*E153,"")) ->  | U164: =IF(ISBLANK(C164),"",IF(MONTH(C164)=MONTH(DATEVALUE(TEXT(DATE(2000,MONTH(DATEVALUE($E$7&" 1"))+10,1),"mmmm")&" 1")),E164/F153*E153,"")) ->  | V164: =IF(ISBLANK(C164),"",IF(MONTH(C164)=MONTH(DATEVALUE(TEXT(DATE(2000,MONTH(DATEVALUE($E$7&" 1"))+11,1),"mmmm")&" 1")),E164/F153*E153,"")) -> 
H165: =IFERROR(SUM(E167:H176)/F165,0) -> 0 | I165: =SUM(I166:J176) -> 0 | W165: =IF(H165<>100%,"Pas ok","ok") -> Pas ok
B166: Numéro de facture | C166: Date de facturation | D166: Description de la facture | E166: Montant de la facture
I167: =SUM(K167:V167) -> 0 | K167: =IF(ISBLANK(C167),"",IF(MONTH(C167)=MONTH(DATEVALUE($E$7&" 1")),E167/F165*E165,"")) ->  | L167: =IF(ISBLANK(C167),"",IF(MONTH(C167)=MONTH(DATEVALUE(TEXT(DATE(2000,MONTH(DATEVALUE($E$7&" 1"))+1,1),"mmmm")&" 1")),E167/F165*E165,"")) ->  | M167: =IF(ISBLANK(C167),"",IF(MONTH(C167)=MONTH(DATEVALUE(TEXT(DATE(2000,MONTH(DATEVALUE($E$7&" 1"))+2,1),"mmmm")&" 1")),E167/F165*E165,"")) ->  | N167: =IF(ISBLANK(C167),"",IF(MONTH(C167)=MONTH(DATEVALUE(TEXT(DATE(2000,MONTH(DATEVALUE($E$7&" 1"))+3,1),"mmmm")&" 1")),E167/F165*E165,"")) ->  | O167: =IF(ISBLANK(C167),"",IF(MONTH(C167)=MONTH(DATEVALUE(TEXT(DATE(2000,MONTH(DATEVALUE($E$7&" 1"))+4,1),"mmmm")&" 1")),E167/F165*E165,"")) ->  | P167: =IF(ISBLANK(C167),"",IF(MONTH(C167)=MONTH(DATEVALUE(TEXT(DATE(2000,MONTH(DATEVALUE($E$7&" 1"))+5,1),"mmmm")&" 1")),E167/F165*E165,"")) ->  | Q167: =IF(ISBLANK(C167),"",IF(MONTH(C167)=MONTH(DATEVALUE(TEXT(DATE(2000,MONTH(DATEVALUE($E$7&" 1"))+6,1),"mmmm")&" 1")),E167/F165*E165,"")) ->  | R167: =IF(ISBLANK(C167),"",IF(MONTH(C167)=MONTH(DATEVALUE(TEXT(DATE(2000,MONTH(DATEVALUE($E$7&" 1"))+7,1),"mmmm")&" 1")),E167/F165*E165,"")) ->  | S167: =IF(ISBLANK(C167),"",IF(MONTH(C167)=MONTH(DATEVALUE(TEXT(DATE(2000,MONTH(DATEVALUE($E$7&" 1"))+8,1),"mmmm")&" 1")),E167/F165*E165,"")) ->  | T167: =IF(ISBLANK(C167),"",IF(MONTH(C167)=MONTH(DATEVALUE(TEXT(DATE(2000,MONTH(DATEVALUE($E$7&" 1"))+9,1),"mmmm")&" 1")),E167/F165*E165,"")) ->  | U167: =IF(ISBLANK(C167),"",IF(MONTH(C167)=MONTH(DATEVALUE(TEXT(DATE(2000,MONTH(DATEVALUE($E$7&" 1"))+10,1),"mmmm")&" 1")),E167/F165*E165,"")) ->  | V167: =IF(ISBLANK(C167),"",IF(MONTH(C167)=MONTH(DATEVALUE(TEXT(DATE(2000,MONTH(DATEVALUE($E$7&" 1"))+11,1),"mmmm")&" 1")),E167/F165*E165,"")) -> 
I168: 0 | K168: =IF(ISBLANK(C168),"",IF(MONTH(C168)=MONTH(DATEVALUE($E$7&" 1")),E168/F165*E165,"")) ->  | L168: =IF(ISBLANK(C168),"",IF(MONTH(C168)=MONTH(DATEVALUE(TEXT(DATE(2000,MONTH(DATEVALUE($E$7&" 1"))+1,1),"mmmm")&" 1")),E168/F165*E165,"")) ->  | M168: =IF(ISBLANK(C168),"",IF(MONTH(C168)=MONTH(DATEVALUE(TEXT(DATE(2000,MONTH(DATEVALUE($E$7&" 1"))+2,1),"mmmm")&" 1")),E168/F165*E165,"")) ->  | N168: =IF(ISBLANK(C168),"",IF(MONTH(C168)=MONTH(DATEVALUE(TEXT(DATE(2000,MONTH(DATEVALUE($E$7&" 1"))+3,1),"mmmm")&" 1")),E168/F165*E165,"")) ->  | O168: =IF(ISBLANK(C168),"",IF(MONTH(C168)=MONTH(DATEVALUE(TEXT(DATE(2000,MONTH(DATEVALUE($E$7&" 1"))+4,1),"mmmm")&" 1")),E168/F165*E165,"")) ->  | P168: =IF(ISBLANK(C168),"",IF(MONTH(C168)=MONTH(DATEVALUE(TEXT(DATE(2000,MONTH(DATEVALUE($E$7&" 1"))+5,1),"mmmm")&" 1")),E168/F165*E165,"")) ->  | Q168: =IF(ISBLANK(C168),"",IF(MONTH(C168)=MONTH(DATEVALUE(TEXT(DATE(2000,MONTH(DATEVALUE($E$7&" 1"))+6,1),"mmmm")&" 1")),E168/F165*E165,"")) ->  | R168: =IF(ISBLANK(C168),"",IF(MONTH(C168)=MONTH(DATEVALUE(TEXT(DATE(2000,MONTH(DATEVALUE($E$7&" 1"))+7,1),"mmmm")&" 1")),E168/F165*E165,"")) ->  | S168: =IF(ISBLANK(C168),"",IF(MONTH(C168)=MONTH(DATEVALUE(TEXT(DATE(2000,MONTH(DATEVALUE($E$7&" 1"))+8,1),"mmmm")&" 1")),E168/F165*E165,"")) ->  | T168: =IF(ISBLANK(C168),"",IF(MONTH(C168)=MONTH(DATEVALUE(TEXT(DATE(2000,MONTH(DATEVALUE($E$7&" 1"))+9,1),"mmmm")&" 1")),E168/F165*E165,"")) ->  | U168: =IF(ISBLANK(C168),"",IF(MONTH(C168)=MONTH(DATEVALUE(TEXT(DATE(2000,MONTH(DATEVALUE($E$7&" 1"))+10,1),"mmmm")&" 1")),E168/F165*E165,"")) ->  | V168: =IF(ISBLANK(C168),"",IF(MONTH(C168)=MONTH(DATEVALUE(TEXT(DATE(2000,MONTH(DATEVALUE($E$7&" 1"))+11,1),"mmmm")&" 1")),E168/F165*E165,"")) -> 
I169: 0 | K169: =IF(ISBLANK(C169),"",IF(MONTH(C169)=MONTH(DATEVALUE($E$7&" 1")),E169/F165*E165,"")) ->  | L169: =IF(ISBLANK(C169),"",IF(MONTH(C169)=MONTH(DATEVALUE(TEXT(DATE(2000,MONTH(DATEVALUE($E$7&" 1"))+1,1),"mmmm")&" 1")),E169/F165*E165,"")) ->  | M169: =IF(ISBLANK(C169),"",IF(MONTH(C169)=MONTH(DATEVALUE(TEXT(DATE(2000,MONTH(DATEVALUE($E$7&" 1"))+2,1),"mmmm")&" 1")),E169/F165*E165,"")) ->  | N169: =IF(ISBLANK(C169),"",IF(MONTH(C169)=MONTH(DATEVALUE(TEXT(DATE(2000,MONTH(DATEVALUE($E$7&" 1"))+3,1),"mmmm")&" 1")),E169/F165*E165,"")) ->  | O169: =IF(ISBLANK(C169),"",IF(MONTH(C169)=MONTH(DATEVALUE(TEXT(DATE(2000,MONTH(DATEVALUE($E$7&" 1"))+4,1),"mmmm")&" 1")),E169/F165*E165,"")) ->  | P169: =IF(ISBLANK(C169),"",IF(MONTH(C169)=MONTH(DATEVALUE(TEXT(DATE(2000,MONTH(DATEVALUE($E$7&" 1"))+5,1),"mmmm")&" 1")),E169/F165*E165,"")) ->  | Q169: =IF(ISBLANK(C169),"",IF(MONTH(C169)=MONTH(DATEVALUE(TEXT(DATE(2000,MONTH(DATEVALUE($E$7&" 1"))+6,1),"mmmm")&" 1")),E169/F165*E165,"")) ->  | R169: =IF(ISBLANK(C169),"",IF(MONTH(C169)=MONTH(DATEVALUE(TEXT(DATE(2000,MONTH(DATEVALUE($E$7&" 1"))+7,1),"mmmm")&" 1")),E169/F165*E165,"")) ->  | S169: =IF(ISBLANK(C169),"",IF(MONTH(C169)=MONTH(DATEVALUE(TEXT(DATE(2000,MONTH(DATEVALUE($E$7&" 1"))+8,1),"mmmm")&" 1")),E169/F165*E165,"")) ->  | T169: =IF(ISBLANK(C169),"",IF(MONTH(C169)=MONTH(DATEVALUE(TEXT(DATE(2000,MONTH(DATEVALUE($E$7&" 1"))+9,1),"mmmm")&" 1")),E169/F165*E165,"")) ->  | U169: =IF(ISBLANK(C169),"",IF(MONTH(C169)=MONTH(DATEVALUE(TEXT(DATE(2000,MONTH(DATEVALUE($E$7&" 1"))+10,1),"mmmm")&" 1")),E169/F165*E165,"")) ->  | V169: =IF(ISBLANK(C169),"",IF(MONTH(C169)=MONTH(DATEVALUE(TEXT(DATE(2000,MONTH(DATEVALUE($E$7&" 1"))+11,1),"mmmm")&" 1")),E169/F165*E165,"")) -> 
I170: 0 | K170: =IF(ISBLANK(C170),"",IF(MONTH(C170)=MONTH(DATEVALUE($E$7&" 1")),E170/F165*E165,"")) ->  | L170: =IF(ISBLANK(C170),"",IF(MONTH(C170)=MONTH(DATEVALUE(TEXT(DATE(2000,MONTH(DATEVALUE($E$7&" 1"))+1,1),"mmmm")&" 1")),E170/F165*E165,"")) ->  | M170: =IF(ISBLANK(C170),"",IF(MONTH(C170)=MONTH(DATEVALUE(TEXT(DATE(2000,MONTH(DATEVALUE($E$7&" 1"))+2,1),"mmmm")&" 1")),E170/F165*E165,"")) ->  | N170: =IF(ISBLANK(C170),"",IF(MONTH(C170)=MONTH(DATEVALUE(TEXT(DATE(2000,MONTH(DATEVALUE($E$7&" 1"))+3,1),"mmmm")&" 1")),E170/F165*E165,"")) ->  | O170: =IF(ISBLANK(C170),"",IF(MONTH(C170)=MONTH(DATEVALUE(TEXT(DATE(2000,MONTH(DATEVALUE($E$7&" 1"))+4,1),"mmmm")&" 1")),E170/F165*E165,"")) ->  | P170: =IF(ISBLANK(C170),"",IF(MONTH(C170)=MONTH(DATEVALUE(TEXT(DATE(2000,MONTH(DATEVALUE($E$7&" 1"))+5,1),"mmmm")&" 1")),E170/F165*E165,"")) ->  | Q170: =IF(ISBLANK(C170),"",IF(MONTH(C170)=MONTH(DATEVALUE(TEXT(DATE(2000,MONTH(DATEVALUE($E$7&" 1"))+6,1),"mmmm")&" 1")),E170/F165*E165,"")) ->  | R170: =IF(ISBLANK(C170),"",IF(MONTH(C170)=MONTH(DATEVALUE(TEXT(DATE(2000,MONTH(DATEVALUE($E$7&" 1"))+7,1),"mmmm")&" 1")),E170/F165*E165,"")) ->  | S170: =IF(ISBLANK(C170),"",IF(MONTH(C170)=MONTH(DATEVALUE(TEXT(DATE(2000,MONTH(DATEVALUE($E$7&" 1"))+8,1),"mmmm")&" 1")),E170/F165*E165,"")) ->  | T170: =IF(ISBLANK(C170),"",IF(MONTH(C170)=MONTH(DATEVALUE(TEXT(DATE(2000,MONTH(DATEVALUE($E$7&" 1"))+9,1),"mmmm")&" 1")),E170/F165*E165,"")) ->  | U170: =IF(ISBLANK(C170),"",IF(MONTH(C170)=MONTH(DATEVALUE(TEXT(DATE(2000,MONTH(DATEVALUE($E$7&" 1"))+10,1),"mmmm")&" 1")),E170/F165*E165,"")) ->  | V170: =IF(ISBLANK(C170),"",IF(MONTH(C170)=MONTH(DATEVALUE(TEXT(DATE(2000,MONTH(DATEVALUE($E$7&" 1"))+11,1),"mmmm")&" 1")),E170/F165*E165,"")) -> 
I171: 0 | K171: =IF(ISBLANK(C171),"",IF(MONTH(C171)=MONTH(DATEVALUE($E$7&" 1")),E171/F165*E165,"")) ->  | L171: =IF(ISBLANK(C171),"",IF(MONTH(C171)=MONTH(DATEVALUE(TEXT(DATE(2000,MONTH(DATEVALUE($E$7&" 1"))+1,1),"mmmm")&" 1")),E171/F165*E165,"")) ->  | M171: =IF(ISBLANK(C171),"",IF(MONTH(C171)=MONTH(DATEVALUE(TEXT(DATE(2000,MONTH(DATEVALUE($E$7&" 1"))+2,1),"mmmm")&" 1")),E171/F165*E165,"")) ->  | N171: =IF(ISBLANK(C171),"",IF(MONTH(C171)=MONTH(DATEVALUE(TEXT(DATE(2000,MONTH(DATEVALUE($E$7&" 1"))+3,1),"mmmm")&" 1")),E171/F165*E165,"")) ->  | O171: =IF(ISBLANK(C171),"",IF(MONTH(C171)=MONTH(DATEVALUE(TEXT(DATE(2000,MONTH(DATEVALUE($E$7&" 1"))+4,1),"mmmm")&" 1")),E171/F165*E165,"")) ->  | P171: =IF(ISBLANK(C171),"",IF(MONTH(C171)=MONTH(DATEVALUE(TEXT(DATE(2000,MONTH(DATEVALUE($E$7&" 1"))+5,1),"mmmm")&" 1")),E171/F165*E165,"")) ->  | Q171: =IF(ISBLANK(C171),"",IF(MONTH(C171)=MONTH(DATEVALUE(TEXT(DATE(2000,MONTH(DATEVALUE($E$7&" 1"))+6,1),"mmmm")&" 1")),E171/F165*E165,"")) ->  | R171: =IF(ISBLANK(C171),"",IF(MONTH(C171)=MONTH(DATEVALUE(TEXT(DATE(2000,MONTH(DATEVALUE($E$7&" 1"))+7,1),"mmmm")&" 1")),E171/F165*E165,"")) ->  | S171: =IF(ISBLANK(C171),"",IF(MONTH(C171)=MONTH(DATEVALUE(TEXT(DATE(2000,MONTH(DATEVALUE($E$7&" 1"))+8,1),"mmmm")&" 1")),E171/F165*E165,"")) ->  | T171: =IF(ISBLANK(C171),"",IF(MONTH(C171)=MONTH(DATEVALUE(TEXT(DATE(2000,MONTH(DATEVALUE($E$7&" 1"))+9,1),"mmmm")&" 1")),E171/F165*E165,"")) ->  | U171: =IF(ISBLANK(C171),"",IF(MONTH(C171)=MONTH(DATEVALUE(TEXT(DATE(2000,MONTH(DATEVALUE($E$7&" 1"))+10,1),"mmmm")&" 1")),E171/F165*E165,"")) ->  | V171: =IF(ISBLANK(C171),"",IF(MONTH(C171)=MONTH(DATEVALUE(TEXT(DATE(2000,MONTH(DATEVALUE($E$7&" 1"))+11,1),"mmmm")&" 1")),E171/F165*E165,"")) -> 
I172: 0 | K172: =IF(ISBLANK(C172),"",IF(MONTH(C172)=MONTH(DATEVALUE($E$7&" 1")),E172/F165*E165,"")) ->  | L172: =IF(ISBLANK(C172),"",IF(MONTH(C172)=MONTH(DATEVALUE(TEXT(DATE(2000,MONTH(DATEVALUE($E$7&" 1"))+1,1),"mmmm")&" 1")),E172/F165*E165,"")) ->  | M172: =IF(ISBLANK(C172),"",IF(MONTH(C172)=MONTH(DATEVALUE(TEXT(DATE(2000,MONTH(DATEVALUE($E$7&" 1"))+2,1),"mmmm")&" 1")),E172/F165*E165,"")) ->  | N172: =IF(ISBLANK(C172),"",IF(MONTH(C172)=MONTH(DATEVALUE(TEXT(DATE(2000,MONTH(DATEVALUE($E$7&" 1"))+3,1),"mmmm")&" 1")),E172/F165*E165,"")) ->  | O172: =IF(ISBLANK(C172),"",IF(MONTH(C172)=MONTH(DATEVALUE(TEXT(DATE(2000,MONTH(DATEVALUE($E$7&" 1"))+4,1),"mmmm")&" 1")),E172/F165*E165,"")) ->  | P172: =IF(ISBLANK(C172),"",IF(MONTH(C172)=MONTH(DATEVALUE(TEXT(DATE(2000,MONTH(DATEVALUE($E$7&" 1"))+5,1),"mmmm")&" 1")),E172/F165*E165,"")) ->  | Q172: =IF(ISBLANK(C172),"",IF(MONTH(C172)=MONTH(DATEVALUE(TEXT(DATE(2000,MONTH(DATEVALUE($E$7&" 1"))+6,1),"mmmm")&" 1")),E172/F165*E165,"")) ->  | R172: =IF(ISBLANK(C172),"",IF(MONTH(C172)=MONTH(DATEVALUE(TEXT(DATE(2000,MONTH(DATEVALUE($E$7&" 1"))+7,1),"mmmm")&" 1")),E172/F165*E165,"")) ->  | S172: =IF(ISBLANK(C172),"",IF(MONTH(C172)=MONTH(DATEVALUE(TEXT(DATE(2000,MONTH(DATEVALUE($E$7&" 1"))+8,1),"mmmm")&" 1")),E172/F165*E165,"")) ->  | T172: =IF(ISBLANK(C172),"",IF(MONTH(C172)=MONTH(DATEVALUE(TEXT(DATE(2000,MONTH(DATEVALUE($E$7&" 1"))+9,1),"mmmm")&" 1")),E172/F165*E165,"")) ->  | U172: =IF(ISBLANK(C172),"",IF(MONTH(C172)=MONTH(DATEVALUE(TEXT(DATE(2000,MONTH(DATEVALUE($E$7&" 1"))+10,1),"mmmm")&" 1")),E172/F165*E165,"")) ->  | V172: =IF(ISBLANK(C172),"",IF(MONTH(C172)=MONTH(DATEVALUE(TEXT(DATE(2000,MONTH(DATEVALUE($E$7&" 1"))+11,1),"mmmm")&" 1")),E172/F165*E165,"")) -> 
I173: 0 | K173: =IF(ISBLANK(C173),"",IF(MONTH(C173)=MONTH(DATEVALUE($E$7&" 1")),E173/F165*E165,"")) ->  | L173: =IF(ISBLANK(C173),"",IF(MONTH(C173)=MONTH(DATEVALUE(TEXT(DATE(2000,MONTH(DATEVALUE($E$7&" 1"))+1,1),"mmmm")&" 1")),E173/F165*E165,"")) ->  | M173: =IF(ISBLANK(C173),"",IF(MONTH(C173)=MONTH(DATEVALUE(TEXT(DATE(2000,MONTH(DATEVALUE($E$7&" 1"))+2,1),"mmmm")&" 1")),E173/F165*E165,"")) ->  | N173: =IF(ISBLANK(C173),"",IF(MONTH(C173)=MONTH(DATEVALUE(TEXT(DATE(2000,MONTH(DATEVALUE($E$7&" 1"))+3,1),"mmmm")&" 1")),E173/F165*E165,"")) ->  | O173: =IF(ISBLANK(C173),"",IF(MONTH(C173)=MONTH(DATEVALUE(TEXT(DATE(2000,MONTH(DATEVALUE($E$7&" 1"))+4,1),"mmmm")&" 1")),E173/F165*E165,"")) ->  | P173: =IF(ISBLANK(C173),"",IF(MONTH(C173)=MONTH(DATEVALUE(TEXT(DATE(2000,MONTH(DATEVALUE($E$7&" 1"))+5,1),"mmmm")&" 1")),E173/F165*E165,"")) ->  | Q173: =IF(ISBLANK(C173),"",IF(MONTH(C173)=MONTH(DATEVALUE(TEXT(DATE(2000,MONTH(DATEVALUE($E$7&" 1"))+6,1),"mmmm")&" 1")),E173/F165*E165,"")) ->  | R173: =IF(ISBLANK(C173),"",IF(MONTH(C173)=MONTH(DATEVALUE(TEXT(DATE(2000,MONTH(DATEVALUE($E$7&" 1"))+7,1),"mmmm")&" 1")),E173/F165*E165,"")) ->  | S173: =IF(ISBLANK(C173),"",IF(MONTH(C173)=MONTH(DATEVALUE(TEXT(DATE(2000,MONTH(DATEVALUE($E$7&" 1"))+8,1),"mmmm")&" 1")),E173/F165*E165,"")) ->  | T173: =IF(ISBLANK(C173),"",IF(MONTH(C173)=MONTH(DATEVALUE(TEXT(DATE(2000,MONTH(DATEVALUE($E$7&" 1"))+9,1),"mmmm")&" 1")),E173/F165*E165,"")) ->  | U173: =IF(ISBLANK(C173),"",IF(MONTH(C173)=MONTH(DATEVALUE(TEXT(DATE(2000,MONTH(DATEVALUE($E$7&" 1"))+10,1),"mmmm")&" 1")),E173/F165*E165,"")) ->  | V173: =IF(ISBLANK(C173),"",IF(MONTH(C173)=MONTH(DATEVALUE(TEXT(DATE(2000,MONTH(DATEVALUE($E$7&" 1"))+11,1),"mmmm")&" 1")),E173/F165*E165,"")) -> 
I174: 0 | K174: =IF(ISBLANK(C174),"",IF(MONTH(C174)=MONTH(DATEVALUE($E$7&" 1")),E174/F165*E165,"")) ->  | L174: =IF(ISBLANK(C174),"",IF(MONTH(C174)=MONTH(DATEVALUE(TEXT(DATE(2000,MONTH(DATEVALUE($E$7&" 1"))+1,1),"mmmm")&" 1")),E174/F165*E165,"")) ->  | M174: =IF(ISBLANK(C174),"",IF(MONTH(C174)=MONTH(DATEVALUE(TEXT(DATE(2000,MONTH(DATEVALUE($E$7&" 1"))+2,1),"mmmm")&" 1")),E174/F165*E165,"")) ->  | N174: =IF(ISBLANK(C174),"",IF(MONTH(C174)=MONTH(DATEVALUE(TEXT(DATE(2000,MONTH(DATEVALUE($E$7&" 1"))+3,1),"mmmm")&" 1")),E174/F165*E165,"")) ->  | O174: =IF(ISBLANK(C174),"",IF(MONTH(C174)=MONTH(DATEVALUE(TEXT(DATE(2000,MONTH(DATEVALUE($E$7&" 1"))+4,1),"mmmm")&" 1")),E174/F165*E165,"")) ->  | P174: =IF(ISBLANK(C174),"",IF(MONTH(C174)=MONTH(DATEVALUE(TEXT(DATE(2000,MONTH(DATEVALUE($E$7&" 1"))+5,1),"mmmm")&" 1")),E174/F165*E165,"")) ->  | Q174: =IF(ISBLANK(C174),"",IF(MONTH(C174)=MONTH(DATEVALUE(TEXT(DATE(2000,MONTH(DATEVALUE($E$7&" 1"))+6,1),"mmmm")&" 1")),E174/F165*E165,"")) ->  | R174: =IF(ISBLANK(C174),"",IF(MONTH(C174)=MONTH(DATEVALUE(TEXT(DATE(2000,MONTH(DATEVALUE($E$7&" 1"))+7,1),"mmmm")&" 1")),E174/F165*E165,"")) ->  | S174: =IF(ISBLANK(C174),"",IF(MONTH(C174)=MONTH(DATEVALUE(TEXT(DATE(2000,MONTH(DATEVALUE($E$7&" 1"))+8,1),"mmmm")&" 1")),E174/F165*E165,"")) ->  | T174: =IF(ISBLANK(C174),"",IF(MONTH(C174)=MONTH(DATEVALUE(TEXT(DATE(2000,MONTH(DATEVALUE($E$7&" 1"))+9,1),"mmmm")&" 1")),E174/F165*E165,"")) ->  | U174: =IF(ISBLANK(C174),"",IF(MONTH(C174)=MONTH(DATEVALUE(TEXT(DATE(2000,MONTH(DATEVALUE($E$7&" 1"))+10,1),"mmmm")&" 1")),E174/F165*E165,"")) ->  | V174: =IF(ISBLANK(C174),"",IF(MONTH(C174)=MONTH(DATEVALUE(TEXT(DATE(2000,MONTH(DATEVALUE($E$7&" 1"))+11,1),"mmmm")&" 1")),E174/F165*E165,"")) -> 
I175: 0 | K175: =IF(ISBLANK(C175),"",IF(MONTH(C175)=MONTH(DATEVALUE($E$7&" 1")),E175/F165*E165,"")) ->  | L175: =IF(ISBLANK(C175),"",IF(MONTH(C175)=MONTH(DATEVALUE(TEXT(DATE(2000,MONTH(DATEVALUE($E$7&" 1"))+1,1),"mmmm")&" 1")),E175/F165*E165,"")) ->  | M175: =IF(ISBLANK(C175),"",IF(MONTH(C175)=MONTH(DATEVALUE(TEXT(DATE(2000,MONTH(DATEVALUE($E$7&" 1"))+2,1),"mmmm")&" 1")),E175/F165*E165,"")) ->  | N175: =IF(ISBLANK(C175),"",IF(MONTH(C175)=MONTH(DATEVALUE(TEXT(DATE(2000,MONTH(DATEVALUE($E$7&" 1"))+3,1),"mmmm")&" 1")),E175/F165*E165,"")) ->  | O175: =IF(ISBLANK(C175),"",IF(MONTH(C175)=MONTH(DATEVALUE(TEXT(DATE(2000,MONTH(DATEVALUE($E$7&" 1"))+4,1),"mmmm")&" 1")),E175/F165*E165,"")) ->  | P175: =IF(ISBLANK(C175),"",IF(MONTH(C175)=MONTH(DATEVALUE(TEXT(DATE(2000,MONTH(DATEVALUE($E$7&" 1"))+5,1),"mmmm")&" 1")),E175/F165*E165,"")) ->  | Q175: =IF(ISBLANK(C175),"",IF(MONTH(C175)=MONTH(DATEVALUE(TEXT(DATE(2000,MONTH(DATEVALUE($E$7&" 1"))+6,1),"mmmm")&" 1")),E175/F165*E165,"")) ->  | R175: =IF(ISBLANK(C175),"",IF(MONTH(C175)=MONTH(DATEVALUE(TEXT(DATE(2000,MONTH(DATEVALUE($E$7&" 1"))+7,1),"mmmm")&" 1")),E175/F165*E165,"")) ->  | S175: =IF(ISBLANK(C175),"",IF(MONTH(C175)=MONTH(DATEVALUE(TEXT(DATE(2000,MONTH(DATEVALUE($E$7&" 1"))+8,1),"mmmm")&" 1")),E175/F165*E165,"")) ->  | T175: =IF(ISBLANK(C175),"",IF(MONTH(C175)=MONTH(DATEVALUE(TEXT(DATE(2000,MONTH(DATEVALUE($E$7&" 1"))+9,1),"mmmm")&" 1")),E175/F165*E165,"")) ->  | U175: =IF(ISBLANK(C175),"",IF(MONTH(C175)=MONTH(DATEVALUE(TEXT(DATE(2000,MONTH(DATEVALUE($E$7&" 1"))+10,1),"mmmm")&" 1")),E175/F165*E165,"")) ->  | V175: =IF(ISBLANK(C175),"",IF(MONTH(C175)=MONTH(DATEVALUE(TEXT(DATE(2000,MONTH(DATEVALUE($E$7&" 1"))+11,1),"mmmm")&" 1")),E175/F165*E165,"")) -> 
I176: 0 | K176: =IF(ISBLANK(C176),"",IF(MONTH(C176)=MONTH(DATEVALUE($E$7&" 1")),E176/F165*E165,"")) ->  | L176: =IF(ISBLANK(C176),"",IF(MONTH(C176)=MONTH(DATEVALUE(TEXT(DATE(2000,MONTH(DATEVALUE($E$7&" 1"))+1,1),"mmmm")&" 1")),E176/F165*E165,"")) ->  | M176: =IF(ISBLANK(C176),"",IF(MONTH(C176)=MONTH(DATEVALUE(TEXT(DATE(2000,MONTH(DATEVALUE($E$7&" 1"))+2,1),"mmmm")&" 1")),E176/F165*E165,"")) ->  | N176: =IF(ISBLANK(C176),"",IF(MONTH(C176)=MONTH(DATEVALUE(TEXT(DATE(2000,MONTH(DATEVALUE($E$7&" 1"))+3,1),"mmmm")&" 1")),E176/F165*E165,"")) ->  | O176: =IF(ISBLANK(C176),"",IF(MONTH(C176)=MONTH(DATEVALUE(TEXT(DATE(2000,MONTH(DATEVALUE($E$7&" 1"))+4,1),"mmmm")&" 1")),E176/F165*E165,"")) ->  | P176: =IF(ISBLANK(C176),"",IF(MONTH(C176)=MONTH(DATEVALUE(TEXT(DATE(2000,MONTH(DATEVALUE($E$7&" 1"))+5,1),"mmmm")&" 1")),E176/F165*E165,"")) ->  | Q176: =IF(ISBLANK(C176),"",IF(MONTH(C176)=MONTH(DATEVALUE(TEXT(DATE(2000,MONTH(DATEVALUE($E$7&" 1"))+6,1),"mmmm")&" 1")),E176/F165*E165,"")) ->  | R176: =IF(ISBLANK(C176),"",IF(MONTH(C176)=MONTH(DATEVALUE(TEXT(DATE(2000,MONTH(DATEVALUE($E$7&" 1"))+7,1),"mmmm")&" 1")),E176/F165*E165,"")) ->  | S176: =IF(ISBLANK(C176),"",IF(MONTH(C176)=MONTH(DATEVALUE(TEXT(DATE(2000,MONTH(DATEVALUE($E$7&" 1"))+8,1),"mmmm")&" 1")),E176/F165*E165,"")) ->  | T176: =IF(ISBLANK(C176),"",IF(MONTH(C176)=MONTH(DATEVALUE(TEXT(DATE(2000,MONTH(DATEVALUE($E$7&" 1"))+9,1),"mmmm")&" 1")),E176/F165*E165,"")) ->  | U176: =IF(ISBLANK(C176),"",IF(MONTH(C176)=MONTH(DATEVALUE(TEXT(DATE(2000,MONTH(DATEVALUE($E$7&" 1"))+10,1),"mmmm")&" 1")),E176/F165*E165,"")) ->  | V176: =IF(ISBLANK(C176),"",IF(MONTH(C176)=MONTH(DATEVALUE(TEXT(DATE(2000,MONTH(DATEVALUE($E$7&" 1"))+11,1),"mmmm")&" 1")),E176/F165*E165,"")) -> 
H177: =IFERROR(SUM(E179:H188)/F177,0) -> 0 | I177: =SUM(I178:J188) -> 0 | W177: =IF(H177<>100%,"Pas ok","ok") -> Pas ok
B178: Numéro de facture | C178: Date de facturation | D178: Description de la facture | E178: Montant de la facture
I179: =SUM(K179:V179) -> 0 | K179: =IF(ISBLANK(C179),"",IF(MONTH(C179)=MONTH(DATEVALUE($E$7&" 1")),E179/F177*E177,"")) ->  | L179: =IF(ISBLANK(C179),"",IF(MONTH(C179)=MONTH(DATEVALUE(TEXT(DATE(2000,MONTH(DATEVALUE($E$7&" 1"))+1,1),"mmmm")&" 1")),E179/F177*E177,"")) ->  | M179: =IF(ISBLANK(C179),"",IF(MONTH(C179)=MONTH(DATEVALUE(TEXT(DATE(2000,MONTH(DATEVALUE($E$7&" 1"))+2,1),"mmmm")&" 1")),E179/F177*E177,"")) ->  | N179: =IF(ISBLANK(C179),"",IF(MONTH(C179)=MONTH(DATEVALUE(TEXT(DATE(2000,MONTH(DATEVALUE($E$7&" 1"))+3,1),"mmmm")&" 1")),E179/F177*E177,"")) ->  | O179: =IF(ISBLANK(C179),"",IF(MONTH(C179)=MONTH(DATEVALUE(TEXT(DATE(2000,MONTH(DATEVALUE($E$7&" 1"))+4,1),"mmmm")&" 1")),E179/F177*E177,"")) ->  | P179: =IF(ISBLANK(C179),"",IF(MONTH(C179)=MONTH(DATEVALUE(TEXT(DATE(2000,MONTH(DATEVALUE($E$7&" 1"))+5,1),"mmmm")&" 1")),E179/F177*E177,"")) ->  | Q179: =IF(ISBLANK(C179),"",IF(MONTH(C179)=MONTH(DATEVALUE(TEXT(DATE(2000,MONTH(DATEVALUE($E$7&" 1"))+6,1),"mmmm")&" 1")),E179/F177*E177,"")) ->  | R179: =IF(ISBLANK(C179),"",IF(MONTH(C179)=MONTH(DATEVALUE(TEXT(DATE(2000,MONTH(DATEVALUE($E$7&" 1"))+7,1),"mmmm")&" 1")),E179/F177*E177,"")) ->  | S179: =IF(ISBLANK(C179),"",IF(MONTH(C179)=MONTH(DATEVALUE(TEXT(DATE(2000,MONTH(DATEVALUE($E$7&" 1"))+8,1),"mmmm")&" 1")),E179/F177*E177,"")) ->  | T179: =IF(ISBLANK(C179),"",IF(MONTH(C179)=MONTH(DATEVALUE(TEXT(DATE(2000,MONTH(DATEVALUE($E$7&" 1"))+9,1),"mmmm")&" 1")),E179/F177*E177,"")) ->  | U179: =IF(ISBLANK(C179),"",IF(MONTH(C179)=MONTH(DATEVALUE(TEXT(DATE(2000,MONTH(DATEVALUE($E$7&" 1"))+10,1),"mmmm")&" 1")),E179/F177*E177,"")) ->  | V179: =IF(ISBLANK(C179),"",IF(MONTH(C179)=MONTH(DATEVALUE(TEXT(DATE(2000,MONTH(DATEVALUE($E$7&" 1"))+11,1),"mmmm")&" 1")),E179/F177*E177,"")) -> 
I180: 0 | K180: =IF(ISBLANK(C180),"",IF(MONTH(C180)=MONTH(DATEVALUE($E$7&" 1")),E180/F177*E177,"")) ->  | L180: =IF(ISBLANK(C180),"",IF(MONTH(C180)=MONTH(DATEVALUE(TEXT(DATE(2000,MONTH(DATEVALUE($E$7&" 1"))+1,1),"mmmm")&" 1")),E180/F177*E177,"")) ->  | M180: =IF(ISBLANK(C180),"",IF(MONTH(C180)=MONTH(DATEVALUE(TEXT(DATE(2000,MONTH(DATEVALUE($E$7&" 1"))+2,1),"mmmm")&" 1")),E180/F177*E177,"")) ->  | N180: =IF(ISBLANK(C180),"",IF(MONTH(C180)=MONTH(DATEVALUE(TEXT(DATE(2000,MONTH(DATEVALUE($E$7&" 1"))+3,1),"mmmm")&" 1")),E180/F177*E177,"")) ->  | O180: =IF(ISBLANK(C180),"",IF(MONTH(C180)=MONTH(DATEVALUE(TEXT(DATE(2000,MONTH(DATEVALUE($E$7&" 1"))+4,1),"mmmm")&" 1")),E180/F177*E177,"")) ->  | P180: =IF(ISBLANK(C180),"",IF(MONTH(C180)=MONTH(DATEVALUE(TEXT(DATE(2000,MONTH(DATEVALUE($E$7&" 1"))+5,1),"mmmm")&" 1")),E180/F177*E177,"")) ->  | Q180: =IF(ISBLANK(C180),"",IF(MONTH(C180)=MONTH(DATEVALUE(TEXT(DATE(2000,MONTH(DATEVALUE($E$7&" 1"))+6,1),"mmmm")&" 1")),E180/F177*E177,"")) ->  | R180: =IF(ISBLANK(C180),"",IF(MONTH(C180)=MONTH(DATEVALUE(TEXT(DATE(2000,MONTH(DATEVALUE($E$7&" 1"))+7,1),"mmmm")&" 1")),E180/F177*E177,"")) ->  | S180: =IF(ISBLANK(C180),"",IF(MONTH(C180)=MONTH(DATEVALUE(TEXT(DATE(2000,MONTH(DATEVALUE($E$7&" 1"))+8,1),"mmmm")&" 1")),E180/F177*E177,"")) ->  | T180: =IF(ISBLANK(C180),"",IF(MONTH(C180)=MONTH(DATEVALUE(TEXT(DATE(2000,MONTH(DATEVALUE($E$7&" 1"))+9,1),"mmmm")&" 1")),E180/F177*E177,"")) ->  | U180: =IF(ISBLANK(C180),"",IF(MONTH(C180)=MONTH(DATEVALUE(TEXT(DATE(2000,MONTH(DATEVALUE($E$7&" 1"))+10,1),"mmmm")&" 1")),E180/F177*E177,"")) ->  | V180: =IF(ISBLANK(C180),"",IF(MONTH(C180)=MONTH(DATEVALUE(TEXT(DATE(2000,MONTH(DATEVALUE($E$7&" 1"))+11,1),"mmmm")&" 1")),E180/F177*E177,"")) -> 
I181: 0 | K181: =IF(ISBLANK(C181),"",IF(MONTH(C181)=MONTH(DATEVALUE($E$7&" 1")),E181/F177*E177,"")) ->  | L181: =IF(ISBLANK(C181),"",IF(MONTH(C181)=MONTH(DATEVALUE(TEXT(DATE(2000,MONTH(DATEVALUE($E$7&" 1"))+1,1),"mmmm")&" 1")),E181/F177*E177,"")) ->  | M181: =IF(ISBLANK(C181),"",IF(MONTH(C181)=MONTH(DATEVALUE(TEXT(DATE(2000,MONTH(DATEVALUE($E$7&" 1"))+2,1),"mmmm")&" 1")),E181/F177*E177,"")) ->  | N181: =IF(ISBLANK(C181),"",IF(MONTH(C181)=MONTH(DATEVALUE(TEXT(DATE(2000,MONTH(DATEVALUE($E$7&" 1"))+3,1),"mmmm")&" 1")),E181/F177*E177,"")) ->  | O181: =IF(ISBLANK(C181),"",IF(MONTH(C181)=MONTH(DATEVALUE(TEXT(DATE(2000,MONTH(DATEVALUE($E$7&" 1"))+4,1),"mmmm")&" 1")),E181/F177*E177,"")) ->  | P181: =IF(ISBLANK(C181),"",IF(MONTH(C181)=MONTH(DATEVALUE(TEXT(DATE(2000,MONTH(DATEVALUE($E$7&" 1"))+5,1),"mmmm")&" 1")),E181/F177*E177,"")) ->  | Q181: =IF(ISBLANK(C181),"",IF(MONTH(C181)=MONTH(DATEVALUE(TEXT(DATE(2000,MONTH(DATEVALUE($E$7&" 1"))+6,1),"mmmm")&" 1")),E181/F177*E177,"")) ->  | R181: =IF(ISBLANK(C181),"",IF(MONTH(C181)=MONTH(DATEVALUE(TEXT(DATE(2000,MONTH(DATEVALUE($E$7&" 1"))+7,1),"mmmm")&" 1")),E181/F177*E177,"")) ->  | S181: =IF(ISBLANK(C181),"",IF(MONTH(C181)=MONTH(DATEVALUE(TEXT(DATE(2000,MONTH(DATEVALUE($E$7&" 1"))+8,1),"mmmm")&" 1")),E181/F177*E177,"")) ->  | T181: =IF(ISBLANK(C181),"",IF(MONTH(C181)=MONTH(DATEVALUE(TEXT(DATE(2000,MONTH(DATEVALUE($E$7&" 1"))+9,1),"mmmm")&" 1")),E181/F177*E177,"")) ->  | U181: =IF(ISBLANK(C181),"",IF(MONTH(C181)=MONTH(DATEVALUE(TEXT(DATE(2000,MONTH(DATEVALUE($E$7&" 1"))+10,1),"mmmm")&" 1")),E181/F177*E177,"")) ->  | V181: =IF(ISBLANK(C181),"",IF(MONTH(C181)=MONTH(DATEVALUE(TEXT(DATE(2000,MONTH(DATEVALUE($E$7&" 1"))+11,1),"mmmm")&" 1")),E181/F177*E177,"")) -> 
I182: 0 | K182: =IF(ISBLANK(C182),"",IF(MONTH(C182)=MONTH(DATEVALUE($E$7&" 1")),E182/F177*E177,"")) ->  | L182: =IF(ISBLANK(C182),"",IF(MONTH(C182)=MONTH(DATEVALUE(TEXT(DATE(2000,MONTH(DATEVALUE($E$7&" 1"))+1,1),"mmmm")&" 1")),E182/F177*E177,"")) ->  | M182: =IF(ISBLANK(C182),"",IF(MONTH(C182)=MONTH(DATEVALUE(TEXT(DATE(2000,MONTH(DATEVALUE($E$7&" 1"))+2,1),"mmmm")&" 1")),E182/F177*E177,"")) ->  | N182: =IF(ISBLANK(C182),"",IF(MONTH(C182)=MONTH(DATEVALUE(TEXT(DATE(2000,MONTH(DATEVALUE($E$7&" 1"))+3,1),"mmmm")&" 1")),E182/F177*E177,"")) ->  | O182: =IF(ISBLANK(C182),"",IF(MONTH(C182)=MONTH(DATEVALUE(TEXT(DATE(2000,MONTH(DATEVALUE($E$7&" 1"))+4,1),"mmmm")&" 1")),E182/F177*E177,"")) ->  | P182: =IF(ISBLANK(C182),"",IF(MONTH(C182)=MONTH(DATEVALUE(TEXT(DATE(2000,MONTH(DATEVALUE($E$7&" 1"))+5,1),"mmmm")&" 1")),E182/F177*E177,"")) ->  | Q182: =IF(ISBLANK(C182),"",IF(MONTH(C182)=MONTH(DATEVALUE(TEXT(DATE(2000,MONTH(DATEVALUE($E$7&" 1"))+6,1),"mmmm")&" 1")),E182/F177*E177,"")) ->  | R182: =IF(ISBLANK(C182),"",IF(MONTH(C182)=MONTH(DATEVALUE(TEXT(DATE(2000,MONTH(DATEVALUE($E$7&" 1"))+7,1),"mmmm")&" 1")),E182/F177*E177,"")) ->  | S182: =IF(ISBLANK(C182),"",IF(MONTH(C182)=MONTH(DATEVALUE(TEXT(DATE(2000,MONTH(DATEVALUE($E$7&" 1"))+8,1),"mmmm")&" 1")),E182/F177*E177,"")) ->  | T182: =IF(ISBLANK(C182),"",IF(MONTH(C182)=MONTH(DATEVALUE(TEXT(DATE(2000,MONTH(DATEVALUE($E$7&" 1"))+9,1),"mmmm")&" 1")),E182/F177*E177,"")) ->  | U182: =IF(ISBLANK(C182),"",IF(MONTH(C182)=MONTH(DATEVALUE(TEXT(DATE(2000,MONTH(DATEVALUE($E$7&" 1"))+10,1),"mmmm")&" 1")),E182/F177*E177,"")) ->  | V182: =IF(ISBLANK(C182),"",IF(MONTH(C182)=MONTH(DATEVALUE(TEXT(DATE(2000,MONTH(DATEVALUE($E$7&" 1"))+11,1),"mmmm")&" 1")),E182/F177*E177,"")) -> 
I183: 0 | K183: =IF(ISBLANK(C183),"",IF(MONTH(C183)=MONTH(DATEVALUE($E$7&" 1")),E183/F177*E177,"")) ->  | L183: =IF(ISBLANK(C183),"",IF(MONTH(C183)=MONTH(DATEVALUE(TEXT(DATE(2000,MONTH(DATEVALUE($E$7&" 1"))+1,1),"mmmm")&" 1")),E183/F177*E177,"")) ->  | M183: =IF(ISBLANK(C183),"",IF(MONTH(C183)=MONTH(DATEVALUE(TEXT(DATE(2000,MONTH(DATEVALUE($E$7&" 1"))+2,1),"mmmm")&" 1")),E183/F177*E177,"")) ->  | N183: =IF(ISBLANK(C183),"",IF(MONTH(C183)=MONTH(DATEVALUE(TEXT(DATE(2000,MONTH(DATEVALUE($E$7&" 1"))+3,1),"mmmm")&" 1")),E183/F177*E177,"")) ->  | O183: =IF(ISBLANK(C183),"",IF(MONTH(C183)=MONTH(DATEVALUE(TEXT(DATE(2000,MONTH(DATEVALUE($E$7&" 1"))+4,1),"mmmm")&" 1")),E183/F177*E177,"")) ->  | P183: =IF(ISBLANK(C183),"",IF(MONTH(C183)=MONTH(DATEVALUE(TEXT(DATE(2000,MONTH(DATEVALUE($E$7&" 1"))+5,1),"mmmm")&" 1")),E183/F177*E177,"")) ->  | Q183: =IF(ISBLANK(C183),"",IF(MONTH(C183)=MONTH(DATEVALUE(TEXT(DATE(2000,MONTH(DATEVALUE($E$7&" 1"))+6,1),"mmmm")&" 1")),E183/F177*E177,"")) ->  | R183: =IF(ISBLANK(C183),"",IF(MONTH(C183)=MONTH(DATEVALUE(TEXT(DATE(2000,MONTH(DATEVALUE($E$7&" 1"))+7,1),"mmmm")&" 1")),E183/F177*E177,"")) ->  | S183: =IF(ISBLANK(C183),"",IF(MONTH(C183)=MONTH(DATEVALUE(TEXT(DATE(2000,MONTH(DATEVALUE($E$7&" 1"))+8,1),"mmmm")&" 1")),E183/F177*E177,"")) ->  | T183: =IF(ISBLANK(C183),"",IF(MONTH(C183)=MONTH(DATEVALUE(TEXT(DATE(2000,MONTH(DATEVALUE($E$7&" 1"))+9,1),"mmmm")&" 1")),E183/F177*E177,"")) ->  | U183: =IF(ISBLANK(C183),"",IF(MONTH(C183)=MONTH(DATEVALUE(TEXT(DATE(2000,MONTH(DATEVALUE($E$7&" 1"))+10,1),"mmmm")&" 1")),E183/F177*E177,"")) ->  | V183: =IF(ISBLANK(C183),"",IF(MONTH(C183)=MONTH(DATEVALUE(TEXT(DATE(2000,MONTH(DATEVALUE($E$7&" 1"))+11,1),"mmmm")&" 1")),E183/F177*E177,"")) -> 
I184: 0 | K184: =IF(ISBLANK(C184),"",IF(MONTH(C184)=MONTH(DATEVALUE($E$7&" 1")),E184/F177*E177,"")) ->  | L184: =IF(ISBLANK(C184),"",IF(MONTH(C184)=MONTH(DATEVALUE(TEXT(DATE(2000,MONTH(DATEVALUE($E$7&" 1"))+1,1),"mmmm")&" 1")),E184/F177*E177,"")) ->  | M184: =IF(ISBLANK(C184),"",IF(MONTH(C184)=MONTH(DATEVALUE(TEXT(DATE(2000,MONTH(DATEVALUE($E$7&" 1"))+2,1),"mmmm")&" 1")),E184/F177*E177,"")) ->  | N184: =IF(ISBLANK(C184),"",IF(MONTH(C184)=MONTH(DATEVALUE(TEXT(DATE(2000,MONTH(DATEVALUE($E$7&" 1"))+3,1),"mmmm")&" 1")),E184/F177*E177,"")) ->  | O184: =IF(ISBLANK(C184),"",IF(MONTH(C184)=MONTH(DATEVALUE(TEXT(DATE(2000,MONTH(DATEVALUE($E$7&" 1"))+4,1),"mmmm")&" 1")),E184/F177*E177,"")) ->  | P184: =IF(ISBLANK(C184),"",IF(MONTH(C184)=MONTH(DATEVALUE(TEXT(DATE(2000,MONTH(DATEVALUE($E$7&" 1"))+5,1),"mmmm")&" 1")),E184/F177*E177,"")) ->  | Q184: =IF(ISBLANK(C184),"",IF(MONTH(C184)=MONTH(DATEVALUE(TEXT(DATE(2000,MONTH(DATEVALUE($E$7&" 1"))+6,1),"mmmm")&" 1")),E184/F177*E177,"")) ->  | R184: =IF(ISBLANK(C184),"",IF(MONTH(C184)=MONTH(DATEVALUE(TEXT(DATE(2000,MONTH(DATEVALUE($E$7&" 1"))+7,1),"mmmm")&" 1")),E184/F177*E177,"")) ->  | S184: =IF(ISBLANK(C184),"",IF(MONTH(C184)=MONTH(DATEVALUE(TEXT(DATE(2000,MONTH(DATEVALUE($E$7&" 1"))+8,1),"mmmm")&" 1")),E184/F177*E177,"")) ->  | T184: =IF(ISBLANK(C184),"",IF(MONTH(C184)=MONTH(DATEVALUE(TEXT(DATE(2000,MONTH(DATEVALUE($E$7&" 1"))+9,1),"mmmm")&" 1")),E184/F177*E177,"")) ->  | U184: =IF(ISBLANK(C184),"",IF(MONTH(C184)=MONTH(DATEVALUE(TEXT(DATE(2000,MONTH(DATEVALUE($E$7&" 1"))+10,1),"mmmm")&" 1")),E184/F177*E177,"")) ->  | V184: =IF(ISBLANK(C184),"",IF(MONTH(C184)=MONTH(DATEVALUE(TEXT(DATE(2000,MONTH(DATEVALUE($E$7&" 1"))+11,1),"mmmm")&" 1")),E184/F177*E177,"")) -> 
I185: 0 | K185: =IF(ISBLANK(C185),"",IF(MONTH(C185)=MONTH(DATEVALUE($E$7&" 1")),E185/F177*E177,"")) ->  | L185: =IF(ISBLANK(C185),"",IF(MONTH(C185)=MONTH(DATEVALUE(TEXT(DATE(2000,MONTH(DATEVALUE($E$7&" 1"))+1,1),"mmmm")&" 1")),E185/F177*E177,"")) ->  | M185: =IF(ISBLANK(C185),"",IF(MONTH(C185)=MONTH(DATEVALUE(TEXT(DATE(2000,MONTH(DATEVALUE($E$7&" 1"))+2,1),"mmmm")&" 1")),E185/F177*E177,"")) ->  | N185: =IF(ISBLANK(C185),"",IF(MONTH(C185)=MONTH(DATEVALUE(TEXT(DATE(2000,MONTH(DATEVALUE($E$7&" 1"))+3,1),"mmmm")&" 1")),E185/F177*E177,"")) ->  | O185: =IF(ISBLANK(C185),"",IF(MONTH(C185)=MONTH(DATEVALUE(TEXT(DATE(2000,MONTH(DATEVALUE($E$7&" 1"))+4,1),"mmmm")&" 1")),E185/F177*E177,"")) ->  | P185: =IF(ISBLANK(C185),"",IF(MONTH(C185)=MONTH(DATEVALUE(TEXT(DATE(2000,MONTH(DATEVALUE($E$7&" 1"))+5,1),"mmmm")&" 1")),E185/F177*E177,"")) ->  | Q185: =IF(ISBLANK(C185),"",IF(MONTH(C185)=MONTH(DATEVALUE(TEXT(DATE(2000,MONTH(DATEVALUE($E$7&" 1"))+6,1),"mmmm")&" 1")),E185/F177*E177,"")) ->  | R185: =IF(ISBLANK(C185),"",IF(MONTH(C185)=MONTH(DATEVALUE(TEXT(DATE(2000,MONTH(DATEVALUE($E$7&" 1"))+7,1),"mmmm")&" 1")),E185/F177*E177,"")) ->  | S185: =IF(ISBLANK(C185),"",IF(MONTH(C185)=MONTH(DATEVALUE(TEXT(DATE(2000,MONTH(DATEVALUE($E$7&" 1"))+8,1),"mmmm")&" 1")),E185/F177*E177,"")) ->  | T185: =IF(ISBLANK(C185),"",IF(MONTH(C185)=MONTH(DATEVALUE(TEXT(DATE(2000,MONTH(DATEVALUE($E$7&" 1"))+9,1),"mmmm")&" 1")),E185/F177*E177,"")) ->  | U185: =IF(ISBLANK(C185),"",IF(MONTH(C185)=MONTH(DATEVALUE(TEXT(DATE(2000,MONTH(DATEVALUE($E$7&" 1"))+10,1),"mmmm")&" 1")),E185/F177*E177,"")) ->  | V185: =IF(ISBLANK(C185),"",IF(MONTH(C185)=MONTH(DATEVALUE(TEXT(DATE(2000,MONTH(DATEVALUE($E$7&" 1"))+11,1),"mmmm")&" 1")),E185/F177*E177,"")) -> 
I186: 0 | K186: =IF(ISBLANK(C186),"",IF(MONTH(C186)=MONTH(DATEVALUE($E$7&" 1")),E186/F177*E177,"")) ->  | L186: =IF(ISBLANK(C186),"",IF(MONTH(C186)=MONTH(DATEVALUE(TEXT(DATE(2000,MONTH(DATEVALUE($E$7&" 1"))+1,1),"mmmm")&" 1")),E186/F177*E177,"")) ->  | M186: =IF(ISBLANK(C186),"",IF(MONTH(C186)=MONTH(DATEVALUE(TEXT(DATE(2000,MONTH(DATEVALUE($E$7&" 1"))+2,1),"mmmm")&" 1")),E186/F177*E177,"")) ->  | N186: =IF(ISBLANK(C186),"",IF(MONTH(C186)=MONTH(DATEVALUE(TEXT(DATE(2000,MONTH(DATEVALUE($E$7&" 1"))+3,1),"mmmm")&" 1")),E186/F177*E177,"")) ->  | O186: =IF(ISBLANK(C186),"",IF(MONTH(C186)=MONTH(DATEVALUE(TEXT(DATE(2000,MONTH(DATEVALUE($E$7&" 1"))+4,1),"mmmm")&" 1")),E186/F177*E177,"")) ->  | P186: =IF(ISBLANK(C186),"",IF(MONTH(C186)=MONTH(DATEVALUE(TEXT(DATE(2000,MONTH(DATEVALUE($E$7&" 1"))+5,1),"mmmm")&" 1")),E186/F177*E177,"")) ->  | Q186: =IF(ISBLANK(C186),"",IF(MONTH(C186)=MONTH(DATEVALUE(TEXT(DATE(2000,MONTH(DATEVALUE($E$7&" 1"))+6,1),"mmmm")&" 1")),E186/F177*E177,"")) ->  | R186: =IF(ISBLANK(C186),"",IF(MONTH(C186)=MONTH(DATEVALUE(TEXT(DATE(2000,MONTH(DATEVALUE($E$7&" 1"))+7,1),"mmmm")&" 1")),E186/F177*E177,"")) ->  | S186: =IF(ISBLANK(C186),"",IF(MONTH(C186)=MONTH(DATEVALUE(TEXT(DATE(2000,MONTH(DATEVALUE($E$7&" 1"))+8,1),"mmmm")&" 1")),E186/F177*E177,"")) ->  | T186: =IF(ISBLANK(C186),"",IF(MONTH(C186)=MONTH(DATEVALUE(TEXT(DATE(2000,MONTH(DATEVALUE($E$7&" 1"))+9,1),"mmmm")&" 1")),E186/F177*E177,"")) ->  | U186: =IF(ISBLANK(C186),"",IF(MONTH(C186)=MONTH(DATEVALUE(TEXT(DATE(2000,MONTH(DATEVALUE($E$7&" 1"))+10,1),"mmmm")&" 1")),E186/F177*E177,"")) ->  | V186: =IF(ISBLANK(C186),"",IF(MONTH(C186)=MONTH(DATEVALUE(TEXT(DATE(2000,MONTH(DATEVALUE($E$7&" 1"))+11,1),"mmmm")&" 1")),E186/F177*E177,"")) -> 
I187: 0 | K187: =IF(ISBLANK(C187),"",IF(MONTH(C187)=MONTH(DATEVALUE($E$7&" 1")),E187/F177*E177,"")) ->  | L187: =IF(ISBLANK(C187),"",IF(MONTH(C187)=MONTH(DATEVALUE(TEXT(DATE(2000,MONTH(DATEVALUE($E$7&" 1"))+1,1),"mmmm")&" 1")),E187/F177*E177,"")) ->  | M187: =IF(ISBLANK(C187),"",IF(MONTH(C187)=MONTH(DATEVALUE(TEXT(DATE(2000,MONTH(DATEVALUE($E$7&" 1"))+2,1),"mmmm")&" 1")),E187/F177*E177,"")) ->  | N187: =IF(ISBLANK(C187),"",IF(MONTH(C187)=MONTH(DATEVALUE(TEXT(DATE(2000,MONTH(DATEVALUE($E$7&" 1"))+3,1),"mmmm")&" 1")),E187/F177*E177,"")) ->  | O187: =IF(ISBLANK(C187),"",IF(MONTH(C187)=MONTH(DATEVALUE(TEXT(DATE(2000,MONTH(DATEVALUE($E$7&" 1"))+4,1),"mmmm")&" 1")),E187/F177*E177,"")) ->  | P187: =IF(ISBLANK(C187),"",IF(MONTH(C187)=MONTH(DATEVALUE(TEXT(DATE(2000,MONTH(DATEVALUE($E$7&" 1"))+5,1),"mmmm")&" 1")),E187/F177*E177,"")) ->  | Q187: =IF(ISBLANK(C187),"",IF(MONTH(C187)=MONTH(DATEVALUE(TEXT(DATE(2000,MONTH(DATEVALUE($E$7&" 1"))+6,1),"mmmm")&" 1")),E187/F177*E177,"")) ->  | R187: =IF(ISBLANK(C187),"",IF(MONTH(C187)=MONTH(DATEVALUE(TEXT(DATE(2000,MONTH(DATEVALUE($E$7&" 1"))+7,1),"mmmm")&" 1")),E187/F177*E177,"")) ->  | S187: =IF(ISBLANK(C187),"",IF(MONTH(C187)=MONTH(DATEVALUE(TEXT(DATE(2000,MONTH(DATEVALUE($E$7&" 1"))+8,1),"mmmm")&" 1")),E187/F177*E177,"")) ->  | T187: =IF(ISBLANK(C187),"",IF(MONTH(C187)=MONTH(DATEVALUE(TEXT(DATE(2000,MONTH(DATEVALUE($E$7&" 1"))+9,1),"mmmm")&" 1")),E187/F177*E177,"")) ->  | U187: =IF(ISBLANK(C187),"",IF(MONTH(C187)=MONTH(DATEVALUE(TEXT(DATE(2000,MONTH(DATEVALUE($E$7&" 1"))+10,1),"mmmm")&" 1")),E187/F177*E177,"")) ->  | V187: =IF(ISBLANK(C187),"",IF(MONTH(C187)=MONTH(DATEVALUE(TEXT(DATE(2000,MONTH(DATEVALUE($E$7&" 1"))+11,1),"mmmm")&" 1")),E187/F177*E177,"")) -> 
I188: 0 | K188: =IF(ISBLANK(C188),"",IF(MONTH(C188)=MONTH(DATEVALUE($E$7&" 1")),E188/F177*E177,"")) ->  | L188: =IF(ISBLANK(C188),"",IF(MONTH(C188)=MONTH(DATEVALUE(TEXT(DATE(2000,MONTH(DATEVALUE($E$7&" 1"))+1,1),"mmmm")&" 1")),E188/F177*E177,"")) ->  | M188: =IF(ISBLANK(C188),"",IF(MONTH(C188)=MONTH(DATEVALUE(TEXT(DATE(2000,MONTH(DATEVALUE($E$7&" 1"))+2,1),"mmmm")&" 1")),E188/F177*E177,"")) ->  | N188: =IF(ISBLANK(C188),"",IF(MONTH(C188)=MONTH(DATEVALUE(TEXT(DATE(2000,MONTH(DATEVALUE($E$7&" 1"))+3,1),"mmmm")&" 1")),E188/F177*E177,"")) ->  | O188: =IF(ISBLANK(C188),"",IF(MONTH(C188)=MONTH(DATEVALUE(TEXT(DATE(2000,MONTH(DATEVALUE($E$7&" 1"))+4,1),"mmmm")&" 1")),E188/F177*E177,"")) ->  | P188: =IF(ISBLANK(C188),"",IF(MONTH(C188)=MONTH(DATEVALUE(TEXT(DATE(2000,MONTH(DATEVALUE($E$7&" 1"))+5,1),"mmmm")&" 1")),E188/F177*E177,"")) ->  | Q188: =IF(ISBLANK(C188),"",IF(MONTH(C188)=MONTH(DATEVALUE(TEXT(DATE(2000,MONTH(DATEVALUE($E$7&" 1"))+6,1),"mmmm")&" 1")),E188/F177*E177,"")) ->  | R188: =IF(ISBLANK(C188),"",IF(MONTH(C188)=MONTH(DATEVALUE(TEXT(DATE(2000,MONTH(DATEVALUE($E$7&" 1"))+7,1),"mmmm")&" 1")),E188/F177*E177,"")) ->  | S188: =IF(ISBLANK(C188),"",IF(MONTH(C188)=MONTH(DATEVALUE(TEXT(DATE(2000,MONTH(DATEVALUE($E$7&" 1"))+8,1),"mmmm")&" 1")),E188/F177*E177,"")) ->  | T188: =IF(ISBLANK(C188),"",IF(MONTH(C188)=MONTH(DATEVALUE(TEXT(DATE(2000,MONTH(DATEVALUE($E$7&" 1"))+9,1),"mmmm")&" 1")),E188/F177*E177,"")) ->  | U188: =IF(ISBLANK(C188),"",IF(MONTH(C188)=MONTH(DATEVALUE(TEXT(DATE(2000,MONTH(DATEVALUE($E$7&" 1"))+10,1),"mmmm")&" 1")),E188/F177*E177,"")) ->  | V188: =IF(ISBLANK(C188),"",IF(MONTH(C188)=MONTH(DATEVALUE(TEXT(DATE(2000,MONTH(DATEVALUE($E$7&" 1"))+11,1),"mmmm")&" 1")),E188/F177*E177,"")) -> 
H189: =IFERROR(SUM(E191:H200)/F189,0) -> 0 | I189: =SUM(I190:J200) -> 0 | W189: =IF(H189<>100%,"Pas ok","ok") -> Pas ok
B190: Numéro de facture | C190: Date de facturation | D190: Description de la facture | E190: Montant de la facture
